Workbook

Sheet Notes
A1: Scotland
A2: Ayrshire & Arran
A3: Borders
A4: Dumfries & Galloway
A5: Fife
A6: Forth Valley
A7: Golden Jubilee
A8: Grampian
A9: Greater Glasgow & Clyde
A10: Highland
A11: Lanarkshire
A12: Lothian
A13: Orkney
A14: Shetland
A15: Tayside
A16: Western Isles

Sheet CDI Data and Charts
B1: Scotland | K1: =CONCATENATE("Healthcare and community rates for ",B1) -> Healthcare and community rates for Scotland
L2: CDIHCAI | N2: CDICA
D3: Healthcare associated CDI | G3: Community associated CDI | L3: Healthcare associated CDI | N3: Community associated CDI
B4: Quarter Ending | C4: Cases | D4: Rate per 100 000 bed days | E4: 95% CI | F4: Cases | G4: Rate per 100 000 population | H4: 95% CI | L4: % change | N4: % change
B5: ='CDI data'!B8 -> 2014-12-19 | C5: ='CDI data'!D8 -> 321 | D5: ='CDI data'!E8 -> 18.752 | E5: =CONCATENATE("(",TEXT('CDI data'!F8,"0.0")," ,", TEXT('CDI data'!G8,"0.0"),")") -> (16.8 ,20.9) | F5: ='CDI data'!H8 -> 121 | G5: ='CDI data'!I8 -> 9.004 | H5: =IFERROR(CONCATENATE("(",TEXT('CDI data'!J8,"0.0")," ,", TEXT('CDI data'!K8,"0.0"),")"),"-") -> (7.5 ,10.8) | K5: This quarter compared to last (national only) | L5: =IFERROR(VLOOKUP(CONCATENATE(L2,$B$1),'quarter comp'!$A1:$H21,4,FALSE),"-") -> -3.530893586 | M5: =IFERROR(VLOOKUP(CONCATENATE(L2,$B$1),'quarter comp'!$A1:$H21,8,FALSE),"-") -> Non Significant | N5: =IFERROR(VLOOKUP(CONCATENATE(N2,$B$1),'quarter comp'!$A1:$H21,4,FALSE),"-") -> 6.603174603 | O5: =IFERROR(VLOOKUP(CONCATENATE(N2,$B$1),'quarter comp'!$A1:$H21,8,FALSE),"-") -> Non Significant
B6: ='CDI data'!B9 -> 2015-03-24 | C6: ='CDI data'!D9 -> 251 | D6: ='CDI data'!E9 -> 14.562 | E6: =CONCATENATE("(",TEXT('CDI data'!F9,"0.0")," ,", TEXT('CDI data'!G9,"0.0"),")") -> (12.8 ,16.5) | F6: ='CDI data'!H9 -> 92 | G6: ='CDI data'!I9 -> 6.973 | H6: =IFERROR(CONCATENATE("(",TEXT('CDI data'!J9,"0.0")," ,", TEXT('CDI data'!K9,"0.0"),")"),"-") -> (5.6 ,8.6) | K6: Year end compared to previous year end | L6: =IF(IFERROR(VLOOKUP(CONCATENATE(L2,$B$1),'year end comp'!$A$2:$Z$1086,4,FALSE),"-")=-100,"-",IFERROR(VLOOKUP(CONCATENATE(L2,$B$1),'year end comp'!$A$2:$Z$1086,4,FALSE),"-")) -> -12.72032013 | M6: =IF(IFERROR(VLOOKUP(CONCATENATE(L2,$B$1),'year end comp'!$A$2:$Z$1086,8,FALSE),"-")=0,"-",IFERROR(VLOOKUP(CONCATENATE(L2,$B$1),'year end comp'!$A$2:$Z$1086,8,FALSE),"-")) -> Significant | N6: =IFERROR(VLOOKUP(CONCATENATE(N2,$B$1),'year end comp'!$A$2:$Z$1086,4,FALSE),"-") -> -13.79310345 | O6: =IF(IFERROR(VLOOKUP(CONCATENATE(N2,$B$1),'year end comp'!$A$2:$Z$1086,8,FALSE),"-")=0,"-",IFERROR(VLOOKUP(CONCATENATE(N2,$B$1),'year end comp'!$A$2:$Z$1086,8,FALSE),"-")) -> Non Significant
B7: ='CDI data'!B10 -> 2015-06-24 | C7: ='CDI data'!D10 -> 308 | D7: ='CDI data'!E10 -> 18.538 | E7: =CONCATENATE("(",TEXT('CDI data'!F10,"0.0")," ,", TEXT('CDI data'!G10,"0.0"),")") -> (16.5 ,20.7) | F7: ='CDI data'!H10 -> 98 | G7: ='CDI data'!I10 -> 7.346 | H7: =IFERROR(CONCATENATE("(",TEXT('CDI data'!J10,"0.0")," ,", TEXT('CDI data'!K10,"0.0"),")"),"-") -> (6.0 ,9.0)
B8: ='CDI data'!B11 -> 2015-09-24 | C8: ='CDI data'!D11 -> 313 | D8: ='CDI data'!E11 -> 19.31 | E8: =CONCATENATE("(",TEXT('CDI data'!F11,"0.0")," ,", TEXT('CDI data'!G11,"0.0"),")") -> (17.2 ,21.6) | F8: ='CDI data'!H11 -> 131 | G8: ='CDI data'!I11 -> 9.713 | H8: =IFERROR(CONCATENATE("(",TEXT('CDI data'!J11,"0.0")," ,", TEXT('CDI data'!K11,"0.0"),")"),"-") -> (8.1 ,11.5)
B9: ='CDI data'!B12 -> 2015-12-24 | C9: ='CDI data'!D12 -> 367 | D9: ='CDI data'!E12 -> 22.349 | E9: =CONCATENATE("(",TEXT('CDI data'!F12,"0.0")," ,", TEXT('CDI data'!G12,"0.0"),")") -> (20.1 ,24.8) | F9: ='CDI data'!H12 -> 116 | G9: ='CDI data'!I12 -> 8.601 | H9: =IFERROR(CONCATENATE("(",TEXT('CDI data'!J12,"0.0")," ,", TEXT('CDI data'!K12,"0.0"),")"),"-") -> (7.1 ,10.3)
B10: ='CDI data'!B13 -> 2016-03-24 | C10: ='CDI data'!D13 -> 252 | D10: ='CDI data'!E13 -> 15.05 | E10: =CONCATENATE("(",TEXT('CDI data'!F13,"0.0")," ,", TEXT('CDI data'!G13,"0.0"),")") -> (13.2 ,17.0) | F10: ='CDI data'!H13 -> 97 | G10: ='CDI data'!I13 -> 7.26 | H10: =IFERROR(CONCATENATE("(",TEXT('CDI data'!J13,"0.0")," ,", TEXT('CDI data'!K13,"0.0"),")"),"-") -> (5.9 ,8.9)
B11: ='CDI data'!B14 -> 2016-06-24 | C11: ='CDI data'!D14 -> 250 | D11: ='CDI data'!E14 -> 15.575 | E11: =CONCATENATE("(",TEXT('CDI data'!F14,"0.0")," ,", TEXT('CDI data'!G14,"0.0"),")") -> (13.7 ,17.6) | F11: ='CDI data'!H14 -> 91 | G11: ='CDI data'!I14 -> 6.811 | H11: =IFERROR(CONCATENATE("(",TEXT('CDI data'!J14,"0.0")," ,", TEXT('CDI data'!K14,"0.0"),")"),"-") -> (5.5 ,8.4)
B12: ='CDI data'!B15 -> 2016-09-24 | C12: ='CDI data'!D15 -> 263 | D12: ='CDI data'!E15 -> 16.563 | E12: =CONCATENATE("(",TEXT('CDI data'!F15,"0.0")," ,", TEXT('CDI data'!G15,"0.0"),")") -> (14.6 ,18.7) | F12: ='CDI data'!H15 -> 119 | G12: ='CDI data'!I15 -> 8.81 | H12: =IFERROR(CONCATENATE("(",TEXT('CDI data'!J15,"0.0")," ,", TEXT('CDI data'!K15,"0.0"),")"),"-") -> (7.3 ,10.5)
B13: ='CDI data'!B16 -> 2016-12-24 | C13: ='CDI data'!D16 -> 233 | D13: ='CDI data'!E16 -> 14.639 | E13: =CONCATENATE("(",TEXT('CDI data'!F16,"0.0")," ,", TEXT('CDI data'!G16,"0.0"),")") -> (12.8 ,16.6) | F13: ='CDI data'!H16 -> 94 | G13: ='CDI data'!I16 -> 6.959 | H13: =IFERROR(CONCATENATE("(",TEXT('CDI data'!J16,"0.0")," ,", TEXT('CDI data'!K16,"0.0"),")"),"-") -> (5.6 ,8.5)
B14: ='CDI data'!B17 -> 2017-03-01 | C14: ='CDI data'!D17 -> 257 | D14: ='CDI data'!E17 -> 16.252 | E14: =CONCATENATE("(",TEXT('CDI data'!F17,"0.0")," ,", TEXT('CDI data'!G17,"0.0"),")") -> (14.3 ,18.4) | F14: ='CDI data'!H17 -> 74 | G14: ='CDI data'!I17 -> 5.57 | H14: =IFERROR(CONCATENATE("(",TEXT('CDI data'!J17,"0.0")," ,", TEXT('CDI data'!K17,"0.0"),")"),"-") -> (4.4 ,7.0)
B15: ='CDI data'!B18 -> 2017-06-01 | C15: ='CDI data'!D18 -> 237 | D15: ='CDI data'!E18 -> 15.285 | E15: =CONCATENATE("(",TEXT('CDI data'!F18,"0.0")," ,", TEXT('CDI data'!G18,"0.0"),")") -> (13.4 ,17.4) | F15: ='CDI data'!H18 -> 101 | G15: ='CDI data'!I18 -> 7.518 | H15: =IFERROR(CONCATENATE("(",TEXT('CDI data'!J18,"0.0")," ,", TEXT('CDI data'!K18,"0.0"),")"),"-") -> (6.1 ,9.1)
B16: ='CDI data'!B19 -> 2017-09-01 | C16: ='CDI data'!D19 -> 284 | D16: ='CDI data'!E19 -> 18.456 | E16: =CONCATENATE("(",TEXT('CDI data'!F19,"0.0")," ,", TEXT('CDI data'!G19,"0.0"),")") -> (16.4 ,20.7) | F16: ='CDI data'!H19 -> 107 | G16: ='CDI data'!I19 -> 7.879 | H16: =IFERROR(CONCATENATE("(",TEXT('CDI data'!J19,"0.0")," ,", TEXT('CDI data'!K19,"0.0"),")"),"-") -> (6.5 ,9.5)
B17: ='CDI data'!B20 -> 2017-12-01 | C17: ='CDI data'!D20 -> 234 | D17: ='CDI data'!E20 -> 14.857 | E17: =CONCATENATE("(",TEXT('CDI data'!F20,"0.0")," ,", TEXT('CDI data'!G20,"0.0"),")") -> (13.0 ,16.9) | F17: ='CDI data'!H20 -> 75 | G17: ='CDI data'!I20 -> 5.522 | H17: =IFERROR(CONCATENATE("(",TEXT('CDI data'!J20,"0.0")," ,", TEXT('CDI data'!K20,"0.0"),")"),"-") -> (4.3 ,6.9)
B18: ='CDI data'!B21 -> 2018-03-01 | C18: ='CDI data'!D21 -> 228 | D18: ='CDI data'!E21 -> 14.383 | E18: =CONCATENATE("(",TEXT('CDI data'!F21,"0.0")," ,", TEXT('CDI data'!G21,"0.0"),")") -> (12.6 ,16.4) | F18: ='CDI data'!H21 -> 86 | G18: ='CDI data'!I21 -> 6.468 | H18: =IFERROR(CONCATENATE("(",TEXT('CDI data'!J21,"0.0")," ,", TEXT('CDI data'!K21,"0.0"),")"),"-") -> (5.2 ,8.0)
B19: ='CDI data'!B22 -> 2018-06-01 | C19: ='CDI data'!D22 -> 244 | D19: ='CDI data'!E22 -> 15.996 | E19: =CONCATENATE("(",TEXT('CDI data'!F22,"0.0")," ,", TEXT('CDI data'!G22,"0.0"),")") -> (14.1 ,18.1) | F19: ='CDI data'!H22 -> 102 | G19: ='CDI data'!I22 -> 7.587 | H19: =IFERROR(CONCATENATE("(",TEXT('CDI data'!J22,"0.0")," ,", TEXT('CDI data'!K22,"0.0"),")"),"-") -> (6.2 ,9.2)
B20: ='CDI data'!B23 -> 2018-09-01 | C20: ='CDI data'!D23 -> 255 | D20: ='CDI data'!E23 -> 16.869 | E20: =CONCATENATE("(",TEXT('CDI data'!F23,"0.0")," ,", TEXT('CDI data'!G23,"0.0"),")") -> (14.9 ,19.1) | F20: ='CDI data'!H23 -> 92 | G20: ='CDI data'!I23 -> 6.769 | H20: =IFERROR(CONCATENATE("(",TEXT('CDI data'!J23,"0.0")," ,", TEXT('CDI data'!K23,"0.0"),")"),"-") -> (5.5 ,8.3)
B21: ='CDI data'!B24 -> 2018-12-01 | C21: ='CDI data'!D24 -> 220 | D21: ='CDI data'!E24 -> 14.453 | E21: =CONCATENATE("(",TEXT('CDI data'!F24,"0.0")," ,", TEXT('CDI data'!G24,"0.0"),")") -> (12.6 ,16.5) | F21: ='CDI data'!H24 -> 86 | G21: ='CDI data'!I24 -> 6.328 | H21: =IFERROR(CONCATENATE("(",TEXT('CDI data'!J24,"0.0")," ,", TEXT('CDI data'!K24,"0.0"),")"),"-") -> (5.1 ,7.8)
B22: ='CDI data'!B25 -> 2019-03-01 | C22: ='CDI data'!D25 -> 186 | D22: ='CDI data'!E25 -> 12.09 | E22: =CONCATENATE("(",TEXT('CDI data'!F25,"0.0")," ,", TEXT('CDI data'!G25,"0.0"),")") -> (10.4 ,14.0) | F22: ='CDI data'!H25 -> 50 | G22: ='CDI data'!I25 -> 3.747 | H22: =IFERROR(CONCATENATE("(",TEXT('CDI data'!J25,"0.0")," ,", TEXT('CDI data'!K25,"0.0"),")"),"-") -> (2.8 ,4.9)
B23: ='CDI data'!B26 -> 2019-06-01 | C23: ='CDI data'!D26 -> 184 | D23: ='CDI data'!E26 -> 12.215 | E23: =CONCATENATE("(",TEXT('CDI data'!F26,"0.0")," ,", TEXT('CDI data'!G26,"0.0"),")") -> (10.5 ,14.1) | F23: ='CDI data'!H26 -> 66 | G23: ='CDI data'!I26 -> 4.892 | H23: =IFERROR(CONCATENATE("(",TEXT('CDI data'!J26,"0.0")," ,", TEXT('CDI data'!K26,"0.0"),")"),"-") -> (3.8 ,6.2)
B24: ='CDI data'!B27 -> 2019-09-01 | C24: ='CDI data'!D27 -> 207 | D24: ='CDI data'!E27 -> 13.736 | E24: =CONCATENATE("(",TEXT('CDI data'!F27,"0.0")," ,", TEXT('CDI data'!G27,"0.0"),")") -> (11.9 ,15.7) | F24: ='CDI data'!H27 -> 72 | G24: ='CDI data'!I27 -> 5.279 | H24: =IFERROR(CONCATENATE("(",TEXT('CDI data'!J27,"0.0")," ,", TEXT('CDI data'!K27,"0.0"),")"),"-") -> (4.1 ,6.6)
B25: ='CDI data'!B28 -> 2019-12-01 | C25: ='CDI data'!D28 -> 231 | D25: ='CDI data'!E28 -> 15.084 | E25: =CONCATENATE("(",TEXT('CDI data'!F28,"0.0")," ,", TEXT('CDI data'!G28,"0.0"),")") -> (13.2 ,17.2) | F25: ='CDI data'!H28 -> 63 | G25: ='CDI data'!I28 -> 4.619 | H25: =IFERROR(CONCATENATE("(",TEXT('CDI data'!J28,"0.0")," ,", TEXT('CDI data'!K28,"0.0"),")"),"-") -> (3.5 ,5.9)
B26: ='CDI data'!B29 -> 2020-03-01 | C26: ='CDI data'!D29 -> 201 | D26: ='CDI data'!E29 -> 13.618 | E26: =CONCATENATE("(",TEXT('CDI data'!F29,"0.0")," ,", TEXT('CDI data'!G29,"0.0"),")") -> (11.8 ,15.6) | F26: ='CDI data'!H29 -> 46 | G26: ='CDI data'!I29 -> 3.42 | H26: =IFERROR(CONCATENATE("(",TEXT('CDI data'!J29,"0.0")," ,", TEXT('CDI data'!K29,"0.0"),")"),"-") -> (2.5 ,4.6)
B27: ='CDI data'!B30 -> 2020-06-01 | C27: ='CDI data'!D30 -> 166 | D27: ='CDI data'!E30 -> 15.357 | E27: =CONCATENATE("(",TEXT('CDI data'!F30,"0.0")," ,", TEXT('CDI data'!G30,"0.0"),")") -> (13.1 ,17.9) | F27: ='CDI data'!H30 -> 80 | G27: ='CDI data'!I30 -> 5.949 | H27: =IFERROR(CONCATENATE("(",TEXT('CDI data'!J30,"0.0")," ,", TEXT('CDI data'!K30,"0.0"),")"),"-") -> (4.7 ,7.4)
B28: ='CDI data'!B31 -> 2020-09-01 | C28: ='CDI data'!D31 -> 227 | D28: ='CDI data'!E31 -> 17.4082 | E28: =CONCATENATE("(",TEXT('CDI data'!F31,"0.0")," ,", TEXT('CDI data'!G31,"0.0"),")") -> (15.2 ,19.8) | F28: ='CDI data'!H31 -> 90 | G28: ='CDI data'!I31 -> 6.6195 | H28: =IFERROR(CONCATENATE("(",TEXT('CDI data'!J31,"0.0")," ,", TEXT('CDI data'!K31,"0.0"),")"),"-") -> (5.3 ,8.1)
B29: ='CDI data'!B32 -> 2020-12-31 | C29: ='CDI data'!D32 -> 222 | D29: ='CDI data'!E32 -> 16.3501 | E29: =CONCATENATE("(",TEXT('CDI data'!F32,"0.0")," ,", TEXT('CDI data'!G32,"0.0"),")") -> (14.3 ,18.6) | F29: ='CDI data'!H32 -> 56 | G29: ='CDI data'!I32 -> 4.1188 | H29: =IFERROR(CONCATENATE("(",TEXT('CDI data'!J32,"0.0")," ,", TEXT('CDI data'!K32,"0.0"),")"),"-") -> (3.1 ,5.3)
B30: ='CDI data'!B33 -> 2021-03-31 | C30: ='CDI data'!D33 -> 213 | D30: ='CDI data'!E33 -> 15.7562 | E30: =CONCATENATE("(",TEXT('CDI data'!F33,"0.0")," ,", TEXT('CDI data'!G33,"0.0"),")") -> (13.7 ,18.0) | F30: ='CDI data'!H33 -> 49 | G30: ='CDI data'!I33 -> 3.6713 | H30: =IFERROR(CONCATENATE("(",TEXT('CDI data'!J33,"0.0")," ,", TEXT('CDI data'!K33,"0.0"),")"),"-") -> (2.7 ,4.9)
B31: ='CDI data'!B34 -> 2021-06-30 | C31: ='CDI data'!D34 -> 203 | D31: ='CDI data'!E34 -> 14.5607 | E31: =CONCATENATE("(",TEXT('CDI data'!F34,"0.0")," ,", TEXT('CDI data'!G34,"0.0"),")") -> (12.6 ,16.7) | F31: ='CDI data'!H34 -> 74 | G31: ='CDI data'!I34 -> 5.4834 | H31: =IFERROR(CONCATENATE("(",TEXT('CDI data'!J34,"0.0")," ,", TEXT('CDI data'!K34,"0.0"),")"),"-") -> (4.3 ,6.9)
B32: ='CDI data'!B35 -> 2021-09-01 | C32: ='CDI data'!D35 -> 245 | D32: ='CDI data'!E35 -> 16.823 | E32: =CONCATENATE("(",TEXT('CDI data'!F35,"0.0")," ,", TEXT('CDI data'!G35,"0.0"),")") -> (14.8 ,19.1) | F32: ='CDI data'!H35 -> 87 | G32: ='CDI data'!I35 -> 6.3767 | H32: =IFERROR(CONCATENATE("(",TEXT('CDI data'!J35,"0.0")," ,", TEXT('CDI data'!K35,"0.0"),")"),"-") -> (5.1 ,7.9)
B33: ='CDI data'!B36 -> 2021-12-31 | C33: ='CDI data'!D36 -> 197 | D33: ='CDI data'!E36 -> 13.1878 | E33: =CONCATENATE("(",TEXT('CDI data'!F36,"0.0")," ,", TEXT('CDI data'!G36,"0.0"),")") -> (11.4 ,15.2) | F33: ='CDI data'!H36 -> 67 | G33: ='CDI data'!I36 -> 4.9108 | H33: =IFERROR(CONCATENATE("(",TEXT('CDI data'!J36,"0.0")," ,", TEXT('CDI data'!K36,"0.0"),")"),"-") -> (3.8 ,6.2)
B34: ='CDI data'!B37 -> 2022-03-31 | C34: ='CDI data'!D37 -> 187 | D34: ='CDI data'!E37 -> 12.6261 | E34: =CONCATENATE("(",TEXT('CDI data'!F37,"0.0")," ,", TEXT('CDI data'!G37,"0.0"),")") -> (10.9 ,14.6) | F34: ='CDI data'!H37 -> 43 | G34: ='CDI data'!I37 -> 3.2016 | H34: =IFERROR(CONCATENATE("(",TEXT('CDI data'!J37,"0.0")," ,", TEXT('CDI data'!K37,"0.0"),")"),"-") -> (2.3 ,4.3)
B35: ='CDI data'!B38 -> 2022-06-30 | C35: ='CDI data'!D38 -> 217 | D35: ='CDI data'!E38 -> 14.3109 | E35: =CONCATENATE("(",TEXT('CDI data'!F38,"0.0")," ,", TEXT('CDI data'!G38,"0.0"),")") -> (12.5 ,16.3) | F35: ='CDI data'!H38 -> 66 | G35: ='CDI data'!I38 -> 4.86 | H35: =IFERROR(CONCATENATE("(",TEXT('CDI data'!J38,"0.0")," ,", TEXT('CDI data'!K38,"0.0"),")"),"-") -> (3.8 ,6.2)
B36: ='CDI data'!B39 -> 2022-09-30 | C36: ='CDI data'!D39 -> 202 | D36: ='CDI data'!E39 -> 13.0682 | E36: =CONCATENATE("(",TEXT('CDI data'!F39,"0.0")," ,", TEXT('CDI data'!G39,"0.0"),")") -> (11.3 ,15.0) | F36: ='CDI data'!H39 -> 82 | G36: ='CDI data'!I39 -> 5.9726 | H36: =IFERROR(CONCATENATE("(",TEXT('CDI data'!J39,"0.0")," ,", TEXT('CDI data'!K39,"0.0"),")"),"-") -> (4.8 ,7.4)
B37: ='CDI data'!B40 -> 2022-12-31 | C37: ='CDI data'!D40 -> 212 | D37: ='CDI data'!E40 -> 13.5113 | E37: =CONCATENATE("(",TEXT('CDI data'!F40,"0.0")," ,", TEXT('CDI data'!G40,"0.0"),")") -> (11.8 ,15.5) | F37: ='CDI data'!H40 -> 44 | G37: ='CDI data'!I40 -> 3.2048 | H37: =IFERROR(CONCATENATE("(",TEXT('CDI data'!J40,"0.0")," ,", TEXT('CDI data'!K40,"0.0"),")"),"-") -> (2.3 ,4.3)
B38: ='CDI data'!B41 -> 2023-03-31 | C38: ='CDI data'!D41 -> 211 | D38: ='CDI data'!E41 -> 13.4488 | E38: =CONCATENATE("(",TEXT('CDI data'!F41,"0.0")," ,", TEXT('CDI data'!G41,"0.0"),")") -> (11.7 ,15.4) | F38: ='CDI data'!H41 -> 57 | G38: ='CDI data'!I41 -> 4.2106 | H38: =IFERROR(CONCATENATE("(",TEXT('CDI data'!J41,"0.0")," ,", TEXT('CDI data'!K41,"0.0"),")"),"-") -> (3.2 ,5.5)
B39: ='CDI data'!B42 -> 2023-06-30 | C39: ='CDI data'!D42 -> 244 | D39: ='CDI data'!E42 -> 15.7967 | E39: =CONCATENATE("(",TEXT('CDI data'!F42,"0.0")," ,", TEXT('CDI data'!G42,"0.0"),")") -> (13.9 ,17.9) | F39: ='CDI data'!H42 -> 70 | G39: ='CDI data'!I42 -> 5.1141 | H39: =IFERROR(CONCATENATE("(",TEXT('CDI data'!J42,"0.0")," ,", TEXT('CDI data'!K42,"0.0"),")"),"-") -> (4.0 ,6.5)
B40: ='CDI data'!B43 -> 2023-09-30 | C40: ='CDI data'!D43 -> 239 | D40: ='CDI data'!E43 -> 15.5423 | E40: =CONCATENATE("(",TEXT('CDI data'!F43,"0.0")," ,", TEXT('CDI data'!G43,"0.0"),")") -> (13.6 ,17.6) | F40: ='CDI data'!H43 -> 86 | G40: ='CDI data'!I43 -> 6.2147 | H40: =IFERROR(CONCATENATE("(",TEXT('CDI data'!J43,"0.0")," ,", TEXT('CDI data'!K43,"0.0"),")"),"-") -> (5.0 ,7.7)
B41: ='CDI data'!B44 -> 2023-12-31 | C41: ='CDI data'!D44 -> 223 | D41: ='CDI data'!E44 -> 14.2393 | E41: =CONCATENATE("(",TEXT('CDI data'!F44,"0.0")," ,", TEXT('CDI data'!G44,"0.0"),")") -> (12.4 ,16.2) | F41: ='CDI data'!H44 -> 79 | G41: ='CDI data'!I44 -> 5.7089 | H41: =IFERROR(CONCATENATE("(",TEXT('CDI data'!J44,"0.0")," ,", TEXT('CDI data'!K44,"0.0"),")"),"-") -> (4.5 ,7.1)
B42: ='CDI data'!B45 -> 2024-03-31 | C42: ='CDI data'!D45 -> 202 | D42: ='CDI data'!E45 -> 12.6987 | E42: =CONCATENATE("(",TEXT('CDI data'!F45,"0.0")," ,", TEXT('CDI data'!G45,"0.0"),")") -> (11.0 ,14.6) | F42: ='CDI data'!H45 -> 93 | G42: ='CDI data'!I45 -> 6.7433 | H42: =IFERROR(CONCATENATE("(",TEXT('CDI data'!J45,"0.0")," ,", TEXT('CDI data'!K45,"0.0"),")"),"-") -> (5.4 ,8.3)
B43: ='CDI data'!B46 -> 2024-06-30 | C43: ='CDI data'!D46 -> 266 | D43: ='CDI data'!E46 -> 17.0701 | E43: =CONCATENATE("(",TEXT('CDI data'!F46,"0.0")," ,", TEXT('CDI data'!G46,"0.0"),")") -> (15.1 ,19.2) | F43: ='CDI data'!H46 -> 94 | G43: ='CDI data'!I46 -> 6.8158 | H43: =IFERROR(CONCATENATE("(",TEXT('CDI data'!J46,"0.0")," ,", TEXT('CDI data'!K46,"0.0"),")"),"-") -> (5.5 ,8.3)
B44: ='CDI data'!B47 -> 2024-09-30 | C44: ='CDI data'!D47 -> 285 | D44: ='CDI data'!E47 -> 18.358 | E44: =CONCATENATE("(",TEXT('CDI data'!F47,"0.0")," ,", TEXT('CDI data'!G47,"0.0"),")") -> (16.3 ,20.6) | F44: ='CDI data'!H47 -> 105 | G44: ='CDI data'!I47 -> 7.5306 | H44: =IFERROR(CONCATENATE("(",TEXT('CDI data'!J47,"0.0")," ,", TEXT('CDI data'!K47,"0.0"),")"),"-") -> (6.2 ,9.1)
B45: ='CDI data'!B48 -> 2024-12-31 | C45: ='CDI data'!D48 -> 282 | D45: ='CDI data'!E48 -> 18.0736 | E45: =CONCATENATE("(",TEXT('CDI data'!F48,"0.0")," ,", TEXT('CDI data'!G48,"0.0"),")") -> (16.0 ,20.3) | F45: ='CDI data'!H48 -> 85 | G45: ='CDI data'!I48 -> 6.0962 | H45: =IFERROR(CONCATENATE("(",TEXT('CDI data'!J48,"0.0")," ,", TEXT('CDI data'!K48,"0.0"),")"),"-") -> (4.9 ,7.5)
B46: ='CDI data'!B49 -> 2025-03-31 | C46: ='CDI data'!D49 -> 208 | D46: ='CDI data'!E49 -> 13.4003 | E46: =CONCATENATE("(",TEXT('CDI data'!F49,"0.0")," ,", TEXT('CDI data'!G49,"0.0"),")") -> (11.6 ,15.4) | F46: ='CDI data'!H49 -> 64 | G46: ='CDI data'!I49 -> 4.6793 | H46: =IFERROR(CONCATENATE("(",TEXT('CDI data'!J49,"0.0")," ,", TEXT('CDI data'!K49,"0.0"),")"),"-") -> (3.6 ,6.0)
B47: ='CDI data'!B50 -> 2025-06-30 | C47: ='CDI data'!D50 -> 213 | D47: ='CDI data'!E50 -> 13.9619 | E47: =CONCATENATE("(",TEXT('CDI data'!F50,"0.0")," ,", TEXT('CDI data'!G50,"0.0"),")") -> (12.1 ,16.0) | F47: ='CDI data'!H50 -> 73 | G47: ='CDI data'!I50 -> 5.2787 | H47: =IFERROR(CONCATENATE("(",TEXT('CDI data'!J50,"0.0")," ,", TEXT('CDI data'!K50,"0.0"),")"),"-") -> (4.1 ,6.6)
B48: ='CDI data'!B51 -> 2025-09-30 | C48: ='CDI data'!D51 -> 246 | D48: ='CDI data'!E51 -> 16.1489 | E48: =CONCATENATE("(",TEXT('CDI data'!F51,"0.0")," ,", TEXT('CDI data'!G51,"0.0"),")") -> (14.2 ,18.3) | F48: ='CDI data'!H51 -> 84 | G48: ='CDI data'!I51 -> 6.0081 | H48: =IFERROR(CONCATENATE("(",TEXT('CDI data'!J51,"0.0")," ,", TEXT('CDI data'!K51,"0.0"),")"),"-") -> (4.8 ,7.4)
B49: ='CDI data'!B52 -> 2025-12-31 | C49: ='CDI data'!D52 -> 221 | D49: ='CDI data'!E52 -> 14.4037 | E49: =CONCATENATE("(",TEXT('CDI data'!F52,"0.0")," ,", TEXT('CDI data'!G52,"0.0"),")") -> (12.6 ,16.4) | F49: ='CDI data'!H52 -> 70 | G49: ='CDI data'!I52 -> 5.0067 | H49: =IFERROR(CONCATENATE("(",TEXT('CDI data'!J52,"0.0")," ,", TEXT('CDI data'!K52,"0.0"),")"),"-") -> (3.9 ,6.3)
B50: ='CDI data'!B53 -> 2026-03-31 | C50: ='CDI data'!D53 -> 214 | D50: ='CDI data'!E53 -> 13.8951 | E50: =CONCATENATE("(",TEXT('CDI data'!F53,"0.0")," ,", TEXT('CDI data'!G53,"0.0"),")") -> (12.1 ,15.9) | F50: ='CDI data'!H53 -> 73 | G50: ='CDI data'!I53 -> 5.3373 | H50: =IFERROR(CONCATENATE("(",TEXT('CDI data'!J53,"0.0")," ,", TEXT('CDI data'!K53,"0.0"),")"),"-") -> (4.2 ,6.7)

Sheet ECOLI Data and Charts
B1: Scotland | K1: =CONCATENATE("Healthcare and community rates for ",B1) -> Healthcare and community rates for Scotland
L2: ECBHCAI | N2: ECBCOM
D3: Healthcare associated ECB | G3: Community associated ECB | L3: Healthcare associated ECB | N3: Community associated ECB
B4: Quarter Ending | C4: Cases | D4: Rate per 100 000 bed days | E4: 95% CI | F4: Cases | G4: Rate per 100 000 Population | H4: 95% CI | L4: % change | N4: % change
B5: ='ECOLI data'!B8 -> 2016-09-24 | C5: ='ECOLI data'!D8 -> 581 | D5: ='ECOLI data'!E8 -> 36.589 | E5: =CONCATENATE("(",TEXT('ECOLI data'!F8,"0.0")," ,", TEXT('ECOLI data'!G8,"0.0"),")") -> (33.7 ,39.7) | F5: ='ECOLI data'!H8 -> 720 | G5: ='ECOLI data'!I8 -> 53.304 | H5: =IFERROR(CONCATENATE("(",TEXT('ECOLI data'!J8,"0.0")," ,", TEXT('ECOLI data'!K8,"0.0"),")"),"-") -> (49.5 ,57.3) | K5: This quarter compared to last (national only) | L5: =IFERROR(VLOOKUP(CONCATENATE(L2,$B$1),'quarter comp'!$A1:$H21,4,FALSE),"-") -> -2.925752799 | M5: =IFERROR(VLOOKUP(CONCATENATE(L2,$B$1),'quarter comp'!$A1:$H21,8,FALSE),"-") -> Non Significant | N5: =IFERROR(VLOOKUP(CONCATENATE(N2,$B$1),'quarter comp'!$A1:$H21,4,FALSE),"-") -> 5.652498136 | O5: =IFERROR(VLOOKUP(CONCATENATE(N2,$B$1),'quarter comp'!$A1:$H21,8,FALSE),"-") -> Non Significant
B6: ='ECOLI data'!B9 -> 2016-12-24 | C6: ='ECOLI data'!D9 -> 564 | D6: ='ECOLI data'!E9 -> 35.434 | E6: =CONCATENATE("(",TEXT('ECOLI data'!F9,"0.0")," ,", TEXT('ECOLI data'!G9,"0.0"),")") -> (32.6 ,38.5) | F6: ='ECOLI data'!H9 -> 631 | G6: ='ECOLI data'!I9 -> 46.715 | H6: =IFERROR(CONCATENATE("(",TEXT('ECOLI data'!J9,"0.0")," ,", TEXT('ECOLI data'!K9,"0.0"),")"),"-") -> (43.1 ,50.5) | K6: Year end compared to previous year end | L6: =VLOOKUP(CONCATENATE(L2,$B$1),'year end comp'!$A$2:$Z$1086,4,FALSE) -> 8.035645905 | M6: =VLOOKUP(CONCATENATE(L2,$B$1),'year end comp'!$A$2:$Z$1086,8,FALSE) -> Significant | N6: =IFERROR(VLOOKUP(CONCATENATE(N2,$B$1),'year end comp'!$A$2:$Z$1086,4,FALSE),"-") -> 5.401234568 | O6: =IFERROR(VLOOKUP(CONCATENATE(N2,$B$1),'year end comp'!$A$2:$Z$1086,8,FALSE),"-") -> Non Significant
B7: ='ECOLI data'!B10 -> 2017-03-01 | C7: ='ECOLI data'!D10 -> 547 | D7: ='ECOLI data'!E10 -> 34.591 | E7: =CONCATENATE("(",TEXT('ECOLI data'!F10,"0.0")," ,", TEXT('ECOLI data'!G10,"0.0"),")") -> (31.8 ,37.6) | F7: ='ECOLI data'!H10 -> 570 | G7: ='ECOLI data'!I10 -> 42.902 | H7: =IFERROR(CONCATENATE("(",TEXT('ECOLI data'!J10,"0.0")," ,", TEXT('ECOLI data'!K10,"0.0"),")"),"-") -> (39.5 ,46.6)
B8: ='ECOLI data'!B11 -> 2017-06-01 | C8: ='ECOLI data'!D11 -> 539 | D8: ='ECOLI data'!E11 -> 34.761 | E8: =CONCATENATE("(",TEXT('ECOLI data'!F11,"0.0")," ,", TEXT('ECOLI data'!G11,"0.0"),")") -> (31.9 ,37.8) | F8: ='ECOLI data'!H11 -> 657 | G8: ='ECOLI data'!I11 -> 48.907 | H8: =IFERROR(CONCATENATE("(",TEXT('ECOLI data'!J11,"0.0")," ,", TEXT('ECOLI data'!K11,"0.0"),")"),"-") -> (45.2 ,52.8)
B9: ='ECOLI data'!B12 -> 2017-09-01 | C9: ='ECOLI data'!D12 -> 585 | D9: ='ECOLI data'!E12 -> 38.016 | E9: =CONCATENATE("(",TEXT('ECOLI data'!F12,"0.0")," ,", TEXT('ECOLI data'!G12,"0.0"),")") -> (35.0 ,41.2) | F9: ='ECOLI data'!H12 -> 677 | G9: ='ECOLI data'!I12 -> 49.848 | H9: =IFERROR(CONCATENATE("(",TEXT('ECOLI data'!J12,"0.0")," ,", TEXT('ECOLI data'!K12,"0.0"),")"),"-") -> (46.2 ,53.7)
B10: ='ECOLI data'!B13 -> 2017-12-01 | C10: ='ECOLI data'!D13 -> 531 | D10: ='ECOLI data'!E13 -> 33.715 | E10: =CONCATENATE("(",TEXT('ECOLI data'!F13,"0.0")," ,", TEXT('ECOLI data'!G13,"0.0"),")") -> (30.9 ,36.7) | F10: ='ECOLI data'!H13 -> 656 | G10: ='ECOLI data'!I13 -> 48.302 | H10: =IFERROR(CONCATENATE("(",TEXT('ECOLI data'!J13,"0.0")," ,", TEXT('ECOLI data'!K13,"0.0"),")"),"-") -> (44.7 ,52.1)
B11: ='ECOLI data'!B14 -> 2018-03-01 | C11: ='ECOLI data'!D14 -> 524 | D11: ='ECOLI data'!E14 -> 33.055 | E11: =CONCATENATE("(",TEXT('ECOLI data'!F14,"0.0")," ,", TEXT('ECOLI data'!G14,"0.0"),")") -> (30.3 ,36.0) | F11: ='ECOLI data'!H14 -> 578 | G11: ='ECOLI data'!I14 -> 43.473 | H11: =IFERROR(CONCATENATE("(",TEXT('ECOLI data'!J14,"0.0")," ,", TEXT('ECOLI data'!K14,"0.0"),")"),"-") -> (40.0 ,47.2)
B12: ='ECOLI data'!B15 -> 2018-06-01 | C12: ='ECOLI data'!D15 -> 580 | D12: ='ECOLI data'!E15 -> 38.024 | E12: =CONCATENATE("(",TEXT('ECOLI data'!F15,"0.0")," ,", TEXT('ECOLI data'!G15,"0.0"),")") -> (35.0 ,41.2) | F12: ='ECOLI data'!H15 -> 598 | G12: ='ECOLI data'!I15 -> 44.483 | H12: =IFERROR(CONCATENATE("(",TEXT('ECOLI data'!J15,"0.0")," ,", TEXT('ECOLI data'!K15,"0.0"),")"),"-") -> (41.0 ,48.2)
B13: ='ECOLI data'!B16 -> 2018-09-01 | C13: ='ECOLI data'!D16 -> 606 | D13: ='ECOLI data'!E16 -> 40.089 | E13: =CONCATENATE("(",TEXT('ECOLI data'!F16,"0.0")," ,", TEXT('ECOLI data'!G16,"0.0"),")") -> (37.0 ,43.4) | F13: ='ECOLI data'!H16 -> 667 | G13: ='ECOLI data'!I16 -> 49.076 | H13: =IFERROR(CONCATENATE("(",TEXT('ECOLI data'!J16,"0.0")," ,", TEXT('ECOLI data'!K16,"0.0"),")"),"-") -> (45.4 ,52.9)
B14: ='ECOLI data'!B17 -> 2018-12-01 | C14: ='ECOLI data'!D17 -> 582 | D14: ='ECOLI data'!E17 -> 38.234 | E14: =CONCATENATE("(",TEXT('ECOLI data'!F17,"0.0")," ,", TEXT('ECOLI data'!G17,"0.0"),")") -> (35.2 ,41.5) | F14: ='ECOLI data'!H17 -> 603 | G14: ='ECOLI data'!I17 -> 44.367 | H14: =IFERROR(CONCATENATE("(",TEXT('ECOLI data'!J17,"0.0")," ,", TEXT('ECOLI data'!K17,"0.0"),")"),"-") -> (40.9 ,48.1)
B15: ='ECOLI data'!B18 -> 2019-03-01 | C15: ='ECOLI data'!D18 -> 573 | D15: ='ECOLI data'!E18 -> 37.244 | E15: =CONCATENATE("(",TEXT('ECOLI data'!F18,"0.0")," ,", TEXT('ECOLI data'!G18,"0.0"),")") -> (34.3 ,40.4) | F15: ='ECOLI data'!H18 -> 598 | G15: ='ECOLI data'!I18 -> 44.819 | H15: =IFERROR(CONCATENATE("(",TEXT('ECOLI data'!J18,"0.0")," ,", TEXT('ECOLI data'!K18,"0.0"),")"),"-") -> (41.3 ,48.6)
B16: ='ECOLI data'!B19 -> 2019-06-01 | C16: ='ECOLI data'!D19 -> 584 | D16: ='ECOLI data'!E19 -> 38.771 | E16: =CONCATENATE("(",TEXT('ECOLI data'!F19,"0.0")," ,", TEXT('ECOLI data'!G19,"0.0"),")") -> (35.7 ,42.0) | F16: ='ECOLI data'!H19 -> 604 | G16: ='ECOLI data'!I19 -> 44.771 | H16: =IFERROR(CONCATENATE("(",TEXT('ECOLI data'!J19,"0.0")," ,", TEXT('ECOLI data'!K19,"0.0"),")"),"-") -> (41.3 ,48.5)
B17: ='ECOLI data'!B20 -> 2019-09-01 | C17: ='ECOLI data'!D20 -> 608 | D17: ='ECOLI data'!E20 -> 40.346 | E17: =CONCATENATE("(",TEXT('ECOLI data'!F20,"0.0")," ,", TEXT('ECOLI data'!G20,"0.0"),")") -> (37.2 ,43.7) | F17: ='ECOLI data'!H20 -> 606 | G17: ='ECOLI data'!I20 -> 44.431 | H17: =IFERROR(CONCATENATE("(",TEXT('ECOLI data'!J20,"0.0")," ,", TEXT('ECOLI data'!K20,"0.0"),")"),"-") -> (41.0 ,48.1)
B18: ='ECOLI data'!B21 -> 2019-12-01 | C18: ='ECOLI data'!D21 -> 626 | D18: ='ECOLI data'!E21 -> 40.876 | E18: =CONCATENATE("(",TEXT('ECOLI data'!F21,"0.0")," ,", TEXT('ECOLI data'!G21,"0.0"),")") -> (37.7 ,44.2) | F18: ='ECOLI data'!H21 -> 568 | G18: ='ECOLI data'!I21 -> 41.645 | H18: =IFERROR(CONCATENATE("(",TEXT('ECOLI data'!J21,"0.0")," ,", TEXT('ECOLI data'!K21,"0.0"),")"),"-") -> (38.3 ,45.2)
B19: ='ECOLI data'!B22 -> 2020-03-01 | C19: ='ECOLI data'!D22 -> 538 | D19: ='ECOLI data'!E22 -> 36.451 | E19: =CONCATENATE("(",TEXT('ECOLI data'!F22,"0.0")," ,", TEXT('ECOLI data'!G22,"0.0"),")") -> (33.4 ,39.7) | F19: ='ECOLI data'!H22 -> 515 | G19: ='ECOLI data'!I22 -> 38.295 | H19: =IFERROR(CONCATENATE("(",TEXT('ECOLI data'!J22,"0.0")," ,", TEXT('ECOLI data'!K22,"0.0"),")"),"-") -> (35.1 ,41.8)
B20: ='ECOLI data'!B23 -> 2020-06-01 | C20: ='ECOLI data'!D23 -> 429 | D20: ='ECOLI data'!E23 -> 39.687 | E20: =CONCATENATE("(",TEXT('ECOLI data'!F23,"0.0")," ,", TEXT('ECOLI data'!G23,"0.0"),")") -> (36.0 ,43.6) | F20: ='ECOLI data'!H23 -> 488 | G20: ='ECOLI data'!I23 -> 36.287 | H20: =IFERROR(CONCATENATE("(",TEXT('ECOLI data'!J23,"0.0")," ,", TEXT('ECOLI data'!K23,"0.0"),")"),"-") -> (33.1 ,39.7)
B21: ='ECOLI data'!B24 -> 2020-09-01 | C21: ='ECOLI data'!D24 -> 547 | D21: ='ECOLI data'!E24 -> 41.9484 | E21: =CONCATENATE("(",TEXT('ECOLI data'!F24,"0.0")," ,", TEXT('ECOLI data'!G24,"0.0"),")") -> (38.5 ,45.6) | F21: ='ECOLI data'!H24 -> 614 | G21: ='ECOLI data'!I24 -> 45.1599 | H21: =IFERROR(CONCATENATE("(",TEXT('ECOLI data'!J24,"0.0")," ,", TEXT('ECOLI data'!K24,"0.0"),")"),"-") -> (41.7 ,48.9)
B22: ='ECOLI data'!B25 -> 2020-12-31 | C22: ='ECOLI data'!D25 -> 555 | D22: ='ECOLI data'!E25 -> 40.8752 | E22: =CONCATENATE("(",TEXT('ECOLI data'!F25,"0.0")," ,", TEXT('ECOLI data'!G25,"0.0"),")") -> (37.5 ,44.4) | F22: ='ECOLI data'!H25 -> 521 | G22: ='ECOLI data'!I25 -> 38.3197 | H22: =IFERROR(CONCATENATE("(",TEXT('ECOLI data'!J25,"0.0")," ,", TEXT('ECOLI data'!K25,"0.0"),")"),"-") -> (35.1 ,41.8)
B23: ='ECOLI data'!B26 -> 2021-03-31 | C23: ='ECOLI data'!D26 -> 468 | D23: ='ECOLI data'!E26 -> 34.6193 | E23: =CONCATENATE("(",TEXT('ECOLI data'!F26,"0.0")," ,", TEXT('ECOLI data'!G26,"0.0"),")") -> (31.6 ,37.9) | F23: ='ECOLI data'!H26 -> 493 | G23: ='ECOLI data'!I26 -> 36.9375 | H23: =IFERROR(CONCATENATE("(",TEXT('ECOLI data'!J26,"0.0")," ,", TEXT('ECOLI data'!K26,"0.0"),")"),"-") -> (33.7 ,40.3)
B24: ='ECOLI data'!B27 -> 2021-06-30 | C24: ='ECOLI data'!D27 -> 532 | D24: ='ECOLI data'!E27 -> 38.159 | E24: =CONCATENATE("(",TEXT('ECOLI data'!F27,"0.0")," ,", TEXT('ECOLI data'!G27,"0.0"),")") -> (35.0 ,41.5) | F24: ='ECOLI data'!H27 -> 570 | G24: ='ECOLI data'!I27 -> 42.2373 | H24: =IFERROR(CONCATENATE("(",TEXT('ECOLI data'!J27,"0.0")," ,", TEXT('ECOLI data'!K27,"0.0"),")"),"-") -> (38.8 ,45.9)
B25: ='ECOLI data'!B28 -> 2021-09-01 | C25: ='ECOLI data'!D28 -> 604 | D25: ='ECOLI data'!E28 -> 41.4739 | E25: =CONCATENATE("(",TEXT('ECOLI data'!F28,"0.0")," ,", TEXT('ECOLI data'!G28,"0.0"),")") -> (38.2 ,44.9) | F25: ='ECOLI data'!H28 -> 566 | G25: ='ECOLI data'!I28 -> 41.485 | H25: =IFERROR(CONCATENATE("(",TEXT('ECOLI data'!J28,"0.0")," ,", TEXT('ECOLI data'!K28,"0.0"),")"),"-") -> (38.1 ,45.0)
B26: ='ECOLI data'!B29 -> 2021-12-01 | C26: ='ECOLI data'!D29 -> 509 | D26: ='ECOLI data'!E29 -> 34.074 | E26: =CONCATENATE("(",TEXT('ECOLI data'!F29,"0.0")," ,", TEXT('ECOLI data'!G29,"0.0"),")") -> (31.2 ,37.2) | F26: ='ECOLI data'!H29 -> 549 | G26: ='ECOLI data'!I29 -> 40.239 | H26: =IFERROR(CONCATENATE("(",TEXT('ECOLI data'!J29,"0.0")," ,", TEXT('ECOLI data'!K29,"0.0"),")"),"-") -> (36.9 ,43.8)
B27: ='ECOLI data'!B30 -> 2022-03-01 | C27: ='ECOLI data'!D30 -> 452 | D27: ='ECOLI data'!E30 -> 30.5188 | E27: =CONCATENATE("(",TEXT('ECOLI data'!F30,"0.0")," ,", TEXT('ECOLI data'!G30,"0.0"),")") -> (27.8 ,33.5) | F27: ='ECOLI data'!H30 -> 528 | G27: ='ECOLI data'!I30 -> 39.3122 | H27: =IFERROR(CONCATENATE("(",TEXT('ECOLI data'!J30,"0.0")," ,", TEXT('ECOLI data'!K30,"0.0"),")"),"-") -> (36.0 ,42.8)
B28: ='ECOLI data'!B31 -> 2022-06-01 | C28: ='ECOLI data'!D31 -> 528 | D28: ='ECOLI data'!E31 -> 34.8209 | E28: =CONCATENATE("(",TEXT('ECOLI data'!F31,"0.0")," ,", TEXT('ECOLI data'!G31,"0.0"),")") -> (31.9 ,37.9) | F28: ='ECOLI data'!H31 -> 529 | G28: ='ECOLI data'!I31 -> 38.9538 | H28: =IFERROR(CONCATENATE("(",TEXT('ECOLI data'!J31,"0.0")," ,", TEXT('ECOLI data'!K31,"0.0"),")"),"-") -> (35.7 ,42.4)
B29: ='ECOLI data'!B32 -> 2022-09-30 | C29: ='ECOLI data'!D32 -> 560 | D29: ='ECOLI data'!E32 -> 36.2287 | E29: =CONCATENATE("(",TEXT('ECOLI data'!F32,"0.0")," ,", TEXT('ECOLI data'!G32,"0.0"),")") -> (33.3 ,39.4) | F29: ='ECOLI data'!H32 -> 577 | G29: ='ECOLI data'!I32 -> 42.0265 | H29: =IFERROR(CONCATENATE("(",TEXT('ECOLI data'!J32,"0.0")," ,", TEXT('ECOLI data'!K32,"0.0"),")"),"-") -> (38.7 ,45.6)
B30: ='ECOLI data'!B33 -> 2022-12-31 | C30: ='ECOLI data'!D33 -> 549 | D30: ='ECOLI data'!E33 -> 34.9893 | E30: =CONCATENATE("(",TEXT('ECOLI data'!F33,"0.0")," ,", TEXT('ECOLI data'!G33,"0.0"),")") -> (32.1 ,38.0) | F30: ='ECOLI data'!H33 -> 495 | G30: ='ECOLI data'!I33 -> 36.054 | H30: =IFERROR(CONCATENATE("(",TEXT('ECOLI data'!J33,"0.0")," ,", TEXT('ECOLI data'!K33,"0.0"),")"),"-") -> (32.9 ,39.4)
B31: ='ECOLI data'!B34 -> 2023-03-31 | C31: ='ECOLI data'!D34 -> 588 | D31: ='ECOLI data'!E34 -> 37.4783 | E31: =CONCATENATE("(",TEXT('ECOLI data'!F34,"0.0")," ,", TEXT('ECOLI data'!G34,"0.0"),")") -> (34.5 ,40.6) | F31: ='ECOLI data'!H34 -> 497 | G31: ='ECOLI data'!I34 -> 36.7136 | H31: =IFERROR(CONCATENATE("(",TEXT('ECOLI data'!J34,"0.0")," ,", TEXT('ECOLI data'!K34,"0.0"),")"),"-") -> (33.6 ,40.1)
B32: ='ECOLI data'!B35 -> 2023-06-30 | C32: ='ECOLI data'!D35 -> 581 | D32: ='ECOLI data'!E35 -> 37.6143 | E32: =CONCATENATE("(",TEXT('ECOLI data'!F35,"0.0")," ,", TEXT('ECOLI data'!G35,"0.0"),")") -> (34.6 ,40.8) | F32: ='ECOLI data'!H35 -> 502 | G32: ='ECOLI data'!I35 -> 36.6754 | H32: =IFERROR(CONCATENATE("(",TEXT('ECOLI data'!J35,"0.0")," ,", TEXT('ECOLI data'!K35,"0.0"),")"),"-") -> (33.5 ,40.0)
B33: ='ECOLI data'!B36 -> 2023-09-30 | C33: ='ECOLI data'!D36 -> 580 | D33: ='ECOLI data'!E36 -> 37.7178 | E33: =CONCATENATE("(",TEXT('ECOLI data'!F36,"0.0")," ,", TEXT('ECOLI data'!G36,"0.0"),")") -> (34.7 ,40.9) | F33: ='ECOLI data'!H36 -> 575 | G33: ='ECOLI data'!I36 -> 41.5521 | H33: =IFERROR(CONCATENATE("(",TEXT('ECOLI data'!J36,"0.0")," ,", TEXT('ECOLI data'!K36,"0.0"),")"),"-") -> (38.2 ,45.1)
B34: ='ECOLI data'!B37 -> 2023-12-31 | C34: ='ECOLI data'!D37 -> 544 | D34: ='ECOLI data'!E37 -> 34.7362 | E34: =CONCATENATE("(",TEXT('ECOLI data'!F37,"0.0")," ,", TEXT('ECOLI data'!G37,"0.0"),")") -> (31.9 ,37.8) | F34: ='ECOLI data'!H37 -> 442 | G34: ='ECOLI data'!I37 -> 31.9409 | H34: =IFERROR(CONCATENATE("(",TEXT('ECOLI data'!J37,"0.0")," ,", TEXT('ECOLI data'!K37,"0.0"),")"),"-") -> (29.0 ,35.1)
B35: ='ECOLI data'!B38 -> 2024-03-31 | C35: ='ECOLI data'!D38 -> 565 | D35: ='ECOLI data'!E38 -> 35.5187 | E35: =CONCATENATE("(",TEXT('ECOLI data'!F38,"0.0")," ,", TEXT('ECOLI data'!G38,"0.0"),")") -> (32.6 ,38.6) | F35: ='ECOLI data'!H38 -> 504 | G35: ='ECOLI data'!I38 -> 36.5443 | H35: =IFERROR(CONCATENATE("(",TEXT('ECOLI data'!J38,"0.0")," ,", TEXT('ECOLI data'!K38,"0.0"),")"),"-") -> (33.4 ,39.9)
B36: ='ECOLI data'!B39 -> 2024-06-30 | C36: ='ECOLI data'!D39 -> 614 | D36: ='ECOLI data'!E39 -> 39.4025 | E36: =CONCATENATE("(",TEXT('ECOLI data'!F39,"0.0")," ,", TEXT('ECOLI data'!G39,"0.0"),")") -> (36.3 ,42.6) | F36: ='ECOLI data'!H39 -> 490 | G36: ='ECOLI data'!I39 -> 35.5292 | H36: =IFERROR(CONCATENATE("(",TEXT('ECOLI data'!J39,"0.0")," ,", TEXT('ECOLI data'!K39,"0.0"),")"),"-") -> (32.5 ,38.8)
B37: ='ECOLI data'!B40 -> 2024-09-30 | C37: ='ECOLI data'!D40 -> 618 | D37: ='ECOLI data'!E40 -> 39.8078 | E37: =CONCATENATE("(",TEXT('ECOLI data'!F40,"0.0")," ,", TEXT('ECOLI data'!G40,"0.0"),")") -> (36.7 ,43.1) | F37: ='ECOLI data'!H40 -> 514 | G37: ='ECOLI data'!I40 -> 36.8643 | H37: =IFERROR(CONCATENATE("(",TEXT('ECOLI data'!J40,"0.0")," ,", TEXT('ECOLI data'!K40,"0.0"),")"),"-") -> (33.7 ,40.2)
B38: ='ECOLI data'!B41 -> 2024-12-31 | C38: ='ECOLI data'!D41 -> 576 | D38: ='ECOLI data'!E41 -> 36.9163 | E38: =CONCATENATE("(",TEXT('ECOLI data'!F41,"0.0")," ,", TEXT('ECOLI data'!G41,"0.0"),")") -> (34.0 ,40.1) | F38: ='ECOLI data'!H41 -> 494 | G38: ='ECOLI data'!I41 -> 35.4299 | H38: =IFERROR(CONCATENATE("(",TEXT('ECOLI data'!J41,"0.0")," ,", TEXT('ECOLI data'!K41,"0.0"),")"),"-") -> (32.4 ,38.7)
B39: ='ECOLI data'!B42 -> 2025-03-31 | C39: ='ECOLI data'!D42 -> 604 | D39: ='ECOLI data'!E42 -> 38.9125 | E39: =CONCATENATE("(",TEXT('ECOLI data'!F42,"0.0")," ,", TEXT('ECOLI data'!G42,"0.0"),")") -> (35.9 ,42.1) | F39: ='ECOLI data'!H42 -> 446 | G39: ='ECOLI data'!I42 -> 32.6088 | H39: =IFERROR(CONCATENATE("(",TEXT('ECOLI data'!J42,"0.0")," ,", TEXT('ECOLI data'!K42,"0.0"),")"),"-") -> (29.7 ,35.8)
B40: ='ECOLI data'!B43 -> 2025-06-30 | C40: ='ECOLI data'!D43 -> 672 | D40: ='ECOLI data'!E43 -> 44.0489 | E40: =CONCATENATE("(",TEXT('ECOLI data'!F43,"0.0")," ,", TEXT('ECOLI data'!G43,"0.0"),")") -> (40.8 ,47.5) | F40: ='ECOLI data'!H43 -> 565 | G40: ='ECOLI data'!I43 -> 40.8554 | H40: =IFERROR(CONCATENATE("(",TEXT('ECOLI data'!J43,"0.0")," ,", TEXT('ECOLI data'!K43,"0.0"),")"),"-") -> (37.6 ,44.4)
B41: ='ECOLI data'!B44 -> 2025-09-30 | C41: ='ECOLI data'!D44 -> 658 | D41: ='ECOLI data'!E44 -> 43.195 | E41: =CONCATENATE("(",TEXT('ECOLI data'!F44,"0.0")," ,", TEXT('ECOLI data'!G44,"0.0"),")") -> (40.0 ,46.6) | F41: ='ECOLI data'!H44 -> 575 | G41: ='ECOLI data'!I44 -> 41.1266 | H41: =IFERROR(CONCATENATE("(",TEXT('ECOLI data'!J44,"0.0")," ,", TEXT('ECOLI data'!K44,"0.0"),")"),"-") -> (37.8 ,44.6)
B42: ='ECOLI data'!B45 -> 2025-12-31 | C42: ='ECOLI data'!D45 -> 625 | D42: ='ECOLI data'!E45 -> 40.7343 | E42: =CONCATENATE("(",TEXT('ECOLI data'!F45,"0.0")," ,", TEXT('ECOLI data'!G45,"0.0"),")") -> (37.6 ,44.1) | F42: ='ECOLI data'!H45 -> 447 | G42: ='ECOLI data'!I45 -> 31.9714 | H42: =IFERROR(CONCATENATE("(",TEXT('ECOLI data'!J45,"0.0")," ,", TEXT('ECOLI data'!K45,"0.0"),")"),"-") -> (29.1 ,35.1)
B43: ='ECOLI data'!B46 -> 2026-03-31 | C43: ='ECOLI data'!D46 -> 609 | D43: ='ECOLI data'!E46 -> 39.5426 | E43: =CONCATENATE("(",TEXT('ECOLI data'!F46,"0.0")," ,", TEXT('ECOLI data'!G46,"0.0"),")") -> (36.5 ,42.8) | F43: ='ECOLI data'!H46 -> 462 | G43: ='ECOLI data'!I46 -> 33.7786 | H43: =IFERROR(CONCATENATE("(",TEXT('ECOLI data'!J46,"0.0")," ,", TEXT('ECOLI data'!K46,"0.0"),")"),"-") -> (30.8 ,37.0)

Sheet SAB Data and Charts
B1: Scotland | J1: =CONCATENATE("Healthcare and community rates for ",B1) -> Healthcare and community rates for Scotland
K2: SABHCAI | M2: SABCAUN
D3: Healthcare associated SAB | G3: Community associated SAB | K3: Healthcare associated SAB infection | M3: Community associated SAB infection
B4: Quarter Ending | C4: Cases | D4: Rate per 100 000 bed days | E4: 95% CI | F4: Cases | G4: Rate per 100 000 population | H4: 95% CI | K4: % change | M4: % change
B5: ='SAB data'!B8 -> 2014-12-19 | C5: ='SAB data'!D8 -> 275 | D5: ='SAB data'!E8 -> 16.065 | E5: =CONCATENATE("(",TEXT('SAB data'!F8,"0.0")," ,", TEXT('SAB data'!G8,"0.0"),")") -> (14.2 ,18.1) | F5: ='SAB data'!H8 -> 119 | G5: ='SAB data'!I8 -> 8.855 | H5: =IFERROR(CONCATENATE("(",TEXT('SAB data'!J8,"0.0")," ,", TEXT('SAB data'!K8,"0.0"),")"),"-") -> (7.3 ,10.6) | J5: This quarter compared to last (national only) | K5: =IFERROR(VLOOKUP(CONCATENATE(K2,$B$1),'quarter comp'!$A1:$H21,4,FALSE),"-") -> 2.804147654 | L5: =IFERROR(VLOOKUP(CONCATENATE(K2,$B$1),'quarter comp'!$A1:$H21,8,FALSE),"-") -> Non Significant | M5: =IFERROR(VLOOKUP(CONCATENATE(M2,$B$1),'quarter comp'!$A1:$H21,4,FALSE),"-") -> 6.094276094 | N5: =IFERROR(VLOOKUP(CONCATENATE(M2,$B$1),'quarter comp'!$A1:$H21,8,FALSE),"-") -> Non Significant
B6: ='SAB data'!B9 -> 2015-03-24 | C6: ='SAB data'!D9 -> 263 | D6: ='SAB data'!E9 -> 15.258 | E6: =CONCATENATE("(",TEXT('SAB data'!F9,"0.0")," ,", TEXT('SAB data'!G9,"0.0"),")") -> (13.5 ,17.2) | F6: ='SAB data'!H9 -> 126 | G6: ='SAB data'!I9 -> 9.55 | H6: =IFERROR(CONCATENATE("(",TEXT('SAB data'!J9,"0.0")," ,", TEXT('SAB data'!K9,"0.0"),")"),"-") -> (8.0 ,11.4) | J6: Year end compared to previous year end | K6: =VLOOKUP(CONCATENATE(K2,$B$1),'year end comp'!$A$2:$Z$1086,4,FALSE) -> 3.305789186 | L6: =VLOOKUP(CONCATENATE(K2,$B$1),'year end comp'!$A$2:$Z$1086,8,FALSE) -> Non Significant | M6: =IF(IFERROR(VLOOKUP(CONCATENATE(M2,$B$1),'year end comp'!$A$2:$Z$1086,4,FALSE),"-")=-100,"-",IFERROR(VLOOKUP(CONCATENATE(M2,$B$1),'year end comp'!$A$2:$Z$1086,4,FALSE),"-")) -> 0.364298725 | N6: =IF(IFERROR(VLOOKUP(CONCATENATE(M2,$B$1),'year end comp'!$A$2:$Z$1086,8,FALSE),"-")=0,"-",IFERROR(VLOOKUP(CONCATENATE(M2,$B$1),'year end comp'!$A$2:$Z$1086,8,FALSE),"-")) -> Non Significant
B7: ='SAB data'!B10 -> 2015-06-24 | C7: ='SAB data'!D10 -> 284 | D7: ='SAB data'!E10 -> 17.094 | E7: =CONCATENATE("(",TEXT('SAB data'!F10,"0.0")," ,", TEXT('SAB data'!G10,"0.0"),")") -> (15.2 ,19.2) | F7: ='SAB data'!H10 -> 131 | G7: ='SAB data'!I10 -> 9.82 | H7: =IFERROR(CONCATENATE("(",TEXT('SAB data'!J10,"0.0")," ,", TEXT('SAB data'!K10,"0.0"),")"),"-") -> (8.2 ,11.7)
B8: ='SAB data'!B11 -> 2015-09-24 | C8: ='SAB data'!D11 -> 275 | D8: ='SAB data'!E11 -> 16.966 | E8: =CONCATENATE("(",TEXT('SAB data'!F11,"0.0")," ,", TEXT('SAB data'!G11,"0.0"),")") -> (15.0 ,19.1) | F8: ='SAB data'!H11 -> 113 | G8: ='SAB data'!I11 -> 8.379 | H8: =IFERROR(CONCATENATE("(",TEXT('SAB data'!J11,"0.0")," ,", TEXT('SAB data'!K11,"0.0"),")"),"-") -> (6.9 ,10.1)
B9: ='SAB data'!B12 -> 2015-12-24 | C9: ='SAB data'!D12 -> 303 | D9: ='SAB data'!E12 -> 18.451 | E9: =CONCATENATE("(",TEXT('SAB data'!F12,"0.0")," ,", TEXT('SAB data'!G12,"0.0"),")") -> (16.4 ,20.7) | F9: ='SAB data'!H12 -> 104 | G9: ='SAB data'!I12 -> 7.711 | H9: =IFERROR(CONCATENATE("(",TEXT('SAB data'!J12,"0.0")," ,", TEXT('SAB data'!K12,"0.0"),")"),"-") -> (6.3 ,9.3)
B10: ='SAB data'!B13 -> 2016-03-24 | C10: ='SAB data'!D13 -> 279 | D10: ='SAB data'!E13 -> 16.662 | E10: =CONCATENATE("(",TEXT('SAB data'!F13,"0.0")," ,", TEXT('SAB data'!G13,"0.0"),")") -> (14.8 ,18.7) | F10: ='SAB data'!H13 -> 139 | G10: ='SAB data'!I13 -> 10.404 | H10: =IFERROR(CONCATENATE("(",TEXT('SAB data'!J13,"0.0")," ,", TEXT('SAB data'!K13,"0.0"),")"),"-") -> (8.7 ,12.3)
B11: ='SAB data'!B14 -> 2016-06-24 | C11: ='SAB data'!D14 -> 260 | D11: ='SAB data'!E14 -> 16.198 | E11: =CONCATENATE("(",TEXT('SAB data'!F14,"0.0")," ,", TEXT('SAB data'!G14,"0.0"),")") -> (14.3 ,18.3) | F11: ='SAB data'!H14 -> 121 | G11: ='SAB data'!I14 -> 9.056 | H11: =IFERROR(CONCATENATE("(",TEXT('SAB data'!J14,"0.0")," ,", TEXT('SAB data'!K14,"0.0"),")"),"-") -> (7.5 ,10.8)
B12: ='SAB data'!B15 -> 2016-09-24 | C12: ='SAB data'!D15 -> 273 | D12: ='SAB data'!E15 -> 17.193 | E12: =CONCATENATE("(",TEXT('SAB data'!F15,"0.0")," ,", TEXT('SAB data'!G15,"0.0"),")") -> (15.2 ,19.4) | F12: ='SAB data'!H15 -> 127 | G12: ='SAB data'!I15 -> 9.402 | H12: =IFERROR(CONCATENATE("(",TEXT('SAB data'!J15,"0.0")," ,", TEXT('SAB data'!K15,"0.0"),")"),"-") -> (7.8 ,11.2)
B13: ='SAB data'!B16 -> 2016-12-24 | C13: ='SAB data'!D16 -> 265 | D13: ='SAB data'!E16 -> 16.649 | E13: =CONCATENATE("(",TEXT('SAB data'!F16,"0.0")," ,", TEXT('SAB data'!G16,"0.0"),")") -> (14.7 ,18.8) | F13: ='SAB data'!H16 -> 135 | G13: ='SAB data'!I16 -> 9.995 | H13: =IFERROR(CONCATENATE("(",TEXT('SAB data'!J16,"0.0")," ,", TEXT('SAB data'!K16,"0.0"),")"),"-") -> (8.4 ,11.8)
B14: ='SAB data'!B17 -> 2017-03-01 | C14: ='SAB data'!D17 -> 259 | D14: ='SAB data'!E17 -> 16.379 | E14: =CONCATENATE("(",TEXT('SAB data'!F17,"0.0")," ,", TEXT('SAB data'!G17,"0.0"),")") -> (14.4 ,18.5) | F14: ='SAB data'!H17 -> 142 | G14: ='SAB data'!I17 -> 10.688 | H14: =IFERROR(CONCATENATE("(",TEXT('SAB data'!J17,"0.0")," ,", TEXT('SAB data'!K17,"0.0"),")"),"-") -> (9.0 ,12.6)
B15: ='SAB data'!B18 -> 2017-06-01 | C15: ='SAB data'!D18 -> 248 | D15: ='SAB data'!E18 -> 15.994 | E15: =CONCATENATE("(",TEXT('SAB data'!F18,"0.0")," ,", TEXT('SAB data'!G18,"0.0"),")") -> (14.1 ,18.1) | F15: ='SAB data'!H18 -> 126 | G15: ='SAB data'!I18 -> 9.379 | H15: =IFERROR(CONCATENATE("(",TEXT('SAB data'!J18,"0.0")," ,", TEXT('SAB data'!K18,"0.0"),")"),"-") -> (7.8 ,11.2)
B16: ='SAB data'!B19 -> 2017-09-01 | C16: ='SAB data'!D19 -> 278 | D16: ='SAB data'!E19 -> 18.066 | E16: =CONCATENATE("(",TEXT('SAB data'!F19,"0.0")," ,", TEXT('SAB data'!G19,"0.0"),")") -> (16.0 ,20.3) | F16: ='SAB data'!H19 -> 127 | G16: ='SAB data'!I19 -> 9.351 | H16: =IFERROR(CONCATENATE("(",TEXT('SAB data'!J19,"0.0")," ,", TEXT('SAB data'!K19,"0.0"),")"),"-") -> (7.8 ,11.1)
B17: ='SAB data'!B20 -> 2017-12-01 | C17: ='SAB data'!D20 -> 262 | D17: ='SAB data'!E20 -> 16.635 | E17: =CONCATENATE("(",TEXT('SAB data'!F20,"0.0")," ,", TEXT('SAB data'!G20,"0.0"),")") -> (14.7 ,18.8) | F17: ='SAB data'!H20 -> 132 | G17: ='SAB data'!I20 -> 9.719 | H17: =IFERROR(CONCATENATE("(",TEXT('SAB data'!J20,"0.0")," ,", TEXT('SAB data'!K20,"0.0"),")"),"-") -> (8.1 ,11.5)
B18: ='SAB data'!B21 -> 2018-03-01 | C18: ='SAB data'!D21 -> 296 | D18: ='SAB data'!E21 -> 18.672 | E18: =CONCATENATE("(",TEXT('SAB data'!F21,"0.0")," ,", TEXT('SAB data'!G21,"0.0"),")") -> (16.6 ,20.9) | F18: ='SAB data'!H21 -> 135 | G18: ='SAB data'!I21 -> 10.1537 | H18: =IFERROR(CONCATENATE("(",TEXT('SAB data'!J21,"0.0")," ,", TEXT('SAB data'!K21,"0.0"),")"),"-") -> (8.5 ,12.0)
B19: ='SAB data'!B22 -> 2018-06-01 | C19: ='SAB data'!D22 -> 264 | D19: ='SAB data'!E22 -> 17.308 | E19: =CONCATENATE("(",TEXT('SAB data'!F22,"0.0")," ,", TEXT('SAB data'!G22,"0.0"),")") -> (15.3 ,19.5) | F19: ='SAB data'!H22 -> 123 | G19: ='SAB data'!I22 -> 9.1495 | H19: =IFERROR(CONCATENATE("(",TEXT('SAB data'!J22,"0.0")," ,", TEXT('SAB data'!K22,"0.0"),")"),"-") -> (7.6 ,10.9)
B20: ='SAB data'!B23 -> 2018-09-01 | C20: ='SAB data'!D23 -> 253 | D20: ='SAB data'!E23 -> 16.737 | E20: =CONCATENATE("(",TEXT('SAB data'!F23,"0.0")," ,", TEXT('SAB data'!G23,"0.0"),")") -> (14.7 ,18.9) | F20: ='SAB data'!H23 -> 132 | G20: ='SAB data'!I23 -> 9.712 | H20: =IFERROR(CONCATENATE("(",TEXT('SAB data'!J23,"0.0")," ,", TEXT('SAB data'!K23,"0.0"),")"),"-") -> (8.1 ,11.5)
B21: ='SAB data'!B24 -> 2018-12-01 | C21: ='SAB data'!D24 -> 269 | D21: ='SAB data'!E24 -> 17.672 | E21: =CONCATENATE("(",TEXT('SAB data'!F24,"0.0")," ,", TEXT('SAB data'!G24,"0.0"),")") -> (15.6 ,19.9) | F21: ='SAB data'!H24 -> 113 | G21: ='SAB data'!I24 -> 8.314 | H21: =IFERROR(CONCATENATE("(",TEXT('SAB data'!J24,"0.0")," ,", TEXT('SAB data'!K24,"0.0"),")"),"-") -> (6.9 ,10.0)
B22: ='SAB data'!B25 -> 2019-03-01 | C22: ='SAB data'!D25 -> 240 | D22: ='SAB data'!E25 -> 15.6 | E22: =CONCATENATE("(",TEXT('SAB data'!F25,"0.0")," ,", TEXT('SAB data'!G25,"0.0"),")") -> (13.7 ,17.7) | F22: ='SAB data'!H25 -> 144 | G22: ='SAB data'!I25 -> 10.792 | H22: =IFERROR(CONCATENATE("(",TEXT('SAB data'!J25,"0.0")," ,", TEXT('SAB data'!K25,"0.0"),")"),"-") -> (9.1 ,12.7)
B23: ='SAB data'!B26 -> 2019-06-01 | C23: ='SAB data'!D26 -> 251 | D23: ='SAB data'!E26 -> 16.664 | E23: =CONCATENATE("(",TEXT('SAB data'!F26,"0.0")," ,", TEXT('SAB data'!G26,"0.0"),")") -> (14.7 ,18.9) | F23: ='SAB data'!H26 -> 133 | G23: ='SAB data'!I26 -> 9.858 | H23: =IFERROR(CONCATENATE("(",TEXT('SAB data'!J26,"0.0")," ,", TEXT('SAB data'!K26,"0.0"),")"),"-") -> (8.3 ,11.7)
B24: ='SAB data'!B27 -> 2019-09-01 | C24: ='SAB data'!D27 -> 264 | D24: ='SAB data'!E27 -> 17.519 | E24: =CONCATENATE("(",TEXT('SAB data'!F27,"0.0")," ,", TEXT('SAB data'!G27,"0.0"),")") -> (15.5 ,19.8) | F24: ='SAB data'!H27 -> 102 | G24: ='SAB data'!I27 -> 7.478 | H24: =IFERROR(CONCATENATE("(",TEXT('SAB data'!J27,"0.0")," ,", TEXT('SAB data'!K27,"0.0"),")"),"-") -> (6.1 ,9.1)
B25: ='SAB data'!B28 -> 2019-12-01 | C25: ='SAB data'!D28 -> 233 | D25: ='SAB data'!E28 -> 15.214 | E25: =CONCATENATE("(",TEXT('SAB data'!F28,"0.0")," ,", TEXT('SAB data'!G28,"0.0"),")") -> (13.3 ,17.3) | F25: ='SAB data'!H28 -> 132 | G25: ='SAB data'!I28 -> 9.678 | H25: =IFERROR(CONCATENATE("(",TEXT('SAB data'!J28,"0.0")," ,", TEXT('SAB data'!K28,"0.0"),")"),"-") -> (8.1 ,11.5)
B26: ='SAB data'!B29 -> 2020-03-01 | C26: ='SAB data'!D29 -> 241 | D26: ='SAB data'!E29 -> 16.328 | E26: =CONCATENATE("(",TEXT('SAB data'!F29,"0.0")," ,", TEXT('SAB data'!G29,"0.0"),")") -> (14.3 ,18.5) | F26: ='SAB data'!H29 -> 149 | G26: ='SAB data'!I29 -> 11.079 | H26: =IFERROR(CONCATENATE("(",TEXT('SAB data'!J29,"0.0")," ,", TEXT('SAB data'!K29,"0.0"),")"),"-") -> (9.4 ,13.0)
B27: ='SAB data'!B30 -> 2020-06-01 | C27: ='SAB data'!D30 -> 219 | D27: ='SAB data'!E30 -> 20.26 | E27: =CONCATENATE("(",TEXT('SAB data'!F30,"0.0")," ,", TEXT('SAB data'!G30,"0.0"),")") -> (17.7 ,23.1) | F27: ='SAB data'!H30 -> 132 | G27: ='SAB data'!I30 -> 9.815 | H27: =IFERROR(CONCATENATE("(",TEXT('SAB data'!J30,"0.0")," ,", TEXT('SAB data'!K30,"0.0"),")"),"-") -> (8.2 ,11.6)
B28: ='SAB data'!B31 -> 2020-09-01 | C28: ='SAB data'!D31 -> 224 | D28: ='SAB data'!E31 -> 17.1781 | E28: =CONCATENATE("(",TEXT('SAB data'!F31,"0.0")," ,", TEXT('SAB data'!G31,"0.0"),")") -> (15.0 ,19.6) | F28: ='SAB data'!H31 -> 149 | G28: ='SAB data'!I31 -> 10.959 | H28: =IFERROR(CONCATENATE("(",TEXT('SAB data'!J31,"0.0")," ,", TEXT('SAB data'!K31,"0.0"),")"),"-") -> (9.3 ,12.9)
B29: ='SAB data'!B32 -> 2020-12-01 | C29: ='SAB data'!D32 -> 256 | D29: ='SAB data'!E32 -> 18.8541 | E29: =CONCATENATE("(",TEXT('SAB data'!F32,"0.0")," ,", TEXT('SAB data'!G32,"0.0"),")") -> (16.6 ,21.3) | F29: ='SAB data'!H32 -> 131 | G29: ='SAB data'!I32 -> 9.6351 | H29: =IFERROR(CONCATENATE("(",TEXT('SAB data'!J32,"0.0")," ,", TEXT('SAB data'!K32,"0.0"),")"),"-") -> (8.1 ,11.4)
B30: ='SAB data'!B33 -> 2021-03-31 | C30: ='SAB data'!D33 -> 248 | D30: ='SAB data'!E33 -> 18.3453 | E30: =CONCATENATE("(",TEXT('SAB data'!F33,"0.0")," ,", TEXT('SAB data'!G33,"0.0"),")") -> (16.1 ,20.8) | F30: ='SAB data'!H33 -> 140 | G30: ='SAB data'!I33 -> 10.4893 | H30: =IFERROR(CONCATENATE("(",TEXT('SAB data'!J33,"0.0")," ,", TEXT('SAB data'!K33,"0.0"),")"),"-") -> (8.8 ,12.4)
B31: ='SAB data'!B34 -> 2021-06-30 | C31: ='SAB data'!D34 -> 260 | D31: ='SAB data'!E34 -> 18.6491 | E31: =CONCATENATE("(",TEXT('SAB data'!F34,"0.0")," ,", TEXT('SAB data'!G34,"0.0"),")") -> (16.5 ,21.1) | F31: ='SAB data'!H34 -> 148 | G31: ='SAB data'!I34 -> 10.9669 | H31: =IFERROR(CONCATENATE("(",TEXT('SAB data'!J34,"0.0")," ,", TEXT('SAB data'!K34,"0.0"),")"),"-") -> (9.3 ,12.9)
B32: ='SAB data'!B35 -> 2021-09-30 | C32: ='SAB data'!D35 -> 268 | D32: ='SAB data'!E35 -> 18.4023 | E32: =CONCATENATE("(",TEXT('SAB data'!F35,"0.0")," ,", TEXT('SAB data'!G35,"0.0"),")") -> (16.3 ,20.7) | F32: ='SAB data'!H35 -> 132 | G32: ='SAB data'!I35 -> 9.675 | H32: =IFERROR(CONCATENATE("(",TEXT('SAB data'!J35,"0.0")," ,", TEXT('SAB data'!K35,"0.0"),")"),"-") -> (8.1 ,11.5)
B33: ='SAB data'!B36 -> 2021-12-31 | C33: ='SAB data'!D36 -> 259 | D33: ='SAB data'!E36 -> 17.3383 | E33: =CONCATENATE("(",TEXT('SAB data'!F36,"0.0")," ,", TEXT('SAB data'!G36,"0.0"),")") -> (15.3 ,19.6) | F33: ='SAB data'!H36 -> 136 | G33: ='SAB data'!I36 -> 9.9681 | H33: =IFERROR(CONCATENATE("(",TEXT('SAB data'!J36,"0.0")," ,", TEXT('SAB data'!K36,"0.0"),")"),"-") -> (8.4 ,11.8)
B34: ='SAB data'!B37 -> 2022-03-31 | C34: ='SAB data'!D37 -> 241 | D34: ='SAB data'!E37 -> 16.2722 | E34: =CONCATENATE("(",TEXT('SAB data'!F37,"0.0")," ,", TEXT('SAB data'!G37,"0.0"),")") -> (14.3 ,18.5) | F34: ='SAB data'!H37 -> 130 | G34: ='SAB data'!I37 -> 9.6791 | H34: =IFERROR(CONCATENATE("(",TEXT('SAB data'!J37,"0.0")," ,", TEXT('SAB data'!K37,"0.0"),")"),"-") -> (8.1 ,11.5)
B35: ='SAB data'!B38 -> 2022-06-30 | C35: ='SAB data'!D38 -> 262 | D35: ='SAB data'!E38 -> 17.2785 | E35: =CONCATENATE("(",TEXT('SAB data'!F38,"0.0")," ,", TEXT('SAB data'!G38,"0.0"),")") -> (15.2 ,19.5) | F35: ='SAB data'!H38 -> 139 | G35: ='SAB data'!I38 -> 10.2355 | H35: =IFERROR(CONCATENATE("(",TEXT('SAB data'!J38,"0.0")," ,", TEXT('SAB data'!K38,"0.0"),")"),"-") -> (8.6 ,12.1)
B36: ='SAB data'!B39 -> 2022-09-30 | C36: ='SAB data'!D39 -> 264 | D36: ='SAB data'!E39 -> 17.0792 | E36: =CONCATENATE("(",TEXT('SAB data'!F39,"0.0")," ,", TEXT('SAB data'!G39,"0.0"),")") -> (15.1 ,19.3) | F36: ='SAB data'!H39 -> 121 | G36: ='SAB data'!I39 -> 8.8132 | H36: =IFERROR(CONCATENATE("(",TEXT('SAB data'!J39,"0.0")," ,", TEXT('SAB data'!K39,"0.0"),")"),"-") -> (7.3 ,10.5)
B37: ='SAB data'!B40 -> 2022-12-31 | C37: ='SAB data'!D40 -> 302 | D37: ='SAB data'!E40 -> 19.2473 | E37: =CONCATENATE("(",TEXT('SAB data'!F40,"0.0")," ,", TEXT('SAB data'!G40,"0.0"),")") -> (17.1 ,21.5) | F37: ='SAB data'!H40 -> 131 | G37: ='SAB data'!I40 -> 9.5416 | H37: =IFERROR(CONCATENATE("(",TEXT('SAB data'!J40,"0.0")," ,", TEXT('SAB data'!K40,"0.0"),")"),"-") -> (8.0 ,11.3)
B38: ='SAB data'!B41 -> 2023-03-31 | C38: ='SAB data'!D41 -> 300 | D38: ='SAB data'!E41 -> 19.1216 | E38: =CONCATENATE("(",TEXT('SAB data'!F41,"0.0")," ,", TEXT('SAB data'!G41,"0.0"),")") -> (17.0 ,21.4) | F38: ='SAB data'!H41 -> 133 | G38: ='SAB data'!I41 -> 9.8248 | H38: =IFERROR(CONCATENATE("(",TEXT('SAB data'!J41,"0.0")," ,", TEXT('SAB data'!K41,"0.0"),")"),"-") -> (8.2 ,11.6)
B39: ='SAB data'!B42 -> 2023-06-30 | C39: ='SAB data'!D42 -> 283 | D39: ='SAB data'!E42 -> 18.3216 | E39: =CONCATENATE("(",TEXT('SAB data'!F42,"0.0")," ,", TEXT('SAB data'!G42,"0.0"),")") -> (16.2 ,20.6) | F39: ='SAB data'!H42 -> 140 | G39: ='SAB data'!I42 -> 10.2282 | H39: =IFERROR(CONCATENATE("(",TEXT('SAB data'!J42,"0.0")," ,", TEXT('SAB data'!K42,"0.0"),")"),"-") -> (8.6 ,12.1)
B40: ='SAB data'!B43 -> 2023-09-30 | C40: ='SAB data'!D43 -> 278 | D40: ='SAB data'!E43 -> 18.0785 | E40: =CONCATENATE("(",TEXT('SAB data'!F43,"0.0")," ,", TEXT('SAB data'!G43,"0.0"),")") -> (16.0 ,20.3) | F40: ='SAB data'!H43 -> 140 | G40: ='SAB data'!I43 -> 10.117 | H40: =IFERROR(CONCATENATE("(",TEXT('SAB data'!J43,"0.0")," ,", TEXT('SAB data'!K43,"0.0"),")"),"-") -> (8.5 ,11.9)
B41: ='SAB data'!B44 -> 2023-12-31 | C41: ='SAB data'!D44 -> 301 | D41: ='SAB data'!E44 -> 19.2198 | E41: =CONCATENATE("(",TEXT('SAB data'!F44,"0.0")," ,", TEXT('SAB data'!G44,"0.0"),")") -> (17.1 ,21.5) | F41: ='SAB data'!H44 -> 137 | G41: ='SAB data'!I44 -> 9.9002 | H41: =IFERROR(CONCATENATE("(",TEXT('SAB data'!J44,"0.0")," ,", TEXT('SAB data'!K44,"0.0"),")"),"-") -> (8.3 ,11.7)
B42: ='SAB data'!B45 -> 2024-03-31 | C42: ='SAB data'!D45 -> 271 | D42: ='SAB data'!E45 -> 17.0364 | E42: =CONCATENATE("(",TEXT('SAB data'!F45,"0.0")," ,", TEXT('SAB data'!G45,"0.0"),")") -> (15.1 ,19.2) | F42: ='SAB data'!H45 -> 148 | G42: ='SAB data'!I45 -> 10.7313 | H42: =IFERROR(CONCATENATE("(",TEXT('SAB data'!J45,"0.0")," ,", TEXT('SAB data'!K45,"0.0"),")"),"-") -> (9.1 ,12.6)
B43: ='SAB data'!B46 -> 2024-06-30 | C43: ='SAB data'!D46 -> 270 | D43: ='SAB data'!E46 -> 17.3268 | E43: =CONCATENATE("(",TEXT('SAB data'!F46,"0.0")," ,", TEXT('SAB data'!G46,"0.0"),")") -> (15.3 ,19.5) | F43: ='SAB data'!H46 -> 136 | G43: ='SAB data'!I46 -> 9.8612 | H43: =IFERROR(CONCATENATE("(",TEXT('SAB data'!J46,"0.0")," ,", TEXT('SAB data'!K46,"0.0"),")"),"-") -> (8.3 ,11.7)
B44: ='SAB data'!B47 -> 2024-09-30 | C44: ='SAB data'!D47 -> 313 | D44: ='SAB data'!E47 -> 20.1616 | E44: =CONCATENATE("(",TEXT('SAB data'!F47,"0.0")," ,", TEXT('SAB data'!G47,"0.0"),")") -> (18.0 ,22.5) | F44: ='SAB data'!H47 -> 143 | G44: ='SAB data'!I47 -> 10.256 | H44: =IFERROR(CONCATENATE("(",TEXT('SAB data'!J47,"0.0")," ,", TEXT('SAB data'!K47,"0.0"),")"),"-") -> (8.6 ,12.1)
B45: ='SAB data'!B48 -> 2024-12-31 | C45: ='SAB data'!D48 -> 287 | D45: ='SAB data'!E48 -> 18.3941 | E45: =CONCATENATE("(",TEXT('SAB data'!F48,"0.0")," ,", TEXT('SAB data'!G48,"0.0"),")") -> (16.3 ,20.7) | F45: ='SAB data'!H48 -> 147 | G45: ='SAB data'!I48 -> 10.5429 | H45: =IFERROR(CONCATENATE("(",TEXT('SAB data'!J48,"0.0")," ,", TEXT('SAB data'!K48,"0.0"),")"),"-") -> (8.9 ,12.4)
B46: ='SAB data'!B49 -> 2025-03-31 | C46: ='SAB data'!D49 -> 283 | D46: ='SAB data'!E49 -> 18.2322 | E46: =CONCATENATE("(",TEXT('SAB data'!F49,"0.0")," ,", TEXT('SAB data'!G49,"0.0"),")") -> (16.2 ,20.5) | F46: ='SAB data'!H49 -> 123 | G46: ='SAB data'!I49 -> 8.993 | H46: =IFERROR(CONCATENATE("(",TEXT('SAB data'!J49,"0.0")," ,", TEXT('SAB data'!K49,"0.0"),")"),"-") -> (7.5 ,10.7)
B47: ='SAB data'!B50 -> 2025-06-30 | C47: ='SAB data'!D50 -> 303 | D47: ='SAB data'!E50 -> 19.8613 | E47: =CONCATENATE("(",TEXT('SAB data'!F50,"0.0")," ,", TEXT('SAB data'!G50,"0.0"),")") -> (17.7 ,22.2) | F47: ='SAB data'!H50 -> 156 | G47: ='SAB data'!I50 -> 11.2804 | H47: =IFERROR(CONCATENATE("(",TEXT('SAB data'!J50,"0.0")," ,", TEXT('SAB data'!K50,"0.0"),")"),"-") -> (9.6 ,13.2)
B48: ='SAB data'!B51 -> 2025-09-30 | C48: ='SAB data'!D51 -> 296 | D48: ='SAB data'!E51 -> 19.4312 | E48: =CONCATENATE("(",TEXT('SAB data'!F51,"0.0")," ,", TEXT('SAB data'!G51,"0.0"),")") -> (17.3 ,21.8) | F48: ='SAB data'!H51 -> 126 | G48: ='SAB data'!I51 -> 9.0121 | H48: =IFERROR(CONCATENATE("(",TEXT('SAB data'!J51,"0.0")," ,", TEXT('SAB data'!K51,"0.0"),")"),"-") -> (7.5 ,10.7)
B49: ='SAB data'!B52 -> 2025-12-31 | C49: ='SAB data'!D52 -> 282 | D49: ='SAB data'!E52 -> 18.3793 | E49: =CONCATENATE("(",TEXT('SAB data'!F52,"0.0")," ,", TEXT('SAB data'!G52,"0.0"),")") -> (16.3 ,20.7) | F49: ='SAB data'!H52 -> 132 | G49: ='SAB data'!I52 -> 9.4412 | H49: =IFERROR(CONCATENATE("(",TEXT('SAB data'!J52,"0.0")," ,", TEXT('SAB data'!K52,"0.0"),")"),"-") -> (7.9 ,11.2)
B50: ='SAB data'!B53 -> 2026-03-31 | C50: ='SAB data'!D53 -> 291 | D50: ='SAB data'!E53 -> 18.8947 | E50: =CONCATENATE("(",TEXT('SAB data'!F53,"0.0")," ,", TEXT('SAB data'!G53,"0.0"),")") -> (16.8 ,21.2) | F50: ='SAB data'!H53 -> 137 | G50: ='SAB data'!I53 -> 10.0166 | H50: =IFERROR(CONCATENATE("(",TEXT('SAB data'!J53,"0.0")," ,", TEXT('SAB data'!K53,"0.0"),")"),"-") -> (8.4 ,11.8)

Sheet SSI Data and Charts
B1: Scotland | M1: =CONCATENATE("% SSI for ",B1) -> % SSI for Scotland
D3: Casesarean Birth | H3: Hip Arthroplasty | N3: SSI Caesarean Birth | P3: SSI Hip Arthoplasty
B4: Quarter Ending | C4: SSI to day 10 | D4: Procedures | E4: SSI Incidence (%) | F4: 95% CI | G4: SSI inpatient & readmission to day 30 | H4: Procedures | I4: SSI Incidence (%) | J4: 95% CI | N4: % change | P4: % change
B5: ='SSI data'!B8 -> 2014-03-24 | C5: ='SSI data'!D8 -> 61 | D5: ='SSI data'!L8 -> 3998 | E5: ='SSI data'!E8 -> 1.526 | F5: =IFERROR(CONCATENATE("(",TEXT('SSI data'!F8,"0.0")," ,", TEXT('SSI data'!G8,"0.0"),")"),"-") -> (1.2 ,2.0) | G5: ='SSI data'!H8 -> 16 | H5: ='SSI data'!M8 -> 2106 | I5: ='SSI data'!I8 -> 0.76 | J5: =IFERROR(CONCATENATE("(",TEXT('SSI data'!J8,"0.0"),", ", TEXT('SSI data'!K8,"0.0"),")"),"-") -> (0.5, 1.2) | M5: Year end compared to previous year end | N5: =IFERROR(ROUND(VLOOKUP(CONCATENATE(N3,$B$1),'year end comp'!$A$2:$Z$1086,4,FALSE),2),"-") -> - | O5: =IF(IFERROR(VLOOKUP(CONCATENATE(N3,$B$1),'year end comp'!$A$2:$Z$1086,8,FALSE),"-")=0,"-",IFERROR(VLOOKUP(CONCATENATE(N3,$B$1),'year end comp'!$A$2:$Z$1086,8,FALSE),"-")) -> - | P5: =IFERROR(ROUND(VLOOKUP(CONCATENATE(P3,$B$1),'year end comp'!$A$2:$Z$1086,4,FALSE),2),"-") -> - | Q5: =IF(IFERROR(VLOOKUP(CONCATENATE(P3,$B$1),'year end comp'!$A$2:$Z$1086,8,FALSE),"-")=0,"-",IFERROR(VLOOKUP(CONCATENATE(P3,$B$1),'year end comp'!$A$2:$Z$1086,8,FALSE),"-")) -> -
B6: ='SSI data'!B9 -> 2014-06-27 | C6: ='SSI data'!D9 -> 58 | D6: ='SSI data'!L9 -> 4103 | E6: ='SSI data'!E9 -> 1.414 | F6: =IFERROR(CONCATENATE("(",TEXT('SSI data'!F9,"0.0")," ,", TEXT('SSI data'!G9,"0.0"),")"),"-") -> (1.1 ,1.8) | G6: ='SSI data'!H9 -> 13 | H6: ='SSI data'!M9 -> 2098 | I6: ='SSI data'!I9 -> 0.62 | J6: =IFERROR(CONCATENATE("(",TEXT('SSI data'!J9,"0.0")," ,", TEXT('SSI data'!K9,"0.0"),")"),"-") -> (0.4 ,1.1)
B7: ='SSI data'!B10 -> 2014-09-30 | C7: ='SSI data'!D10 -> 58 | D7: ='SSI data'!L10 -> 4563 | E7: ='SSI data'!E10 -> 1.271 | F7: =IFERROR(CONCATENATE("(",TEXT('SSI data'!F10,"0.0")," ,", TEXT('SSI data'!G10,"0.0"),")"),"-") -> (1.0 ,1.6) | G7: ='SSI data'!H10 -> 16 | H7: ='SSI data'!M10 -> 2125 | I7: ='SSI data'!I10 -> 0.753 | J7: =IFERROR(CONCATENATE("(",TEXT('SSI data'!J10,"0.0")," ,", TEXT('SSI data'!K10,"0.0"),")"),"-") -> (0.5 ,1.2)
B8: ='SSI data'!B11 -> 2014-12-19 | C8: ='SSI data'!D11 -> 61 | D8: ='SSI data'!L11 -> 4261 | E8: ='SSI data'!E11 -> 1.432 | F8: =IFERROR(CONCATENATE("(",TEXT('SSI data'!F11,"0.0")," ,", TEXT('SSI data'!G11,"0.0"),")"),"-") -> (1.1 ,1.8) | G8: ='SSI data'!H11 -> 12 | H8: ='SSI data'!M11 -> 1974 | I8: ='SSI data'!I11 -> 0.608 | J8: =IFERROR(CONCATENATE("(",TEXT('SSI data'!J11,"0.0")," ,", TEXT('SSI data'!K11,"0.0"),")"),"-") -> (0.3 ,1.1)
B9: ='SSI data'!B12 -> 2015-03-24 | C9: ='SSI data'!D12 -> 47 | D9: ='SSI data'!L12 -> 3966 | E9: ='SSI data'!E12 -> 1.185 | F9: =IFERROR(CONCATENATE("(",TEXT('SSI data'!F12,"0.0")," ,", TEXT('SSI data'!G12,"0.0"),")"),"-") -> (0.9 ,1.6) | G9: ='SSI data'!H12 -> 18 | H9: ='SSI data'!M12 -> 1959 | I9: ='SSI data'!I12 -> 0.919 | J9: =IFERROR(CONCATENATE("(",TEXT('SSI data'!J12,"0.0")," ,", TEXT('SSI data'!K12,"0.0"),")"),"-") -> (0.6 ,1.4)
B10: ='SSI data'!B13 -> 2015-06-24 | C10: ='SSI data'!D13 -> 56 | D10: ='SSI data'!L13 -> 4358 | E10: ='SSI data'!E13 -> 1.285 | F10: =IFERROR(CONCATENATE("(",TEXT('SSI data'!F13,"0.0")," ,", TEXT('SSI data'!G13,"0.0"),")"),"-") -> (1.0 ,1.7) | G10: ='SSI data'!H13 -> 18 | H10: ='SSI data'!M13 -> 2159 | I10: ='SSI data'!I13 -> 0.834 | J10: =IFERROR(CONCATENATE("(",TEXT('SSI data'!J13,"0.0")," ,", TEXT('SSI data'!K13,"0.0"),")"),"-") -> (0.5 ,1.3)
B11: ='SSI data'!B14 -> 2015-09-24 | C11: ='SSI data'!D14 -> 56 | D11: ='SSI data'!L14 -> 4511 | E11: ='SSI data'!E14 -> 1.241 | F11: =IFERROR(CONCATENATE("(",TEXT('SSI data'!F14,"0.0")," ,", TEXT('SSI data'!G14,"0.0"),")"),"-") -> (1.0 ,1.6) | G11: ='SSI data'!H14 -> 10 | H11: ='SSI data'!M14 -> 2135 | I11: ='SSI data'!I14 -> 0.468 | J11: =IFERROR(CONCATENATE("(",TEXT('SSI data'!J14,"0.0")," ,", TEXT('SSI data'!K14,"0.0"),")"),"-") -> (0.3 ,0.9)
B12: ='SSI data'!B15 -> 2015-12-24 | C12: ='SSI data'!D15 -> 60 | D12: ='SSI data'!L15 -> 4300 | E12: ='SSI data'!E15 -> 1.395 | F12: =IFERROR(CONCATENATE("(",TEXT('SSI data'!F15,"0.0")," ,", TEXT('SSI data'!G15,"0.0"),")"),"-") -> (1.1 ,1.8) | G12: ='SSI data'!H15 -> 15 | H12: ='SSI data'!M15 -> 2191 | I12: ='SSI data'!I15 -> 0.685 | J12: =IFERROR(CONCATENATE("(",TEXT('SSI data'!J15,"0.0")," ,", TEXT('SSI data'!K15,"0.0"),")"),"-") -> (0.4 ,1.1)
B13: ='SSI data'!B16 -> 2016-03-24 | C13: ='SSI data'!D16 -> 58 | D13: ='SSI data'!L16 -> 4023 | E13: ='SSI data'!E16 -> 1.442 | F13: =IFERROR(CONCATENATE("(",TEXT('SSI data'!F16,"0.0")," ,", TEXT('SSI data'!G16,"0.0"),")"),"-") -> (1.1 ,1.9) | G13: ='SSI data'!H16 -> 7 | H13: ='SSI data'!M16 -> 2173 | I13: ='SSI data'!I16 -> 0.322 | J13: =IFERROR(CONCATENATE("(",TEXT('SSI data'!J16,"0.0")," ,", TEXT('SSI data'!K16,"0.0"),")"),"-") -> (0.2 ,0.7)
B14: ='SSI data'!B17 -> 2016-06-24 | C14: ='SSI data'!D17 -> 78 | D14: ='SSI data'!L17 -> 4448 | E14: ='SSI data'!E17 -> 1.754 | F14: =IFERROR(CONCATENATE("(",TEXT('SSI data'!F17,"0.0")," ,", TEXT('SSI data'!G17,"0.0"),")"),"-") -> (1.4 ,2.2) | G14: ='SSI data'!H17 -> 17 | H14: ='SSI data'!M17 -> 2318 | I14: ='SSI data'!I17 -> 0.733 | J14: =IFERROR(CONCATENATE("(",TEXT('SSI data'!J17,"0.0")," ,", TEXT('SSI data'!K17,"0.0"),")"),"-") -> (0.5 ,1.2)
B15: ='SSI data'!B18 -> 2016-09-24 | C15: ='SSI data'!D18 -> 71 | D15: ='SSI data'!L18 -> 4446 | E15: ='SSI data'!E18 -> 1.597 | F15: =IFERROR(CONCATENATE("(",TEXT('SSI data'!F18,"0.0")," ,", TEXT('SSI data'!G18,"0.0"),")"),"-") -> (1.3 ,2.0) | G15: ='SSI data'!H18 -> 14 | H15: ='SSI data'!M18 -> 2153 | I15: ='SSI data'!I18 -> 0.65 | J15: =IFERROR(CONCATENATE("(",TEXT('SSI data'!J18,"0.0")," ,", TEXT('SSI data'!K18,"0.0"),")"),"-") -> (0.4 ,1.1)
B16: ='SSI data'!B19 -> 2016-12-24 | C16: ='SSI data'!D19 -> 51 | D16: ='SSI data'!L19 -> 4258 | E16: ='SSI data'!E19 -> 1.198 | F16: =IFERROR(CONCATENATE("(",TEXT('SSI data'!F19,"0.0")," ,", TEXT('SSI data'!G19,"0.0"),")"),"-") -> (0.9 ,1.6) | G16: ='SSI data'!H19 -> 17 | H16: ='SSI data'!M19 -> 2226 | I16: ='SSI data'!I19 -> 0.764 | J16: =IFERROR(CONCATENATE("(",TEXT('SSI data'!J19,"0.0")," ,", TEXT('SSI data'!K19,"0.0"),")"),"-") -> (0.5 ,1.2)
B17: ='SSI data'!B20 -> 2017-03-01 | C17: ='SSI data'!D20 -> 58 | D17: ='SSI data'!L20 -> 4047 | E17: ='SSI data'!E20 -> 1.433 | F17: =IFERROR(CONCATENATE("(",TEXT('SSI data'!F20,"0.0")," ,", TEXT('SSI data'!G20,"0.0"),")"),"-") -> (1.1 ,1.8) | G17: ='SSI data'!H20 -> 12 | H17: ='SSI data'!M20 -> 2164 | I17: ='SSI data'!I20 -> 0.555 | J17: =IFERROR(CONCATENATE("(",TEXT('SSI data'!J20,"0.0")," ,", TEXT('SSI data'!K20,"0.0"),")"),"-") -> (0.3 ,1.0)
B18: ='SSI data'!B21 -> 2017-06-01 | C18: ='SSI data'!D21 -> 51 | D18: ='SSI data'!L21 -> 4115 | E18: ='SSI data'!E21 -> 1.239 | F18: =IFERROR(CONCATENATE("(",TEXT('SSI data'!F21,"0.0")," ,", TEXT('SSI data'!G21,"0.0"),")"),"-") -> (0.9 ,1.6) | G18: ='SSI data'!H21 -> 19 | H18: ='SSI data'!M21 -> 2301 | I18: ='SSI data'!I21 -> 0.826 | J18: =IFERROR(CONCATENATE("(",TEXT('SSI data'!J21,"0.0")," ,", TEXT('SSI data'!K21,"0.0"),")"),"-") -> (0.5 ,1.3)
B19: ='SSI data'!B22 -> 2017-09-01 | C19: ='SSI data'!D22 -> 58 | D19: ='SSI data'!L22 -> 4514 | E19: ='SSI data'!E22 -> 1.285 | F19: =IFERROR(CONCATENATE("(",TEXT('SSI data'!F22,"0.0")," ,", TEXT('SSI data'!G22,"0.0"),")"),"-") -> (1.0 ,1.7) | G19: ='SSI data'!H22 -> 9 | H19: ='SSI data'!M22 -> 2077 | I19: ='SSI data'!I22 -> 0.433 | J19: =IFERROR(CONCATENATE("(",TEXT('SSI data'!J22,"0.0")," ,", TEXT('SSI data'!K22,"0.0"),")"),"-") -> (0.2 ,0.8)
B20: ='SSI data'!B23 -> 2017-12-01 | C20: ='SSI data'!D23 -> 66 | D20: ='SSI data'!L23 -> 4224 | E20: ='SSI data'!E23 -> 1.563 | F20: =IFERROR(CONCATENATE("(",TEXT('SSI data'!F23,"0.0")," ,", TEXT('SSI data'!G23,"0.0"),")"),"-") -> (1.2 ,2.0) | G20: ='SSI data'!H23 -> 16 | H20: ='SSI data'!M23 -> 2071 | I20: ='SSI data'!I23 -> 0.773 | J20: =IFERROR(CONCATENATE("(",TEXT('SSI data'!J23,"0.0")," ,", TEXT('SSI data'!K23,"0.0"),")"),"-") -> (0.5 ,1.3)
B21: ='SSI data'!B24 -> 2018-03-01 | C21: ='SSI data'!D24 -> 64 | D21: ='SSI data'!L24 -> 3975 | E21: ='SSI data'!E24 -> 1.61 | F21: =IFERROR(CONCATENATE("(",TEXT('SSI data'!F24,"0.0")," ,", TEXT('SSI data'!G24,"0.0"),")"),"-") -> (1.3 ,2.1) | G21: ='SSI data'!H24 -> 17 | H21: ='SSI data'!M24 -> 2008 | I21: ='SSI data'!I24 -> 0.847 | J21: =IFERROR(CONCATENATE("(",TEXT('SSI data'!J24,"0.0")," ,", TEXT('SSI data'!K24,"0.0"),")"),"-") -> (0.5 ,1.4)
B22: ='SSI data'!B25 -> 2018-06-01 | C22: ='SSI data'!D25 -> 61 | D22: ='SSI data'!L25 -> 4191 | E22: ='SSI data'!E25 -> 1.455 | F22: =IFERROR(CONCATENATE("(",TEXT('SSI data'!F25,"0.0")," ,", TEXT('SSI data'!G25,"0.0"),")"),"-") -> (1.1 ,1.9) | G22: ='SSI data'!H25 -> 18 | H22: ='SSI data'!M25 -> 2270 | I22: ='SSI data'!I25 -> 0.793 | J22: =IFERROR(CONCATENATE("(",TEXT('SSI data'!J25,"0.0")," ,", TEXT('SSI data'!K25,"0.0"),")"),"-") -> (0.5 ,1.3)
B23: ='SSI data'!B26 -> 2018-09-01 | C23: ='SSI data'!D26 -> 66 | D23: ='SSI data'!L26 -> 4293 | E23: ='SSI data'!E26 -> 1.537 | F23: =IFERROR(CONCATENATE("(",TEXT('SSI data'!F26,"0.0")," ,", TEXT('SSI data'!G26,"0.0"),")"),"-") -> (1.2 ,2.0) | G23: ='SSI data'!H26 -> 13 | H23: ='SSI data'!M26 -> 2155 | I23: ='SSI data'!I26 -> 0.603 | J23: =IFERROR(CONCATENATE("(",TEXT('SSI data'!J26,"0.0")," ,", TEXT('SSI data'!K26,"0.0"),")"),"-") -> (0.4 ,1.0)
B24: ='SSI data'!B27 -> 2018-12-01 | C24: ='SSI data'!D27 -> 59 | D24: ='SSI data'!L27 -> 4346 | E24: ='SSI data'!E27 -> 1.358 | F24: =IFERROR(CONCATENATE("(",TEXT('SSI data'!F27,"0.0")," ,", TEXT('SSI data'!G27,"0.0"),")"),"-") -> (1.1 ,1.7) | G24: ='SSI data'!H27 -> 16 | H24: ='SSI data'!M27 -> 2276 | I24: ='SSI data'!I27 -> 0.703 | J24: =IFERROR(CONCATENATE("(",TEXT('SSI data'!J27,"0.0")," ,", TEXT('SSI data'!K27,"0.0"),")"),"-") -> (0.4 ,1.1)
B25: ='SSI data'!B28 -> 2019-03-01 | C25: ='SSI data'!D28 -> 64 | D25: ='SSI data'!L28 -> 4051 | E25: ='SSI data'!E28 -> 1.58 | F25: =IFERROR(CONCATENATE("(",TEXT('SSI data'!F28,"0.0")," ,", TEXT('SSI data'!G28,"0.0"),")"),"-") -> (1.2 ,2.0) | G25: ='SSI data'!H28 -> 8 | H25: ='SSI data'!M28 -> 2146 | I25: ='SSI data'!I28 -> 0.373 | J25: =IFERROR(CONCATENATE("(",TEXT('SSI data'!J28,"0.0")," ,", TEXT('SSI data'!K28,"0.0"),")"),"-") -> (0.2 ,0.7)
B26: ='SSI data'!B29 -> 2019-06-01 | C26: ='SSI data'!D29 -> 43 | D26: ='SSI data'!L29 -> 4118 | E26: ='SSI data'!E29 -> 1.044 | F26: =IFERROR(CONCATENATE("(",TEXT('SSI data'!F29,"0.0")," ,", TEXT('SSI data'!G29,"0.0"),")"),"-") -> (0.8 ,1.4) | G26: ='SSI data'!H29 -> 10 | H26: ='SSI data'!M29 -> 2257 | I26: ='SSI data'!I29 -> 0.443 | J26: =IFERROR(CONCATENATE("(",TEXT('SSI data'!J29,"0.0")," ,", TEXT('SSI data'!K29,"0.0"),")"),"-") -> (0.2 ,0.8)
B27: ='SSI data'!B30 -> 2019-09-01 | C27: ='SSI data'!D30 -> 51 | D27: ='SSI data'!L30 -> 4408 | E27: ='SSI data'!E30 -> 1.157 | F27: =IFERROR(CONCATENATE("(",TEXT('SSI data'!F30,"0.0")," ,", TEXT('SSI data'!G30,"0.0"),")"),"-") -> (0.9 ,1.5) | G27: ='SSI data'!H30 -> 17 | H27: ='SSI data'!M30 -> 2121 | I27: ='SSI data'!I30 -> 0.802 | J27: =IFERROR(CONCATENATE("(",TEXT('SSI data'!J30,"0.0")," ,", TEXT('SSI data'!K30,"0.0"),")"),"-") -> (0.5 ,1.3)
B28: ='SSI data'!B31 -> 2019-12-01 | C28: ='SSI data'!D31 -> 35 | D28: ='SSI data'!L31 -> 4112 | E28: ='SSI data'!E31 -> 0.851 | F28: =IFERROR(CONCATENATE("(",TEXT('SSI data'!F31,"0.0")," ,", TEXT('SSI data'!G31,"0.0"),")"),"-") -> (0.6 ,1.2) | G28: ='SSI data'!H31 -> 17 | H28: ='SSI data'!M31 -> 2145 | I28: ='SSI data'!I31 -> 0.793 | J28: =IFERROR(CONCATENATE("(",TEXT('SSI data'!J31,"0.0")," ,", TEXT('SSI data'!K31,"0.0"),")"),"-") -> (0.5 ,1.3)
B29: ='SSI data'!B32 -> 2020-03-01 | C29: ='SSI data'!D32 -> - | D29: ='SSI data'!L32 -> - | E29: ='SSI data'!E32 -> - | F29: =IFERROR(CONCATENATE("(",TEXT('SSI data'!F32,"0.0")," ,", TEXT('SSI data'!G32,"0.0"),")"),"-") -> (- ,-) | G29: ='SSI data'!H32 -> - | H29: ='SSI data'!M32 -> - | I29: ='SSI data'!I32 -> - | J29: =IFERROR(CONCATENATE("(",TEXT('SSI data'!J32,"0.0")," ,", TEXT('SSI data'!K32,"0.0"),")"),"-") -> (- ,-)
B30: ='SSI data'!B33 -> 2020-06-01 | C30: ='SSI data'!D33 -> - | D30: ='SSI data'!L33 -> - | E30: ='SSI data'!E33 -> - | F30: =IFERROR(CONCATENATE("(",TEXT('SSI data'!F33,"0.0")," ,", TEXT('SSI data'!G33,"0.0"),")"),"-") -> (- ,-) | G30: ='SSI data'!H33 -> - | H30: ='SSI data'!M33 -> - | I30: ='SSI data'!I33 -> - | J30: =IFERROR(CONCATENATE("(",TEXT('SSI data'!J33,"0.0")," ,", TEXT('SSI data'!K33,"0.0"),")"),"-") -> (- ,-)
B31: ='SSI data'!B34 -> 2020-09-01 | C31: ='SSI data'!D34 -> - | D31: ='SSI data'!L34 -> - | E31: ='SSI data'!E34 -> - | F31: =IFERROR(CONCATENATE("(",TEXT('SSI data'!F34,"0.0")," ,", TEXT('SSI data'!G34,"0.0"),")"),"-") -> (- ,-) | G31: ='SSI data'!H34 -> - | H31: ='SSI data'!M34 -> - | I31: ='SSI data'!I34 -> - | J31: =IFERROR(CONCATENATE("(",TEXT('SSI data'!J34,"0.0")," ,", TEXT('SSI data'!K34,"0.0"),")"),"-") -> (- ,-)
B32: ='SSI data'!B35 -> 2020-12-31 | C32: ='SSI data'!D35 -> - | D32: ='SSI data'!L35 -> - | E32: ='SSI data'!E35 -> - | F32: =IFERROR(CONCATENATE("(",TEXT('SSI data'!F35,"0.0")," ,", TEXT('SSI data'!G35,"0.0"),")"),"-") -> (- ,-) | G32: ='SSI data'!H35 -> - | H32: ='SSI data'!M35 -> - | I32: ='SSI data'!I35 -> - | J32: =IFERROR(CONCATENATE("(",TEXT('SSI data'!J35,"0.0")," ,", TEXT('SSI data'!K35,"0.0"),")"),"-") -> (- ,-)
B33: ='SSI data'!B36 -> 2021-03-31 | C33: ='SSI data'!D36 -> - | D33: ='SSI data'!L36 -> - | E33: ='SSI data'!E36 -> - | F33: =IFERROR(CONCATENATE("(",TEXT('SSI data'!F36,"0.0")," ,", TEXT('SSI data'!G36,"0.0"),")"),"-") -> (- ,-) | G33: ='SSI data'!H36 -> - | H33: ='SSI data'!M36 -> - | I33: ='SSI data'!I36 -> - | J33: =IFERROR(CONCATENATE("(",TEXT('SSI data'!J36,"0.0")," ,", TEXT('SSI data'!K36,"0.0"),")"),"-") -> (- ,-)
B34: ='SSI data'!B37 -> 2021-06-30 | C34: ='SSI data'!D37 -> - | D34: ='SSI data'!L37 -> - | E34: ='SSI data'!E37 -> - | F34: =IFERROR(CONCATENATE("(",TEXT('SSI data'!F37,"0.0")," ,", TEXT('SSI data'!G37,"0.0"),")"),"-") -> (- ,-) | G34: ='SSI data'!H37 -> - | H34: ='SSI data'!M37 -> - | I34: ='SSI data'!I37 -> - | J34: =IFERROR(CONCATENATE("(",TEXT('SSI data'!J37,"0.0")," ,", TEXT('SSI data'!K37,"0.0"),")"),"-") -> (- ,-)
B35: ='SSI data'!B38 -> 2021-09-30 | C35: ='SSI data'!D38 -> - | D35: ='SSI data'!L38 -> - | E35: ='SSI data'!E38 -> - | F35: =IFERROR(CONCATENATE("(",TEXT('SSI data'!F38,"0.0")," ,", TEXT('SSI data'!G38,"0.0"),")"),"-") -> (- ,-) | G35: ='SSI data'!H38 -> - | H35: ='SSI data'!M38 -> - | I35: ='SSI data'!I38 -> - | J35: =IFERROR(CONCATENATE("(",TEXT('SSI data'!J38,"0.0")," ,", TEXT('SSI data'!K38,"0.0"),")"),"-") -> (- ,-)
B36: ='SSI data'!B39 -> 2021-12-31 | C36: ='SSI data'!D39 -> - | D36: ='SSI data'!L39 -> - | E36: ='SSI data'!E39 -> - | F36: =IFERROR(CONCATENATE("(",TEXT('SSI data'!F39,"0.0")," ,", TEXT('SSI data'!G39,"0.0"),")"),"-") -> (- ,-) | G36: ='SSI data'!H39 -> - | H36: ='SSI data'!M39 -> - | I36: ='SSI data'!I39 -> - | J36: =IFERROR(CONCATENATE("(",TEXT('SSI data'!J39,"0.0")," ,", TEXT('SSI data'!K39,"0.0"),")"),"-") -> (- ,-)
B37: ='SSI data'!B40 -> 2022-03-31 | C37: ='SSI data'!D40 -> - | D37: ='SSI data'!L40 -> - | E37: ='SSI data'!E40 -> - | F37: =IFERROR(CONCATENATE("(",TEXT('SSI data'!F40,"0.0")," ,", TEXT('SSI data'!G40,"0.0"),")"),"-") -> (- ,-) | G37: ='SSI data'!H40 -> - | H37: ='SSI data'!M40 -> - | I37: ='SSI data'!I40 -> - | J37: =IFERROR(CONCATENATE("(",TEXT('SSI data'!J40,"0.0")," ,", TEXT('SSI data'!K40,"0.0"),")"),"-") -> (- ,-)
B38: ='SSI data'!B41 -> 2022-06-30 | C38: ='SSI data'!D41 -> - | D38: ='SSI data'!L41 -> - | E38: ='SSI data'!E41 -> - | F38: =IFERROR(CONCATENATE("(",TEXT('SSI data'!F41,"0.0")," ,", TEXT('SSI data'!G41,"0.0"),")"),"-") -> (- ,-) | G38: ='SSI data'!H41 -> - | H38: ='SSI data'!M41 -> - | I38: ='SSI data'!I41 -> - | J38: =IFERROR(CONCATENATE("(",TEXT('SSI data'!J41,"0.0")," ,", TEXT('SSI data'!K41,"0.0"),")"),"-") -> (- ,-)
B39: ='SSI data'!B42 -> 2022-09-30 | C39: ='SSI data'!D42 -> - | D39: ='SSI data'!L42 -> - | E39: ='SSI data'!E42 -> - | F39: =IFERROR(CONCATENATE("(",TEXT('SSI data'!F42,"0.0")," ,", TEXT('SSI data'!G42,"0.0"),")"),"-") -> (- ,-) | G39: ='SSI data'!H42 -> - | H39: ='SSI data'!M42 -> - | I39: ='SSI data'!I42 -> - | J39: =IFERROR(CONCATENATE("(",TEXT('SSI data'!J42,"0.0")," ,", TEXT('SSI data'!K42,"0.0"),")"),"-") -> (- ,-)
B40: ='SSI data'!B43 -> 2022-12-31 | C40: ='SSI data'!D43 -> - | D40: ='SSI data'!L43 -> - | E40: ='SSI data'!E43 -> - | F40: =IFERROR(CONCATENATE("(",TEXT('SSI data'!F43,"0.0")," ,", TEXT('SSI data'!G43,"0.0"),")"),"-") -> (- ,-) | G40: ='SSI data'!H43 -> - | H40: ='SSI data'!M43 -> - | I40: ='SSI data'!I43 -> - | J40: =IFERROR(CONCATENATE("(",TEXT('SSI data'!J43,"0.0")," ,", TEXT('SSI data'!K43,"0.0"),")"),"-") -> (- ,-)
B41: ='SSI data'!B44 -> 2023-03-31 | C41: ='SSI data'!D44 -> - | D41: ='SSI data'!L44 -> - | E41: ='SSI data'!E44 -> - | F41: =IFERROR(CONCATENATE("(",TEXT('SSI data'!F44,"0.0")," ,", TEXT('SSI data'!G44,"0.0"),")"),"-") -> (- ,-) | G41: ='SSI data'!H44 -> - | H41: ='SSI data'!M44 -> - | I41: ='SSI data'!I44 -> - | J41: =IFERROR(CONCATENATE("(",TEXT('SSI data'!J44,"0.0")," ,", TEXT('SSI data'!K44,"0.0"),")"),"-") -> (- ,-)
B42: ='SSI data'!B45 -> 2023-06-30 | C42: ='SSI data'!D45 -> - | D42: ='SSI data'!L45 -> - | E42: ='SSI data'!E45 -> - | F42: =IFERROR(CONCATENATE("(",TEXT('SSI data'!F45,"0.0")," ,", TEXT('SSI data'!G45,"0.0"),")"),"-") -> (- ,-) | G42: ='SSI data'!H45 -> - | H42: ='SSI data'!M45 -> - | I42: ='SSI data'!I45 -> - | J42: =IFERROR(CONCATENATE("(",TEXT('SSI data'!J45,"0.0")," ,", TEXT('SSI data'!K45,"0.0"),")"),"-") -> (- ,-)
B43: ='SSI data'!B46 -> 2023-09-30 | C43: ='SSI data'!D46 -> - | D43: ='SSI data'!L46 -> - | E43: ='SSI data'!E46 -> - | F43: =IFERROR(CONCATENATE("(",TEXT('SSI data'!F46,"0.0")," ,", TEXT('SSI data'!G46,"0.0"),")"),"-") -> (- ,-) | G43: ='SSI data'!H46 -> - | H43: ='SSI data'!M46 -> - | I43: ='SSI data'!I46 -> - | J43: =IFERROR(CONCATENATE("(",TEXT('SSI data'!J46,"0.0")," ,", TEXT('SSI data'!K46,"0.0"),")"),"-") -> (- ,-)
B44: ='SSI data'!B47 -> 2023-12-31 | C44: ='SSI data'!D47 -> - | D44: ='SSI data'!L47 -> - | E44: ='SSI data'!E47 -> - | F44: =IFERROR(CONCATENATE("(",TEXT('SSI data'!F47,"0.0")," ,", TEXT('SSI data'!G47,"0.0"),")"),"-") -> (- ,-) | G44: ='SSI data'!H47 -> - | H44: ='SSI data'!M47 -> - | I44: ='SSI data'!I47 -> - | J44: =IFERROR(CONCATENATE("(",TEXT('SSI data'!J47,"0.0")," ,", TEXT('SSI data'!K47,"0.0"),")"),"-") -> (- ,-)
B45: ='SSI data'!B48 -> 2024-03-31 | C45: ='SSI data'!D48 -> - | D45: ='SSI data'!L48 -> - | E45: ='SSI data'!E48 -> - | F45: =IFERROR(CONCATENATE("(",TEXT('SSI data'!F48,"0.0")," ,", TEXT('SSI data'!G48,"0.0"),")"),"-") -> (- ,-) | G45: ='SSI data'!H48 -> - | H45: ='SSI data'!M48 -> - | I45: ='SSI data'!I48 -> - | J45: =IFERROR(CONCATENATE("(",TEXT('SSI data'!J48,"0.0")," ,", TEXT('SSI data'!K48,"0.0"),")"),"-") -> (- ,-)
B46: ='SSI data'!B49 -> 2024-06-30 | C46: ='SSI data'!D49 -> - | D46: ='SSI data'!L49 -> - | E46: ='SSI data'!E49 -> - | F46: =IFERROR(CONCATENATE("(",TEXT('SSI data'!F49,"0.0")," ,", TEXT('SSI data'!G49,"0.0"),")"),"-") -> (- ,-) | G46: ='SSI data'!H49 -> - | H46: ='SSI data'!M49 -> - | I46: ='SSI data'!I49 -> - | J46: =IFERROR(CONCATENATE("(",TEXT('SSI data'!J49,"0.0")," ,", TEXT('SSI data'!K49,"0.0"),")"),"-") -> (- ,-)
B47: ='SSI data'!B50 -> 2024-09-30 | C47: ='SSI data'!D50 -> - | D47: ='SSI data'!L50 -> - | E47: ='SSI data'!E50 -> - | F47: =IFERROR(CONCATENATE("(",TEXT('SSI data'!F50,"0.0")," ,", TEXT('SSI data'!G50,"0.0"),")"),"-") -> (- ,-) | G47: ='SSI data'!H50 -> - | H47: ='SSI data'!M50 -> - | I47: ='SSI data'!I50 -> - | J47: =IFERROR(CONCATENATE("(",TEXT('SSI data'!J50,"0.0")," ,", TEXT('SSI data'!K50,"0.0"),")"),"-") -> (- ,-)
B48: ='SSI data'!B51 -> 2024-12-31 | C48: ='SSI data'!D51 -> - | D48: ='SSI data'!L51 -> - | E48: ='SSI data'!E51 -> - | F48: =IFERROR(CONCATENATE("(",TEXT('SSI data'!F51,"0.0")," ,", TEXT('SSI data'!G51,"0.0"),")"),"-") -> (- ,-) | G48: ='SSI data'!H51 -> - | H48: ='SSI data'!M51 -> - | I48: ='SSI data'!I51 -> - | J48: =IFERROR(CONCATENATE("(",TEXT('SSI data'!J51,"0.0")," ,", TEXT('SSI data'!K51,"0.0"),")"),"-") -> (- ,-)
B49: ='SSI data'!B52 -> 2025-03-31 | C49: ='SSI data'!D52 -> - | D49: ='SSI data'!L52 -> - | E49: ='SSI data'!E52 -> - | F49: =IFERROR(CONCATENATE("(",TEXT('SSI data'!F52,"0.0")," ,", TEXT('SSI data'!G52,"0.0"),")"),"-") -> (- ,-) | G49: ='SSI data'!H52 -> - | H49: ='SSI data'!M52 -> - | I49: ='SSI data'!I52 -> - | J49: =IFERROR(CONCATENATE("(",TEXT('SSI data'!J52,"0.0")," ,", TEXT('SSI data'!K52,"0.0"),")"),"-") -> (- ,-)
B50: ='SSI data'!B53 -> 2025-06-30 | C50: ='SSI data'!D53 -> - | D50: ='SSI data'!L53 -> - | E50: ='SSI data'!E53 -> - | F50: =IFERROR(CONCATENATE("(",TEXT('SSI data'!F53,"0.0")," ,", TEXT('SSI data'!G53,"0.0"),")"),"-") -> (- ,-) | G50: ='SSI data'!H53 -> - | H50: ='SSI data'!M53 -> - | I50: ='SSI data'!I53 -> - | J50: =IFERROR(CONCATENATE("(",TEXT('SSI data'!J53,"0.0")," ,", TEXT('SSI data'!K53,"0.0"),")"),"-") -> (- ,-)
B51: ='SSI data'!B54 -> 2025-09-30 | C51: ='SSI data'!D54 -> - | D51: ='SSI data'!L54 -> - | E51: ='SSI data'!E54 -> - | F51: =IFERROR(CONCATENATE("(",TEXT('SSI data'!F54,"0.0")," ,", TEXT('SSI data'!G54,"0.0"),")"),"-") -> (- ,-) | G51: ='SSI data'!H54 -> - | H51: ='SSI data'!M54 -> - | I51: ='SSI data'!I54 -> - | J51: =IFERROR(CONCATENATE("(",TEXT('SSI data'!J54,"0.0")," ,", TEXT('SSI data'!K54,"0.0"),")"),"-") -> (- ,-)
B52: ='SSI data'!B55 -> 2025-12-31 | C52: ='SSI data'!D55 -> - | D52: ='SSI data'!L55 -> - | E52: ='SSI data'!E55 -> - | F52: =IFERROR(CONCATENATE("(",TEXT('SSI data'!F55,"0.0")," ,", TEXT('SSI data'!G55,"0.0"),")"),"-") -> (- ,-) | G52: ='SSI data'!H55 -> - | H52: ='SSI data'!M55 -> - | I52: ='SSI data'!I55 -> - | J52: =IFERROR(CONCATENATE("(",TEXT('SSI data'!J55,"0.0")," ,", TEXT('SSI data'!K55,"0.0"),")"),"-") -> (- ,-)
B53: ='SSI data'!B56 -> 2026-03-31 | C53: ='SSI data'!D56 -> - | D53: ='SSI data'!L56 -> - | E53: ='SSI data'!E56 -> - | F53: =IFERROR(CONCATENATE("(",TEXT('SSI data'!F56,"0.0")," ,", TEXT('SSI data'!G56,"0.0"),")"),"-") -> (- ,-) | G53: ='SSI data'!H56 -> - | H53: ='SSI data'!M56 -> - | I53: ='SSI data'!I56 -> - | J53: =IFERROR(CONCATENATE("(",TEXT('SSI data'!J56,"0.0")," ,", TEXT('SSI data'!K56,"0.0"),")"),"-") -> (- ,-)

Sheet ECOLI data (hidden)
A1: Trend data | R1: u-chart data
A3: add a new line for current quarter
U4: change this
D5: ECBHCAI | E5: ECBHCAI | F5: ECBHCAI | G5: ECBHCAI | H5: ECBCOM | I5: ECBCOM | J5: ECBCOM | K5: ECBCOM | L5: ECBHCAI | M5: ECBCOM | T5: current quarter end | U5: 2026-03-31 | V5: 3 | W5: 4 | X5: 5 | Y5: 6 | AA5: 3 | AB5: 4 | AC5: 5 | AD5: 6
D6: 2 | E6: 4 | F6: 5 | G6: 6 | H6: 2 | I6: 4 | J6: 5 | K6: 6 | L6: 3 | M6: 3
C7: ref | D7: Healthcare associated Cases | E7: Healthcare associated rate | F7: Healthcare associated lower CI | G7: Healthcare associated upper CI | H7: Community associatedCases | I7: Community associated rate | J7: Community associated lower CI | K7: Community associated upper CI | L7: ALL beds | M7: Pop | V7: ECBHCAI | AA7: ECBCOM
A8: 201603 | B8: 2016-09-24 | C8: =CONCATENATE(A8,'ECOLI Data and Charts'!B$1) -> 201603Scotland | D8: =VLOOKUP(CONCATENATE(D$5,$C8),'trend data'!$A$2:$O$11161,D$6,FALSE) -> 581 | E8: =ROUND(VLOOKUP(CONCATENATE(E$5,$C8),'trend data'!$A$2:$O$11161,E$6,FALSE),3) -> 36.589 | F8: =ROUND(VLOOKUP(CONCATENATE(F$5,$C8),'trend data'!$A$2:$O$11161,F$6,FALSE),3) -> 33.674 | G8: =ROUND(VLOOKUP(CONCATENATE(G$5,$C8),'trend data'!$A$2:$O$11161,G$6,FALSE),3) -> 39.689 | H8: =IFERROR(VLOOKUP(CONCATENATE(H$5,$C8),'trend data'!$A$2:$O$11161,H$6,FALSE),"-") -> 720 | I8: =IFERROR(ROUND(VLOOKUP(CONCATENATE(I$5,$C8),'trend data'!$A$2:$O$11161,I$6,FALSE),3),"-") -> 53.304 | J8: =IFERROR(ROUND(VLOOKUP(CONCATENATE(J$5,$C8),'trend data'!$A$2:$O$11161,J$6,FALSE),3),"-") -> 49.481 | K8: =IFERROR(ROUND(VLOOKUP(CONCATENATE(K$5,$C8),'trend data'!$A$2:$O$11161,K$6,FALSE),3),"-") -> 57.344 | L8: =VLOOKUP(CONCATENATE(L$5,$C8),'trend data'!$A$2:$O$11161,L$6,FALSE) -> 1587890 | M8: =ROUND(VLOOKUP(CONCATENATE(M$5,$C8),'trend data'!$A$2:$O$11161,M$6,FALSE),2) -> 1350740.98 | R8: change to last 12 quarters | V8: Healthcare associated rate | W8: Healthcare associated av rate | X8: Healthcare associated UWL 2sd | Y8: Healthcare associated UCL 3sd | AA8: Community associated rate | AB8: Community associated av rate | AC8: Community associated UWL 2sd | AD8: Community associated UCL 3 sd
A9: 201604 | B9: 2016-12-24 | C9: =CONCATENATE(A9,'ECOLI Data and Charts'!B$1) -> 201604Scotland | D9: =VLOOKUP(CONCATENATE(D$5,$C9),'trend data'!$A$2:$O$11161,D$6,FALSE) -> 564 | E9: =ROUND(VLOOKUP(CONCATENATE(E$5,$C9),'trend data'!$A$2:$O$11161,E$6,FALSE),3) -> 35.434 | F9: =ROUND(VLOOKUP(CONCATENATE(F$5,$C9),'trend data'!$A$2:$O$11161,F$6,FALSE),3) -> 32.57 | G9: =ROUND(VLOOKUP(CONCATENATE(G$5,$C9),'trend data'!$A$2:$O$11161,G$6,FALSE),3) -> 38.483 | H9: =IFERROR(VLOOKUP(CONCATENATE(H$5,$C9),'trend data'!$A$2:$O$11161,H$6,FALSE),"-") -> 631 | I9: =IFERROR(ROUND(VLOOKUP(CONCATENATE(I$5,$C9),'trend data'!$A$2:$O$11161,I$6,FALSE),3),"-") -> 46.715 | J9: =IFERROR(ROUND(VLOOKUP(CONCATENATE(J$5,$C9),'trend data'!$A$2:$O$11161,J$6,FALSE),3),"-") -> 43.141 | K9: =IFERROR(ROUND(VLOOKUP(CONCATENATE(K$5,$C9),'trend data'!$A$2:$O$11161,K$6,FALSE),3),"-") -> 50.507 | L9: =VLOOKUP(CONCATENATE(L$5,$C9),'trend data'!$A$2:$O$11161,L$6,FALSE) -> 1591683 | M9: =ROUND(VLOOKUP(CONCATENATE(M$5,$C9),'trend data'!$A$2:$O$11161,M$6,FALSE),2) -> 1350740.98 | R9: =YEAR(U9)&"0"&IF(MONTH(U9)<4,1,IF(MONTH(U9)<7,2,IF(MONTH(U9)<10,3,4))) -> 202302 | S9: =CONCATENATE(V$7,$R9,'ECOLI Data and Charts'!B$1) -> ECBHCAI202302Scotland | T9: 1 | U9: =U10-92 -> 2023-06-23 | V9: =ROUND(VLOOKUP($S9,'data for u-p-charts'!$A$2:$F$5000,V$5,FALSE),2) -> 37.61 | W9: =ROUND(VLOOKUP($S9,'data for u-p-charts'!$A$2:$F$5000,W$5,FALSE),2) -> 38.81 | X9: =ROUND(VLOOKUP($S9,'data for u-p-charts'!$A$2:$F$5000,X$5,FALSE),2) -> 41.98 | Y9: =ROUND(VLOOKUP($S9,'data for u-p-charts'!$A$2:$F$5000,Y$5,FALSE),2) -> 43.57 | Z9: =CONCATENATE(AA$7,$R9,'ECOLI Data and Charts'!$B$1) -> ECBCOM202302Scotland | AA9: =ROUND(VLOOKUP($Z9,'data for u-p-charts'!$A$2:$F$5000,AA$5,FALSE),2) -> 36.68 | AB9: =ROUND(VLOOKUP($Z9,'data for u-p-charts'!$A$2:$F$5000,AB$5,FALSE),2) -> 36.49 | AC9: =ROUND(VLOOKUP($Z9,'data for u-p-charts'!$A$2:$F$5000,AC$5,FALSE),2) -> 39.75 | AD9: =ROUND(VLOOKUP($Z9,'data for u-p-charts'!$A$2:$F$5000,AD$5,FALSE),2) -> 41.39
A10: 201701 | B10: 2017-03-01 | C10: =CONCATENATE(A10,'ECOLI Data and Charts'!B$1) -> 201701Scotland | D10: =VLOOKUP(CONCATENATE(D$5,$C10),'trend data'!$A$2:$O$11161,D$6,FALSE) -> 547 | E10: =ROUND(VLOOKUP(CONCATENATE(E$5,$C10),'trend data'!$A$2:$O$11161,E$6,FALSE),3) -> 34.591 | F10: =ROUND(VLOOKUP(CONCATENATE(F$5,$C10),'trend data'!$A$2:$O$11161,F$6,FALSE),3) -> 31.752 | G10: =ROUND(VLOOKUP(CONCATENATE(G$5,$C10),'trend data'!$A$2:$O$11161,G$6,FALSE),3) -> 37.615 | H10: =IFERROR(VLOOKUP(CONCATENATE(H$5,$C10),'trend data'!$A$2:$O$11161,H$6,FALSE),"-") -> 570 | I10: =IFERROR(ROUND(VLOOKUP(CONCATENATE(I$5,$C10),'trend data'!$A$2:$O$11161,I$6,FALSE),3),"-") -> 42.902 | J10: =IFERROR(ROUND(VLOOKUP(CONCATENATE(J$5,$C10),'trend data'!$A$2:$O$11161,J$6,FALSE),3),"-") -> 39.452 | K10: =IFERROR(ROUND(VLOOKUP(CONCATENATE(K$5,$C10),'trend data'!$A$2:$O$11161,K$6,FALSE),3),"-") -> 46.574 | L10: =VLOOKUP(CONCATENATE(L$5,$C10),'trend data'!$A$2:$O$11161,L$6,FALSE) -> 1581339 | M10: =ROUND(VLOOKUP(CONCATENATE(M$5,$C10),'trend data'!$A$2:$O$11161,M$6,FALSE),2) -> 1328597.26 | R10: =YEAR(U10)&"0"&IF(MONTH(U10)<4,1,IF(MONTH(U10)<7,2,IF(MONTH(U10)<10,3,4))) -> 202303 | S10: =CONCATENATE(V$7,R10,'ECOLI Data and Charts'!B$1) -> ECBHCAI202303Scotland | T10: 2 | U10: 2023-09-23 | V10: =ROUND(VLOOKUP($S10,'data for u-p-charts'!$A$2:$F$5000,V$5,FALSE),2) -> 37.72 | W10: =ROUND(VLOOKUP($S10,'data for u-p-charts'!$A$2:$F$5000,W$5,FALSE),2) -> 38.81 | X10: =ROUND(VLOOKUP($S10,'data for u-p-charts'!$A$2:$F$5000,X$5,FALSE),2) -> 41.99 | Y10: =ROUND(VLOOKUP($S10,'data for u-p-charts'!$A$2:$F$5000,Y$5,FALSE),2) -> 43.58 | Z10: =CONCATENATE(AA$7,$R10,'ECOLI Data and Charts'!$B$1) -> ECBCOM202303Scotland | AA10: =ROUND(VLOOKUP($Z10,'data for u-p-charts'!$A$2:$F$5000,AA$5,FALSE),2) -> 41.55 | AB10: =ROUND(VLOOKUP($Z10,'data for u-p-charts'!$A$2:$F$5000,AB$5,FALSE),2) -> 36.49 | AC10: =ROUND(VLOOKUP($Z10,'data for u-p-charts'!$A$2:$F$5000,AC$5,FALSE),2) -> 39.73 | AD10: =ROUND(VLOOKUP($Z10,'data for u-p-charts'!$A$2:$F$5000,AD$5,FALSE),2) -> 41.36
A11: 201702 | B11: 2017-06-01 | C11: =CONCATENATE(A11,'ECOLI Data and Charts'!B$1) -> 201702Scotland | D11: =VLOOKUP(CONCATENATE(D$5,$C11),'trend data'!$A$2:$O$11161,D$6,FALSE) -> 539 | E11: =ROUND(VLOOKUP(CONCATENATE(E$5,$C11),'trend data'!$A$2:$O$11161,E$6,FALSE),3) -> 34.761 | F11: =ROUND(VLOOKUP(CONCATENATE(F$5,$C11),'trend data'!$A$2:$O$11161,F$6,FALSE),3) -> 31.888 | G11: =ROUND(VLOOKUP(CONCATENATE(G$5,$C11),'trend data'!$A$2:$O$11161,G$6,FALSE),3) -> 37.824 | H11: =IFERROR(VLOOKUP(CONCATENATE(H$5,$C11),'trend data'!$A$2:$O$11161,H$6,FALSE),"-") -> 657 | I11: =IFERROR(ROUND(VLOOKUP(CONCATENATE(I$5,$C11),'trend data'!$A$2:$O$11161,I$6,FALSE),3),"-") -> 48.907 | J11: =IFERROR(ROUND(VLOOKUP(CONCATENATE(J$5,$C11),'trend data'!$A$2:$O$11161,J$6,FALSE),3),"-") -> 45.238 | K11: =IFERROR(ROUND(VLOOKUP(CONCATENATE(K$5,$C11),'trend data'!$A$2:$O$11161,K$6,FALSE),3),"-") -> 52.794 | L11: =VLOOKUP(CONCATENATE(L$5,$C11),'trend data'!$A$2:$O$11161,L$6,FALSE) -> 1550567 | M11: =ROUND(VLOOKUP(CONCATENATE(M$5,$C11),'trend data'!$A$2:$O$11161,M$6,FALSE),2) -> 1343359.45 | R11: =YEAR(U11)&"0"&IF(MONTH(U11)<4,1,IF(MONTH(U11)<7,2,IF(MONTH(U11)<10,3,4))) -> 202304 | S11: =CONCATENATE(V$7,R11,'ECOLI Data and Charts'!B$1) -> ECBHCAI202304Scotland | T11: 3 | U11: 2023-12-24 | V11: =ROUND(VLOOKUP($S11,'data for u-p-charts'!$A$2:$F$5000,V$5,FALSE),2) -> 34.74 | W11: =ROUND(VLOOKUP($S11,'data for u-p-charts'!$A$2:$F$5000,W$5,FALSE),2) -> 38.81 | X11: =ROUND(VLOOKUP($S11,'data for u-p-charts'!$A$2:$F$5000,X$5,FALSE),2) -> 41.96 | Y11: =ROUND(VLOOKUP($S11,'data for u-p-charts'!$A$2:$F$5000,Y$5,FALSE),2) -> 43.54 | Z11: =CONCATENATE(AA$7,$R11,'ECOLI Data and Charts'!$B$1) -> ECBCOM202304Scotland | AA11: =ROUND(VLOOKUP($Z11,'data for u-p-charts'!$A$2:$F$5000,AA$5,FALSE),2) -> 31.94 | AB11: =ROUND(VLOOKUP($Z11,'data for u-p-charts'!$A$2:$F$5000,AB$5,FALSE),2) -> 36.49 | AC11: =ROUND(VLOOKUP($Z11,'data for u-p-charts'!$A$2:$F$5000,AC$5,FALSE),2) -> 39.73 | AD11: =ROUND(VLOOKUP($Z11,'data for u-p-charts'!$A$2:$F$5000,AD$5,FALSE),2) -> 41.36
A12: 201703 | B12: 2017-09-01 | C12: =CONCATENATE(A12,'ECOLI Data and Charts'!B$1) -> 201703Scotland | D12: =VLOOKUP(CONCATENATE(D$5,$C12),'trend data'!$A$2:$O$11161,D$6,FALSE) -> 585 | E12: =ROUND(VLOOKUP(CONCATENATE(E$5,$C12),'trend data'!$A$2:$O$11161,E$6,FALSE),3) -> 38.016 | F12: =ROUND(VLOOKUP(CONCATENATE(F$5,$C12),'trend data'!$A$2:$O$11161,F$6,FALSE),3) -> 34.997 | G12: =ROUND(VLOOKUP(CONCATENATE(G$5,$C12),'trend data'!$A$2:$O$11161,G$6,FALSE),3) -> 41.225 | H12: =IFERROR(VLOOKUP(CONCATENATE(H$5,$C12),'trend data'!$A$2:$O$11161,H$6,FALSE),"-") -> 677 | I12: =IFERROR(ROUND(VLOOKUP(CONCATENATE(I$5,$C12),'trend data'!$A$2:$O$11161,I$6,FALSE),3),"-") -> 49.848 | J12: =IFERROR(ROUND(VLOOKUP(CONCATENATE(J$5,$C12),'trend data'!$A$2:$O$11161,J$6,FALSE),3),"-") -> 46.163 | K12: =IFERROR(ROUND(VLOOKUP(CONCATENATE(K$5,$C12),'trend data'!$A$2:$O$11161,K$6,FALSE),3),"-") -> 53.749 | L12: =VLOOKUP(CONCATENATE(L$5,$C12),'trend data'!$A$2:$O$11161,L$6,FALSE) -> 1538826 | M12: =ROUND(VLOOKUP(CONCATENATE(M$5,$C12),'trend data'!$A$2:$O$11161,M$6,FALSE),2) -> 1358121.64 | R12: 202401 | S12: =CONCATENATE(V$7,R12,'ECOLI Data and Charts'!B$1) -> ECBHCAI202401Scotland | T12: 4 | U12: 2024-03-25 | V12: =ROUND(VLOOKUP($S12,'data for u-p-charts'!$A$2:$F$5000,V$5,FALSE),2) -> 35.52 | W12: =ROUND(VLOOKUP($S12,'data for u-p-charts'!$A$2:$F$5000,W$5,FALSE),2) -> 38.81 | X12: =ROUND(VLOOKUP($S12,'data for u-p-charts'!$A$2:$F$5000,X$5,FALSE),2) -> 41.94 | Y12: =ROUND(VLOOKUP($S12,'data for u-p-charts'!$A$2:$F$5000,Y$5,FALSE),2) -> 43.5 | Z12: =CONCATENATE(AA$7,$R12,'ECOLI Data and Charts'!$B$1) -> ECBCOM202401Scotland | AA12: =ROUND(VLOOKUP($Z12,'data for u-p-charts'!$A$2:$F$5000,AA$5,FALSE),2) -> 36.54 | AB12: =ROUND(VLOOKUP($Z12,'data for u-p-charts'!$A$2:$F$5000,AB$5,FALSE),2) -> 36.49 | AC12: =ROUND(VLOOKUP($Z12,'data for u-p-charts'!$A$2:$F$5000,AC$5,FALSE),2) -> 39.74 | AD12: =ROUND(VLOOKUP($Z12,'data for u-p-charts'!$A$2:$F$5000,AD$5,FALSE),2) -> 41.37
A13: 201704 | B13: 2017-12-01 | C13: =CONCATENATE(A13,'ECOLI Data and Charts'!B$1) -> 201704Scotland | D13: =VLOOKUP(CONCATENATE(D$5,$C13),'trend data'!$A$2:$O$11161,D$6,FALSE) -> 531 | E13: =ROUND(VLOOKUP(CONCATENATE(E$5,$C13),'trend data'!$A$2:$O$11161,E$6,FALSE),3) -> 33.715 | F13: =ROUND(VLOOKUP(CONCATENATE(F$5,$C13),'trend data'!$A$2:$O$11161,F$6,FALSE),3) -> 30.908 | G13: =ROUND(VLOOKUP(CONCATENATE(G$5,$C13),'trend data'!$A$2:$O$11161,G$6,FALSE),3) -> 36.709 | H13: =IFERROR(VLOOKUP(CONCATENATE(H$5,$C13),'trend data'!$A$2:$O$11161,H$6,FALSE),"-") -> 656 | I13: =IFERROR(ROUND(VLOOKUP(CONCATENATE(I$5,$C13),'trend data'!$A$2:$O$11161,I$6,FALSE),3),"-") -> 48.302 | J13: =IFERROR(ROUND(VLOOKUP(CONCATENATE(J$5,$C13),'trend data'!$A$2:$O$11161,J$6,FALSE),3),"-") -> 44.676 | K13: =IFERROR(ROUND(VLOOKUP(CONCATENATE(K$5,$C13),'trend data'!$A$2:$O$11161,K$6,FALSE),3),"-") -> 52.144 | L13: =VLOOKUP(CONCATENATE(L$5,$C13),'trend data'!$A$2:$O$11161,L$6,FALSE) -> 1574967 | M13: =ROUND(VLOOKUP(CONCATENATE(M$5,$C13),'trend data'!$A$2:$O$11161,M$6,FALSE),2) -> 1358121.64 | R13: 202402 | S13: =CONCATENATE(V$7,R13,'ECOLI Data and Charts'!B$1) -> ECBHCAI202402Scotland | T13: 5 | U13: 2024-06-25 | V13: =ROUND(VLOOKUP($S13,'data for u-p-charts'!$A$2:$F$5000,V$5,FALSE),2) -> 39.4 | W13: =ROUND(VLOOKUP($S13,'data for u-p-charts'!$A$2:$F$5000,W$5,FALSE),2) -> 38.81 | X13: =ROUND(VLOOKUP($S13,'data for u-p-charts'!$A$2:$F$5000,X$5,FALSE),2) -> 41.97 | Y13: =ROUND(VLOOKUP($S13,'data for u-p-charts'!$A$2:$F$5000,Y$5,FALSE),2) -> 43.55 | Z13: =CONCATENATE(AA$7,$R13,'ECOLI Data and Charts'!$B$1) -> ECBCOM202402Scotland | AA13: =ROUND(VLOOKUP($Z13,'data for u-p-charts'!$A$2:$F$5000,AA$5,FALSE),2) -> 35.53 | AB13: =ROUND(VLOOKUP($Z13,'data for u-p-charts'!$A$2:$F$5000,AB$5,FALSE),2) -> 36.49 | AC13: =ROUND(VLOOKUP($Z13,'data for u-p-charts'!$A$2:$F$5000,AC$5,FALSE),2) -> 39.74 | AD13: =ROUND(VLOOKUP($Z13,'data for u-p-charts'!$A$2:$F$5000,AD$5,FALSE),2) -> 41.37
A14: 201801 | B14: 2018-03-01 | C14: =CONCATENATE(A14,'ECOLI Data and Charts'!B$1) -> 201801Scotland | D14: =IFERROR(VLOOKUP(CONCATENATE(D$5,$C14),'trend data'!$A$2:$O$11161,D$6,FALSE),"-") -> 524 | E14: =ROUND(VLOOKUP(CONCATENATE(E$5,$C14),'trend data'!$A$2:$O$11161,E$6,FALSE),3) -> 33.055 | F14: =ROUND(VLOOKUP(CONCATENATE(F$5,$C14),'trend data'!$A$2:$O$11161,F$6,FALSE),3) -> 30.285 | G14: =ROUND(VLOOKUP(CONCATENATE(G$5,$C14),'trend data'!$A$2:$O$11161,G$6,FALSE),3) -> 36.01 | H14: =IFERROR(VLOOKUP(CONCATENATE(H$5,$C14),'trend data'!$A$2:$O$11161,H$6,FALSE),"-") -> 578 | I14: =IFERROR(ROUND(VLOOKUP(CONCATENATE(I$5,$C14),'trend data'!$A$2:$O$11161,I$6,FALSE),3),"-") -> 43.473 | J14: =IFERROR(ROUND(VLOOKUP(CONCATENATE(J$5,$C14),'trend data'!$A$2:$O$11161,J$6,FALSE),3),"-") -> 40.001 | K14: =IFERROR(ROUND(VLOOKUP(CONCATENATE(K$5,$C14),'trend data'!$A$2:$O$11161,K$6,FALSE),3),"-") -> 47.166 | L14: =VLOOKUP(CONCATENATE(L$5,$C14),'trend data'!$A$2:$O$11161,L$6,FALSE) -> 1585233 | M14: =ROUND(VLOOKUP(CONCATENATE(M$5,$C14),'trend data'!$A$2:$O$11161,M$6,FALSE),2) -> 1329558.9 | R14: 202403 | S14: =CONCATENATE(V$7,R14,'ECOLI Data and Charts'!B$1) -> ECBHCAI202403Scotland | T14: 6 | U14: 2024-09-25 | V14: =ROUND(VLOOKUP($S14,'data for u-p-charts'!$A$2:$F$5000,V$5,FALSE),2) -> 39.81 | W14: =ROUND(VLOOKUP($S14,'data for u-p-charts'!$A$2:$F$5000,W$5,FALSE),2) -> 38.81 | X14: =ROUND(VLOOKUP($S14,'data for u-p-charts'!$A$2:$F$5000,X$5,FALSE),2) -> 41.98 | Y14: =ROUND(VLOOKUP($S14,'data for u-p-charts'!$A$2:$F$5000,Y$5,FALSE),2) -> 43.56 | Z14: =CONCATENATE(AA$7,$R14,'ECOLI Data and Charts'!$B$1) -> ECBCOM202403Scotland | AA14: =ROUND(VLOOKUP($Z14,'data for u-p-charts'!$A$2:$F$5000,AA$5,FALSE),2) -> 36.86 | AB14: =ROUND(VLOOKUP($Z14,'data for u-p-charts'!$A$2:$F$5000,AB$5,FALSE),2) -> 36.49 | AC14: =ROUND(VLOOKUP($Z14,'data for u-p-charts'!$A$2:$F$5000,AC$5,FALSE),2) -> 39.72 | AD14: =ROUND(VLOOKUP($Z14,'data for u-p-charts'!$A$2:$F$5000,AD$5,FALSE),2) -> 41.34
A15: 201802 | B15: 2018-06-01 | C15: =CONCATENATE(A15,'ECOLI Data and Charts'!B$1) -> 201802Scotland | D15: =IFERROR(VLOOKUP(CONCATENATE(D$5,$C15),'trend data'!$A$2:$O$11161,D$6,FALSE),"-") -> 580 | E15: =ROUND(VLOOKUP(CONCATENATE(E$5,$C15),'trend data'!$A$2:$O$11161,E$6,FALSE),3) -> 38.024 | F15: =ROUND(VLOOKUP(CONCATENATE(F$5,$C15),'trend data'!$A$2:$O$11161,F$6,FALSE),3) -> 34.992 | G15: =ROUND(VLOOKUP(CONCATENATE(G$5,$C15),'trend data'!$A$2:$O$11161,G$6,FALSE),3) -> 41.249 | H15: =IFERROR(VLOOKUP(CONCATENATE(H$5,$C15),'trend data'!$A$2:$O$11161,H$6,FALSE),"-") -> 598 | I15: =IFERROR(ROUND(VLOOKUP(CONCATENATE(I$5,$C15),'trend data'!$A$2:$O$11161,I$6,FALSE),3),"-") -> 44.483 | J15: =IFERROR(ROUND(VLOOKUP(CONCATENATE(J$5,$C15),'trend data'!$A$2:$O$11161,J$6,FALSE),3),"-") -> 40.989 | K15: =IFERROR(ROUND(VLOOKUP(CONCATENATE(K$5,$C15),'trend data'!$A$2:$O$11161,K$6,FALSE),3),"-") -> 48.196 | L15: =VLOOKUP(CONCATENATE(L$5,$C15),'trend data'!$A$2:$O$11161,L$6,FALSE) -> 1525345 | M15: =ROUND(VLOOKUP(CONCATENATE(M$5,$C15),'trend data'!$A$2:$O$11161,M$6,FALSE),2) -> 1344331.78 | R15: 202404 | S15: =CONCATENATE(V$7,R15,'ECOLI Data and Charts'!B$1) -> ECBHCAI202404Scotland | T15: 7 | U15: 2024-12-26 | V15: =ROUND(VLOOKUP($S15,'data for u-p-charts'!$A$2:$F$5000,V$5,FALSE),2) -> 36.92 | W15: =ROUND(VLOOKUP($S15,'data for u-p-charts'!$A$2:$F$5000,W$5,FALSE),2) -> 38.81 | X15: =ROUND(VLOOKUP($S15,'data for u-p-charts'!$A$2:$F$5000,X$5,FALSE),2) -> 41.97 | Y15: =ROUND(VLOOKUP($S15,'data for u-p-charts'!$A$2:$F$5000,Y$5,FALSE),2) -> 43.55 | Z15: =CONCATENATE(AA$7,$R15,'ECOLI Data and Charts'!$B$1) -> ECBCOM202404Scotland | AA15: =ROUND(VLOOKUP($Z15,'data for u-p-charts'!$A$2:$F$5000,AA$5,FALSE),2) -> 35.43 | AB15: =ROUND(VLOOKUP($Z15,'data for u-p-charts'!$A$2:$F$5000,AB$5,FALSE),2) -> 36.49 | AC15: =ROUND(VLOOKUP($Z15,'data for u-p-charts'!$A$2:$F$5000,AC$5,FALSE),2) -> 39.72 | AD15: =ROUND(VLOOKUP($Z15,'data for u-p-charts'!$A$2:$F$5000,AD$5,FALSE),2) -> 41.34
A16: 201803 | B16: 2018-09-01 | C16: =CONCATENATE(A16,'ECOLI Data and Charts'!B$1) -> 201803Scotland | D16: =IFERROR(VLOOKUP(CONCATENATE(D$5,$C16),'trend data'!$A$2:$O$11161,D$6,FALSE),"-") -> 606 | E16: =ROUND(VLOOKUP(CONCATENATE(E$5,$C16),'trend data'!$A$2:$O$11161,E$6,FALSE),3) -> 40.089 | F16: =ROUND(VLOOKUP(CONCATENATE(F$5,$C16),'trend data'!$A$2:$O$11161,F$6,FALSE),3) -> 36.961 | G16: =ROUND(VLOOKUP(CONCATENATE(G$5,$C16),'trend data'!$A$2:$O$11161,G$6,FALSE),3) -> 43.412 | H16: =IFERROR(VLOOKUP(CONCATENATE(H$5,$C16),'trend data'!$A$2:$O$11161,H$6,FALSE),"-") -> 667 | I16: =IFERROR(ROUND(VLOOKUP(CONCATENATE(I$5,$C16),'trend data'!$A$2:$O$11161,I$6,FALSE),3),"-") -> 49.076 | J16: =IFERROR(ROUND(VLOOKUP(CONCATENATE(J$5,$C16),'trend data'!$A$2:$O$11161,J$6,FALSE),3),"-") -> 45.422 | K16: =IFERROR(ROUND(VLOOKUP(CONCATENATE(K$5,$C16),'trend data'!$A$2:$O$11161,K$6,FALSE),3),"-") -> 52.947 | L16: =VLOOKUP(CONCATENATE(L$5,$C16),'trend data'!$A$2:$O$11161,L$6,FALSE) -> 1511620 | M16: =ROUND(VLOOKUP(CONCATENATE(M$5,$C16),'trend data'!$A$2:$O$11161,M$6,FALSE),2) -> 1359104.66 | R16: 202501 | S16: =CONCATENATE(V$7,R16,'ECOLI Data and Charts'!B$1) -> ECBHCAI202501Scotland | T16: 8 | U16: 2025-03-28 | V16: =ROUND(VLOOKUP($S16,'data for u-p-charts'!$A$2:$F$5000,V$5,FALSE),2) -> 38.91 | W16: =ROUND(VLOOKUP($S16,'data for u-p-charts'!$A$2:$F$5000,W$5,FALSE),2) -> 38.81 | X16: =ROUND(VLOOKUP($S16,'data for u-p-charts'!$A$2:$F$5000,X$5,FALSE),2) -> 41.98 | Y16: =ROUND(VLOOKUP($S16,'data for u-p-charts'!$A$2:$F$5000,Y$5,FALSE),2) -> 43.56 | Z16: =CONCATENATE(AA$7,$R16,'ECOLI Data and Charts'!$B$1) -> ECBCOM202501Scotland | AA16: =ROUND(VLOOKUP($Z16,'data for u-p-charts'!$A$2:$F$5000,AA$5,FALSE),2) -> 32.61 | AB16: =ROUND(VLOOKUP($Z16,'data for u-p-charts'!$A$2:$F$5000,AB$5,FALSE),2) -> 36.49 | AC16: =ROUND(VLOOKUP($Z16,'data for u-p-charts'!$A$2:$F$5000,AC$5,FALSE),2) -> 39.75 | AD16: =ROUND(VLOOKUP($Z16,'data for u-p-charts'!$A$2:$F$5000,AD$5,FALSE),2) -> 41.39
A17: 201804 | B17: 2018-12-01 | C17: =CONCATENATE(A17,'ECOLI Data and Charts'!B$1) -> 201804Scotland | D17: =IFERROR(VLOOKUP(CONCATENATE(D$5,$C17),'trend data'!$A$2:$O$11161,D$6,FALSE),"-") -> 582 | E17: =ROUND(VLOOKUP(CONCATENATE(E$5,$C17),'trend data'!$A$2:$O$11161,E$6,FALSE),3) -> 38.234 | F17: =ROUND(VLOOKUP(CONCATENATE(F$5,$C17),'trend data'!$A$2:$O$11161,F$6,FALSE),3) -> 35.19 | G17: =ROUND(VLOOKUP(CONCATENATE(G$5,$C17),'trend data'!$A$2:$O$11161,G$6,FALSE),3) -> 41.47 | H17: =IFERROR(VLOOKUP(CONCATENATE(H$5,$C17),'trend data'!$A$2:$O$11161,H$6,FALSE),"-") -> 603 | I17: =IFERROR(ROUND(VLOOKUP(CONCATENATE(I$5,$C17),'trend data'!$A$2:$O$11161,I$6,FALSE),3),"-") -> 44.367 | J17: =IFERROR(ROUND(VLOOKUP(CONCATENATE(J$5,$C17),'trend data'!$A$2:$O$11161,J$6,FALSE),3),"-") -> 40.896 | K17: =IFERROR(ROUND(VLOOKUP(CONCATENATE(K$5,$C17),'trend data'!$A$2:$O$11161,K$6,FALSE),3),"-") -> 48.054 | L17: =VLOOKUP(CONCATENATE(L$5,$C17),'trend data'!$A$2:$O$11161,L$6,FALSE) -> 1522217 | M17: =ROUND(VLOOKUP(CONCATENATE(M$5,$C17),'trend data'!$A$2:$O$11161,M$6,FALSE),2) -> 1359104.66 | R17: 202502 | S17: =CONCATENATE(V$7,R17,'ECOLI Data and Charts'!B$1) -> ECBHCAI202502Scotland | T17: 9 | U17: 2025-06-28 | V17: =ROUND(VLOOKUP($S17,'data for u-p-charts'!$A$2:$F$5000,V$5,FALSE),2) -> 44.05 | W17: =ROUND(VLOOKUP($S17,'data for u-p-charts'!$A$2:$F$5000,W$5,FALSE),2) -> 38.81 | X17: =ROUND(VLOOKUP($S17,'data for u-p-charts'!$A$2:$F$5000,X$5,FALSE),2) -> 42 | Y17: =ROUND(VLOOKUP($S17,'data for u-p-charts'!$A$2:$F$5000,Y$5,FALSE),2) -> 43.6 | Z17: =CONCATENATE(AA$7,$R17,'ECOLI Data and Charts'!$B$1) -> ECBCOM202502Scotland | AA17: =ROUND(VLOOKUP($Z17,'data for u-p-charts'!$A$2:$F$5000,AA$5,FALSE),2) -> 40.86 | AB17: =ROUND(VLOOKUP($Z17,'data for u-p-charts'!$A$2:$F$5000,AB$5,FALSE),2) -> 36.49 | AC17: =ROUND(VLOOKUP($Z17,'data for u-p-charts'!$A$2:$F$5000,AC$5,FALSE),2) -> 39.74 | AD17: =ROUND(VLOOKUP($Z17,'data for u-p-charts'!$A$2:$F$5000,AD$5,FALSE),2) -> 41.36
A18: 201901 | B18: 2019-03-01 | C18: =CONCATENATE(A18,'ECOLI Data and Charts'!B$1) -> 201901Scotland | D18: =IFERROR(VLOOKUP(CONCATENATE(D$5,$C18),'trend data'!$A$2:$O$11161,D$6,FALSE),"-") -> 573 | E18: =ROUND(VLOOKUP(CONCATENATE(E$5,$C18),'trend data'!$A$2:$O$11161,E$6,FALSE),3) -> 37.244 | F18: =ROUND(VLOOKUP(CONCATENATE(F$5,$C18),'trend data'!$A$2:$O$11161,F$6,FALSE),3) -> 34.256 | G18: =ROUND(VLOOKUP(CONCATENATE(G$5,$C18),'trend data'!$A$2:$O$11161,G$6,FALSE),3) -> 40.422 | H18: =IFERROR(VLOOKUP(CONCATENATE(H$5,$C18),'trend data'!$A$2:$O$11161,H$6,FALSE),"-") -> 598 | I18: =IFERROR(ROUND(VLOOKUP(CONCATENATE(I$5,$C18),'trend data'!$A$2:$O$11161,I$6,FALSE),3),"-") -> 44.819 | J18: =IFERROR(ROUND(VLOOKUP(CONCATENATE(J$5,$C18),'trend data'!$A$2:$O$11161,J$6,FALSE),3),"-") -> 41.298 | K18: =IFERROR(ROUND(VLOOKUP(CONCATENATE(K$5,$C18),'trend data'!$A$2:$O$11161,K$6,FALSE),3),"-") -> 48.559 | L18: =VLOOKUP(CONCATENATE(L$5,$C18),'trend data'!$A$2:$O$11161,L$6,FALSE) -> 1538510 | M18: =ROUND(VLOOKUP(CONCATENATE(M$5,$C18),'trend data'!$A$2:$O$11161,M$6,FALSE),2) -> 1334268.49 | R18: 202503 | S18: =CONCATENATE(V$7,R18,'ECOLI Data and Charts'!B$1) -> ECBHCAI202503Scotland | T18: 10 | U18: 2025-09-28 | V18: =ROUND(VLOOKUP($S18,'data for u-p-charts'!$A$2:$F$5000,V$5,FALSE),2) -> 43.2 | W18: =ROUND(VLOOKUP($S18,'data for u-p-charts'!$A$2:$F$5000,W$5,FALSE),2) -> 38.81 | X18: =ROUND(VLOOKUP($S18,'data for u-p-charts'!$A$2:$F$5000,X$5,FALSE),2) -> 42.01 | Y18: =ROUND(VLOOKUP($S18,'data for u-p-charts'!$A$2:$F$5000,Y$5,FALSE),2) -> 43.6 | Z18: =CONCATENATE(AA$7,$R18,'ECOLI Data and Charts'!$B$1) -> ECBCOM202503Scotland | AA18: =ROUND(VLOOKUP($Z18,'data for u-p-charts'!$A$2:$F$5000,AA$5,FALSE),2) -> 41.13 | AB18: =ROUND(VLOOKUP($Z18,'data for u-p-charts'!$A$2:$F$5000,AB$5,FALSE),2) -> 36.49 | AC18: =ROUND(VLOOKUP($Z18,'data for u-p-charts'!$A$2:$F$5000,AC$5,FALSE),2) -> 39.72 | AD18: =ROUND(VLOOKUP($Z18,'data for u-p-charts'!$A$2:$F$5000,AD$5,FALSE),2) -> 41.33
A19: 201902 | B19: 2019-06-01 | C19: =CONCATENATE(A19,'ECOLI Data and Charts'!B$1) -> 201902Scotland | D19: =IFERROR(VLOOKUP(CONCATENATE(D$5,$C19),'trend data'!$A$2:$O$11161,D$6,FALSE),"-") -> 584 | E19: =ROUND(VLOOKUP(CONCATENATE(E$5,$C19),'trend data'!$A$2:$O$11161,E$6,FALSE),3) -> 38.771 | F19: =ROUND(VLOOKUP(CONCATENATE(F$5,$C19),'trend data'!$A$2:$O$11161,F$6,FALSE),3) -> 35.69 | G19: =ROUND(VLOOKUP(CONCATENATE(G$5,$C19),'trend data'!$A$2:$O$11161,G$6,FALSE),3) -> 42.047 | H19: =IFERROR(VLOOKUP(CONCATENATE(H$5,$C19),'trend data'!$A$2:$O$11161,H$6,FALSE),"-") -> 604 | I19: =IFERROR(ROUND(VLOOKUP(CONCATENATE(I$5,$C19),'trend data'!$A$2:$O$11161,I$6,FALSE),3),"-") -> 44.771 | J19: =IFERROR(ROUND(VLOOKUP(CONCATENATE(J$5,$C19),'trend data'!$A$2:$O$11161,J$6,FALSE),3),"-") -> 41.271 | K19: =IFERROR(ROUND(VLOOKUP(CONCATENATE(K$5,$C19),'trend data'!$A$2:$O$11161,K$6,FALSE),3),"-") -> 48.488 | L19: =VLOOKUP(CONCATENATE(L$5,$C19),'trend data'!$A$2:$O$11161,L$6,FALSE) -> 1506284 | M19: =ROUND(VLOOKUP(CONCATENATE(M$5,$C19),'trend data'!$A$2:$O$11161,M$6,FALSE),2) -> 1349093.7 | R19: 202504 | S19: =CONCATENATE(V$7,R19,'ECOLI Data and Charts'!B$1) -> ECBHCAI202504Scotland | T19: 11 | U19: =U20-92 -> 2025-12-29 | V19: =ROUND(VLOOKUP($S19,'data for u-p-charts'!$A$2:$F$5000,V$5,FALSE),2) -> 40.73 | W19: =ROUND(VLOOKUP($S19,'data for u-p-charts'!$A$2:$F$5000,W$5,FALSE),2) -> 38.81 | X19: =ROUND(VLOOKUP($S19,'data for u-p-charts'!$A$2:$F$5000,X$5,FALSE),2) -> 41.99 | Y19: =ROUND(VLOOKUP($S19,'data for u-p-charts'!$A$2:$F$5000,Y$5,FALSE),2) -> 43.59 | Z19: =CONCATENATE(AA$7,$R19,'ECOLI Data and Charts'!$B$1) -> ECBCOM202504Scotland | AA19: =ROUND(VLOOKUP($Z19,'data for u-p-charts'!$A$2:$F$5000,AA$5,FALSE),2) -> 31.97 | AB19: =ROUND(VLOOKUP($Z19,'data for u-p-charts'!$A$2:$F$5000,AB$5,FALSE),2) -> 36.49 | AC19: =ROUND(VLOOKUP($Z19,'data for u-p-charts'!$A$2:$F$5000,AC$5,FALSE),2) -> 39.72 | AD19: =ROUND(VLOOKUP($Z19,'data for u-p-charts'!$A$2:$F$5000,AD$5,FALSE),2) -> 41.33
A20: 201903 | B20: 2019-09-01 | C20: =CONCATENATE(A20,'ECOLI Data and Charts'!B$1) -> 201903Scotland | D20: =IFERROR(VLOOKUP(CONCATENATE(D$5,$C20),'trend data'!$A$2:$O$11161,D$6,FALSE),"-") -> 608 | E20: =ROUND(VLOOKUP(CONCATENATE(E$5,$C20),'trend data'!$A$2:$O$11161,E$6,FALSE),3) -> 40.346 | F20: =ROUND(VLOOKUP(CONCATENATE(F$5,$C20),'trend data'!$A$2:$O$11161,F$6,FALSE),3) -> 37.202 | G20: =ROUND(VLOOKUP(CONCATENATE(G$5,$C20),'trend data'!$A$2:$O$11161,G$6,FALSE),3) -> 43.684 | H20: =IFERROR(VLOOKUP(CONCATENATE(H$5,$C20),'trend data'!$A$2:$O$11161,H$6,FALSE),"-") -> 606 | I20: =IFERROR(ROUND(VLOOKUP(CONCATENATE(I$5,$C20),'trend data'!$A$2:$O$11161,I$6,FALSE),3),"-") -> 44.431 | J20: =IFERROR(ROUND(VLOOKUP(CONCATENATE(J$5,$C20),'trend data'!$A$2:$O$11161,J$6,FALSE),3),"-") -> 40.963 | K20: =IFERROR(ROUND(VLOOKUP(CONCATENATE(K$5,$C20),'trend data'!$A$2:$O$11161,K$6,FALSE),3),"-") -> 48.114 | L20: =VLOOKUP(CONCATENATE(L$5,$C20),'trend data'!$A$2:$O$11161,L$6,FALSE) -> 1506970 | M20: =ROUND(VLOOKUP(CONCATENATE(M$5,$C20),'trend data'!$A$2:$O$11161,M$6,FALSE),2) -> 1363918.9 | R20: 202601 | S20: =CONCATENATE(V$7,R20,'ECOLI Data and Charts'!B$1) -> ECBHCAI202601Scotland | T20: 12 | U20: =U5 -> 2026-03-31 | V20: =ROUND(VLOOKUP($S20,'data for u-p-charts'!$A$2:$F$5000,V$5,FALSE),2) -> 39.54 | W20: =ROUND(VLOOKUP($S20,'data for u-p-charts'!$A$2:$F$5000,W$5,FALSE),2) -> 38.81 | X20: =ROUND(VLOOKUP($S20,'data for u-p-charts'!$A$2:$F$5000,X$5,FALSE),2) -> 41.99 | Y20: =ROUND(VLOOKUP($S20,'data for u-p-charts'!$A$2:$F$5000,Y$5,FALSE),2) -> 43.58 | Z20: =CONCATENATE(AA$7,$R20,'ECOLI Data and Charts'!$B$1) -> ECBCOM202601Scotland | AA20: =ROUND(VLOOKUP($Z20,'data for u-p-charts'!$A$2:$F$5000,AA$5,FALSE),2) -> 33.78 | AB20: =ROUND(VLOOKUP($Z20,'data for u-p-charts'!$A$2:$F$5000,AB$5,FALSE),2) -> 36.49 | AC20: =ROUND(VLOOKUP($Z20,'data for u-p-charts'!$A$2:$F$5000,AC$5,FALSE),2) -> 39.75 | AD20: =ROUND(VLOOKUP($Z20,'data for u-p-charts'!$A$2:$F$5000,AD$5,FALSE),2) -> 41.39
A21: 201904 | B21: 2019-12-01 | C21: =CONCATENATE(A21,'ECOLI Data and Charts'!B$1) -> 201904Scotland | D21: =IFERROR(VLOOKUP(CONCATENATE(D$5,$C21),'trend data'!$A$2:$O$11161,D$6,FALSE),"-") -> 626 | E21: =ROUND(VLOOKUP(CONCATENATE(E$5,$C21),'trend data'!$A$2:$O$11161,E$6,FALSE),3) -> 40.876 | F21: =ROUND(VLOOKUP(CONCATENATE(F$5,$C21),'trend data'!$A$2:$O$11161,F$6,FALSE),3) -> 37.736 | G21: =ROUND(VLOOKUP(CONCATENATE(G$5,$C21),'trend data'!$A$2:$O$11161,G$6,FALSE),3) -> 44.207 | H21: =IFERROR(VLOOKUP(CONCATENATE(H$5,$C21),'trend data'!$A$2:$O$11161,H$6,FALSE),"-") -> 568 | I21: =IFERROR(ROUND(VLOOKUP(CONCATENATE(I$5,$C21),'trend data'!$A$2:$O$11161,I$6,FALSE),3),"-") -> 41.645 | J21: =IFERROR(ROUND(VLOOKUP(CONCATENATE(J$5,$C21),'trend data'!$A$2:$O$11161,J$6,FALSE),3),"-") -> 38.29 | K21: =IFERROR(ROUND(VLOOKUP(CONCATENATE(K$5,$C21),'trend data'!$A$2:$O$11161,K$6,FALSE),3),"-") -> 45.215 | L21: =VLOOKUP(CONCATENATE(L$5,$C21),'trend data'!$A$2:$O$11161,L$6,FALSE) -> 1531462 | M21: =ROUND(VLOOKUP(CONCATENATE(M$5,$C21),'trend data'!$A$2:$O$11161,M$6,FALSE),2) -> 1363918.9
A22: 202001 | B22: 2020-03-01 | C22: =CONCATENATE(A22,'ECOLI Data and Charts'!B$1) -> 202001Scotland | D22: =IFERROR(VLOOKUP(CONCATENATE(D$5,$C22),'trend data'!$A$2:$O$11161,D$6,FALSE),"-") -> 538 | E22: =ROUND(VLOOKUP(CONCATENATE(E$5,$C22),'trend data'!$A$2:$O$11161,E$6,FALSE),3) -> 36.451 | F22: =ROUND(VLOOKUP(CONCATENATE(F$5,$C22),'trend data'!$A$2:$O$11161,F$6,FALSE),3) -> 33.436 | G22: =ROUND(VLOOKUP(CONCATENATE(G$5,$C22),'trend data'!$A$2:$O$11161,G$6,FALSE),3) -> 39.666 | H22: =IFERROR(VLOOKUP(CONCATENATE(H$5,$C22),'trend data'!$A$2:$O$11161,H$6,FALSE),"-") -> 515 | I22: =IFERROR(ROUND(VLOOKUP(CONCATENATE(I$5,$C22),'trend data'!$A$2:$O$11161,I$6,FALSE),3),"-") -> 38.295 | J22: =IFERROR(ROUND(VLOOKUP(CONCATENATE(J$5,$C22),'trend data'!$A$2:$O$11161,J$6,FALSE),3),"-") -> 35.058 | K22: =IFERROR(ROUND(VLOOKUP(CONCATENATE(K$5,$C22),'trend data'!$A$2:$O$11161,K$6,FALSE),3),"-") -> 41.75 | L22: =VLOOKUP(CONCATENATE(L$5,$C22),'trend data'!$A$2:$O$11161,L$6,FALSE) -> 1475950 | M22: =ROUND(VLOOKUP(CONCATENATE(M$5,$C22),'trend data'!$A$2:$O$11161,M$6,FALSE),2) -> 1344835.79
A23: 202002 | B23: 2020-06-01 | C23: =CONCATENATE(A23,'ECOLI Data and Charts'!B$1) -> 202002Scotland | D23: =IFERROR(VLOOKUP(CONCATENATE(D$5,$C23),'trend data'!$A$2:$O$11161,D$6,FALSE),"-") -> 429 | E23: =ROUND(VLOOKUP(CONCATENATE(E$5,$C23),'trend data'!$A$2:$O$11161,E$6,FALSE),3) -> 39.687 | F23: =ROUND(VLOOKUP(CONCATENATE(F$5,$C23),'trend data'!$A$2:$O$11161,F$6,FALSE),3) -> 36.02 | G23: =ROUND(VLOOKUP(CONCATENATE(G$5,$C23),'trend data'!$A$2:$O$11161,G$6,FALSE),3) -> 43.627 | H23: =IFERROR(VLOOKUP(CONCATENATE(H$5,$C23),'trend data'!$A$2:$O$11161,H$6,FALSE),"-") -> 488 | I23: =IFERROR(ROUND(VLOOKUP(CONCATENATE(I$5,$C23),'trend data'!$A$2:$O$11161,I$6,FALSE),3),"-") -> 36.287 | J23: =IFERROR(ROUND(VLOOKUP(CONCATENATE(J$5,$C23),'trend data'!$A$2:$O$11161,J$6,FALSE),3),"-") -> 33.138 | K23: =IFERROR(ROUND(VLOOKUP(CONCATENATE(K$5,$C23),'trend data'!$A$2:$O$11161,K$6,FALSE),3),"-") -> 39.654 | L23: =VLOOKUP(CONCATENATE(L$5,$C23),'trend data'!$A$2:$O$11161,L$6,FALSE) -> 1080949 | M23: =ROUND(VLOOKUP(CONCATENATE(M$5,$C23),'trend data'!$A$2:$O$11161,M$6,FALSE),2) -> 1344835.79
A24: 202003 | B24: 2020-09-01 | C24: =CONCATENATE(A24,'ECOLI Data and Charts'!B$1) -> 202003Scotland | D24: =IFERROR(VLOOKUP(CONCATENATE(D$5,$C24),'trend data'!$A$2:$O$11161,D$6,FALSE),"-") -> 547 | E24: =ROUND(VLOOKUP(CONCATENATE(E$5,$C24),'trend data'!$A$2:$O$11161,E$6,FALSE),4) -> 41.9484 | F24: =ROUND(VLOOKUP(CONCATENATE(F$5,$C24),'trend data'!$A$2:$O$11161,F$6,FALSE),4) -> 38.5061 | G24: =ROUND(VLOOKUP(CONCATENATE(G$5,$C24),'trend data'!$A$2:$O$11161,G$6,FALSE),4) -> 45.6158 | H24: =IFERROR(VLOOKUP(CONCATENATE(H$5,$C24),'trend data'!$A$2:$O$11161,H$6,FALSE),"-") -> 614 | I24: =IFERROR(ROUND(VLOOKUP(CONCATENATE(I$5,$C24),'trend data'!$A$2:$O$11161,I$6,FALSE),4),"-") -> 45.1599 | J24: =IFERROR(ROUND(VLOOKUP(CONCATENATE(J$5,$C24),'trend data'!$A$2:$O$11161,J$6,FALSE),4),"-") -> 41.6579 | K24: =IFERROR(ROUND(VLOOKUP(CONCATENATE(K$5,$C24),'trend data'!$A$2:$O$11161,K$6,FALSE),4),"-") -> 48.8776 | L24: =VLOOKUP(CONCATENATE(L$5,$C24),'trend data'!$A$2:$O$11161,L$6,FALSE) -> 1303983 | M24: =ROUND(VLOOKUP(CONCATENATE(M$5,$C24),'trend data'!$A$2:$O$11161,M$6,FALSE),2) -> 1359614.21
A25: 202004 | B25: 2020-12-31 | C25: =CONCATENATE(A25,'ECOLI Data and Charts'!B$1) -> 202004Scotland | D25: =IFERROR(VLOOKUP(CONCATENATE(D$5,$C25),'trend data'!$A$2:$O$11161,D$6,FALSE),"-") -> 555 | E25: =ROUND(VLOOKUP(CONCATENATE(E$5,$C25),'trend data'!$A$2:$O$11161,E$6,FALSE),4) -> 40.8752 | F25: =ROUND(VLOOKUP(CONCATENATE(F$5,$C25),'trend data'!$A$2:$O$11161,F$6,FALSE),4) -> 37.5447 | G25: =ROUND(VLOOKUP(CONCATENATE(G$5,$C25),'trend data'!$A$2:$O$11161,G$6,FALSE),4) -> 44.4218 | H25: =IFERROR(VLOOKUP(CONCATENATE(H$5,$C25),'trend data'!$A$2:$O$11161,H$6,FALSE),"-") -> 521 | I25: =IFERROR(ROUND(VLOOKUP(CONCATENATE(I$5,$C25),'trend data'!$A$2:$O$11161,I$6,FALSE),4),"-") -> 38.3197 | J25: =IFERROR(ROUND(VLOOKUP(CONCATENATE(J$5,$C25),'trend data'!$A$2:$O$11161,J$6,FALSE),4),"-") -> 35.0994 | K25: =IFERROR(ROUND(VLOOKUP(CONCATENATE(K$5,$C25),'trend data'!$A$2:$O$11161,K$6,FALSE),4),"-") -> 41.756 | L25: =VLOOKUP(CONCATENATE(L$5,$C25),'trend data'!$A$2:$O$11161,L$6,FALSE) -> 1357793 | M25: =ROUND(VLOOKUP(CONCATENATE(M$5,$C25),'trend data'!$A$2:$O$11161,M$6,FALSE),2) -> 1359614.21
A26: 202101 | B26: 2021-03-31 | C26: =CONCATENATE(A26,'ECOLI Data and Charts'!B$1) -> 202101Scotland | D26: =IFERROR(VLOOKUP(CONCATENATE(D$5,$C26),'trend data'!$A$2:$O$11161,D$6,FALSE),"-") -> 468 | E26: =ROUND(VLOOKUP(CONCATENATE(E$5,$C26),'trend data'!$A$2:$O$11161,E$6,FALSE),4) -> 34.6193 | F26: =ROUND(VLOOKUP(CONCATENATE(F$5,$C26),'trend data'!$A$2:$O$11161,F$6,FALSE),4) -> 31.5533 | G26: =ROUND(VLOOKUP(CONCATENATE(G$5,$C26),'trend data'!$A$2:$O$11161,G$6,FALSE),4) -> 37.9027 | H26: =IFERROR(VLOOKUP(CONCATENATE(H$5,$C26),'trend data'!$A$2:$O$11161,H$6,FALSE),"-") -> 493 | I26: =IFERROR(ROUND(VLOOKUP(CONCATENATE(I$5,$C26),'trend data'!$A$2:$O$11161,I$6,FALSE),4),"-") -> 36.9375 | J26: =IFERROR(ROUND(VLOOKUP(CONCATENATE(J$5,$C26),'trend data'!$A$2:$O$11161,J$6,FALSE),4),"-") -> 33.7483 | K26: =IFERROR(ROUND(VLOOKUP(CONCATENATE(K$5,$C26),'trend data'!$A$2:$O$11161,K$6,FALSE),4),"-") -> 40.3468 | L26: =VLOOKUP(CONCATENATE(L$5,$C26),'trend data'!$A$2:$O$11161,L$6,FALSE) -> 1351847 | M26: =ROUND(VLOOKUP(CONCATENATE(M$5,$C26),'trend data'!$A$2:$O$11161,M$6,FALSE),2) -> 1334687.67
A27: 202102 | B27: 2021-06-30 | C27: =CONCATENATE(A27,'ECOLI Data and Charts'!B$1) -> 202102Scotland | D27: =IFERROR(VLOOKUP(CONCATENATE(D$5,$C27),'trend data'!$A$2:$O$11161,D$6,FALSE),"-") -> 532 | E27: =ROUND(VLOOKUP(CONCATENATE(E$5,$C27),'trend data'!$A$2:$O$11161,E$6,FALSE),4) -> 38.159 | F27: =ROUND(VLOOKUP(CONCATENATE(F$5,$C27),'trend data'!$A$2:$O$11161,F$6,FALSE),4) -> 34.9847 | G27: =ROUND(VLOOKUP(CONCATENATE(G$5,$C27),'trend data'!$A$2:$O$11161,G$6,FALSE),4) -> 41.5438 | H27: =IFERROR(VLOOKUP(CONCATENATE(H$5,$C27),'trend data'!$A$2:$O$11161,H$6,FALSE),"-") -> 570 | I27: =IFERROR(ROUND(VLOOKUP(CONCATENATE(I$5,$C27),'trend data'!$A$2:$O$11161,I$6,FALSE),4),"-") -> 42.2373 | J27: =IFERROR(ROUND(VLOOKUP(CONCATENATE(J$5,$C27),'trend data'!$A$2:$O$11161,J$6,FALSE),4),"-") -> 38.8405 | K27: =IFERROR(ROUND(VLOOKUP(CONCATENATE(K$5,$C27),'trend data'!$A$2:$O$11161,K$6,FALSE),4),"-") -> 45.8516 | L27: =VLOOKUP(CONCATENATE(L$5,$C27),'trend data'!$A$2:$O$11161,L$6,FALSE) -> 1394168 | M27: =ROUND(VLOOKUP(CONCATENATE(M$5,$C27),'trend data'!$A$2:$O$11161,M$6,FALSE),2) -> 1349517.53
A28: 202103 | B28: 2021-09-01 | C28: =CONCATENATE(A28,'ECOLI Data and Charts'!B$1) -> 202103Scotland | D28: =IFERROR(VLOOKUP(CONCATENATE(D$5,$C28),'trend data'!$A$2:$O$11161,D$6,FALSE),"-") -> 604 | E28: =ROUND(VLOOKUP(CONCATENATE(E$5,$C28),'trend data'!$A$2:$O$11161,E$6,FALSE),4) -> 41.4739 | F28: =ROUND(VLOOKUP(CONCATENATE(F$5,$C28),'trend data'!$A$2:$O$11161,F$6,FALSE),4) -> 38.2317 | G28: =ROUND(VLOOKUP(CONCATENATE(G$5,$C28),'trend data'!$A$2:$O$11161,G$6,FALSE),4) -> 44.9174 | H28: =IFERROR(VLOOKUP(CONCATENATE(H$5,$C28),'trend data'!$A$2:$O$11161,H$6,FALSE),"-") -> 566 | I28: =IFERROR(ROUND(VLOOKUP(CONCATENATE(I$5,$C28),'trend data'!$A$2:$O$11161,I$6,FALSE),4),"-") -> 41.485 | J28: =IFERROR(ROUND(VLOOKUP(CONCATENATE(J$5,$C28),'trend data'!$A$2:$O$11161,J$6,FALSE),4),"-") -> 38.1372 | K28: =IFERROR(ROUND(VLOOKUP(CONCATENATE(K$5,$C28),'trend data'!$A$2:$O$11161,K$6,FALSE),4),"-") -> 45.048 | L28: =VLOOKUP(CONCATENATE(L$5,$C28),'trend data'!$A$2:$O$11161,L$6,FALSE) -> 1456339 | M28: =ROUND(VLOOKUP(CONCATENATE(M$5,$C28),'trend data'!$A$2:$O$11161,M$6,FALSE),2) -> 1364347.4
A29: 202104 | B29: 2021-12-01 | C29: =CONCATENATE(A29,'ECOLI Data and Charts'!B$1) -> 202104Scotland | D29: =IFERROR(VLOOKUP(CONCATENATE(D$5,$C29),'trend data'!$A$2:$O$11161,D$6,FALSE),"-") -> 509 | E29: =ROUND(VLOOKUP(CONCATENATE(E$5,$C29),'trend data'!$A$2:$O$11161,E$6,FALSE),4) -> 34.074 | F29: =ROUND(VLOOKUP(CONCATENATE(F$5,$C29),'trend data'!$A$2:$O$11161,F$6,FALSE),4) -> 31.1777 | G29: =ROUND(VLOOKUP(CONCATENATE(G$5,$C29),'trend data'!$A$2:$O$11161,G$6,FALSE),4) -> 37.167 | H29: =IFERROR(VLOOKUP(CONCATENATE(H$5,$C29),'trend data'!$A$2:$O$11161,H$6,FALSE),"-") -> 549 | I29: =IFERROR(ROUND(VLOOKUP(CONCATENATE(I$5,$C29),'trend data'!$A$2:$O$11161,I$6,FALSE),4),"-") -> 40.239 | J29: =IFERROR(ROUND(VLOOKUP(CONCATENATE(J$5,$C29),'trend data'!$A$2:$O$11161,J$6,FALSE),4),"-") -> 36.9429 | K29: =IFERROR(ROUND(VLOOKUP(CONCATENATE(K$5,$C29),'trend data'!$A$2:$O$11161,K$6,FALSE),4),"-") -> 43.7503 | L29: =VLOOKUP(CONCATENATE(L$5,$C29),'trend data'!$A$2:$O$11161,L$6,FALSE) -> 1493807 | M29: =ROUND(VLOOKUP(CONCATENATE(M$5,$C29),'trend data'!$A$2:$O$11161,M$6,FALSE),2) -> 1364347.4
A30: 202201 | B30: 2022-03-01 | C30: =CONCATENATE(A30,'ECOLI Data and Charts'!B$1) -> 202201Scotland | D30: =IFERROR(VLOOKUP(CONCATENATE(D$5,$C30),'trend data'!$A$2:$O$11161,D$6,FALSE),"-") -> 452 | E30: =ROUND(VLOOKUP(CONCATENATE(E$5,$C30),'trend data'!$A$2:$O$11161,E$6,FALSE),4) -> 30.5188 | F30: =ROUND(VLOOKUP(CONCATENATE(F$5,$C30),'trend data'!$A$2:$O$11161,F$6,FALSE),4) -> 27.7697 | G30: =ROUND(VLOOKUP(CONCATENATE(G$5,$C30),'trend data'!$A$2:$O$11161,G$6,FALSE),4) -> 33.4664 | H30: =IFERROR(VLOOKUP(CONCATENATE(H$5,$C30),'trend data'!$A$2:$O$11161,H$6,FALSE),"-") -> 528 | I30: =IFERROR(ROUND(VLOOKUP(CONCATENATE(I$5,$C30),'trend data'!$A$2:$O$11161,I$6,FALSE),4),"-") -> 39.3122 | J30: =IFERROR(ROUND(VLOOKUP(CONCATENATE(J$5,$C30),'trend data'!$A$2:$O$11161,J$6,FALSE),4),"-") -> 36.0299 | K30: =IFERROR(ROUND(VLOOKUP(CONCATENATE(K$5,$C30),'trend data'!$A$2:$O$11161,K$6,FALSE),4),"-") -> 42.813 | L30: =VLOOKUP(CONCATENATE(L$5,$C30),'trend data'!$A$2:$O$11161,L$6,FALSE) -> 1481054 | M30: =ROUND(VLOOKUP(CONCATENATE(M$5,$C30),'trend data'!$A$2:$O$11161,M$6,FALSE),2) -> 1343095.89
A31: 202202 | B31: 2022-06-01 | C31: =CONCATENATE(A31,'ECOLI Data and Charts'!B$1) -> 202202Scotland | D31: =IFERROR(VLOOKUP(CONCATENATE(D$5,$C31),'trend data'!$A$2:$O$11161,D$6,FALSE),"-") -> 528 | E31: =ROUND(VLOOKUP(CONCATENATE(E$5,$C31),'trend data'!$A$2:$O$11161,E$6,FALSE),4) -> 34.8209 | F31: =ROUND(VLOOKUP(CONCATENATE(F$5,$C31),'trend data'!$A$2:$O$11161,F$6,FALSE),4) -> 31.9136 | G31: =ROUND(VLOOKUP(CONCATENATE(G$5,$C31),'trend data'!$A$2:$O$11161,G$6,FALSE),4) -> 37.9218 | H31: =IFERROR(VLOOKUP(CONCATENATE(H$5,$C31),'trend data'!$A$2:$O$11161,H$6,FALSE),"-") -> 529 | I31: =IFERROR(ROUND(VLOOKUP(CONCATENATE(I$5,$C31),'trend data'!$A$2:$O$11161,I$6,FALSE),4),"-") -> 38.9538 | J31: =IFERROR(ROUND(VLOOKUP(CONCATENATE(J$5,$C31),'trend data'!$A$2:$O$11161,J$6,FALSE),4),"-") -> 35.7045 | K31: =IFERROR(ROUND(VLOOKUP(CONCATENATE(K$5,$C31),'trend data'!$A$2:$O$11161,K$6,FALSE),4),"-") -> 42.4193 | L31: =VLOOKUP(CONCATENATE(L$5,$C31),'trend data'!$A$2:$O$11161,L$6,FALSE) -> 1516331 | M31: =ROUND(VLOOKUP(CONCATENATE(M$5,$C31),'trend data'!$A$2:$O$11161,M$6,FALSE),2) -> 1358019.18
A32: 202203 | B32: 2022-09-30 | C32: =CONCATENATE(A32,'ECOLI Data and Charts'!B$1) -> 202203Scotland | D32: =IFERROR(VLOOKUP(CONCATENATE(D$5,$C32),'trend data'!$A$2:$O$11161,D$6,FALSE),"-") -> 560 | E32: =ROUND(VLOOKUP(CONCATENATE(E$5,$C32),'trend data'!$A$2:$O$11161,E$6,FALSE),4) -> 36.2287 | F32: =ROUND(VLOOKUP(CONCATENATE(F$5,$C32),'trend data'!$A$2:$O$11161,F$6,FALSE),4) -> 33.2897 | G32: =ROUND(VLOOKUP(CONCATENATE(G$5,$C32),'trend data'!$A$2:$O$11161,G$6,FALSE),4) -> 39.3575 | H32: =IFERROR(VLOOKUP(CONCATENATE(H$5,$C32),'trend data'!$A$2:$O$11161,H$6,FALSE),"-") -> 577 | I32: =IFERROR(ROUND(VLOOKUP(CONCATENATE(I$5,$C32),'trend data'!$A$2:$O$11161,I$6,FALSE),4),"-") -> 42.0265 | J32: =IFERROR(ROUND(VLOOKUP(CONCATENATE(J$5,$C32),'trend data'!$A$2:$O$11161,J$6,FALSE),4),"-") -> 38.6668 | K32: =IFERROR(ROUND(VLOOKUP(CONCATENATE(K$5,$C32),'trend data'!$A$2:$O$11161,K$6,FALSE),4),"-") -> 45.6 | L32: =VLOOKUP(CONCATENATE(L$5,$C32),'trend data'!$A$2:$O$11161,L$6,FALSE) -> 1545737 | M32: =ROUND(VLOOKUP(CONCATENATE(M$5,$C32),'trend data'!$A$2:$O$11161,M$6,FALSE),2) -> 1372942.47
A33: 202204 | B33: 2022-12-31 | C33: =CONCATENATE(A33,'ECOLI Data and Charts'!B$1) -> 202204Scotland | D33: =IFERROR(VLOOKUP(CONCATENATE(D$5,$C33),'trend data'!$A$2:$O$11161,D$6,FALSE),"-") -> 549 | E33: =ROUND(VLOOKUP(CONCATENATE(E$5,$C33),'trend data'!$A$2:$O$11161,E$6,FALSE),4) -> 34.9893 | F33: =ROUND(VLOOKUP(CONCATENATE(F$5,$C33),'trend data'!$A$2:$O$11161,F$6,FALSE),4) -> 32.1232 | G33: =ROUND(VLOOKUP(CONCATENATE(G$5,$C33),'trend data'!$A$2:$O$11161,G$6,FALSE),4) -> 38.0425 | H33: =IFERROR(VLOOKUP(CONCATENATE(H$5,$C33),'trend data'!$A$2:$O$11161,H$6,FALSE),"-") -> 495 | I33: =IFERROR(ROUND(VLOOKUP(CONCATENATE(I$5,$C33),'trend data'!$A$2:$O$11161,I$6,FALSE),4),"-") -> 36.054 | J33: =IFERROR(ROUND(VLOOKUP(CONCATENATE(J$5,$C33),'trend data'!$A$2:$O$11161,J$6,FALSE),4),"-") -> 32.9472 | K33: =IFERROR(ROUND(VLOOKUP(CONCATENATE(K$5,$C33),'trend data'!$A$2:$O$11161,K$6,FALSE),4),"-") -> 39.3746 | L33: =VLOOKUP(CONCATENATE(L$5,$C33),'trend data'!$A$2:$O$11161,L$6,FALSE) -> 1569052 | M33: =ROUND(VLOOKUP(CONCATENATE(M$5,$C33),'trend data'!$A$2:$O$11161,M$6,FALSE),2) -> 1372942.47
A34: 202301 | B34: 2023-03-31 | C34: =CONCATENATE(A34,'ECOLI Data and Charts'!B$1) -> 202301Scotland | D34: =IFERROR(VLOOKUP(CONCATENATE(D$5,$C34),'trend data'!$A$2:$O$11161,D$6,FALSE),"-") -> 588 | E34: =ROUND(VLOOKUP(CONCATENATE(E$5,$C34),'trend data'!$A$2:$O$11161,E$6,FALSE),4) -> 37.4783 | F34: =ROUND(VLOOKUP(CONCATENATE(F$5,$C34),'trend data'!$A$2:$O$11161,F$6,FALSE),4) -> 34.5097 | G34: =ROUND(VLOOKUP(CONCATENATE(G$5,$C34),'trend data'!$A$2:$O$11161,G$6,FALSE),4) -> 40.6339 | H34: =IFERROR(VLOOKUP(CONCATENATE(H$5,$C34),'trend data'!$A$2:$O$11161,H$6,FALSE),"-") -> 497 | I34: =IFERROR(ROUND(VLOOKUP(CONCATENATE(I$5,$C34),'trend data'!$A$2:$O$11161,I$6,FALSE),4),"-") -> 36.7136 | J34: =IFERROR(ROUND(VLOOKUP(CONCATENATE(J$5,$C34),'trend data'!$A$2:$O$11161,J$6,FALSE),4),"-") -> 33.5562 | K34: =IFERROR(ROUND(VLOOKUP(CONCATENATE(K$5,$C34),'trend data'!$A$2:$O$11161,K$6,FALSE),4),"-") -> 40.0879 | L34: =VLOOKUP(CONCATENATE(L$5,$C34),'trend data'!$A$2:$O$11161,L$6,FALSE) -> 1568908 | M34: =ROUND(VLOOKUP(CONCATENATE(M$5,$C34),'trend data'!$A$2:$O$11161,M$6,FALSE),2) -> 1353723.29
A35: 202302 | B35: 2023-06-30 | C35: =CONCATENATE(A35,'ECOLI Data and Charts'!B$1) -> 202302Scotland | D35: =IFERROR(VLOOKUP(CONCATENATE(D$5,$C35),'trend data'!$A$2:$O$11161,D$6,FALSE),"-") -> 581 | E35: =ROUND(VLOOKUP(CONCATENATE(E$5,$C35),'trend data'!$A$2:$O$11161,E$6,FALSE),4) -> 37.6143 | F35: =ROUND(VLOOKUP(CONCATENATE(F$5,$C35),'trend data'!$A$2:$O$11161,F$6,FALSE),4) -> 34.6175 | G35: =ROUND(VLOOKUP(CONCATENATE(G$5,$C35),'trend data'!$A$2:$O$11161,G$6,FALSE),4) -> 40.8012 | H35: =IFERROR(VLOOKUP(CONCATENATE(H$5,$C35),'trend data'!$A$2:$O$11161,H$6,FALSE),"-") -> 502 | I35: =IFERROR(ROUND(VLOOKUP(CONCATENATE(I$5,$C35),'trend data'!$A$2:$O$11161,I$6,FALSE),4),"-") -> 36.6754 | J35: =IFERROR(ROUND(VLOOKUP(CONCATENATE(J$5,$C35),'trend data'!$A$2:$O$11161,J$6,FALSE),4),"-") -> 33.5368 | K35: =IFERROR(ROUND(VLOOKUP(CONCATENATE(K$5,$C35),'trend data'!$A$2:$O$11161,K$6,FALSE),4),"-") -> 40.0287 | L35: =VLOOKUP(CONCATENATE(L$5,$C35),'trend data'!$A$2:$O$11161,L$6,FALSE) -> 1544624 | M35: =ROUND(VLOOKUP(CONCATENATE(M$5,$C35),'trend data'!$A$2:$O$11161,M$6,FALSE),2) -> 1368764.66
A36: 202303 | B36: 2023-09-30 | C36: =CONCATENATE(A36,'ECOLI Data and Charts'!B$1) -> 202303Scotland | D36: =IFERROR(VLOOKUP(CONCATENATE(D$5,$C36),'trend data'!$A$2:$O$11161,D$6,FALSE),"-") -> 580 | E36: =ROUND(VLOOKUP(CONCATENATE(E$5,$C36),'trend data'!$A$2:$O$11161,E$6,FALSE),4) -> 37.7178 | F36: =ROUND(VLOOKUP(CONCATENATE(F$5,$C36),'trend data'!$A$2:$O$11161,F$6,FALSE),4) -> 34.7101 | G36: =ROUND(VLOOKUP(CONCATENATE(G$5,$C36),'trend data'!$A$2:$O$11161,G$6,FALSE),4) -> 40.9162 | H36: =IFERROR(VLOOKUP(CONCATENATE(H$5,$C36),'trend data'!$A$2:$O$11161,H$6,FALSE),"-") -> 575 | I36: =IFERROR(ROUND(VLOOKUP(CONCATENATE(I$5,$C36),'trend data'!$A$2:$O$11161,I$6,FALSE),4),"-") -> 41.5521 | J36: =IFERROR(ROUND(VLOOKUP(CONCATENATE(J$5,$C36),'trend data'!$A$2:$O$11161,J$6,FALSE),4),"-") -> 38.2246 | K36: =IFERROR(ROUND(VLOOKUP(CONCATENATE(K$5,$C36),'trend data'!$A$2:$O$11161,K$6,FALSE),4),"-") -> 45.0916 | L36: =VLOOKUP(CONCATENATE(L$5,$C36),'trend data'!$A$2:$O$11161,L$6,FALSE) -> 1537737 | M36: =ROUND(VLOOKUP(CONCATENATE(M$5,$C36),'trend data'!$A$2:$O$11161,M$6,FALSE),2) -> 1383806.03
A37: 202304 | B37: 2023-12-31 | C37: =CONCATENATE(A37,'ECOLI Data and Charts'!B$1) -> 202304Scotland | D37: =IFERROR(VLOOKUP(CONCATENATE(D$5,$C37),'trend data'!$A$2:$O$11161,D$6,FALSE),"-") -> 544 | E37: =ROUND(VLOOKUP(CONCATENATE(E$5,$C37),'trend data'!$A$2:$O$11161,E$6,FALSE),4) -> 34.7362 | F37: =ROUND(VLOOKUP(CONCATENATE(F$5,$C37),'trend data'!$A$2:$O$11161,F$6,FALSE),4) -> 31.8781 | G37: =ROUND(VLOOKUP(CONCATENATE(G$5,$C37),'trend data'!$A$2:$O$11161,G$6,FALSE),4) -> 37.7818 | H37: =IFERROR(VLOOKUP(CONCATENATE(H$5,$C37),'trend data'!$A$2:$O$11161,H$6,FALSE),"-") -> 442 | I37: =IFERROR(ROUND(VLOOKUP(CONCATENATE(I$5,$C37),'trend data'!$A$2:$O$11161,I$6,FALSE),4),"-") -> 31.9409 | J37: =IFERROR(ROUND(VLOOKUP(CONCATENATE(J$5,$C37),'trend data'!$A$2:$O$11161,J$6,FALSE),4),"-") -> 29.0321 | K37: =IFERROR(ROUND(VLOOKUP(CONCATENATE(K$5,$C37),'trend data'!$A$2:$O$11161,K$6,FALSE),4),"-") -> 35.0622 | L37: =VLOOKUP(CONCATENATE(L$5,$C37),'trend data'!$A$2:$O$11161,L$6,FALSE) -> 1566090 | M37: =ROUND(VLOOKUP(CONCATENATE(M$5,$C37),'trend data'!$A$2:$O$11161,M$6,FALSE),2) -> 1383806.03
A38: 202401 | B38: 2024-03-31 | C38: =CONCATENATE(A38,'ECOLI Data and Charts'!B$1) -> 202401Scotland | D38: =IFERROR(VLOOKUP(CONCATENATE(D$5,$C38),'trend data'!$A$2:$O$11161,D$6,FALSE),"-") -> 565 | E38: =ROUND(VLOOKUP(CONCATENATE(E$5,$C38),'trend data'!$A$2:$O$11161,E$6,FALSE),4) -> 35.5187 | F38: =ROUND(VLOOKUP(CONCATENATE(F$5,$C38),'trend data'!$A$2:$O$11161,F$6,FALSE),4) -> 32.6499 | G38: =ROUND(VLOOKUP(CONCATENATE(G$5,$C38),'trend data'!$A$2:$O$11161,G$6,FALSE),4) -> 38.5721 | H38: =IFERROR(VLOOKUP(CONCATENATE(H$5,$C38),'trend data'!$A$2:$O$11161,H$6,FALSE),"-") -> 504 | I38: =IFERROR(ROUND(VLOOKUP(CONCATENATE(I$5,$C38),'trend data'!$A$2:$O$11161,I$6,FALSE),4),"-") -> 36.5443 | J38: =IFERROR(ROUND(VLOOKUP(CONCATENATE(J$5,$C38),'trend data'!$A$2:$O$11161,J$6,FALSE),4),"-") -> 33.423 | K38: =IFERROR(ROUND(VLOOKUP(CONCATENATE(K$5,$C38),'trend data'!$A$2:$O$11161,K$6,FALSE),4),"-") -> 39.8787 | L38: =VLOOKUP(CONCATENATE(L$5,$C38),'trend data'!$A$2:$O$11161,L$6,FALSE) -> 1590711 | M38: =ROUND(VLOOKUP(CONCATENATE(M$5,$C38),'trend data'!$A$2:$O$11161,M$6,FALSE),2) -> 1379147.27
A39: 202402 | B39: 2024-06-30 | C39: =CONCATENATE(A39,'ECOLI Data and Charts'!B$1) -> 202402Scotland | D39: =IFERROR(VLOOKUP(CONCATENATE(D$5,$C39),'trend data'!$A$2:$O$11161,D$6,FALSE),"-") -> 614 | E39: =ROUND(VLOOKUP(CONCATENATE(E$5,$C39),'trend data'!$A$2:$O$11161,E$6,FALSE),4) -> 39.4025 | F39: =ROUND(VLOOKUP(CONCATENATE(F$5,$C39),'trend data'!$A$2:$O$11161,F$6,FALSE),4) -> 36.347 | G39: =ROUND(VLOOKUP(CONCATENATE(G$5,$C39),'trend data'!$A$2:$O$11161,G$6,FALSE),4) -> 42.6463 | H39: =IFERROR(VLOOKUP(CONCATENATE(H$5,$C39),'trend data'!$A$2:$O$11161,H$6,FALSE),"-") -> 490 | I39: =IFERROR(ROUND(VLOOKUP(CONCATENATE(I$5,$C39),'trend data'!$A$2:$O$11161,I$6,FALSE),4),"-") -> 35.5292 | J39: =IFERROR(ROUND(VLOOKUP(CONCATENATE(J$5,$C39),'trend data'!$A$2:$O$11161,J$6,FALSE),4),"-") -> 32.4525 | K39: =IFERROR(ROUND(VLOOKUP(CONCATENATE(K$5,$C39),'trend data'!$A$2:$O$11161,K$6,FALSE),4),"-") -> 38.819 | L39: =VLOOKUP(CONCATENATE(L$5,$C39),'trend data'!$A$2:$O$11161,L$6,FALSE) -> 1558276 | M39: =ROUND(VLOOKUP(CONCATENATE(M$5,$C39),'trend data'!$A$2:$O$11161,M$6,FALSE),2) -> 1379147.27
A40: 202403 | B40: 2024-09-30 | C40: =CONCATENATE(A40,'ECOLI Data and Charts'!B$1) -> 202403Scotland | D40: =IFERROR(VLOOKUP(CONCATENATE(D$5,$C40),'trend data'!$A$2:$O$11161,D$6,FALSE),"-") -> 618 | E40: =ROUND(VLOOKUP(CONCATENATE(E$5,$C40),'trend data'!$A$2:$O$11161,E$6,FALSE),4) -> 39.8078 | F40: =ROUND(VLOOKUP(CONCATENATE(F$5,$C40),'trend data'!$A$2:$O$11161,F$6,FALSE),4) -> 36.7307 | G40: =ROUND(VLOOKUP(CONCATENATE(G$5,$C40),'trend data'!$A$2:$O$11161,G$6,FALSE),4) -> 43.0739 | H40: =IFERROR(VLOOKUP(CONCATENATE(H$5,$C40),'trend data'!$A$2:$O$11161,H$6,FALSE),"-") -> 514 | I40: =IFERROR(ROUND(VLOOKUP(CONCATENATE(I$5,$C40),'trend data'!$A$2:$O$11161,I$6,FALSE),4),"-") -> 36.8643 | J40: =IFERROR(ROUND(VLOOKUP(CONCATENATE(J$5,$C40),'trend data'!$A$2:$O$11161,J$6,FALSE),4),"-") -> 33.7457 | K40: =IFERROR(ROUND(VLOOKUP(CONCATENATE(K$5,$C40),'trend data'!$A$2:$O$11161,K$6,FALSE),4),"-") -> 40.1935 | L40: =VLOOKUP(CONCATENATE(L$5,$C40),'trend data'!$A$2:$O$11161,L$6,FALSE) -> 1552458 | M40: =ROUND(VLOOKUP(CONCATENATE(M$5,$C40),'trend data'!$A$2:$O$11161,M$6,FALSE),2) -> 1394302.73
A41: 202404 | B41: 2024-12-31 | C41: =CONCATENATE(A41,'ECOLI Data and Charts'!B$1) -> 202404Scotland | D41: =IFERROR(VLOOKUP(CONCATENATE(D$5,$C41),'trend data'!$A$2:$O$11161,D$6,FALSE),"-") -> 576 | E41: =ROUND(VLOOKUP(CONCATENATE(E$5,$C41),'trend data'!$A$2:$O$11161,E$6,FALSE),4) -> 36.9163 | F41: =ROUND(VLOOKUP(CONCATENATE(F$5,$C41),'trend data'!$A$2:$O$11161,F$6,FALSE),4) -> 33.9626 | G41: =ROUND(VLOOKUP(CONCATENATE(G$5,$C41),'trend data'!$A$2:$O$11161,G$6,FALSE),4) -> 40.0581 | H41: =IFERROR(VLOOKUP(CONCATENATE(H$5,$C41),'trend data'!$A$2:$O$11161,H$6,FALSE),"-") -> 494 | I41: =IFERROR(ROUND(VLOOKUP(CONCATENATE(I$5,$C41),'trend data'!$A$2:$O$11161,I$6,FALSE),4),"-") -> 35.4299 | J41: =IFERROR(ROUND(VLOOKUP(CONCATENATE(J$5,$C41),'trend data'!$A$2:$O$11161,J$6,FALSE),4),"-") -> 32.3739 | K41: =IFERROR(ROUND(VLOOKUP(CONCATENATE(K$5,$C41),'trend data'!$A$2:$O$11161,K$6,FALSE),4),"-") -> 38.6966 | L41: =VLOOKUP(CONCATENATE(L$5,$C41),'trend data'!$A$2:$O$11161,L$6,FALSE) -> 1560286 | M41: =ROUND(VLOOKUP(CONCATENATE(M$5,$C41),'trend data'!$A$2:$O$11161,M$6,FALSE),2) -> 1394302.73
A42: 202501 | B42: 2025-03-31 | C42: =CONCATENATE(A42,'ECOLI Data and Charts'!B$1) -> 202501Scotland | D42: =IFERROR(VLOOKUP(CONCATENATE(D$5,$C42),'trend data'!$A$2:$O$11161,D$6,FALSE),"-") -> 604 | E42: =ROUND(VLOOKUP(CONCATENATE(E$5,$C42),'trend data'!$A$2:$O$11161,E$6,FALSE),4) -> 38.9125 | F42: =ROUND(VLOOKUP(CONCATENATE(F$5,$C42),'trend data'!$A$2:$O$11161,F$6,FALSE),4) -> 35.8706 | G42: =ROUND(VLOOKUP(CONCATENATE(G$5,$C42),'trend data'!$A$2:$O$11161,G$6,FALSE),4) -> 42.1435 | H42: =IFERROR(VLOOKUP(CONCATENATE(H$5,$C42),'trend data'!$A$2:$O$11161,H$6,FALSE),"-") -> 446 | I42: =IFERROR(ROUND(VLOOKUP(CONCATENATE(I$5,$C42),'trend data'!$A$2:$O$11161,I$6,FALSE),4),"-") -> 32.6088 | J42: =IFERROR(ROUND(VLOOKUP(CONCATENATE(J$5,$C42),'trend data'!$A$2:$O$11161,J$6,FALSE),4),"-") -> 29.6522 | K42: =IFERROR(ROUND(VLOOKUP(CONCATENATE(K$5,$C42),'trend data'!$A$2:$O$11161,K$6,FALSE),4),"-") -> 35.7804 | L42: =VLOOKUP(CONCATENATE(L$5,$C42),'trend data'!$A$2:$O$11161,L$6,FALSE) -> 1552199 | M42: =ROUND(VLOOKUP(CONCATENATE(M$5,$C42),'trend data'!$A$2:$O$11161,M$6,FALSE),2) -> 1367728.77
A43: 202502 | B43: 2025-06-30 | C43: =CONCATENATE(A43,'ECOLI Data and Charts'!B$1) -> 202502Scotland | D43: =IFERROR(VLOOKUP(CONCATENATE(D$5,$C43),'trend data'!$A$2:$O$11161,D$6,FALSE),"-") -> 672 | E43: =ROUND(VLOOKUP(CONCATENATE(E$5,$C43),'trend data'!$A$2:$O$11161,E$6,FALSE),4) -> 44.0489 | F43: =ROUND(VLOOKUP(CONCATENATE(F$5,$C43),'trend data'!$A$2:$O$11161,F$6,FALSE),4) -> 40.7809 | G43: =ROUND(VLOOKUP(CONCATENATE(G$5,$C43),'trend data'!$A$2:$O$11161,G$6,FALSE),4) -> 47.5091 | H43: =IFERROR(VLOOKUP(CONCATENATE(H$5,$C43),'trend data'!$A$2:$O$11161,H$6,FALSE),"-") -> 565 | I43: =IFERROR(ROUND(VLOOKUP(CONCATENATE(I$5,$C43),'trend data'!$A$2:$O$11161,I$6,FALSE),4),"-") -> 40.8554 | J43: =IFERROR(ROUND(VLOOKUP(CONCATENATE(J$5,$C43),'trend data'!$A$2:$O$11161,J$6,FALSE),4),"-") -> 37.5555 | K43: =IFERROR(ROUND(VLOOKUP(CONCATENATE(K$5,$C43),'trend data'!$A$2:$O$11161,K$6,FALSE),4),"-") -> 44.3676 | L43: =VLOOKUP(CONCATENATE(L$5,$C43),'trend data'!$A$2:$O$11161,L$6,FALSE) -> 1525577 | M43: =ROUND(VLOOKUP(CONCATENATE(M$5,$C43),'trend data'!$A$2:$O$11161,M$6,FALSE),2) -> 1382925.75
A44: 202503 | B44: 2025-09-30 | C44: =CONCATENATE(A44,'ECOLI Data and Charts'!B$1) -> 202503Scotland | D44: =IFERROR(VLOOKUP(CONCATENATE(D$5,$C44),'trend data'!$A$2:$O$11161,D$6,FALSE),"-") -> 658 | E44: =ROUND(VLOOKUP(CONCATENATE(E$5,$C44),'trend data'!$A$2:$O$11161,E$6,FALSE),4) -> 43.195 | F44: =ROUND(VLOOKUP(CONCATENATE(F$5,$C44),'trend data'!$A$2:$O$11161,F$6,FALSE),4) -> 39.9571 | G44: =ROUND(VLOOKUP(CONCATENATE(G$5,$C44),'trend data'!$A$2:$O$11161,G$6,FALSE),4) -> 46.6254 | H44: =IFERROR(VLOOKUP(CONCATENATE(H$5,$C44),'trend data'!$A$2:$O$11161,H$6,FALSE),"-") -> 575 | I44: =IFERROR(ROUND(VLOOKUP(CONCATENATE(I$5,$C44),'trend data'!$A$2:$O$11161,I$6,FALSE),4),"-") -> 41.1266 | J44: =IFERROR(ROUND(VLOOKUP(CONCATENATE(J$5,$C44),'trend data'!$A$2:$O$11161,J$6,FALSE),4),"-") -> 37.8332 | K44: =IFERROR(ROUND(VLOOKUP(CONCATENATE(K$5,$C44),'trend data'!$A$2:$O$11161,K$6,FALSE),4),"-") -> 44.6299 | L44: =VLOOKUP(CONCATENATE(L$5,$C44),'trend data'!$A$2:$O$11161,L$6,FALSE) -> 1523323 | M44: =ROUND(VLOOKUP(CONCATENATE(M$5,$C44),'trend data'!$A$2:$O$11161,M$6,FALSE),2) -> 1398122.74
A45: 202504 | B45: 2025-12-31 | C45: =CONCATENATE(A45,'ECOLI Data and Charts'!B$1) -> 202504Scotland | D45: =IFERROR(VLOOKUP(CONCATENATE(D$5,$C45),'trend data'!$A$2:$O$11161,D$6,FALSE),"-") -> 625 | E45: =ROUND(VLOOKUP(CONCATENATE(E$5,$C45),'trend data'!$A$2:$O$11161,E$6,FALSE),4) -> 40.7343 | F45: =ROUND(VLOOKUP(CONCATENATE(F$5,$C45),'trend data'!$A$2:$O$11161,F$6,FALSE),4) -> 37.6029 | G45: =ROUND(VLOOKUP(CONCATENATE(G$5,$C45),'trend data'!$A$2:$O$11161,G$6,FALSE),4) -> 44.057 | H45: =IFERROR(VLOOKUP(CONCATENATE(H$5,$C45),'trend data'!$A$2:$O$11161,H$6,FALSE),"-") -> 447 | I45: =IFERROR(ROUND(VLOOKUP(CONCATENATE(I$5,$C45),'trend data'!$A$2:$O$11161,I$6,FALSE),4),"-") -> 31.9714 | J45: =IFERROR(ROUND(VLOOKUP(CONCATENATE(J$5,$C45),'trend data'!$A$2:$O$11161,J$6,FALSE),4),"-") -> 29.0758 | K45: =IFERROR(ROUND(VLOOKUP(CONCATENATE(K$5,$C45),'trend data'!$A$2:$O$11161,K$6,FALSE),4),"-") -> 35.0774 | L45: =VLOOKUP(CONCATENATE(L$5,$C45),'trend data'!$A$2:$O$11161,L$6,FALSE) -> 1534332 | M45: =ROUND(VLOOKUP(CONCATENATE(M$5,$C45),'trend data'!$A$2:$O$11161,M$6,FALSE),2) -> 1398122.74
A46: 202601 | B46: 2026-03-31 | C46: =CONCATENATE(A46,'ECOLI Data and Charts'!B$1) -> 202601Scotland | D46: =IFERROR(VLOOKUP(CONCATENATE(D$5,$C46),'trend data'!$A$2:$O$11161,D$6,FALSE),"-") -> 609 | E46: =ROUND(VLOOKUP(CONCATENATE(E$5,$C46),'trend data'!$A$2:$O$11161,E$6,FALSE),4) -> 39.5426 | F46: =ROUND(VLOOKUP(CONCATENATE(F$5,$C46),'trend data'!$A$2:$O$11161,F$6,FALSE),4) -> 36.4639 | G46: =ROUND(VLOOKUP(CONCATENATE(G$5,$C46),'trend data'!$A$2:$O$11161,G$6,FALSE),4) -> 42.8117 | H46: =IFERROR(VLOOKUP(CONCATENATE(H$5,$C46),'trend data'!$A$2:$O$11161,H$6,FALSE),"-") -> 462 | I46: =IFERROR(ROUND(VLOOKUP(CONCATENATE(I$5,$C46),'trend data'!$A$2:$O$11161,I$6,FALSE),4),"-") -> 33.7786 | J46: =IFERROR(ROUND(VLOOKUP(CONCATENATE(J$5,$C46),'trend data'!$A$2:$O$11161,J$6,FALSE),4),"-") -> 30.7682 | K46: =IFERROR(ROUND(VLOOKUP(CONCATENATE(K$5,$C46),'trend data'!$A$2:$O$11161,K$6,FALSE),4),"-") -> 37.004 | L46: =VLOOKUP(CONCATENATE(L$5,$C46),'trend data'!$A$2:$O$11161,L$6,FALSE) -> 1540113 | M46: =ROUND(VLOOKUP(CONCATENATE(M$5,$C46),'trend data'!$A$2:$O$11161,M$6,FALSE),2) -> 1367728.77

Sheet SSI data (hidden)
A1: Trend data | Q1: data for u-charts
A3: add a new line for current quarter
T4: change this
D5: SSICSEC | E5: SSICSEC | F5: SSICSEC | G5: SSICSEC | H5: SSIHIP | I5: SSIHIP | J5: SSIHIP | K5: SSIHIP | L5: SSICSEC | M5: SSIHIP | S5: current quarter end | T5: 2026-03-31 | U5: 3 | V5: 4 | W5: 5 | X5: 6 | Z5: 3 | AA5: 4 | AB5: 5 | AC5: 6
D6: 2 | E6: 4 | F6: 5 | G6: 6 | H6: 2 | I6: 4 | J6: 5 | K6: 6 | L6: 3 | M6: 3
C7: ref | D7: C SEC cases | E7: C SEC prop | F7: C SEC_lower_CI | G7: C SEC_upper_CI | H7: HIP cases | I7: HIP prop | J7: HIP_lower_CI | K7: HIP_upper_CI | L7: C SEC OPS | M7: HIP OPS | U7: SSICSEC | Z7: SSIHIP
A8: 201401 | B8: 2014-03-24 | C8: =CONCATENATE(A8,'SSI Data and Charts'!B$1) -> 201401Scotland | D8: =IFERROR(VLOOKUP(CONCATENATE(D$5,$C8),'trend data'!$A$2:$O$11161,D$6,FALSE),"-") -> 61 | E8: =IFERROR(ROUND(VLOOKUP(CONCATENATE(E$5,$C8),'trend data'!$A$2:$O$11161,E$6,FALSE),3),"-") -> 1.526 | F8: =IFERROR(ROUND(VLOOKUP(CONCATENATE(F$5,$C8),'trend data'!$A$2:$O$11161,F$6,FALSE),3),"-") -> 1.19 | G8: =IFERROR(ROUND(VLOOKUP(CONCATENATE(G$5,$C8),'trend data'!$A$2:$O$11161,G$6,FALSE),3),"-") -> 1.955 | H8: =IFERROR(VLOOKUP(CONCATENATE(H$5,$C8),'trend data'!$A$2:$O$11161,H$6,FALSE),"-") -> 16 | I8: =IFERROR(ROUND(VLOOKUP(CONCATENATE(I$5,$C8),'trend data'!$A$2:$O$11161,I$6,FALSE),3),"-") -> 0.76 | J8: =IFERROR(ROUND(VLOOKUP(CONCATENATE(J$5,$C8),'trend data'!$A$2:$O$11161,J$6,FALSE),3),"-") -> 0.468 | K8: =IFERROR(ROUND(VLOOKUP(CONCATENATE(K$5,$C8),'trend data'!$A$2:$O$11161,K$6,FALSE),3),"-") -> 1.231 | L8: =IFERROR(VLOOKUP(CONCATENATE(L$5,$C8),'trend data'!$A$2:$O$11161,L$6,FALSE),"-") -> 3998 | M8: =IFERROR(VLOOKUP(CONCATENATE(M$5,$C8),'trend data'!$A$2:$O$11161,M$6,FALSE),"-") -> 2106 | Q8: change to last 12 quarters | U8: C SEC prop | V8: C SEC av prop | W8: C SEC UWL 2sd | X8: C SEC UCL 3sd | Z8: HIP prop | AA8: HIP av prop | AB8: HIP UWL 2sd | AC8: HIP UCL 3 sd
A9: 201402 | B9: 2014-06-27 | C9: =CONCATENATE(A9,'SSI Data and Charts'!B$1) -> 201402Scotland | D9: =IFERROR(VLOOKUP(CONCATENATE(D$5,$C9),'trend data'!$A$2:$O$11161,D$6,FALSE),"-") -> 58 | E9: =IFERROR(ROUND(VLOOKUP(CONCATENATE(E$5,$C9),'trend data'!$A$2:$O$11161,E$6,FALSE),3),"-") -> 1.414 | F9: =IFERROR(ROUND(VLOOKUP(CONCATENATE(F$5,$C9),'trend data'!$A$2:$O$11161,F$6,FALSE),3),"-") -> 1.095 | G9: =IFERROR(ROUND(VLOOKUP(CONCATENATE(G$5,$C9),'trend data'!$A$2:$O$11161,G$6,FALSE),3),"-") -> 1.823 | H9: =IFERROR(VLOOKUP(CONCATENATE(H$5,$C9),'trend data'!$A$2:$O$11161,H$6,FALSE),"-") -> 13 | I9: =IFERROR(ROUND(VLOOKUP(CONCATENATE(I$5,$C9),'trend data'!$A$2:$O$11161,I$6,FALSE),3),"-") -> 0.62 | J9: =IFERROR(ROUND(VLOOKUP(CONCATENATE(J$5,$C9),'trend data'!$A$2:$O$11161,J$6,FALSE),3),"-") -> 0.362 | K9: =IFERROR(ROUND(VLOOKUP(CONCATENATE(K$5,$C9),'trend data'!$A$2:$O$11161,K$6,FALSE),3),"-") -> 1.057 | L9: =IFERROR(VLOOKUP(CONCATENATE(L$5,$C9),'trend data'!$A$2:$O$11161,L$6,FALSE),"-") -> 4103 | M9: =IFERROR(VLOOKUP(CONCATENATE(M$5,$C9),'trend data'!$A$2:$O$11161,M$6,FALSE),"-") -> 2098 | Q9: =YEAR(T9)&"0"&IF(MONTH(T9)<4,1,IF(MONTH(T9)<7,2,IF(MONTH(T9)<10,3,4))) -> 202302 | R9: =CONCATENATE(U$7,$Q9,'SSI Data and Charts'!B$1) -> SSICSEC202302Scotland | S9: 1 | T9: =T10-92 -> 2023-06-23 | U9: =ROUND(VLOOKUP($R9,'data for u-p-charts'!$A$2:$F$5000,U$5,FALSE),2) ->  | V9: =ROUND(VLOOKUP($R9,'data for u-p-charts'!$A$2:$F$5000,V$5,FALSE),2) ->  | W9: =ROUND(VLOOKUP($R9,'data for u-p-charts'!$A$2:$F$5000,W$5,FALSE),2) ->  | X9: =ROUND(VLOOKUP($R9,'data for u-p-charts'!$A$2:$F$5000,X$5,FALSE),2) ->  | Y9: =CONCATENATE(Z$7,$Q9,'SSI Data and Charts'!$B$1) -> SSIHIP202302Scotland | Z9: =ROUND(VLOOKUP($Y9,'data for u-p-charts'!$A$2:$F$5000,Z$5,FALSE),2) ->  | AA9: =ROUND(VLOOKUP($Y9,'data for u-p-charts'!$A$2:$F$5000,AA$5,FALSE),2) ->  | AB9: =ROUND(VLOOKUP($Y9,'data for u-p-charts'!$A$2:$F$5000,AB$5,FALSE),2) ->  | AC9: =ROUND(VLOOKUP($Y9,'data for u-p-charts'!$A$2:$F$5000,AC$5,FALSE),2) -> 
A10: 201403 | B10: 2014-09-30 | C10: =CONCATENATE(A10,'SSI Data and Charts'!B$1) -> 201403Scotland | D10: =IFERROR(VLOOKUP(CONCATENATE(D$5,$C10),'trend data'!$A$2:$O$11161,D$6,FALSE),"-") -> 58 | E10: =IFERROR(ROUND(VLOOKUP(CONCATENATE(E$5,$C10),'trend data'!$A$2:$O$11161,E$6,FALSE),3),"-") -> 1.271 | F10: =IFERROR(ROUND(VLOOKUP(CONCATENATE(F$5,$C10),'trend data'!$A$2:$O$11161,F$6,FALSE),3),"-") -> 0.985 | G10: =IFERROR(ROUND(VLOOKUP(CONCATENATE(G$5,$C10),'trend data'!$A$2:$O$11161,G$6,FALSE),3),"-") -> 1.64 | H10: =IFERROR(VLOOKUP(CONCATENATE(H$5,$C10),'trend data'!$A$2:$O$11161,H$6,FALSE),"-") -> 16 | I10: =IFERROR(ROUND(VLOOKUP(CONCATENATE(I$5,$C10),'trend data'!$A$2:$O$11161,I$6,FALSE),3),"-") -> 0.753 | J10: =IFERROR(ROUND(VLOOKUP(CONCATENATE(J$5,$C10),'trend data'!$A$2:$O$11161,J$6,FALSE),3),"-") -> 0.464 | K10: =IFERROR(ROUND(VLOOKUP(CONCATENATE(K$5,$C10),'trend data'!$A$2:$O$11161,K$6,FALSE),3),"-") -> 1.22 | L10: =IFERROR(VLOOKUP(CONCATENATE(L$5,$C10),'trend data'!$A$2:$O$11161,L$6,FALSE),"-") -> 4563 | M10: =IFERROR(VLOOKUP(CONCATENATE(M$5,$C10),'trend data'!$A$2:$O$11161,M$6,FALSE),"-") -> 2125 | Q10: =YEAR(T10)&"0"&IF(MONTH(T10)<4,1,IF(MONTH(T10)<7,2,IF(MONTH(T10)<10,3,4))) -> 202303 | R10: =CONCATENATE(U$7,$Q10,'SSI Data and Charts'!B$1) -> SSICSEC202303Scotland | S10: 2 | T10: 2023-09-23 | U10: =ROUND(VLOOKUP($R10,'data for u-p-charts'!$A$2:$F$5000,U$5,FALSE),2) ->  | V10: =ROUND(VLOOKUP($R10,'data for u-p-charts'!$A$2:$F$5000,V$5,FALSE),2) ->  | W10: =ROUND(VLOOKUP($R10,'data for u-p-charts'!$A$2:$F$5000,W$5,FALSE),2) ->  | X10: =ROUND(VLOOKUP($R10,'data for u-p-charts'!$A$2:$F$5000,X$5,FALSE),2) ->  | Y10: =CONCATENATE(Z$7,$Q10,'SSI Data and Charts'!$B$1) -> SSIHIP202303Scotland | Z10: =ROUND(VLOOKUP($Y10,'data for u-p-charts'!$A$2:$F$5000,Z$5,FALSE),2) ->  | AA10: =ROUND(VLOOKUP($Y10,'data for u-p-charts'!$A$2:$F$5000,AA$5,FALSE),2) ->  | AB10: =ROUND(VLOOKUP($Y10,'data for u-p-charts'!$A$2:$F$5000,AB$5,FALSE),2) ->  | AC10: =ROUND(VLOOKUP($Y10,'data for u-p-charts'!$A$2:$F$5000,AC$5,FALSE),2) -> 
A11: 201404 | B11: 2014-12-19 | C11: =CONCATENATE(A11,'SSI Data and Charts'!B$1) -> 201404Scotland | D11: =IFERROR(VLOOKUP(CONCATENATE(D$5,$C11),'trend data'!$A$2:$O$11161,D$6,FALSE),"-") -> 61 | E11: =IFERROR(ROUND(VLOOKUP(CONCATENATE(E$5,$C11),'trend data'!$A$2:$O$11161,E$6,FALSE),3),"-") -> 1.432 | F11: =IFERROR(ROUND(VLOOKUP(CONCATENATE(F$5,$C11),'trend data'!$A$2:$O$11161,F$6,FALSE),3),"-") -> 1.116 | G11: =IFERROR(ROUND(VLOOKUP(CONCATENATE(G$5,$C11),'trend data'!$A$2:$O$11161,G$6,FALSE),3),"-") -> 1.835 | H11: =IFERROR(VLOOKUP(CONCATENATE(H$5,$C11),'trend data'!$A$2:$O$11161,H$6,FALSE),"-") -> 12 | I11: =IFERROR(ROUND(VLOOKUP(CONCATENATE(I$5,$C11),'trend data'!$A$2:$O$11161,I$6,FALSE),3),"-") -> 0.608 | J11: =IFERROR(ROUND(VLOOKUP(CONCATENATE(J$5,$C11),'trend data'!$A$2:$O$11161,J$6,FALSE),3),"-") -> 0.348 | K11: =IFERROR(ROUND(VLOOKUP(CONCATENATE(K$5,$C11),'trend data'!$A$2:$O$11161,K$6,FALSE),3),"-") -> 1.06 | L11: =IFERROR(VLOOKUP(CONCATENATE(L$5,$C11),'trend data'!$A$2:$O$11161,L$6,FALSE),"-") -> 4261 | M11: =IFERROR(VLOOKUP(CONCATENATE(M$5,$C11),'trend data'!$A$2:$O$11161,M$6,FALSE),"-") -> 1974 | Q11: 202304 | R11: =CONCATENATE(U$7,$Q11,'SSI Data and Charts'!B$1) -> SSICSEC202304Scotland | S11: 3 | T11: 2023-12-24 | U11: =ROUND(VLOOKUP($R11,'data for u-p-charts'!$A$2:$F$5000,U$5,FALSE),2) ->  | V11: =ROUND(VLOOKUP($R11,'data for u-p-charts'!$A$2:$F$5000,V$5,FALSE),2) ->  | W11: =ROUND(VLOOKUP($R11,'data for u-p-charts'!$A$2:$F$5000,W$5,FALSE),2) ->  | X11: =ROUND(VLOOKUP($R11,'data for u-p-charts'!$A$2:$F$5000,X$5,FALSE),2) ->  | Y11: =CONCATENATE(Z$7,$Q11,'SSI Data and Charts'!$B$1) -> SSIHIP202304Scotland | Z11: =ROUND(VLOOKUP($Y11,'data for u-p-charts'!$A$2:$F$5000,Z$5,FALSE),2) ->  | AA11: =ROUND(VLOOKUP($Y11,'data for u-p-charts'!$A$2:$F$5000,AA$5,FALSE),2) ->  | AB11: =ROUND(VLOOKUP($Y11,'data for u-p-charts'!$A$2:$F$5000,AB$5,FALSE),2) ->  | AC11: =ROUND(VLOOKUP($Y11,'data for u-p-charts'!$A$2:$F$5000,AC$5,FALSE),2) -> 
A12: 201501 | B12: 2015-03-24 | C12: =CONCATENATE(A12,'SSI Data and Charts'!B$1) -> 201501Scotland | D12: =IFERROR(VLOOKUP(CONCATENATE(D$5,$C12),'trend data'!$A$2:$O$11161,D$6,FALSE),"-") -> 47 | E12: =IFERROR(ROUND(VLOOKUP(CONCATENATE(E$5,$C12),'trend data'!$A$2:$O$11161,E$6,FALSE),3),"-") -> 1.185 | F12: =IFERROR(ROUND(VLOOKUP(CONCATENATE(F$5,$C12),'trend data'!$A$2:$O$11161,F$6,FALSE),3),"-") -> 0.892 | G12: =IFERROR(ROUND(VLOOKUP(CONCATENATE(G$5,$C12),'trend data'!$A$2:$O$11161,G$6,FALSE),3),"-") -> 1.572 | H12: =IFERROR(VLOOKUP(CONCATENATE(H$5,$C12),'trend data'!$A$2:$O$11161,H$6,FALSE),"-") -> 18 | I12: =IFERROR(ROUND(VLOOKUP(CONCATENATE(I$5,$C12),'trend data'!$A$2:$O$11161,I$6,FALSE),3),"-") -> 0.919 | J12: =IFERROR(ROUND(VLOOKUP(CONCATENATE(J$5,$C12),'trend data'!$A$2:$O$11161,J$6,FALSE),3),"-") -> 0.582 | K12: =IFERROR(ROUND(VLOOKUP(CONCATENATE(K$5,$C12),'trend data'!$A$2:$O$11161,K$6,FALSE),3),"-") -> 1.448 | L12: =IFERROR(VLOOKUP(CONCATENATE(L$5,$C12),'trend data'!$A$2:$O$11161,L$6,FALSE),"-") -> 3966 | M12: =IFERROR(VLOOKUP(CONCATENATE(M$5,$C12),'trend data'!$A$2:$O$11161,M$6,FALSE),"-") -> 1959 | Q12: 202401 | R12: =CONCATENATE(U$7,$Q12,'SSI Data and Charts'!B$1) -> SSICSEC202401Scotland | S12: 4 | T12: 2024-03-25 | U12: =ROUND(VLOOKUP($R12,'data for u-p-charts'!$A$2:$F$5000,U$5,FALSE),2) ->  | V12: =ROUND(VLOOKUP($R12,'data for u-p-charts'!$A$2:$F$5000,V$5,FALSE),2) ->  | W12: =ROUND(VLOOKUP($R12,'data for u-p-charts'!$A$2:$F$5000,W$5,FALSE),2) ->  | X12: =ROUND(VLOOKUP($R12,'data for u-p-charts'!$A$2:$F$5000,X$5,FALSE),2) ->  | Y12: =CONCATENATE(Z$7,$Q12,'SSI Data and Charts'!$B$1) -> SSIHIP202401Scotland | Z12: =ROUND(VLOOKUP($Y12,'data for u-p-charts'!$A$2:$F$5000,Z$5,FALSE),2) ->  | AA12: =ROUND(VLOOKUP($Y12,'data for u-p-charts'!$A$2:$F$5000,AA$5,FALSE),2) ->  | AB12: =ROUND(VLOOKUP($Y12,'data for u-p-charts'!$A$2:$F$5000,AB$5,FALSE),2) ->  | AC12: =ROUND(VLOOKUP($Y12,'data for u-p-charts'!$A$2:$F$5000,AC$5,FALSE),2) -> 
A13: 201502 | B13: 2015-06-24 | C13: =CONCATENATE(A13,'SSI Data and Charts'!B$1) -> 201502Scotland | D13: =IFERROR(VLOOKUP(CONCATENATE(D$5,$C13),'trend data'!$A$2:$O$11161,D$6,FALSE),"-") -> 56 | E13: =IFERROR(ROUND(VLOOKUP(CONCATENATE(E$5,$C13),'trend data'!$A$2:$O$11161,E$6,FALSE),3),"-") -> 1.285 | F13: =IFERROR(ROUND(VLOOKUP(CONCATENATE(F$5,$C13),'trend data'!$A$2:$O$11161,F$6,FALSE),3),"-") -> 0.991 | G13: =IFERROR(ROUND(VLOOKUP(CONCATENATE(G$5,$C13),'trend data'!$A$2:$O$11161,G$6,FALSE),3),"-") -> 1.665 | H13: =IFERROR(VLOOKUP(CONCATENATE(H$5,$C13),'trend data'!$A$2:$O$11161,H$6,FALSE),"-") -> 18 | I13: =IFERROR(ROUND(VLOOKUP(CONCATENATE(I$5,$C13),'trend data'!$A$2:$O$11161,I$6,FALSE),3),"-") -> 0.834 | J13: =IFERROR(ROUND(VLOOKUP(CONCATENATE(J$5,$C13),'trend data'!$A$2:$O$11161,J$6,FALSE),3),"-") -> 0.528 | K13: =IFERROR(ROUND(VLOOKUP(CONCATENATE(K$5,$C13),'trend data'!$A$2:$O$11161,K$6,FALSE),3),"-") -> 1.314 | L13: =IFERROR(VLOOKUP(CONCATENATE(L$5,$C13),'trend data'!$A$2:$O$11161,L$6,FALSE),"-") -> 4358 | M13: =IFERROR(VLOOKUP(CONCATENATE(M$5,$C13),'trend data'!$A$2:$O$11161,M$6,FALSE),"-") -> 2159 | Q13: 202402 | R13: =CONCATENATE(U$7,$Q13,'SSI Data and Charts'!B$1) -> SSICSEC202402Scotland | S13: 5 | T13: 2024-06-25 | U13: =ROUND(VLOOKUP($R13,'data for u-p-charts'!$A$2:$F$5000,U$5,FALSE),2) ->  | V13: =ROUND(VLOOKUP($R13,'data for u-p-charts'!$A$2:$F$5000,V$5,FALSE),2) ->  | W13: =ROUND(VLOOKUP($R13,'data for u-p-charts'!$A$2:$F$5000,W$5,FALSE),2) ->  | X13: =ROUND(VLOOKUP($R13,'data for u-p-charts'!$A$2:$F$5000,X$5,FALSE),2) ->  | Y13: =CONCATENATE(Z$7,$Q13,'SSI Data and Charts'!$B$1) -> SSIHIP202402Scotland | Z13: =ROUND(VLOOKUP($Y13,'data for u-p-charts'!$A$2:$F$5000,Z$5,FALSE),2) ->  | AA13: =ROUND(VLOOKUP($Y13,'data for u-p-charts'!$A$2:$F$5000,AA$5,FALSE),2) ->  | AB13: =ROUND(VLOOKUP($Y13,'data for u-p-charts'!$A$2:$F$5000,AB$5,FALSE),2) ->  | AC13: =ROUND(VLOOKUP($Y13,'data for u-p-charts'!$A$2:$F$5000,AC$5,FALSE),2) -> 
A14: 201503 | B14: 2015-09-24 | C14: =CONCATENATE(A14,'SSI Data and Charts'!B$1) -> 201503Scotland | D14: =IFERROR(VLOOKUP(CONCATENATE(D$5,$C14),'trend data'!$A$2:$O$11161,D$6,FALSE),"-") -> 56 | E14: =IFERROR(ROUND(VLOOKUP(CONCATENATE(E$5,$C14),'trend data'!$A$2:$O$11161,E$6,FALSE),3),"-") -> 1.241 | F14: =IFERROR(ROUND(VLOOKUP(CONCATENATE(F$5,$C14),'trend data'!$A$2:$O$11161,F$6,FALSE),3),"-") -> 0.957 | G14: =IFERROR(ROUND(VLOOKUP(CONCATENATE(G$5,$C14),'trend data'!$A$2:$O$11161,G$6,FALSE),3),"-") -> 1.609 | H14: =IFERROR(VLOOKUP(CONCATENATE(H$5,$C14),'trend data'!$A$2:$O$11161,H$6,FALSE),"-") -> 10 | I14: =IFERROR(ROUND(VLOOKUP(CONCATENATE(I$5,$C14),'trend data'!$A$2:$O$11161,I$6,FALSE),3),"-") -> 0.468 | J14: =IFERROR(ROUND(VLOOKUP(CONCATENATE(J$5,$C14),'trend data'!$A$2:$O$11161,J$6,FALSE),3),"-") -> 0.255 | K14: =IFERROR(ROUND(VLOOKUP(CONCATENATE(K$5,$C14),'trend data'!$A$2:$O$11161,K$6,FALSE),3),"-") -> 0.86 | L14: =IFERROR(VLOOKUP(CONCATENATE(L$5,$C14),'trend data'!$A$2:$O$11161,L$6,FALSE),"-") -> 4511 | M14: =IFERROR(VLOOKUP(CONCATENATE(M$5,$C14),'trend data'!$A$2:$O$11161,M$6,FALSE),"-") -> 2135 | Q14: 202403 | R14: =CONCATENATE(U$7,$Q14,'SSI Data and Charts'!B$1) -> SSICSEC202403Scotland | S14: 6 | T14: 2024-09-25 | U14: =ROUND(VLOOKUP($R14,'data for u-p-charts'!$A$2:$F$5000,U$5,FALSE),2) ->  | V14: =ROUND(VLOOKUP($R14,'data for u-p-charts'!$A$2:$F$5000,V$5,FALSE),2) ->  | W14: =ROUND(VLOOKUP($R14,'data for u-p-charts'!$A$2:$F$5000,W$5,FALSE),2) ->  | X14: =ROUND(VLOOKUP($R14,'data for u-p-charts'!$A$2:$F$5000,X$5,FALSE),2) ->  | Y14: =CONCATENATE(Z$7,$Q14,'SSI Data and Charts'!$B$1) -> SSIHIP202403Scotland | Z14: =ROUND(VLOOKUP($Y14,'data for u-p-charts'!$A$2:$F$5000,Z$5,FALSE),2) ->  | AA14: =ROUND(VLOOKUP($Y14,'data for u-p-charts'!$A$2:$F$5000,AA$5,FALSE),2) ->  | AB14: =ROUND(VLOOKUP($Y14,'data for u-p-charts'!$A$2:$F$5000,AB$5,FALSE),2) ->  | AC14: =ROUND(VLOOKUP($Y14,'data for u-p-charts'!$A$2:$F$5000,AC$5,FALSE),2) -> 
A15: 201504 | B15: 2015-12-24 | C15: =CONCATENATE(A15,'SSI Data and Charts'!B$1) -> 201504Scotland | D15: =IFERROR(VLOOKUP(CONCATENATE(D$5,$C15),'trend data'!$A$2:$O$11161,D$6,FALSE),"-") -> 60 | E15: =IFERROR(ROUND(VLOOKUP(CONCATENATE(E$5,$C15),'trend data'!$A$2:$O$11161,E$6,FALSE),3),"-") -> 1.395 | F15: =IFERROR(ROUND(VLOOKUP(CONCATENATE(F$5,$C15),'trend data'!$A$2:$O$11161,F$6,FALSE),3),"-") -> 1.086 | G15: =IFERROR(ROUND(VLOOKUP(CONCATENATE(G$5,$C15),'trend data'!$A$2:$O$11161,G$6,FALSE),3),"-") -> 1.792 | H15: =IFERROR(VLOOKUP(CONCATENATE(H$5,$C15),'trend data'!$A$2:$O$11161,H$6,FALSE),"-") -> 15 | I15: =IFERROR(ROUND(VLOOKUP(CONCATENATE(I$5,$C15),'trend data'!$A$2:$O$11161,I$6,FALSE),3),"-") -> 0.685 | J15: =IFERROR(ROUND(VLOOKUP(CONCATENATE(J$5,$C15),'trend data'!$A$2:$O$11161,J$6,FALSE),3),"-") -> 0.415 | K15: =IFERROR(ROUND(VLOOKUP(CONCATENATE(K$5,$C15),'trend data'!$A$2:$O$11161,K$6,FALSE),3),"-") -> 1.127 | L15: =IFERROR(VLOOKUP(CONCATENATE(L$5,$C15),'trend data'!$A$2:$O$11161,L$6,FALSE),"-") -> 4300 | M15: =IFERROR(VLOOKUP(CONCATENATE(M$5,$C15),'trend data'!$A$2:$O$11161,M$6,FALSE),"-") -> 2191 | Q15: 202404 | R15: =CONCATENATE(U$7,$Q15,'SSI Data and Charts'!B$1) -> SSICSEC202404Scotland | S15: 7 | T15: 2024-12-26 | U15: =ROUND(VLOOKUP($R15,'data for u-p-charts'!$A$2:$F$5000,U$5,FALSE),2) ->  | V15: =ROUND(VLOOKUP($R15,'data for u-p-charts'!$A$2:$F$5000,V$5,FALSE),2) ->  | W15: =ROUND(VLOOKUP($R15,'data for u-p-charts'!$A$2:$F$5000,W$5,FALSE),2) ->  | X15: =ROUND(VLOOKUP($R15,'data for u-p-charts'!$A$2:$F$5000,X$5,FALSE),2) ->  | Y15: =CONCATENATE(Z$7,$Q15,'SSI Data and Charts'!$B$1) -> SSIHIP202404Scotland | Z15: =ROUND(VLOOKUP($Y15,'data for u-p-charts'!$A$2:$F$5000,Z$5,FALSE),2) ->  | AA15: =ROUND(VLOOKUP($Y15,'data for u-p-charts'!$A$2:$F$5000,AA$5,FALSE),2) ->  | AB15: =ROUND(VLOOKUP($Y15,'data for u-p-charts'!$A$2:$F$5000,AB$5,FALSE),2) ->  | AC15: =ROUND(VLOOKUP($Y15,'data for u-p-charts'!$A$2:$F$5000,AC$5,FALSE),2) -> 
A16: 201601 | B16: 2016-03-24 | C16: =CONCATENATE(A16,'SSI Data and Charts'!B$1) -> 201601Scotland | D16: =IFERROR(VLOOKUP(CONCATENATE(D$5,$C16),'trend data'!$A$2:$O$11161,D$6,FALSE),"-") -> 58 | E16: =IFERROR(ROUND(VLOOKUP(CONCATENATE(E$5,$C16),'trend data'!$A$2:$O$11161,E$6,FALSE),3),"-") -> 1.442 | F16: =IFERROR(ROUND(VLOOKUP(CONCATENATE(F$5,$C16),'trend data'!$A$2:$O$11161,F$6,FALSE),3),"-") -> 1.117 | G16: =IFERROR(ROUND(VLOOKUP(CONCATENATE(G$5,$C16),'trend data'!$A$2:$O$11161,G$6,FALSE),3),"-") -> 1.859 | H16: =IFERROR(VLOOKUP(CONCATENATE(H$5,$C16),'trend data'!$A$2:$O$11161,H$6,FALSE),"-") -> 7 | I16: =IFERROR(ROUND(VLOOKUP(CONCATENATE(I$5,$C16),'trend data'!$A$2:$O$11161,I$6,FALSE),3),"-") -> 0.322 | J16: =IFERROR(ROUND(VLOOKUP(CONCATENATE(J$5,$C16),'trend data'!$A$2:$O$11161,J$6,FALSE),3),"-") -> 0.156 | K16: =IFERROR(ROUND(VLOOKUP(CONCATENATE(K$5,$C16),'trend data'!$A$2:$O$11161,K$6,FALSE),3),"-") -> 0.663 | L16: =IFERROR(VLOOKUP(CONCATENATE(L$5,$C16),'trend data'!$A$2:$O$11161,L$6,FALSE),"-") -> 4023 | M16: =IFERROR(VLOOKUP(CONCATENATE(M$5,$C16),'trend data'!$A$2:$O$11161,M$6,FALSE),"-") -> 2173 | Q16: 202501 | R16: =CONCATENATE(U$7,$Q16,'SSI Data and Charts'!B$1) -> SSICSEC202501Scotland | S16: 8 | T16: 2025-03-28 | U16: =ROUND(VLOOKUP($R16,'data for u-p-charts'!$A$2:$F$5000,U$5,FALSE),2) ->  | V16: =ROUND(VLOOKUP($R16,'data for u-p-charts'!$A$2:$F$5000,V$5,FALSE),2) ->  | W16: =ROUND(VLOOKUP($R16,'data for u-p-charts'!$A$2:$F$5000,W$5,FALSE),2) ->  | X16: =ROUND(VLOOKUP($R16,'data for u-p-charts'!$A$2:$F$5000,X$5,FALSE),2) ->  | Y16: =CONCATENATE(Z$7,$Q16,'SSI Data and Charts'!$B$1) -> SSIHIP202501Scotland | Z16: =ROUND(VLOOKUP($Y16,'data for u-p-charts'!$A$2:$F$5000,Z$5,FALSE),2) ->  | AA16: =ROUND(VLOOKUP($Y16,'data for u-p-charts'!$A$2:$F$5000,AA$5,FALSE),2) ->  | AB16: =ROUND(VLOOKUP($Y16,'data for u-p-charts'!$A$2:$F$5000,AB$5,FALSE),2) ->  | AC16: =ROUND(VLOOKUP($Y16,'data for u-p-charts'!$A$2:$F$5000,AC$5,FALSE),2) -> 
A17: 201602 | B17: 2016-06-24 | C17: =CONCATENATE(A17,'SSI Data and Charts'!B$1) -> 201602Scotland | D17: =IFERROR(VLOOKUP(CONCATENATE(D$5,$C17),'trend data'!$A$2:$O$11161,D$6,FALSE),"-") -> 78 | E17: =IFERROR(ROUND(VLOOKUP(CONCATENATE(E$5,$C17),'trend data'!$A$2:$O$11161,E$6,FALSE),3),"-") -> 1.754 | F17: =IFERROR(ROUND(VLOOKUP(CONCATENATE(F$5,$C17),'trend data'!$A$2:$O$11161,F$6,FALSE),3),"-") -> 1.407 | G17: =IFERROR(ROUND(VLOOKUP(CONCATENATE(G$5,$C17),'trend data'!$A$2:$O$11161,G$6,FALSE),3),"-") -> 2.183 | H17: =IFERROR(VLOOKUP(CONCATENATE(H$5,$C17),'trend data'!$A$2:$O$11161,H$6,FALSE),"-") -> 17 | I17: =IFERROR(ROUND(VLOOKUP(CONCATENATE(I$5,$C17),'trend data'!$A$2:$O$11161,I$6,FALSE),3),"-") -> 0.733 | J17: =IFERROR(ROUND(VLOOKUP(CONCATENATE(J$5,$C17),'trend data'!$A$2:$O$11161,J$6,FALSE),3),"-") -> 0.458 | K17: =IFERROR(ROUND(VLOOKUP(CONCATENATE(K$5,$C17),'trend data'!$A$2:$O$11161,K$6,FALSE),3),"-") -> 1.171 | L17: =IFERROR(VLOOKUP(CONCATENATE(L$5,$C17),'trend data'!$A$2:$O$11161,L$6,FALSE),"-") -> 4448 | M17: =IFERROR(VLOOKUP(CONCATENATE(M$5,$C17),'trend data'!$A$2:$O$11161,M$6,FALSE),"-") -> 2318 | Q17: 202502 | R17: =CONCATENATE(U$7,$Q17,'SSI Data and Charts'!B$1) -> SSICSEC202502Scotland | S17: 9 | T17: 2025-06-28 | U17: =ROUND(VLOOKUP($R17,'data for u-p-charts'!$A$2:$F$5000,U$5,FALSE),2) ->  | V17: =ROUND(VLOOKUP($R17,'data for u-p-charts'!$A$2:$F$5000,V$5,FALSE),2) ->  | W17: =ROUND(VLOOKUP($R17,'data for u-p-charts'!$A$2:$F$5000,W$5,FALSE),2) ->  | X17: =ROUND(VLOOKUP($R17,'data for u-p-charts'!$A$2:$F$5000,X$5,FALSE),2) ->  | Y17: =CONCATENATE(Z$7,$Q17,'SSI Data and Charts'!$B$1) -> SSIHIP202502Scotland | Z17: =ROUND(VLOOKUP($Y17,'data for u-p-charts'!$A$2:$F$5000,Z$5,FALSE),2) ->  | AA17: =ROUND(VLOOKUP($Y17,'data for u-p-charts'!$A$2:$F$5000,AA$5,FALSE),2) ->  | AB17: =ROUND(VLOOKUP($Y17,'data for u-p-charts'!$A$2:$F$5000,AB$5,FALSE),2) ->  | AC17: =ROUND(VLOOKUP($Y17,'data for u-p-charts'!$A$2:$F$5000,AC$5,FALSE),2) -> 
A18: 201603 | B18: 2016-09-24 | C18: =CONCATENATE(A18,'SSI Data and Charts'!B$1) -> 201603Scotland | D18: =IFERROR(VLOOKUP(CONCATENATE(D$5,$C18),'trend data'!$A$2:$O$11161,D$6,FALSE),"-") -> 71 | E18: =IFERROR(ROUND(VLOOKUP(CONCATENATE(E$5,$C18),'trend data'!$A$2:$O$11161,E$6,FALSE),3),"-") -> 1.597 | F18: =IFERROR(ROUND(VLOOKUP(CONCATENATE(F$5,$C18),'trend data'!$A$2:$O$11161,F$6,FALSE),3),"-") -> 1.268 | G18: =IFERROR(ROUND(VLOOKUP(CONCATENATE(G$5,$C18),'trend data'!$A$2:$O$11161,G$6,FALSE),3),"-") -> 2.009 | H18: =IFERROR(VLOOKUP(CONCATENATE(H$5,$C18),'trend data'!$A$2:$O$11161,H$6,FALSE),"-") -> 14 | I18: =IFERROR(ROUND(VLOOKUP(CONCATENATE(I$5,$C18),'trend data'!$A$2:$O$11161,I$6,FALSE),3),"-") -> 0.65 | J18: =IFERROR(ROUND(VLOOKUP(CONCATENATE(J$5,$C18),'trend data'!$A$2:$O$11161,J$6,FALSE),3),"-") -> 0.388 | K18: =IFERROR(ROUND(VLOOKUP(CONCATENATE(K$5,$C18),'trend data'!$A$2:$O$11161,K$6,FALSE),3),"-") -> 1.089 | L18: =IFERROR(VLOOKUP(CONCATENATE(L$5,$C18),'trend data'!$A$2:$O$11161,L$6,FALSE),"-") -> 4446 | M18: =IFERROR(VLOOKUP(CONCATENATE(M$5,$C18),'trend data'!$A$2:$O$11161,M$6,FALSE),"-") -> 2153 | Q18: 202503 | R18: =CONCATENATE(U$7,$Q18,'SSI Data and Charts'!B$1) -> SSICSEC202503Scotland | S18: 10 | T18: 2025-09-28 | U18: =ROUND(VLOOKUP($R18,'data for u-p-charts'!$A$2:$F$5000,U$5,FALSE),2) ->  | V18: =ROUND(VLOOKUP($R18,'data for u-p-charts'!$A$2:$F$5000,V$5,FALSE),2) ->  | W18: =ROUND(VLOOKUP($R18,'data for u-p-charts'!$A$2:$F$5000,W$5,FALSE),2) ->  | X18: =ROUND(VLOOKUP($R18,'data for u-p-charts'!$A$2:$F$5000,X$5,FALSE),2) ->  | Y18: =CONCATENATE(Z$7,$Q18,'SSI Data and Charts'!$B$1) -> SSIHIP202503Scotland | Z18: =ROUND(VLOOKUP($Y18,'data for u-p-charts'!$A$2:$F$5000,Z$5,FALSE),2) ->  | AA18: =ROUND(VLOOKUP($Y18,'data for u-p-charts'!$A$2:$F$5000,AA$5,FALSE),2) ->  | AB18: =ROUND(VLOOKUP($Y18,'data for u-p-charts'!$A$2:$F$5000,AB$5,FALSE),2) ->  | AC18: =ROUND(VLOOKUP($Y18,'data for u-p-charts'!$A$2:$F$5000,AC$5,FALSE),2) -> 
A19: 201604 | B19: 2016-12-24 | C19: =CONCATENATE(A19,'SSI Data and Charts'!B$1) -> 201604Scotland | D19: =IFERROR(VLOOKUP(CONCATENATE(D$5,$C19),'trend data'!$A$2:$O$11161,D$6,FALSE),"-") -> 51 | E19: =IFERROR(ROUND(VLOOKUP(CONCATENATE(E$5,$C19),'trend data'!$A$2:$O$11161,E$6,FALSE),3),"-") -> 1.198 | F19: =IFERROR(ROUND(VLOOKUP(CONCATENATE(F$5,$C19),'trend data'!$A$2:$O$11161,F$6,FALSE),3),"-") -> 0.912 | G19: =IFERROR(ROUND(VLOOKUP(CONCATENATE(G$5,$C19),'trend data'!$A$2:$O$11161,G$6,FALSE),3),"-") -> 1.571 | H19: =IFERROR(VLOOKUP(CONCATENATE(H$5,$C19),'trend data'!$A$2:$O$11161,H$6,FALSE),"-") -> 17 | I19: =IFERROR(ROUND(VLOOKUP(CONCATENATE(I$5,$C19),'trend data'!$A$2:$O$11161,I$6,FALSE),3),"-") -> 0.764 | J19: =IFERROR(ROUND(VLOOKUP(CONCATENATE(J$5,$C19),'trend data'!$A$2:$O$11161,J$6,FALSE),3),"-") -> 0.477 | K19: =IFERROR(ROUND(VLOOKUP(CONCATENATE(K$5,$C19),'trend data'!$A$2:$O$11161,K$6,FALSE),3),"-") -> 1.22 | L19: =IFERROR(VLOOKUP(CONCATENATE(L$5,$C19),'trend data'!$A$2:$O$11161,L$6,FALSE),"-") -> 4258 | M19: =IFERROR(VLOOKUP(CONCATENATE(M$5,$C19),'trend data'!$A$2:$O$11161,M$6,FALSE),"-") -> 2226 | Q19: 202504 | R19: =CONCATENATE(U$7,$Q19,'SSI Data and Charts'!B$1) -> SSICSEC202504Scotland | S19: 11 | T19: =T20-92 -> 2025-12-29 | U19: =ROUND(VLOOKUP($R19,'data for u-p-charts'!$A$2:$F$5000,U$5,FALSE),2) ->  | V19: =ROUND(VLOOKUP($R19,'data for u-p-charts'!$A$2:$F$5000,V$5,FALSE),2) ->  | W19: =ROUND(VLOOKUP($R19,'data for u-p-charts'!$A$2:$F$5000,W$5,FALSE),2) ->  | X19: =ROUND(VLOOKUP($R19,'data for u-p-charts'!$A$2:$F$5000,X$5,FALSE),2) ->  | Y19: =CONCATENATE(Z$7,$Q19,'SSI Data and Charts'!$B$1) -> SSIHIP202504Scotland | Z19: =ROUND(VLOOKUP($Y19,'data for u-p-charts'!$A$2:$F$5000,Z$5,FALSE),2) ->  | AA19: =ROUND(VLOOKUP($Y19,'data for u-p-charts'!$A$2:$F$5000,AA$5,FALSE),2) ->  | AB19: =ROUND(VLOOKUP($Y19,'data for u-p-charts'!$A$2:$F$5000,AB$5,FALSE),2) ->  | AC19: =ROUND(VLOOKUP($Y19,'data for u-p-charts'!$A$2:$F$5000,AC$5,FALSE),2) -> 
A20: 201701 | B20: 2017-03-01 | C20: =CONCATENATE(A20,'SSI Data and Charts'!B$1) -> 201701Scotland | D20: =IFERROR(VLOOKUP(CONCATENATE(D$5,$C20),'trend data'!$A$2:$O$11161,D$6,FALSE),"-") -> 58 | E20: =IFERROR(ROUND(VLOOKUP(CONCATENATE(E$5,$C20),'trend data'!$A$2:$O$11161,E$6,FALSE),3),"-") -> 1.433 | F20: =IFERROR(ROUND(VLOOKUP(CONCATENATE(F$5,$C20),'trend data'!$A$2:$O$11161,F$6,FALSE),3),"-") -> 1.11 | G20: =IFERROR(ROUND(VLOOKUP(CONCATENATE(G$5,$C20),'trend data'!$A$2:$O$11161,G$6,FALSE),3),"-") -> 1.848 | H20: =IFERROR(VLOOKUP(CONCATENATE(H$5,$C20),'trend data'!$A$2:$O$11161,H$6,FALSE),"-") -> 12 | I20: =IFERROR(ROUND(VLOOKUP(CONCATENATE(I$5,$C20),'trend data'!$A$2:$O$11161,I$6,FALSE),3),"-") -> 0.555 | J20: =IFERROR(ROUND(VLOOKUP(CONCATENATE(J$5,$C20),'trend data'!$A$2:$O$11161,J$6,FALSE),3),"-") -> 0.317 | K20: =IFERROR(ROUND(VLOOKUP(CONCATENATE(K$5,$C20),'trend data'!$A$2:$O$11161,K$6,FALSE),3),"-") -> 0.967 | L20: =IFERROR(VLOOKUP(CONCATENATE(L$5,$C20),'trend data'!$A$2:$O$11161,L$6,FALSE),"-") -> 4047 | M20: =IFERROR(VLOOKUP(CONCATENATE(M$5,$C20),'trend data'!$A$2:$O$11161,M$6,FALSE),"-") -> 2164 | Q20: 202601 | R20: =CONCATENATE(U$7,$Q20,'SSI Data and Charts'!B$1) -> SSICSEC202601Scotland | S20: 12 | T20: =T5 -> 2026-03-31 | U20: =ROUND(VLOOKUP($R20,'data for u-p-charts'!$A$2:$F$5000,U$5,FALSE),2) ->  | V20: =ROUND(VLOOKUP($R20,'data for u-p-charts'!$A$2:$F$5000,V$5,FALSE),2) ->  | W20: =ROUND(VLOOKUP($R20,'data for u-p-charts'!$A$2:$F$5000,W$5,FALSE),2) ->  | X20: =ROUND(VLOOKUP($R20,'data for u-p-charts'!$A$2:$F$5000,X$5,FALSE),2) ->  | Y20: =CONCATENATE(Z$7,$Q20,'SSI Data and Charts'!$B$1) -> SSIHIP202601Scotland | Z20: =ROUND(VLOOKUP($Y20,'data for u-p-charts'!$A$2:$F$5000,Z$5,FALSE),2) ->  | AA20: =ROUND(VLOOKUP($Y20,'data for u-p-charts'!$A$2:$F$5000,AA$5,FALSE),2) ->  | AB20: =ROUND(VLOOKUP($Y20,'data for u-p-charts'!$A$2:$F$5000,AB$5,FALSE),2) ->  | AC20: =ROUND(VLOOKUP($Y20,'data for u-p-charts'!$A$2:$F$5000,AC$5,FALSE),2) -> 
A21: 201702 | B21: 2017-06-01 | C21: =CONCATENATE(A21,'SSI Data and Charts'!B$1) -> 201702Scotland | D21: =IFERROR(VLOOKUP(CONCATENATE(D$5,$C21),'trend data'!$A$2:$O$11161,D$6,FALSE),"-") -> 51 | E21: =IFERROR(ROUND(VLOOKUP(CONCATENATE(E$5,$C21),'trend data'!$A$2:$O$11161,E$6,FALSE),3),"-") -> 1.239 | F21: =IFERROR(ROUND(VLOOKUP(CONCATENATE(F$5,$C21),'trend data'!$A$2:$O$11161,F$6,FALSE),3),"-") -> 0.944 | G21: =IFERROR(ROUND(VLOOKUP(CONCATENATE(G$5,$C21),'trend data'!$A$2:$O$11161,G$6,FALSE),3),"-") -> 1.626 | H21: =IFERROR(VLOOKUP(CONCATENATE(H$5,$C21),'trend data'!$A$2:$O$11161,H$6,FALSE),"-") -> 19 | I21: =IFERROR(ROUND(VLOOKUP(CONCATENATE(I$5,$C21),'trend data'!$A$2:$O$11161,I$6,FALSE),3),"-") -> 0.826 | J21: =IFERROR(ROUND(VLOOKUP(CONCATENATE(J$5,$C21),'trend data'!$A$2:$O$11161,J$6,FALSE),3),"-") -> 0.529 | K21: =IFERROR(ROUND(VLOOKUP(CONCATENATE(K$5,$C21),'trend data'!$A$2:$O$11161,K$6,FALSE),3),"-") -> 1.286 | L21: =IFERROR(VLOOKUP(CONCATENATE(L$5,$C21),'trend data'!$A$2:$O$11161,L$6,FALSE),"-") -> 4115 | M21: =IFERROR(VLOOKUP(CONCATENATE(M$5,$C21),'trend data'!$A$2:$O$11161,M$6,FALSE),"-") -> 2301
A22: 201703 | B22: 2017-09-01 | C22: =CONCATENATE(A22,'SSI Data and Charts'!B$1) -> 201703Scotland | D22: =IFERROR(VLOOKUP(CONCATENATE(D$5,$C22),'trend data'!$A$2:$O$11161,D$6,FALSE),"-") -> 58 | E22: =IFERROR(ROUND(VLOOKUP(CONCATENATE(E$5,$C22),'trend data'!$A$2:$O$11161,E$6,FALSE),3),"-") -> 1.285 | F22: =IFERROR(ROUND(VLOOKUP(CONCATENATE(F$5,$C22),'trend data'!$A$2:$O$11161,F$6,FALSE),3),"-") -> 0.995 | G22: =IFERROR(ROUND(VLOOKUP(CONCATENATE(G$5,$C22),'trend data'!$A$2:$O$11161,G$6,FALSE),3),"-") -> 1.657 | H22: =IFERROR(VLOOKUP(CONCATENATE(H$5,$C22),'trend data'!$A$2:$O$11161,H$6,FALSE),"-") -> 9 | I22: =IFERROR(ROUND(VLOOKUP(CONCATENATE(I$5,$C22),'trend data'!$A$2:$O$11161,I$6,FALSE),3),"-") -> 0.433 | J22: =IFERROR(ROUND(VLOOKUP(CONCATENATE(J$5,$C22),'trend data'!$A$2:$O$11161,J$6,FALSE),3),"-") -> 0.228 | K22: =IFERROR(ROUND(VLOOKUP(CONCATENATE(K$5,$C22),'trend data'!$A$2:$O$11161,K$6,FALSE),3),"-") -> 0.822 | L22: =IFERROR(VLOOKUP(CONCATENATE(L$5,$C22),'trend data'!$A$2:$O$11161,L$6,FALSE),"-") -> 4514 | M22: =IFERROR(VLOOKUP(CONCATENATE(M$5,$C22),'trend data'!$A$2:$O$11161,M$6,FALSE),"-") -> 2077
A23: 201704 | B23: 2017-12-01 | C23: =CONCATENATE(A23,'SSI Data and Charts'!B$1) -> 201704Scotland | D23: =IFERROR(VLOOKUP(CONCATENATE(D$5,$C23),'trend data'!$A$2:$O$11161,D$6,FALSE),"-") -> 66 | E23: =IFERROR(ROUND(VLOOKUP(CONCATENATE(E$5,$C23),'trend data'!$A$2:$O$11161,E$6,FALSE),3),"-") -> 1.563 | F23: =IFERROR(ROUND(VLOOKUP(CONCATENATE(F$5,$C23),'trend data'!$A$2:$O$11161,F$6,FALSE),3),"-") -> 1.23 | G23: =IFERROR(ROUND(VLOOKUP(CONCATENATE(G$5,$C23),'trend data'!$A$2:$O$11161,G$6,FALSE),3),"-") -> 1.983 | H23: =IFERROR(VLOOKUP(CONCATENATE(H$5,$C23),'trend data'!$A$2:$O$11161,H$6,FALSE),"-") -> 16 | I23: =IFERROR(ROUND(VLOOKUP(CONCATENATE(I$5,$C23),'trend data'!$A$2:$O$11161,I$6,FALSE),3),"-") -> 0.773 | J23: =IFERROR(ROUND(VLOOKUP(CONCATENATE(J$5,$C23),'trend data'!$A$2:$O$11161,J$6,FALSE),3),"-") -> 0.476 | K23: =IFERROR(ROUND(VLOOKUP(CONCATENATE(K$5,$C23),'trend data'!$A$2:$O$11161,K$6,FALSE),3),"-") -> 1.251 | L23: =IFERROR(VLOOKUP(CONCATENATE(L$5,$C23),'trend data'!$A$2:$O$11161,L$6,FALSE),"-") -> 4224 | M23: =IFERROR(VLOOKUP(CONCATENATE(M$5,$C23),'trend data'!$A$2:$O$11161,M$6,FALSE),"-") -> 2071
A24: 201801 | B24: 2018-03-01 | C24: =CONCATENATE(A24,'SSI Data and Charts'!B$1) -> 201801Scotland | D24: =IFERROR(VLOOKUP(CONCATENATE(D$5,$C24),'trend data'!$A$2:$O$11161,D$6,FALSE),"-") -> 64 | E24: =IFERROR(ROUND(VLOOKUP(CONCATENATE(E$5,$C24),'trend data'!$A$2:$O$11161,E$6,FALSE),3),"-") -> 1.61 | F24: =IFERROR(ROUND(VLOOKUP(CONCATENATE(F$5,$C24),'trend data'!$A$2:$O$11161,F$6,FALSE),3),"-") -> 1.263 | G24: =IFERROR(ROUND(VLOOKUP(CONCATENATE(G$5,$C24),'trend data'!$A$2:$O$11161,G$6,FALSE),3),"-") -> 2.051 | H24: =IFERROR(VLOOKUP(CONCATENATE(H$5,$C24),'trend data'!$A$2:$O$11161,H$6,FALSE),"-") -> 17 | I24: =IFERROR(ROUND(VLOOKUP(CONCATENATE(I$5,$C24),'trend data'!$A$2:$O$11161,I$6,FALSE),3),"-") -> 0.847 | J24: =IFERROR(ROUND(VLOOKUP(CONCATENATE(J$5,$C24),'trend data'!$A$2:$O$11161,J$6,FALSE),3),"-") -> 0.529 | K24: =IFERROR(ROUND(VLOOKUP(CONCATENATE(K$5,$C24),'trend data'!$A$2:$O$11161,K$6,FALSE),3),"-") -> 1.352 | L24: =IFERROR(VLOOKUP(CONCATENATE(L$5,$C24),'trend data'!$A$2:$O$11161,L$6,FALSE),"-") -> 3975 | M24: =IFERROR(VLOOKUP(CONCATENATE(M$5,$C24),'trend data'!$A$2:$O$11161,M$6,FALSE),"-") -> 2008
A25: 201802 | B25: 2018-06-01 | C25: =CONCATENATE(A25,'SSI Data and Charts'!B$1) -> 201802Scotland | D25: =IFERROR(VLOOKUP(CONCATENATE(D$5,$C25),'trend data'!$A$2:$O$11161,D$6,FALSE),"-") -> 61 | E25: =IFERROR(ROUND(VLOOKUP(CONCATENATE(E$5,$C25),'trend data'!$A$2:$O$11161,E$6,FALSE),3),"-") -> 1.455 | F25: =IFERROR(ROUND(VLOOKUP(CONCATENATE(F$5,$C25),'trend data'!$A$2:$O$11161,F$6,FALSE),3),"-") -> 1.135 | G25: =IFERROR(ROUND(VLOOKUP(CONCATENATE(G$5,$C25),'trend data'!$A$2:$O$11161,G$6,FALSE),3),"-") -> 1.865 | H25: =IFERROR(VLOOKUP(CONCATENATE(H$5,$C25),'trend data'!$A$2:$O$11161,H$6,FALSE),"-") -> 18 | I25: =IFERROR(ROUND(VLOOKUP(CONCATENATE(I$5,$C25),'trend data'!$A$2:$O$11161,I$6,FALSE),3),"-") -> 0.793 | J25: =IFERROR(ROUND(VLOOKUP(CONCATENATE(J$5,$C25),'trend data'!$A$2:$O$11161,J$6,FALSE),3),"-") -> 0.502 | K25: =IFERROR(ROUND(VLOOKUP(CONCATENATE(K$5,$C25),'trend data'!$A$2:$O$11161,K$6,FALSE),3),"-") -> 1.25 | L25: =IFERROR(VLOOKUP(CONCATENATE(L$5,$C25),'trend data'!$A$2:$O$11161,L$6,FALSE),"-") -> 4191 | M25: =IFERROR(VLOOKUP(CONCATENATE(M$5,$C25),'trend data'!$A$2:$O$11161,M$6,FALSE),"-") -> 2270
A26: 201803 | B26: 2018-09-01 | C26: =CONCATENATE(A26,'SSI Data and Charts'!B$1) -> 201803Scotland | D26: =IFERROR(VLOOKUP(CONCATENATE(D$5,$C26),'trend data'!$A$2:$O$11161,D$6,FALSE),"-") -> 66 | E26: =IFERROR(ROUND(VLOOKUP(CONCATENATE(E$5,$C26),'trend data'!$A$2:$O$11161,E$6,FALSE),3),"-") -> 1.537 | F26: =IFERROR(ROUND(VLOOKUP(CONCATENATE(F$5,$C26),'trend data'!$A$2:$O$11161,F$6,FALSE),3),"-") -> 1.21 | G26: =IFERROR(ROUND(VLOOKUP(CONCATENATE(G$5,$C26),'trend data'!$A$2:$O$11161,G$6,FALSE),3),"-") -> 1.951 | H26: =IFERROR(VLOOKUP(CONCATENATE(H$5,$C26),'trend data'!$A$2:$O$11161,H$6,FALSE),"-") -> 13 | I26: =IFERROR(ROUND(VLOOKUP(CONCATENATE(I$5,$C26),'trend data'!$A$2:$O$11161,I$6,FALSE),3),"-") -> 0.603 | J26: =IFERROR(ROUND(VLOOKUP(CONCATENATE(J$5,$C26),'trend data'!$A$2:$O$11161,J$6,FALSE),3),"-") -> 0.353 | K26: =IFERROR(ROUND(VLOOKUP(CONCATENATE(K$5,$C26),'trend data'!$A$2:$O$11161,K$6,FALSE),3),"-") -> 1.029 | L26: =IFERROR(VLOOKUP(CONCATENATE(L$5,$C26),'trend data'!$A$2:$O$11161,L$6,FALSE),"-") -> 4293 | M26: =IFERROR(VLOOKUP(CONCATENATE(M$5,$C26),'trend data'!$A$2:$O$11161,M$6,FALSE),"-") -> 2155
A27: 201804 | B27: 2018-12-01 | C27: =CONCATENATE(A27,'SSI Data and Charts'!B$1) -> 201804Scotland | D27: =IFERROR(VLOOKUP(CONCATENATE(D$5,$C27),'trend data'!$A$2:$O$11161,D$6,FALSE),"-") -> 59 | E27: =IFERROR(ROUND(VLOOKUP(CONCATENATE(E$5,$C27),'trend data'!$A$2:$O$11161,E$6,FALSE),3),"-") -> 1.358 | F27: =IFERROR(ROUND(VLOOKUP(CONCATENATE(F$5,$C27),'trend data'!$A$2:$O$11161,F$6,FALSE),3),"-") -> 1.054 | G27: =IFERROR(ROUND(VLOOKUP(CONCATENATE(G$5,$C27),'trend data'!$A$2:$O$11161,G$6,FALSE),3),"-") -> 1.747 | H27: =IFERROR(VLOOKUP(CONCATENATE(H$5,$C27),'trend data'!$A$2:$O$11161,H$6,FALSE),"-") -> 16 | I27: =IFERROR(ROUND(VLOOKUP(CONCATENATE(I$5,$C27),'trend data'!$A$2:$O$11161,I$6,FALSE),3),"-") -> 0.703 | J27: =IFERROR(ROUND(VLOOKUP(CONCATENATE(J$5,$C27),'trend data'!$A$2:$O$11161,J$6,FALSE),3),"-") -> 0.433 | K27: =IFERROR(ROUND(VLOOKUP(CONCATENATE(K$5,$C27),'trend data'!$A$2:$O$11161,K$6,FALSE),3),"-") -> 1.139 | L27: =IFERROR(VLOOKUP(CONCATENATE(L$5,$C27),'trend data'!$A$2:$O$11161,L$6,FALSE),"-") -> 4346 | M27: =IFERROR(VLOOKUP(CONCATENATE(M$5,$C27),'trend data'!$A$2:$O$11161,M$6,FALSE),"-") -> 2276
A28: 201901 | B28: 2019-03-01 | C28: =CONCATENATE(A28,'SSI Data and Charts'!B$1) -> 201901Scotland | D28: =IFERROR(VLOOKUP(CONCATENATE(D$5,$C28),'trend data'!$A$2:$O$11161,D$6,FALSE),"-") -> 64 | E28: =IFERROR(ROUND(VLOOKUP(CONCATENATE(E$5,$C28),'trend data'!$A$2:$O$11161,E$6,FALSE),3),"-") -> 1.58 | F28: =IFERROR(ROUND(VLOOKUP(CONCATENATE(F$5,$C28),'trend data'!$A$2:$O$11161,F$6,FALSE),3),"-") -> 1.239 | G28: =IFERROR(ROUND(VLOOKUP(CONCATENATE(G$5,$C28),'trend data'!$A$2:$O$11161,G$6,FALSE),3),"-") -> 2.012 | H28: =IFERROR(VLOOKUP(CONCATENATE(H$5,$C28),'trend data'!$A$2:$O$11161,H$6,FALSE),"-") -> 8 | I28: =IFERROR(ROUND(VLOOKUP(CONCATENATE(I$5,$C28),'trend data'!$A$2:$O$11161,I$6,FALSE),3),"-") -> 0.373 | J28: =IFERROR(ROUND(VLOOKUP(CONCATENATE(J$5,$C28),'trend data'!$A$2:$O$11161,J$6,FALSE),3),"-") -> 0.189 | K28: =IFERROR(ROUND(VLOOKUP(CONCATENATE(K$5,$C28),'trend data'!$A$2:$O$11161,K$6,FALSE),3),"-") -> 0.734 | L28: =IFERROR(VLOOKUP(CONCATENATE(L$5,$C28),'trend data'!$A$2:$O$11161,L$6,FALSE),"-") -> 4051 | M28: =IFERROR(VLOOKUP(CONCATENATE(M$5,$C28),'trend data'!$A$2:$O$11161,M$6,FALSE),"-") -> 2146
A29: 201902 | B29: 2019-06-01 | C29: =CONCATENATE(A29,'SSI Data and Charts'!B$1) -> 201902Scotland | D29: =IFERROR(VLOOKUP(CONCATENATE(D$5,$C29),'trend data'!$A$2:$O$11161,D$6,FALSE),"-") -> 43 | E29: =IFERROR(ROUND(VLOOKUP(CONCATENATE(E$5,$C29),'trend data'!$A$2:$O$11161,E$6,FALSE),3),"-") -> 1.044 | F29: =IFERROR(ROUND(VLOOKUP(CONCATENATE(F$5,$C29),'trend data'!$A$2:$O$11161,F$6,FALSE),3),"-") -> 0.776 | G29: =IFERROR(ROUND(VLOOKUP(CONCATENATE(G$5,$C29),'trend data'!$A$2:$O$11161,G$6,FALSE),3),"-") -> 1.403 | H29: =IFERROR(VLOOKUP(CONCATENATE(H$5,$C29),'trend data'!$A$2:$O$11161,H$6,FALSE),"-") -> 10 | I29: =IFERROR(ROUND(VLOOKUP(CONCATENATE(I$5,$C29),'trend data'!$A$2:$O$11161,I$6,FALSE),3),"-") -> 0.443 | J29: =IFERROR(ROUND(VLOOKUP(CONCATENATE(J$5,$C29),'trend data'!$A$2:$O$11161,J$6,FALSE),3),"-") -> 0.241 | K29: =IFERROR(ROUND(VLOOKUP(CONCATENATE(K$5,$C29),'trend data'!$A$2:$O$11161,K$6,FALSE),3),"-") -> 0.814 | L29: =IFERROR(VLOOKUP(CONCATENATE(L$5,$C29),'trend data'!$A$2:$O$11161,L$6,FALSE),"-") -> 4118 | M29: =IFERROR(VLOOKUP(CONCATENATE(M$5,$C29),'trend data'!$A$2:$O$11161,M$6,FALSE),"-") -> 2257
A30: 201903 | B30: 2019-09-01 | C30: =CONCATENATE(A30,'SSI Data and Charts'!B$1) -> 201903Scotland | D30: =IFERROR(VLOOKUP(CONCATENATE(D$5,$C30),'trend data'!$A$2:$O$11161,D$6,FALSE),"-") -> 51 | E30: =IFERROR(ROUND(VLOOKUP(CONCATENATE(E$5,$C30),'trend data'!$A$2:$O$11161,E$6,FALSE),3),"-") -> 1.157 | F30: =IFERROR(ROUND(VLOOKUP(CONCATENATE(F$5,$C30),'trend data'!$A$2:$O$11161,F$6,FALSE),3),"-") -> 0.881 | G30: =IFERROR(ROUND(VLOOKUP(CONCATENATE(G$5,$C30),'trend data'!$A$2:$O$11161,G$6,FALSE),3),"-") -> 1.518 | H30: =IFERROR(VLOOKUP(CONCATENATE(H$5,$C30),'trend data'!$A$2:$O$11161,H$6,FALSE),"-") -> 17 | I30: =IFERROR(ROUND(VLOOKUP(CONCATENATE(I$5,$C30),'trend data'!$A$2:$O$11161,I$6,FALSE),3),"-") -> 0.802 | J30: =IFERROR(ROUND(VLOOKUP(CONCATENATE(J$5,$C30),'trend data'!$A$2:$O$11161,J$6,FALSE),3),"-") -> 0.501 | K30: =IFERROR(ROUND(VLOOKUP(CONCATENATE(K$5,$C30),'trend data'!$A$2:$O$11161,K$6,FALSE),3),"-") -> 1.28 | L30: =IFERROR(VLOOKUP(CONCATENATE(L$5,$C30),'trend data'!$A$2:$O$11161,L$6,FALSE),"-") -> 4408 | M30: =IFERROR(VLOOKUP(CONCATENATE(M$5,$C30),'trend data'!$A$2:$O$11161,M$6,FALSE),"-") -> 2121
A31: 201904 | B31: 2019-12-01 | C31: =CONCATENATE(A31,'SSI Data and Charts'!B$1) -> 201904Scotland | D31: =IFERROR(VLOOKUP(CONCATENATE(D$5,$C31),'trend data'!$A$2:$O$11161,D$6,FALSE),"-") -> 35 | E31: =IFERROR(ROUND(VLOOKUP(CONCATENATE(E$5,$C31),'trend data'!$A$2:$O$11161,E$6,FALSE),3),"-") -> 0.851 | F31: =IFERROR(ROUND(VLOOKUP(CONCATENATE(F$5,$C31),'trend data'!$A$2:$O$11161,F$6,FALSE),3),"-") -> 0.613 | G31: =IFERROR(ROUND(VLOOKUP(CONCATENATE(G$5,$C31),'trend data'!$A$2:$O$11161,G$6,FALSE),3),"-") -> 1.181 | H31: =IFERROR(VLOOKUP(CONCATENATE(H$5,$C31),'trend data'!$A$2:$O$11161,H$6,FALSE),"-") -> 17 | I31: =IFERROR(ROUND(VLOOKUP(CONCATENATE(I$5,$C31),'trend data'!$A$2:$O$11161,I$6,FALSE),3),"-") -> 0.793 | J31: =IFERROR(ROUND(VLOOKUP(CONCATENATE(J$5,$C31),'trend data'!$A$2:$O$11161,J$6,FALSE),3),"-") -> 0.495 | K31: =IFERROR(ROUND(VLOOKUP(CONCATENATE(K$5,$C31),'trend data'!$A$2:$O$11161,K$6,FALSE),3),"-") -> 1.266 | L31: =IFERROR(VLOOKUP(CONCATENATE(L$5,$C31),'trend data'!$A$2:$O$11161,L$6,FALSE),"-") -> 4112 | M31: =IFERROR(VLOOKUP(CONCATENATE(M$5,$C31),'trend data'!$A$2:$O$11161,M$6,FALSE),"-") -> 2145
A32: 202001 | B32: 2020-03-01 | C32: =CONCATENATE(A32,'SSI Data and Charts'!B$1) -> 202001Scotland | D32: =IFERROR(VLOOKUP(CONCATENATE(D$5,$C32),'trend data'!$A$2:$O$11161,D$6,FALSE),"-") -> - | E32: =IFERROR(ROUND(VLOOKUP(CONCATENATE(E$5,$C32),'trend data'!$A$2:$O$11161,E$6,FALSE),3),"-") -> - | F32: =IFERROR(ROUND(VLOOKUP(CONCATENATE(F$5,$C32),'trend data'!$A$2:$O$11161,F$6,FALSE),3),"-") -> - | G32: =IFERROR(ROUND(VLOOKUP(CONCATENATE(G$5,$C32),'trend data'!$A$2:$O$11161,G$6,FALSE),3),"-") -> - | H32: =IFERROR(VLOOKUP(CONCATENATE(H$5,$C32),'trend data'!$A$2:$O$11161,H$6,FALSE),"-") -> - | I32: =IFERROR(ROUND(VLOOKUP(CONCATENATE(I$5,$C32),'trend data'!$A$2:$O$11161,I$6,FALSE),3),"-") -> - | J32: =IFERROR(ROUND(VLOOKUP(CONCATENATE(J$5,$C32),'trend data'!$A$2:$O$11161,J$6,FALSE),3),"-") -> - | K32: =IFERROR(ROUND(VLOOKUP(CONCATENATE(K$5,$C32),'trend data'!$A$2:$O$11161,K$6,FALSE),3),"-") -> - | L32: =IFERROR(VLOOKUP(CONCATENATE(L$5,$C32),'trend data'!$A$2:$O$11161,L$6,FALSE),"-") -> - | M32: =IFERROR(VLOOKUP(CONCATENATE(M$5,$C32),'trend data'!$A$2:$O$11161,M$6,FALSE),"-") -> -
A33: 202002 | B33: 2020-06-01 | C33: =CONCATENATE(A33,'SSI Data and Charts'!B$1) -> 202002Scotland | D33: =IFERROR(VLOOKUP(CONCATENATE(D$5,$C33),'trend data'!$A$2:$O$11161,D$6,FALSE),"-") -> - | E33: =IFERROR(ROUND(VLOOKUP(CONCATENATE(E$5,$C33),'trend data'!$A$2:$O$11161,E$6,FALSE),3),"-") -> - | F33: =IFERROR(ROUND(VLOOKUP(CONCATENATE(F$5,$C33),'trend data'!$A$2:$O$11161,F$6,FALSE),3),"-") -> - | G33: =IFERROR(ROUND(VLOOKUP(CONCATENATE(G$5,$C33),'trend data'!$A$2:$O$11161,G$6,FALSE),3),"-") -> - | H33: =IFERROR(VLOOKUP(CONCATENATE(H$5,$C33),'trend data'!$A$2:$O$11161,H$6,FALSE),"-") -> - | I33: =IFERROR(ROUND(VLOOKUP(CONCATENATE(I$5,$C33),'trend data'!$A$2:$O$11161,I$6,FALSE),3),"-") -> - | J33: =IFERROR(ROUND(VLOOKUP(CONCATENATE(J$5,$C33),'trend data'!$A$2:$O$11161,J$6,FALSE),3),"-") -> - | K33: =IFERROR(ROUND(VLOOKUP(CONCATENATE(K$5,$C33),'trend data'!$A$2:$O$11161,K$6,FALSE),3),"-") -> - | L33: =IFERROR(VLOOKUP(CONCATENATE(L$5,$C33),'trend data'!$A$2:$O$11161,L$6,FALSE),"-") -> - | M33: =IFERROR(VLOOKUP(CONCATENATE(M$5,$C33),'trend data'!$A$2:$O$11161,M$6,FALSE),"-") -> -
A34: 202003 | B34: 2020-09-01 | C34: =CONCATENATE(A34,'SSI Data and Charts'!B$1) -> 202003Scotland | D34: =IFERROR(VLOOKUP(CONCATENATE(D$5,$C34),'trend data'!$A$2:$O$11161,D$6,FALSE),"-") -> - | E34: =IFERROR(ROUND(VLOOKUP(CONCATENATE(E$5,$C34),'trend data'!$A$2:$O$11161,E$6,FALSE),4),"-") -> - | F34: =IFERROR(ROUND(VLOOKUP(CONCATENATE(F$5,$C34),'trend data'!$A$2:$O$11161,F$6,FALSE),4),"-") -> - | G34: =IFERROR(ROUND(VLOOKUP(CONCATENATE(G$5,$C34),'trend data'!$A$2:$O$11161,G$6,FALSE),4),"-") -> - | H34: =IFERROR(VLOOKUP(CONCATENATE(H$5,$C34),'trend data'!$A$2:$O$11161,H$6,FALSE),"-") -> - | I34: =IFERROR(ROUND(VLOOKUP(CONCATENATE(I$5,$C34),'trend data'!$A$2:$O$11161,I$6,FALSE),4),"-") -> - | J34: =IFERROR(ROUND(VLOOKUP(CONCATENATE(J$5,$C34),'trend data'!$A$2:$O$11161,J$6,FALSE),4),"-") -> - | K34: =IFERROR(ROUND(VLOOKUP(CONCATENATE(K$5,$C34),'trend data'!$A$2:$O$11161,K$6,FALSE),4),"-") -> - | L34: =IFERROR(VLOOKUP(CONCATENATE(L$5,$C34),'trend data'!$A$2:$O$11161,L$6,FALSE),"-") -> - | M34: =IFERROR(VLOOKUP(CONCATENATE(M$5,$C34),'trend data'!$A$2:$O$11161,M$6,FALSE),"-") -> -
A35: 202004 | B35: 2020-12-31 | C35: =CONCATENATE(A35,'SSI Data and Charts'!B$1) -> 202004Scotland | D35: =IFERROR(VLOOKUP(CONCATENATE(D$5,$C35),'trend data'!$A$2:$O$11161,D$6,FALSE),"-") -> - | E35: =IFERROR(ROUND(VLOOKUP(CONCATENATE(E$5,$C35),'trend data'!$A$2:$O$11161,E$6,FALSE),4),"-") -> - | F35: =IFERROR(ROUND(VLOOKUP(CONCATENATE(F$5,$C35),'trend data'!$A$2:$O$11161,F$6,FALSE),4),"-") -> - | G35: =IFERROR(ROUND(VLOOKUP(CONCATENATE(G$5,$C35),'trend data'!$A$2:$O$11161,G$6,FALSE),4),"-") -> - | H35: =IFERROR(VLOOKUP(CONCATENATE(H$5,$C35),'trend data'!$A$2:$O$11161,H$6,FALSE),"-") -> - | I35: =IFERROR(ROUND(VLOOKUP(CONCATENATE(I$5,$C35),'trend data'!$A$2:$O$11161,I$6,FALSE),4),"-") -> - | J35: =IFERROR(ROUND(VLOOKUP(CONCATENATE(J$5,$C35),'trend data'!$A$2:$O$11161,J$6,FALSE),4),"-") -> - | K35: =IFERROR(ROUND(VLOOKUP(CONCATENATE(K$5,$C35),'trend data'!$A$2:$O$11161,K$6,FALSE),4),"-") -> - | L35: =IFERROR(VLOOKUP(CONCATENATE(L$5,$C35),'trend data'!$A$2:$O$11161,L$6,FALSE),"-") -> - | M35: =IFERROR(VLOOKUP(CONCATENATE(M$5,$C35),'trend data'!$A$2:$O$11161,M$6,FALSE),"-") -> -
A36: 202101 | B36: 2021-03-31 | C36: =CONCATENATE(A36,'SSI Data and Charts'!B$1) -> 202101Scotland | D36: =IFERROR(VLOOKUP(CONCATENATE(D$5,$C36),'trend data'!$A$2:$O$11161,D$6,FALSE),"-") -> - | E36: =IFERROR(ROUND(VLOOKUP(CONCATENATE(E$5,$C36),'trend data'!$A$2:$O$11161,E$6,FALSE),4),"-") -> - | F36: =IFERROR(ROUND(VLOOKUP(CONCATENATE(F$5,$C36),'trend data'!$A$2:$O$11161,F$6,FALSE),4),"-") -> - | G36: =IFERROR(ROUND(VLOOKUP(CONCATENATE(G$5,$C36),'trend data'!$A$2:$O$11161,G$6,FALSE),4),"-") -> - | H36: =IFERROR(VLOOKUP(CONCATENATE(H$5,$C36),'trend data'!$A$2:$O$11161,H$6,FALSE),"-") -> - | I36: =IFERROR(ROUND(VLOOKUP(CONCATENATE(I$5,$C36),'trend data'!$A$2:$O$11161,I$6,FALSE),4),"-") -> - | J36: =IFERROR(ROUND(VLOOKUP(CONCATENATE(J$5,$C36),'trend data'!$A$2:$O$11161,J$6,FALSE),4),"-") -> - | K36: =IFERROR(ROUND(VLOOKUP(CONCATENATE(K$5,$C36),'trend data'!$A$2:$O$11161,K$6,FALSE),4),"-") -> - | L36: =IFERROR(VLOOKUP(CONCATENATE(L$5,$C36),'trend data'!$A$2:$O$11161,L$6,FALSE),"-") -> - | M36: =IFERROR(VLOOKUP(CONCATENATE(M$5,$C36),'trend data'!$A$2:$O$11161,M$6,FALSE),"-") -> -
A37: 202102 | B37: 2021-06-30 | C37: =CONCATENATE(A37,'SSI Data and Charts'!B$1) -> 202102Scotland | D37: =IFERROR(VLOOKUP(CONCATENATE(D$5,$C37),'trend data'!$A$2:$O$11161,D$6,FALSE),"-") -> - | E37: =IFERROR(ROUND(VLOOKUP(CONCATENATE(E$5,$C37),'trend data'!$A$2:$O$11161,E$6,FALSE),4),"-") -> - | F37: =IFERROR(ROUND(VLOOKUP(CONCATENATE(F$5,$C37),'trend data'!$A$2:$O$11161,F$6,FALSE),4),"-") -> - | G37: =IFERROR(ROUND(VLOOKUP(CONCATENATE(G$5,$C37),'trend data'!$A$2:$O$11161,G$6,FALSE),4),"-") -> - | H37: =IFERROR(VLOOKUP(CONCATENATE(H$5,$C37),'trend data'!$A$2:$O$11161,H$6,FALSE),"-") -> - | I37: =IFERROR(ROUND(VLOOKUP(CONCATENATE(I$5,$C37),'trend data'!$A$2:$O$11161,I$6,FALSE),4),"-") -> - | J37: =IFERROR(ROUND(VLOOKUP(CONCATENATE(J$5,$C37),'trend data'!$A$2:$O$11161,J$6,FALSE),4),"-") -> - | K37: =IFERROR(ROUND(VLOOKUP(CONCATENATE(K$5,$C37),'trend data'!$A$2:$O$11161,K$6,FALSE),4),"-") -> - | L37: =IFERROR(VLOOKUP(CONCATENATE(L$5,$C37),'trend data'!$A$2:$O$11161,L$6,FALSE),"-") -> - | M37: =IFERROR(VLOOKUP(CONCATENATE(M$5,$C37),'trend data'!$A$2:$O$11161,M$6,FALSE),"-") -> -
A38: 202103 | B38: 2021-09-30 | C38: =CONCATENATE(A38,'SSI Data and Charts'!B$1) -> 202103Scotland | D38: =IFERROR(VLOOKUP(CONCATENATE(D$5,$C38),'trend data'!$A$2:$O$11161,D$6,FALSE),"-") -> - | E38: =IFERROR(ROUND(VLOOKUP(CONCATENATE(E$5,$C38),'trend data'!$A$2:$O$11161,E$6,FALSE),4),"-") -> - | F38: =IFERROR(ROUND(VLOOKUP(CONCATENATE(F$5,$C38),'trend data'!$A$2:$O$11161,F$6,FALSE),4),"-") -> - | G38: =IFERROR(ROUND(VLOOKUP(CONCATENATE(G$5,$C38),'trend data'!$A$2:$O$11161,G$6,FALSE),4),"-") -> - | H38: =IFERROR(VLOOKUP(CONCATENATE(H$5,$C38),'trend data'!$A$2:$O$11161,H$6,FALSE),"-") -> - | I38: =IFERROR(ROUND(VLOOKUP(CONCATENATE(I$5,$C38),'trend data'!$A$2:$O$11161,I$6,FALSE),4),"-") -> - | J38: =IFERROR(ROUND(VLOOKUP(CONCATENATE(J$5,$C38),'trend data'!$A$2:$O$11161,J$6,FALSE),4),"-") -> - | K38: =IFERROR(ROUND(VLOOKUP(CONCATENATE(K$5,$C38),'trend data'!$A$2:$O$11161,K$6,FALSE),4),"-") -> - | L38: =IFERROR(VLOOKUP(CONCATENATE(L$5,$C38),'trend data'!$A$2:$O$11161,L$6,FALSE),"-") -> - | M38: =IFERROR(VLOOKUP(CONCATENATE(M$5,$C38),'trend data'!$A$2:$O$11161,M$6,FALSE),"-") -> -
A39: 202104 | B39: 2021-12-31 | C39: =CONCATENATE(A39,'SSI Data and Charts'!B$1) -> 202104Scotland | D39: =IFERROR(VLOOKUP(CONCATENATE(D$5,$C39),'trend data'!$A$2:$O$11161,D$6,FALSE),"-") -> - | E39: =IFERROR(ROUND(VLOOKUP(CONCATENATE(E$5,$C39),'trend data'!$A$2:$O$11161,E$6,FALSE),4),"-") -> - | F39: =IFERROR(ROUND(VLOOKUP(CONCATENATE(F$5,$C39),'trend data'!$A$2:$O$11161,F$6,FALSE),4),"-") -> - | G39: =IFERROR(ROUND(VLOOKUP(CONCATENATE(G$5,$C39),'trend data'!$A$2:$O$11161,G$6,FALSE),4),"-") -> - | H39: =IFERROR(VLOOKUP(CONCATENATE(H$5,$C39),'trend data'!$A$2:$O$11161,H$6,FALSE),"-") -> - | I39: =IFERROR(ROUND(VLOOKUP(CONCATENATE(I$5,$C39),'trend data'!$A$2:$O$11161,I$6,FALSE),4),"-") -> - | J39: =IFERROR(ROUND(VLOOKUP(CONCATENATE(J$5,$C39),'trend data'!$A$2:$O$11161,J$6,FALSE),4),"-") -> - | K39: =IFERROR(ROUND(VLOOKUP(CONCATENATE(K$5,$C39),'trend data'!$A$2:$O$11161,K$6,FALSE),4),"-") -> - | L39: =IFERROR(VLOOKUP(CONCATENATE(L$5,$C39),'trend data'!$A$2:$O$11161,L$6,FALSE),"-") -> - | M39: =IFERROR(VLOOKUP(CONCATENATE(M$5,$C39),'trend data'!$A$2:$O$11161,M$6,FALSE),"-") -> -
A40: 202201 | B40: 2022-03-31 | C40: =CONCATENATE(A40,'SSI Data and Charts'!B$1) -> 202201Scotland | D40: =IFERROR(VLOOKUP(CONCATENATE(D$5,$C40),'trend data'!$A$2:$O$11161,D$6,FALSE),"-") -> - | E40: =IFERROR(ROUND(VLOOKUP(CONCATENATE(E$5,$C40),'trend data'!$A$2:$O$11161,E$6,FALSE),4),"-") -> - | F40: =IFERROR(ROUND(VLOOKUP(CONCATENATE(F$5,$C40),'trend data'!$A$2:$O$11161,F$6,FALSE),4),"-") -> - | G40: =IFERROR(ROUND(VLOOKUP(CONCATENATE(G$5,$C40),'trend data'!$A$2:$O$11161,G$6,FALSE),4),"-") -> - | H40: =IFERROR(VLOOKUP(CONCATENATE(H$5,$C40),'trend data'!$A$2:$O$11161,H$6,FALSE),"-") -> - | I40: =IFERROR(ROUND(VLOOKUP(CONCATENATE(I$5,$C40),'trend data'!$A$2:$O$11161,I$6,FALSE),4),"-") -> - | J40: =IFERROR(ROUND(VLOOKUP(CONCATENATE(J$5,$C40),'trend data'!$A$2:$O$11161,J$6,FALSE),4),"-") -> - | K40: =IFERROR(ROUND(VLOOKUP(CONCATENATE(K$5,$C40),'trend data'!$A$2:$O$11161,K$6,FALSE),4),"-") -> - | L40: =IFERROR(VLOOKUP(CONCATENATE(L$5,$C40),'trend data'!$A$2:$O$11161,L$6,FALSE),"-") -> - | M40: =IFERROR(VLOOKUP(CONCATENATE(M$5,$C40),'trend data'!$A$2:$O$11161,M$6,FALSE),"-") -> -
A41: 202202 | B41: 2022-06-30 | C41: =CONCATENATE(A41,'SSI Data and Charts'!B$1) -> 202202Scotland | D41: =IFERROR(VLOOKUP(CONCATENATE(D$5,$C41),'trend data'!$A$2:$O$11161,D$6,FALSE),"-") -> - | E41: =IFERROR(ROUND(VLOOKUP(CONCATENATE(E$5,$C41),'trend data'!$A$2:$O$11161,E$6,FALSE),4),"-") -> - | F41: =IFERROR(ROUND(VLOOKUP(CONCATENATE(F$5,$C41),'trend data'!$A$2:$O$11161,F$6,FALSE),4),"-") -> - | G41: =IFERROR(ROUND(VLOOKUP(CONCATENATE(G$5,$C41),'trend data'!$A$2:$O$11161,G$6,FALSE),4),"-") -> - | H41: =IFERROR(VLOOKUP(CONCATENATE(H$5,$C41),'trend data'!$A$2:$O$11161,H$6,FALSE),"-") -> - | I41: =IFERROR(ROUND(VLOOKUP(CONCATENATE(I$5,$C41),'trend data'!$A$2:$O$11161,I$6,FALSE),4),"-") -> - | J41: =IFERROR(ROUND(VLOOKUP(CONCATENATE(J$5,$C41),'trend data'!$A$2:$O$11161,J$6,FALSE),4),"-") -> - | K41: =IFERROR(ROUND(VLOOKUP(CONCATENATE(K$5,$C41),'trend data'!$A$2:$O$11161,K$6,FALSE),4),"-") -> - | L41: =IFERROR(VLOOKUP(CONCATENATE(L$5,$C41),'trend data'!$A$2:$O$11161,L$6,FALSE),"-") -> - | M41: =IFERROR(VLOOKUP(CONCATENATE(M$5,$C41),'trend data'!$A$2:$O$11161,M$6,FALSE),"-") -> -
A42: 202203 | B42: 2022-09-30 | C42: =CONCATENATE(A42,'SSI Data and Charts'!B$1) -> 202203Scotland | D42: =IFERROR(VLOOKUP(CONCATENATE(D$5,$C42),'trend data'!$A$2:$O$11161,D$6,FALSE),"-") -> - | E42: =IFERROR(ROUND(VLOOKUP(CONCATENATE(E$5,$C42),'trend data'!$A$2:$O$11161,E$6,FALSE),4),"-") -> - | F42: =IFERROR(ROUND(VLOOKUP(CONCATENATE(F$5,$C42),'trend data'!$A$2:$O$11161,F$6,FALSE),4),"-") -> - | G42: =IFERROR(ROUND(VLOOKUP(CONCATENATE(G$5,$C42),'trend data'!$A$2:$O$11161,G$6,FALSE),4),"-") -> - | H42: =IFERROR(VLOOKUP(CONCATENATE(H$5,$C42),'trend data'!$A$2:$O$11161,H$6,FALSE),"-") -> - | I42: =IFERROR(ROUND(VLOOKUP(CONCATENATE(I$5,$C42),'trend data'!$A$2:$O$11161,I$6,FALSE),4),"-") -> - | J42: =IFERROR(ROUND(VLOOKUP(CONCATENATE(J$5,$C42),'trend data'!$A$2:$O$11161,J$6,FALSE),4),"-") -> - | K42: =IFERROR(ROUND(VLOOKUP(CONCATENATE(K$5,$C42),'trend data'!$A$2:$O$11161,K$6,FALSE),4),"-") -> - | L42: =IFERROR(VLOOKUP(CONCATENATE(L$5,$C42),'trend data'!$A$2:$O$11161,L$6,FALSE),"-") -> - | M42: =IFERROR(VLOOKUP(CONCATENATE(M$5,$C42),'trend data'!$A$2:$O$11161,M$6,FALSE),"-") -> -
A43: 202204 | B43: 2022-12-31 | C43: =CONCATENATE(A43,'SSI Data and Charts'!B$1) -> 202204Scotland | D43: =IFERROR(VLOOKUP(CONCATENATE(D$5,$C43),'trend data'!$A$2:$O$11161,D$6,FALSE),"-") -> - | E43: =IFERROR(ROUND(VLOOKUP(CONCATENATE(E$5,$C43),'trend data'!$A$2:$O$11161,E$6,FALSE),4),"-") -> - | F43: =IFERROR(ROUND(VLOOKUP(CONCATENATE(F$5,$C43),'trend data'!$A$2:$O$11161,F$6,FALSE),4),"-") -> - | G43: =IFERROR(ROUND(VLOOKUP(CONCATENATE(G$5,$C43),'trend data'!$A$2:$O$11161,G$6,FALSE),4),"-") -> - | H43: =IFERROR(VLOOKUP(CONCATENATE(H$5,$C43),'trend data'!$A$2:$O$11161,H$6,FALSE),"-") -> - | I43: =IFERROR(ROUND(VLOOKUP(CONCATENATE(I$5,$C43),'trend data'!$A$2:$O$11161,I$6,FALSE),4),"-") -> - | J43: =IFERROR(ROUND(VLOOKUP(CONCATENATE(J$5,$C43),'trend data'!$A$2:$O$11161,J$6,FALSE),4),"-") -> - | K43: =IFERROR(ROUND(VLOOKUP(CONCATENATE(K$5,$C43),'trend data'!$A$2:$O$11161,K$6,FALSE),4),"-") -> - | L43: =IFERROR(VLOOKUP(CONCATENATE(L$5,$C43),'trend data'!$A$2:$O$11161,L$6,FALSE),"-") -> - | M43: =IFERROR(VLOOKUP(CONCATENATE(M$5,$C43),'trend data'!$A$2:$O$11161,M$6,FALSE),"-") -> -
A44: 202301 | B44: 2023-03-31 | C44: =CONCATENATE(A44,'SSI Data and Charts'!B$1) -> 202301Scotland | D44: =IFERROR(VLOOKUP(CONCATENATE(D$5,$C44),'trend data'!$A$2:$O$11161,D$6,FALSE),"-") -> - | E44: =IFERROR(ROUND(VLOOKUP(CONCATENATE(E$5,$C44),'trend data'!$A$2:$O$11161,E$6,FALSE),4),"-") -> - | F44: =IFERROR(ROUND(VLOOKUP(CONCATENATE(F$5,$C44),'trend data'!$A$2:$O$11161,F$6,FALSE),4),"-") -> - | G44: =IFERROR(ROUND(VLOOKUP(CONCATENATE(G$5,$C44),'trend data'!$A$2:$O$11161,G$6,FALSE),4),"-") -> - | H44: =IFERROR(VLOOKUP(CONCATENATE(H$5,$C44),'trend data'!$A$2:$O$11161,H$6,FALSE),"-") -> - | I44: =IFERROR(ROUND(VLOOKUP(CONCATENATE(I$5,$C44),'trend data'!$A$2:$O$11161,I$6,FALSE),4),"-") -> - | J44: =IFERROR(ROUND(VLOOKUP(CONCATENATE(J$5,$C44),'trend data'!$A$2:$O$11161,J$6,FALSE),4),"-") -> - | K44: =IFERROR(ROUND(VLOOKUP(CONCATENATE(K$5,$C44),'trend data'!$A$2:$O$11161,K$6,FALSE),4),"-") -> - | L44: =IFERROR(VLOOKUP(CONCATENATE(L$5,$C44),'trend data'!$A$2:$O$11161,L$6,FALSE),"-") -> - | M44: =IFERROR(VLOOKUP(CONCATENATE(M$5,$C44),'trend data'!$A$2:$O$11161,M$6,FALSE),"-") -> -
A45: 202302 | B45: 2023-06-30 | C45: =CONCATENATE(A45,'SSI Data and Charts'!B$1) -> 202302Scotland | D45: =IFERROR(VLOOKUP(CONCATENATE(D$5,$C45),'trend data'!$A$2:$O$11161,D$6,FALSE),"-") -> - | E45: =IFERROR(ROUND(VLOOKUP(CONCATENATE(E$5,$C45),'trend data'!$A$2:$O$11161,E$6,FALSE),4),"-") -> - | F45: =IFERROR(ROUND(VLOOKUP(CONCATENATE(F$5,$C45),'trend data'!$A$2:$O$11161,F$6,FALSE),4),"-") -> - | G45: =IFERROR(ROUND(VLOOKUP(CONCATENATE(G$5,$C45),'trend data'!$A$2:$O$11161,G$6,FALSE),4),"-") -> - | H45: =IFERROR(VLOOKUP(CONCATENATE(H$5,$C45),'trend data'!$A$2:$O$11161,H$6,FALSE),"-") -> - | I45: =IFERROR(ROUND(VLOOKUP(CONCATENATE(I$5,$C45),'trend data'!$A$2:$O$11161,I$6,FALSE),4),"-") -> - | J45: =IFERROR(ROUND(VLOOKUP(CONCATENATE(J$5,$C45),'trend data'!$A$2:$O$11161,J$6,FALSE),4),"-") -> - | K45: =IFERROR(ROUND(VLOOKUP(CONCATENATE(K$5,$C45),'trend data'!$A$2:$O$11161,K$6,FALSE),4),"-") -> - | L45: =IFERROR(VLOOKUP(CONCATENATE(L$5,$C45),'trend data'!$A$2:$O$11161,L$6,FALSE),"-") -> - | M45: =IFERROR(VLOOKUP(CONCATENATE(M$5,$C45),'trend data'!$A$2:$O$11161,M$6,FALSE),"-") -> -
A46: 202303 | B46: 2023-09-30 | C46: =CONCATENATE(A46,'SSI Data and Charts'!B$1) -> 202303Scotland | D46: =IFERROR(VLOOKUP(CONCATENATE(D$5,$C46),'trend data'!$A$2:$O$11161,D$6,FALSE),"-") -> - | E46: =IFERROR(ROUND(VLOOKUP(CONCATENATE(E$5,$C46),'trend data'!$A$2:$O$11161,E$6,FALSE),4),"-") -> - | F46: =IFERROR(ROUND(VLOOKUP(CONCATENATE(F$5,$C46),'trend data'!$A$2:$O$11161,F$6,FALSE),4),"-") -> - | G46: =IFERROR(ROUND(VLOOKUP(CONCATENATE(G$5,$C46),'trend data'!$A$2:$O$11161,G$6,FALSE),4),"-") -> - | H46: =IFERROR(VLOOKUP(CONCATENATE(H$5,$C46),'trend data'!$A$2:$O$11161,H$6,FALSE),"-") -> - | I46: =IFERROR(ROUND(VLOOKUP(CONCATENATE(I$5,$C46),'trend data'!$A$2:$O$11161,I$6,FALSE),4),"-") -> - | J46: =IFERROR(ROUND(VLOOKUP(CONCATENATE(J$5,$C46),'trend data'!$A$2:$O$11161,J$6,FALSE),4),"-") -> - | K46: =IFERROR(ROUND(VLOOKUP(CONCATENATE(K$5,$C46),'trend data'!$A$2:$O$11161,K$6,FALSE),4),"-") -> - | L46: =IFERROR(VLOOKUP(CONCATENATE(L$5,$C46),'trend data'!$A$2:$O$11161,L$6,FALSE),"-") -> - | M46: =IFERROR(VLOOKUP(CONCATENATE(M$5,$C46),'trend data'!$A$2:$O$11161,M$6,FALSE),"-") -> -
A47: 202304 | B47: 2023-12-31 | C47: =CONCATENATE(A47,'SSI Data and Charts'!B$1) -> 202304Scotland | D47: =IFERROR(VLOOKUP(CONCATENATE(D$5,$C47),'trend data'!$A$2:$O$11161,D$6,FALSE),"-") -> - | E47: =IFERROR(ROUND(VLOOKUP(CONCATENATE(E$5,$C47),'trend data'!$A$2:$O$11161,E$6,FALSE),4),"-") -> - | F47: =IFERROR(ROUND(VLOOKUP(CONCATENATE(F$5,$C47),'trend data'!$A$2:$O$11161,F$6,FALSE),4),"-") -> - | G47: =IFERROR(ROUND(VLOOKUP(CONCATENATE(G$5,$C47),'trend data'!$A$2:$O$11161,G$6,FALSE),4),"-") -> - | H47: =IFERROR(VLOOKUP(CONCATENATE(H$5,$C47),'trend data'!$A$2:$O$11161,H$6,FALSE),"-") -> - | I47: =IFERROR(ROUND(VLOOKUP(CONCATENATE(I$5,$C47),'trend data'!$A$2:$O$11161,I$6,FALSE),4),"-") -> - | J47: =IFERROR(ROUND(VLOOKUP(CONCATENATE(J$5,$C47),'trend data'!$A$2:$O$11161,J$6,FALSE),4),"-") -> - | K47: =IFERROR(ROUND(VLOOKUP(CONCATENATE(K$5,$C47),'trend data'!$A$2:$O$11161,K$6,FALSE),4),"-") -> - | L47: =IFERROR(VLOOKUP(CONCATENATE(L$5,$C47),'trend data'!$A$2:$O$11161,L$6,FALSE),"-") -> - | M47: =IFERROR(VLOOKUP(CONCATENATE(M$5,$C47),'trend data'!$A$2:$O$11161,M$6,FALSE),"-") -> -
A48: 202401 | B48: 2024-03-31 | C48: =CONCATENATE(A48,'SSI Data and Charts'!B$1) -> 202401Scotland | D48: =IFERROR(VLOOKUP(CONCATENATE(D$5,$C48),'trend data'!$A$2:$O$11161,D$6,FALSE),"-") -> - | E48: =IFERROR(ROUND(VLOOKUP(CONCATENATE(E$5,$C48),'trend data'!$A$2:$O$11161,E$6,FALSE),4),"-") -> - | F48: =IFERROR(ROUND(VLOOKUP(CONCATENATE(F$5,$C48),'trend data'!$A$2:$O$11161,F$6,FALSE),4),"-") -> - | G48: =IFERROR(ROUND(VLOOKUP(CONCATENATE(G$5,$C48),'trend data'!$A$2:$O$11161,G$6,FALSE),4),"-") -> - | H48: =IFERROR(VLOOKUP(CONCATENATE(H$5,$C48),'trend data'!$A$2:$O$11161,H$6,FALSE),"-") -> - | I48: =IFERROR(ROUND(VLOOKUP(CONCATENATE(I$5,$C48),'trend data'!$A$2:$O$11161,I$6,FALSE),4),"-") -> - | J48: =IFERROR(ROUND(VLOOKUP(CONCATENATE(J$5,$C48),'trend data'!$A$2:$O$11161,J$6,FALSE),4),"-") -> - | K48: =IFERROR(ROUND(VLOOKUP(CONCATENATE(K$5,$C48),'trend data'!$A$2:$O$11161,K$6,FALSE),4),"-") -> - | L48: =IFERROR(VLOOKUP(CONCATENATE(L$5,$C48),'trend data'!$A$2:$O$11161,L$6,FALSE),"-") -> - | M48: =IFERROR(VLOOKUP(CONCATENATE(M$5,$C48),'trend data'!$A$2:$O$11161,M$6,FALSE),"-") -> -
A49: 202402 | B49: 2024-06-30 | C49: =CONCATENATE(A49,'SSI Data and Charts'!B$1) -> 202402Scotland | D49: =IFERROR(VLOOKUP(CONCATENATE(D$5,$C49),'trend data'!$A$2:$O$11161,D$6,FALSE),"-") -> - | E49: =IFERROR(ROUND(VLOOKUP(CONCATENATE(E$5,$C49),'trend data'!$A$2:$O$11161,E$6,FALSE),4),"-") -> - | F49: =IFERROR(ROUND(VLOOKUP(CONCATENATE(F$5,$C49),'trend data'!$A$2:$O$11161,F$6,FALSE),4),"-") -> - | G49: =IFERROR(ROUND(VLOOKUP(CONCATENATE(G$5,$C49),'trend data'!$A$2:$O$11161,G$6,FALSE),4),"-") -> - | H49: =IFERROR(VLOOKUP(CONCATENATE(H$5,$C49),'trend data'!$A$2:$O$11161,H$6,FALSE),"-") -> - | I49: =IFERROR(ROUND(VLOOKUP(CONCATENATE(I$5,$C49),'trend data'!$A$2:$O$11161,I$6,FALSE),4),"-") -> - | J49: =IFERROR(ROUND(VLOOKUP(CONCATENATE(J$5,$C49),'trend data'!$A$2:$O$11161,J$6,FALSE),4),"-") -> - | K49: =IFERROR(ROUND(VLOOKUP(CONCATENATE(K$5,$C49),'trend data'!$A$2:$O$11161,K$6,FALSE),4),"-") -> - | L49: =IFERROR(VLOOKUP(CONCATENATE(L$5,$C49),'trend data'!$A$2:$O$11161,L$6,FALSE),"-") -> - | M49: =IFERROR(VLOOKUP(CONCATENATE(M$5,$C49),'trend data'!$A$2:$O$11161,M$6,FALSE),"-") -> -
A50: 202403 | B50: 2024-09-30 | C50: =CONCATENATE(A50,'SSI Data and Charts'!B$1) -> 202403Scotland | D50: =IFERROR(VLOOKUP(CONCATENATE(D$5,$C50),'trend data'!$A$2:$O$11161,D$6,FALSE),"-") -> - | E50: =IFERROR(ROUND(VLOOKUP(CONCATENATE(E$5,$C50),'trend data'!$A$2:$O$11161,E$6,FALSE),4),"-") -> - | F50: =IFERROR(ROUND(VLOOKUP(CONCATENATE(F$5,$C50),'trend data'!$A$2:$O$11161,F$6,FALSE),4),"-") -> - | G50: =IFERROR(ROUND(VLOOKUP(CONCATENATE(G$5,$C50),'trend data'!$A$2:$O$11161,G$6,FALSE),4),"-") -> - | H50: =IFERROR(VLOOKUP(CONCATENATE(H$5,$C50),'trend data'!$A$2:$O$11161,H$6,FALSE),"-") -> - | I50: =IFERROR(ROUND(VLOOKUP(CONCATENATE(I$5,$C50),'trend data'!$A$2:$O$11161,I$6,FALSE),4),"-") -> - | J50: =IFERROR(ROUND(VLOOKUP(CONCATENATE(J$5,$C50),'trend data'!$A$2:$O$11161,J$6,FALSE),4),"-") -> - | K50: =IFERROR(ROUND(VLOOKUP(CONCATENATE(K$5,$C50),'trend data'!$A$2:$O$11161,K$6,FALSE),4),"-") -> - | L50: =IFERROR(VLOOKUP(CONCATENATE(L$5,$C50),'trend data'!$A$2:$O$11161,L$6,FALSE),"-") -> - | M50: =IFERROR(VLOOKUP(CONCATENATE(M$5,$C50),'trend data'!$A$2:$O$11161,M$6,FALSE),"-") -> -
A51: 202404 | B51: 2024-12-31 | C51: =CONCATENATE(A51,'SSI Data and Charts'!B$1) -> 202404Scotland | D51: =IFERROR(VLOOKUP(CONCATENATE(D$5,$C51),'trend data'!$A$2:$O$11161,D$6,FALSE),"-") -> - | E51: =IFERROR(ROUND(VLOOKUP(CONCATENATE(E$5,$C51),'trend data'!$A$2:$O$11161,E$6,FALSE),4),"-") -> - | F51: =IFERROR(ROUND(VLOOKUP(CONCATENATE(F$5,$C51),'trend data'!$A$2:$O$11161,F$6,FALSE),4),"-") -> - | G51: =IFERROR(ROUND(VLOOKUP(CONCATENATE(G$5,$C51),'trend data'!$A$2:$O$11161,G$6,FALSE),4),"-") -> - | H51: =IFERROR(VLOOKUP(CONCATENATE(H$5,$C51),'trend data'!$A$2:$O$11161,H$6,FALSE),"-") -> - | I51: =IFERROR(ROUND(VLOOKUP(CONCATENATE(I$5,$C51),'trend data'!$A$2:$O$11161,I$6,FALSE),4),"-") -> - | J51: =IFERROR(ROUND(VLOOKUP(CONCATENATE(J$5,$C51),'trend data'!$A$2:$O$11161,J$6,FALSE),4),"-") -> - | K51: =IFERROR(ROUND(VLOOKUP(CONCATENATE(K$5,$C51),'trend data'!$A$2:$O$11161,K$6,FALSE),4),"-") -> - | L51: =IFERROR(VLOOKUP(CONCATENATE(L$5,$C51),'trend data'!$A$2:$O$11161,L$6,FALSE),"-") -> - | M51: =IFERROR(VLOOKUP(CONCATENATE(M$5,$C51),'trend data'!$A$2:$O$11161,M$6,FALSE),"-") -> -
A52: 202501 | B52: 2025-03-31 | C52: =CONCATENATE(A52,'SSI Data and Charts'!B$1) -> 202501Scotland | D52: =IFERROR(VLOOKUP(CONCATENATE(D$5,$C52),'trend data'!$A$2:$O$11161,D$6,FALSE),"-") -> - | E52: =IFERROR(ROUND(VLOOKUP(CONCATENATE(E$5,$C52),'trend data'!$A$2:$O$11161,E$6,FALSE),4),"-") -> - | F52: =IFERROR(ROUND(VLOOKUP(CONCATENATE(F$5,$C52),'trend data'!$A$2:$O$11161,F$6,FALSE),4),"-") -> - | G52: =IFERROR(ROUND(VLOOKUP(CONCATENATE(G$5,$C52),'trend data'!$A$2:$O$11161,G$6,FALSE),4),"-") -> - | H52: =IFERROR(VLOOKUP(CONCATENATE(H$5,$C52),'trend data'!$A$2:$O$11161,H$6,FALSE),"-") -> - | I52: =IFERROR(ROUND(VLOOKUP(CONCATENATE(I$5,$C52),'trend data'!$A$2:$O$11161,I$6,FALSE),4),"-") -> - | J52: =IFERROR(ROUND(VLOOKUP(CONCATENATE(J$5,$C52),'trend data'!$A$2:$O$11161,J$6,FALSE),4),"-") -> - | K52: =IFERROR(ROUND(VLOOKUP(CONCATENATE(K$5,$C52),'trend data'!$A$2:$O$11161,K$6,FALSE),4),"-") -> - | L52: =IFERROR(VLOOKUP(CONCATENATE(L$5,$C52),'trend data'!$A$2:$O$11161,L$6,FALSE),"-") -> - | M52: =IFERROR(VLOOKUP(CONCATENATE(M$5,$C52),'trend data'!$A$2:$O$11161,M$6,FALSE),"-") -> -
A53: 202502 | B53: 2025-06-30 | C53: =CONCATENATE(A53,'SSI Data and Charts'!B$1) -> 202502Scotland | D53: =IFERROR(VLOOKUP(CONCATENATE(D$5,$C53),'trend data'!$A$2:$O$11161,D$6,FALSE),"-") -> - | E53: =IFERROR(ROUND(VLOOKUP(CONCATENATE(E$5,$C53),'trend data'!$A$2:$O$11161,E$6,FALSE),4),"-") -> - | F53: =IFERROR(ROUND(VLOOKUP(CONCATENATE(F$5,$C53),'trend data'!$A$2:$O$11161,F$6,FALSE),4),"-") -> - | G53: =IFERROR(ROUND(VLOOKUP(CONCATENATE(G$5,$C53),'trend data'!$A$2:$O$11161,G$6,FALSE),4),"-") -> - | H53: =IFERROR(VLOOKUP(CONCATENATE(H$5,$C53),'trend data'!$A$2:$O$11161,H$6,FALSE),"-") -> - | I53: =IFERROR(ROUND(VLOOKUP(CONCATENATE(I$5,$C53),'trend data'!$A$2:$O$11161,I$6,FALSE),4),"-") -> - | J53: =IFERROR(ROUND(VLOOKUP(CONCATENATE(J$5,$C53),'trend data'!$A$2:$O$11161,J$6,FALSE),4),"-") -> - | K53: =IFERROR(ROUND(VLOOKUP(CONCATENATE(K$5,$C53),'trend data'!$A$2:$O$11161,K$6,FALSE),4),"-") -> - | L53: =IFERROR(VLOOKUP(CONCATENATE(L$5,$C53),'trend data'!$A$2:$O$11161,L$6,FALSE),"-") -> - | M53: =IFERROR(VLOOKUP(CONCATENATE(M$5,$C53),'trend data'!$A$2:$O$11161,M$6,FALSE),"-") -> -
A54: 202503 | B54: 2025-09-30 | C54: =CONCATENATE(A54,'SSI Data and Charts'!B$1) -> 202503Scotland | D54: =IFERROR(VLOOKUP(CONCATENATE(D$5,$C54),'trend data'!$A$2:$O$11161,D$6,FALSE),"-") -> - | E54: =IFERROR(ROUND(VLOOKUP(CONCATENATE(E$5,$C54),'trend data'!$A$2:$O$11161,E$6,FALSE),4),"-") -> - | F54: =IFERROR(ROUND(VLOOKUP(CONCATENATE(F$5,$C54),'trend data'!$A$2:$O$11161,F$6,FALSE),4),"-") -> - | G54: =IFERROR(ROUND(VLOOKUP(CONCATENATE(G$5,$C54),'trend data'!$A$2:$O$11161,G$6,FALSE),4),"-") -> - | H54: =IFERROR(VLOOKUP(CONCATENATE(H$5,$C54),'trend data'!$A$2:$O$11161,H$6,FALSE),"-") -> - | I54: =IFERROR(ROUND(VLOOKUP(CONCATENATE(I$5,$C54),'trend data'!$A$2:$O$11161,I$6,FALSE),4),"-") -> - | J54: =IFERROR(ROUND(VLOOKUP(CONCATENATE(J$5,$C54),'trend data'!$A$2:$O$11161,J$6,FALSE),4),"-") -> - | K54: =IFERROR(ROUND(VLOOKUP(CONCATENATE(K$5,$C54),'trend data'!$A$2:$O$11161,K$6,FALSE),4),"-") -> - | L54: =IFERROR(VLOOKUP(CONCATENATE(L$5,$C54),'trend data'!$A$2:$O$11161,L$6,FALSE),"-") -> - | M54: =IFERROR(VLOOKUP(CONCATENATE(M$5,$C54),'trend data'!$A$2:$O$11161,M$6,FALSE),"-") -> -
A55: 202504 | B55: 2025-12-31 | C55: =CONCATENATE(A55,'SSI Data and Charts'!B$1) -> 202504Scotland | D55: =IFERROR(VLOOKUP(CONCATENATE(D$5,$C55),'trend data'!$A$2:$O$11161,D$6,FALSE),"-") -> - | E55: =IFERROR(ROUND(VLOOKUP(CONCATENATE(E$5,$C55),'trend data'!$A$2:$O$11161,E$6,FALSE),4),"-") -> - | F55: =IFERROR(ROUND(VLOOKUP(CONCATENATE(F$5,$C55),'trend data'!$A$2:$O$11161,F$6,FALSE),4),"-") -> - | G55: =IFERROR(ROUND(VLOOKUP(CONCATENATE(G$5,$C55),'trend data'!$A$2:$O$11161,G$6,FALSE),4),"-") -> - | H55: =IFERROR(VLOOKUP(CONCATENATE(H$5,$C55),'trend data'!$A$2:$O$11161,H$6,FALSE),"-") -> - | I55: =IFERROR(ROUND(VLOOKUP(CONCATENATE(I$5,$C55),'trend data'!$A$2:$O$11161,I$6,FALSE),4),"-") -> - | J55: =IFERROR(ROUND(VLOOKUP(CONCATENATE(J$5,$C55),'trend data'!$A$2:$O$11161,J$6,FALSE),4),"-") -> - | K55: =IFERROR(ROUND(VLOOKUP(CONCATENATE(K$5,$C55),'trend data'!$A$2:$O$11161,K$6,FALSE),4),"-") -> - | L55: =IFERROR(VLOOKUP(CONCATENATE(L$5,$C55),'trend data'!$A$2:$O$11161,L$6,FALSE),"-") -> - | M55: =IFERROR(VLOOKUP(CONCATENATE(M$5,$C55),'trend data'!$A$2:$O$11161,M$6,FALSE),"-") -> -
A56: 202601 | B56: 2026-03-31 | C56: =CONCATENATE(A56,'SSI Data and Charts'!B$1) -> 202601Scotland | D56: =IFERROR(VLOOKUP(CONCATENATE(D$5,$C56),'trend data'!$A$2:$O$11161,D$6,FALSE),"-") -> - | E56: =IFERROR(ROUND(VLOOKUP(CONCATENATE(E$5,$C56),'trend data'!$A$2:$O$11161,E$6,FALSE),4),"-") -> - | F56: =IFERROR(ROUND(VLOOKUP(CONCATENATE(F$5,$C56),'trend data'!$A$2:$O$11161,F$6,FALSE),4),"-") -> - | G56: =IFERROR(ROUND(VLOOKUP(CONCATENATE(G$5,$C56),'trend data'!$A$2:$O$11161,G$6,FALSE),4),"-") -> - | H56: =IFERROR(VLOOKUP(CONCATENATE(H$5,$C56),'trend data'!$A$2:$O$11161,H$6,FALSE),"-") -> - | I56: =IFERROR(ROUND(VLOOKUP(CONCATENATE(I$5,$C56),'trend data'!$A$2:$O$11161,I$6,FALSE),4),"-") -> - | J56: =IFERROR(ROUND(VLOOKUP(CONCATENATE(J$5,$C56),'trend data'!$A$2:$O$11161,J$6,FALSE),4),"-") -> - | K56: =IFERROR(ROUND(VLOOKUP(CONCATENATE(K$5,$C56),'trend data'!$A$2:$O$11161,K$6,FALSE),4),"-") -> - | L56: =IFERROR(VLOOKUP(CONCATENATE(L$5,$C56),'trend data'!$A$2:$O$11161,L$6,FALSE),"-") -> - | M56: =IFERROR(VLOOKUP(CONCATENATE(M$5,$C56),'trend data'!$A$2:$O$11161,M$6,FALSE),"-") -> -

Sheet SAB data (hidden)
A1: Trend data | T1: data for u-charts
A3: always last 3 years
W4: change this
D5: SABHCAI | E5: SABHCAI | F5: SABHCAI | G5: SABHCAI | H5: SABCAUN | I5: SABCAUN | J5: SABCAUN | K5: SABCAUN | L5: SAB | M5: SAB | N5: SAB | O5: SAB | P5: SAB | V5: current quarter end | W5: 2026-03-31 | X5: 3 | Y5: 4 | Z5: 5 | AA5: 6 | AC5: 3 | AD5: 4 | AE5: 5 | AF5: 6 | AH5: 3 | AI5: 4 | AJ5: 5 | AK5: 6
D6: 2 | E6: 4 | F6: 5 | G6: 6 | H6: 2 | I6: 4 | J6: 5 | K6: 6 | L6: 2 | M6: 4 | N6: 5 | O6: 6 | P6: 3
C7: ref | D7: HCAI Cases | E7: Healthcare associated rate | F7: Healthcare associated lower CI | G7: Healthcare associated upper CI | H7: Community associatedCases | I7: Community associated rate | J7: Community associated lower CI | K7: Community associated upper CI | L7: CASES | M7: RATE | N7: LOWER | O7: UPPER | P7: beds | X7: SABHCAI | AC7: SABCAUN | AH7: SAB
A8: 201404 | B8: 2014-12-19 | C8: =CONCATENATE(A8,'SAB Data and Charts'!B$1) -> 201404Scotland | D8: =VLOOKUP(CONCATENATE(D$5,$C8),'trend data'!$A$2:$O$11161,D$6,FALSE) -> 275 | E8: =ROUND(VLOOKUP(CONCATENATE(E$5,$C8),'trend data'!$A$2:$O$11161,E$6,FALSE),3) -> 16.065 | F8: =ROUND(VLOOKUP(CONCATENATE(F$5,$C8),'trend data'!$A$2:$O$11161,F$6,FALSE),3) -> 14.222 | G8: =ROUND(VLOOKUP(CONCATENATE(G$5,$C8),'trend data'!$A$2:$O$11161,G$6,FALSE),3) -> 18.08 | H8: =IFERROR(VLOOKUP(CONCATENATE(H$5,$C8),'trend data'!$A$2:$O$11161,H$6,FALSE),"-") -> 119 | I8: =IFERROR(ROUND(VLOOKUP(CONCATENATE(I$5,$C8),'trend data'!$A$2:$O$11161,I$6,FALSE),3),"-") -> 8.855 | J8: =IFERROR(ROUND(VLOOKUP(CONCATENATE(J$5,$C8),'trend data'!$A$2:$O$11161,J$6,FALSE),3),"-") -> 7.336 | K8: =IFERROR(ROUND(VLOOKUP(CONCATENATE(K$5,$C8),'trend data'!$A$2:$O$11161,K$6,FALSE),3),"-") -> 10.597 | L8: =IFERROR(VLOOKUP(CONCATENATE(L$5,$C8),'trend data'!$A$2:$O$11161,L$6,FALSE),"-") -> - | M8: =IFERROR(VLOOKUP(CONCATENATE(M$5,$C8),'trend data'!$A$2:$O$11161,M$6,FALSE),"-") -> - | N8: =IFERROR(VLOOKUP(CONCATENATE(N$5,$C8),'trend data'!$A$2:$O$11161,N$6,FALSE),"-") -> - | O8: =IFERROR(VLOOKUP(CONCATENATE(O$5,$C8),'trend data'!$A$2:$O$11161,O$6,FALSE),"-") -> - | P8: =IFERROR(VLOOKUP(CONCATENATE(P$5,$C8),'trend data'!$A$2:$O$11161,P$6,FALSE),"-") -> - | T8: change to last 12 quarters | X8: Healthcare associated rate | Y8: Healthcare associated av rate | Z8: Healthcare associated UWL 2sd | AA8: Healthcare associated UCL 3sd | AC8: Community associated rate | AD8: Community associated av rate | AE8: Community associated UWL 2sd | AF8: Community associated UCL 3 sd | AH8: sa rate | AI8: sa av rate | AJ8: sa UWL 2 sd | AK8: sa UCL 3 sd
A9: 201501 | B9: 2015-03-24 | C9: =CONCATENATE(A9,'SAB Data and Charts'!B$1) -> 201501Scotland | D9: =VLOOKUP(CONCATENATE(D$5,$C9),'trend data'!$A$2:$O$11161,D$6,FALSE) -> 263 | E9: =ROUND(VLOOKUP(CONCATENATE(E$5,$C9),'trend data'!$A$2:$O$11161,E$6,FALSE),3) -> 15.258 | F9: =ROUND(VLOOKUP(CONCATENATE(F$5,$C9),'trend data'!$A$2:$O$11161,F$6,FALSE),3) -> 13.469 | G9: =ROUND(VLOOKUP(CONCATENATE(G$5,$C9),'trend data'!$A$2:$O$11161,G$6,FALSE),3) -> 17.218 | H9: =IFERROR(VLOOKUP(CONCATENATE(H$5,$C9),'trend data'!$A$2:$O$11161,H$6,FALSE),"-") -> 126 | I9: =IFERROR(ROUND(VLOOKUP(CONCATENATE(I$5,$C9),'trend data'!$A$2:$O$11161,I$6,FALSE),3),"-") -> 9.55 | J9: =IFERROR(ROUND(VLOOKUP(CONCATENATE(J$5,$C9),'trend data'!$A$2:$O$11161,J$6,FALSE),3),"-") -> 7.956 | K9: =IFERROR(ROUND(VLOOKUP(CONCATENATE(K$5,$C9),'trend data'!$A$2:$O$11161,K$6,FALSE),3),"-") -> 11.371 | L9: =IFERROR(VLOOKUP(CONCATENATE(L$5,$C9),'trend data'!$A$2:$O$11161,L$6,FALSE),"-") -> - | M9: =IFERROR(VLOOKUP(CONCATENATE(M$5,$C9),'trend data'!$A$2:$O$11161,M$6,FALSE),"-") -> - | N9: =IFERROR(VLOOKUP(CONCATENATE(N$5,$C9),'trend data'!$A$2:$O$11161,N$6,FALSE),"-") -> - | O9: =IFERROR(VLOOKUP(CONCATENATE(O$5,$C9),'trend data'!$A$2:$O$11161,O$6,FALSE),"-") -> - | P9: =IFERROR(VLOOKUP(CONCATENATE(P$5,$C9),'trend data'!$A$2:$O$11161,P$6,FALSE),"-") -> - | T9: =YEAR(W9)&"0"&IF(MONTH(W9)<4,1,IF(MONTH(W9)<7,2,IF(MONTH(W9)<10,3,4))) -> 202302 | U9: =CONCATENATE(X$7,$T9,'SAB Data and Charts'!B$1) -> SABHCAI202302Scotland | V9: 1 | W9: =W10-92 -> 2023-06-23 | X9: =ROUND(VLOOKUP($U9,'data for u-p-charts'!$A$2:$F$5000,X$5,FALSE),2) -> 18.32 | Y9: =ROUND(VLOOKUP($U9,'data for u-p-charts'!$A$2:$F$5000,Y$5,FALSE),2) -> 18.63 | Z9: =ROUND(VLOOKUP($U9,'data for u-p-charts'!$A$2:$F$5000,Z$5,FALSE),2) -> 20.82 | AA9: =ROUND(VLOOKUP($U9,'data for u-p-charts'!$A$2:$F$5000,AA$5,FALSE),2) -> 21.92 | AB9: =CONCATENATE(AC$7,$T9,'SAB Data and Charts'!$B$1) -> SABCAUN202302Scotland | AC9: =ROUND(VLOOKUP($AB9,'data for u-p-charts'!$A$2:$F$5000,AC$5,FALSE),2) -> 10.23 | AD9: =ROUND(VLOOKUP($AB9,'data for u-p-charts'!$A$2:$F$5000,AD$5,FALSE),2) -> 10.02 | AE9: =ROUND(VLOOKUP($AB9,'data for u-p-charts'!$A$2:$F$5000,AE$5,FALSE),2) -> 11.73 | AF9: =ROUND(VLOOKUP($AB9,'data for u-p-charts'!$A$2:$F$5000,AF$5,FALSE),2) -> 12.58 | AG9: =CONCATENATE(AH$7,$T9,'SAB Data and Charts'!$B$1) -> SAB 202302Scotland | AH9: =VLOOKUP($AG9,'data for u-p-charts'!$A$2:$F$5000,AH$5,FALSE) ->  | AI9: =VLOOKUP($AG9,'data for u-p-charts'!$A$2:$F$5000,AI$5,FALSE) ->  | AJ9: =VLOOKUP($AG9,'data for u-p-charts'!$A$2:$F$5000,AJ$5,FALSE) ->  | AK9: =VLOOKUP($AG9,'data for u-p-charts'!$A$2:$F$5000,AK$5,FALSE) -> 
A10: 201502 | B10: 2015-06-24 | C10: =CONCATENATE(A10,'SAB Data and Charts'!B$1) -> 201502Scotland | D10: =VLOOKUP(CONCATENATE(D$5,$C10),'trend data'!$A$2:$O$11161,D$6,FALSE) -> 284 | E10: =ROUND(VLOOKUP(CONCATENATE(E$5,$C10),'trend data'!$A$2:$O$11161,E$6,FALSE),3) -> 17.094 | F10: =ROUND(VLOOKUP(CONCATENATE(F$5,$C10),'trend data'!$A$2:$O$11161,F$6,FALSE),3) -> 15.163 | G10: =ROUND(VLOOKUP(CONCATENATE(G$5,$C10),'trend data'!$A$2:$O$11161,G$6,FALSE),3) -> 19.202 | H10: =IFERROR(VLOOKUP(CONCATENATE(H$5,$C10),'trend data'!$A$2:$O$11161,H$6,FALSE),"-") -> 131 | I10: =IFERROR(ROUND(VLOOKUP(CONCATENATE(I$5,$C10),'trend data'!$A$2:$O$11161,I$6,FALSE),3),"-") -> 9.82 | J10: =IFERROR(ROUND(VLOOKUP(CONCATENATE(J$5,$C10),'trend data'!$A$2:$O$11161,J$6,FALSE),3),"-") -> 8.21 | K10: =IFERROR(ROUND(VLOOKUP(CONCATENATE(K$5,$C10),'trend data'!$A$2:$O$11161,K$6,FALSE),3),"-") -> 11.653 | L10: =IFERROR(VLOOKUP(CONCATENATE(L$5,$C10),'trend data'!$A$2:$O$11161,L$6,FALSE),"-") -> - | M10: =IFERROR(VLOOKUP(CONCATENATE(M$5,$C10),'trend data'!$A$2:$O$11161,M$6,FALSE),"-") -> - | N10: =IFERROR(VLOOKUP(CONCATENATE(N$5,$C10),'trend data'!$A$2:$O$11161,N$6,FALSE),"-") -> - | O10: =IFERROR(VLOOKUP(CONCATENATE(O$5,$C10),'trend data'!$A$2:$O$11161,O$6,FALSE),"-") -> - | P10: =IFERROR(VLOOKUP(CONCATENATE(P$5,$C10),'trend data'!$A$2:$O$11161,P$6,FALSE),"-") -> - | T10: =YEAR(W10)&"0"&IF(MONTH(W10)<4,1,IF(MONTH(W10)<7,2,IF(MONTH(W10)<10,3,4))) -> 202303 | U10: =CONCATENATE(X$7,T10,'SAB Data and Charts'!B$1) -> SABHCAI202303Scotland | V10: 2 | W10: 2023-09-23 | X10: =ROUND(VLOOKUP($U10,'data for u-p-charts'!$A$2:$F$5000,X$5,FALSE),2) -> 18.08 | Y10: =ROUND(VLOOKUP($U10,'data for u-p-charts'!$A$2:$F$5000,Y$5,FALSE),2) -> 18.63 | Z10: =ROUND(VLOOKUP($U10,'data for u-p-charts'!$A$2:$F$5000,Z$5,FALSE),2) -> 20.83 | AA10: =ROUND(VLOOKUP($U10,'data for u-p-charts'!$A$2:$F$5000,AA$5,FALSE),2) -> 21.93 | AB10: =CONCATENATE(AC$7,$T10,'SAB Data and Charts'!$B$1) -> SABCAUN202303Scotland | AC10: =ROUND(VLOOKUP($AB10,'data for u-p-charts'!$A$2:$F$5000,AC$5,FALSE),2) -> 10.12 | AD10: =ROUND(VLOOKUP($AB10,'data for u-p-charts'!$A$2:$F$5000,AD$5,FALSE),2) -> 10.02 | AE10: =ROUND(VLOOKUP($AB10,'data for u-p-charts'!$A$2:$F$5000,AE$5,FALSE),2) -> 11.72 | AF10: =ROUND(VLOOKUP($AB10,'data for u-p-charts'!$A$2:$F$5000,AF$5,FALSE),2) -> 12.57 | AG10: =CONCATENATE(AH$7,$T10,'SAB Data and Charts'!$B$1) -> SAB 202303Scotland | AH10: =VLOOKUP($AG10,'data for u-p-charts'!$A$2:$F$5000,AH$5,FALSE) ->  | AI10: =VLOOKUP($AG10,'data for u-p-charts'!$A$2:$F$5000,AI$5,FALSE) ->  | AJ10: =VLOOKUP($AG10,'data for u-p-charts'!$A$2:$F$5000,AJ$5,FALSE) ->  | AK10: =VLOOKUP($AG10,'data for u-p-charts'!$A$2:$F$5000,AK$5,FALSE) -> 
A11: 201503 | B11: 2015-09-24 | C11: =CONCATENATE(A11,'SAB Data and Charts'!B$1) -> 201503Scotland | D11: =VLOOKUP(CONCATENATE(D$5,$C11),'trend data'!$A$2:$O$11161,D$6,FALSE) -> 275 | E11: =ROUND(VLOOKUP(CONCATENATE(E$5,$C11),'trend data'!$A$2:$O$11161,E$6,FALSE),3) -> 16.966 | F11: =ROUND(VLOOKUP(CONCATENATE(F$5,$C11),'trend data'!$A$2:$O$11161,F$6,FALSE),3) -> 15.02 | G11: =ROUND(VLOOKUP(CONCATENATE(G$5,$C11),'trend data'!$A$2:$O$11161,G$6,FALSE),3) -> 19.094 | H11: =IFERROR(VLOOKUP(CONCATENATE(H$5,$C11),'trend data'!$A$2:$O$11161,H$6,FALSE),"-") -> 113 | I11: =IFERROR(ROUND(VLOOKUP(CONCATENATE(I$5,$C11),'trend data'!$A$2:$O$11161,I$6,FALSE),3),"-") -> 8.379 | J11: =IFERROR(ROUND(VLOOKUP(CONCATENATE(J$5,$C11),'trend data'!$A$2:$O$11161,J$6,FALSE),3),"-") -> 6.905 | K11: =IFERROR(ROUND(VLOOKUP(CONCATENATE(K$5,$C11),'trend data'!$A$2:$O$11161,K$6,FALSE),3),"-") -> 10.074 | L11: =IFERROR(VLOOKUP(CONCATENATE(L$5,$C11),'trend data'!$A$2:$O$11161,L$6,FALSE),"-") -> - | M11: =IFERROR(VLOOKUP(CONCATENATE(M$5,$C11),'trend data'!$A$2:$O$11161,M$6,FALSE),"-") -> - | N11: =IFERROR(VLOOKUP(CONCATENATE(N$5,$C11),'trend data'!$A$2:$O$11161,N$6,FALSE),"-") -> - | O11: =IFERROR(VLOOKUP(CONCATENATE(O$5,$C11),'trend data'!$A$2:$O$11161,O$6,FALSE),"-") -> - | P11: =IFERROR(VLOOKUP(CONCATENATE(P$5,$C11),'trend data'!$A$2:$O$11161,P$6,FALSE),"-") -> - | T11: =YEAR(W11)&"0"&IF(MONTH(W11)<4,1,IF(MONTH(W11)<7,2,IF(MONTH(W11)<10,3,4))) -> 202304 | U11: =CONCATENATE(X$7,T11,'SAB Data and Charts'!B$1) -> SABHCAI202304Scotland | V11: 3 | W11: 2023-12-24 | X11: =ROUND(VLOOKUP($U11,'data for u-p-charts'!$A$2:$F$5000,X$5,FALSE),2) -> 19.22 | Y11: =ROUND(VLOOKUP($U11,'data for u-p-charts'!$A$2:$F$5000,Y$5,FALSE),2) -> 18.63 | Z11: =ROUND(VLOOKUP($U11,'data for u-p-charts'!$A$2:$F$5000,Z$5,FALSE),2) -> 20.81 | AA11: =ROUND(VLOOKUP($U11,'data for u-p-charts'!$A$2:$F$5000,AA$5,FALSE),2) -> 21.9 | AB11: =CONCATENATE(AC$7,$T11,'SAB Data and Charts'!$B$1) -> SABCAUN202304Scotland | AC11: =ROUND(VLOOKUP($AB11,'data for u-p-charts'!$A$2:$F$5000,AC$5,FALSE),2) -> 9.9 | AD11: =ROUND(VLOOKUP($AB11,'data for u-p-charts'!$A$2:$F$5000,AD$5,FALSE),2) -> 10.02 | AE11: =ROUND(VLOOKUP($AB11,'data for u-p-charts'!$A$2:$F$5000,AE$5,FALSE),2) -> 11.72 | AF11: =ROUND(VLOOKUP($AB11,'data for u-p-charts'!$A$2:$F$5000,AF$5,FALSE),2) -> 12.57 | AG11: =CONCATENATE(AH$7,$T11,'SAB Data and Charts'!$B$1) -> SAB 202304Scotland | AH11: =VLOOKUP($AG11,'data for u-p-charts'!$A$2:$F$5000,AH$5,FALSE) ->  | AI11: =VLOOKUP($AG11,'data for u-p-charts'!$A$2:$F$5000,AI$5,FALSE) ->  | AJ11: =VLOOKUP($AG11,'data for u-p-charts'!$A$2:$F$5000,AJ$5,FALSE) ->  | AK11: =VLOOKUP($AG11,'data for u-p-charts'!$A$2:$F$5000,AK$5,FALSE) -> 
A12: 201504 | B12: 2015-12-24 | C12: =CONCATENATE(A12,'SAB Data and Charts'!B$1) -> 201504Scotland | D12: =VLOOKUP(CONCATENATE(D$5,$C12),'trend data'!$A$2:$O$11161,D$6,FALSE) -> 303 | E12: =ROUND(VLOOKUP(CONCATENATE(E$5,$C12),'trend data'!$A$2:$O$11161,E$6,FALSE),3) -> 18.451 | F12: =ROUND(VLOOKUP(CONCATENATE(F$5,$C12),'trend data'!$A$2:$O$11161,F$6,FALSE),3) -> 16.432 | G12: =ROUND(VLOOKUP(CONCATENATE(G$5,$C12),'trend data'!$A$2:$O$11161,G$6,FALSE),3) -> 20.65 | H12: =IFERROR(VLOOKUP(CONCATENATE(H$5,$C12),'trend data'!$A$2:$O$11161,H$6,FALSE),"-") -> 104 | I12: =IFERROR(ROUND(VLOOKUP(CONCATENATE(I$5,$C12),'trend data'!$A$2:$O$11161,I$6,FALSE),3),"-") -> 7.711 | J12: =IFERROR(ROUND(VLOOKUP(CONCATENATE(J$5,$C12),'trend data'!$A$2:$O$11161,J$6,FALSE),3),"-") -> 6.301 | K12: =IFERROR(ROUND(VLOOKUP(CONCATENATE(K$5,$C12),'trend data'!$A$2:$O$11161,K$6,FALSE),3),"-") -> 9.344 | L12: =IFERROR(VLOOKUP(CONCATENATE(L$5,$C12),'trend data'!$A$2:$O$11161,L$6,FALSE),"-") -> - | M12: =IFERROR(VLOOKUP(CONCATENATE(M$5,$C12),'trend data'!$A$2:$O$11161,M$6,FALSE),"-") -> - | N12: =IFERROR(VLOOKUP(CONCATENATE(N$5,$C12),'trend data'!$A$2:$O$11161,N$6,FALSE),"-") -> - | O12: =IFERROR(VLOOKUP(CONCATENATE(O$5,$C12),'trend data'!$A$2:$O$11161,O$6,FALSE),"-") -> - | P12: =IFERROR(VLOOKUP(CONCATENATE(P$5,$C12),'trend data'!$A$2:$O$11161,P$6,FALSE),"-") -> - | T12: 202401 | U12: =CONCATENATE(X$7,T12,'SAB Data and Charts'!B$1) -> SABHCAI202401Scotland | V12: 4 | W12: 2024-03-25 | X12: =ROUND(VLOOKUP($U12,'data for u-p-charts'!$A$2:$F$5000,X$5,FALSE),2) -> 17.04 | Y12: =ROUND(VLOOKUP($U12,'data for u-p-charts'!$A$2:$F$5000,Y$5,FALSE),2) -> 18.63 | Z12: =ROUND(VLOOKUP($U12,'data for u-p-charts'!$A$2:$F$5000,Z$5,FALSE),2) -> 20.79 | AA12: =ROUND(VLOOKUP($U12,'data for u-p-charts'!$A$2:$F$5000,AA$5,FALSE),2) -> 21.87 | AB12: =CONCATENATE(AC$7,$T12,'SAB Data and Charts'!$B$1) -> SABCAUN202401Scotland | AC12: =ROUND(VLOOKUP($AB12,'data for u-p-charts'!$A$2:$F$5000,AC$5,FALSE),2) -> 10.73 | AD12: =ROUND(VLOOKUP($AB12,'data for u-p-charts'!$A$2:$F$5000,AD$5,FALSE),2) -> 10.02 | AE12: =ROUND(VLOOKUP($AB12,'data for u-p-charts'!$A$2:$F$5000,AE$5,FALSE),2) -> 11.72 | AF12: =ROUND(VLOOKUP($AB12,'data for u-p-charts'!$A$2:$F$5000,AF$5,FALSE),2) -> 12.57 | AG12: =CONCATENATE(AH$7,$T12,'SAB Data and Charts'!$B$1) -> SAB 202401Scotland | AH12: =VLOOKUP($AG12,'data for u-p-charts'!$A$2:$F$5000,AH$5,FALSE) ->  | AI12: =VLOOKUP($AG12,'data for u-p-charts'!$A$2:$F$5000,AI$5,FALSE) ->  | AJ12: =VLOOKUP($AG12,'data for u-p-charts'!$A$2:$F$5000,AJ$5,FALSE) ->  | AK12: =VLOOKUP($AG12,'data for u-p-charts'!$A$2:$F$5000,AK$5,FALSE) -> 
A13: 201601 | B13: 2016-03-24 | C13: =CONCATENATE(A13,'SAB Data and Charts'!B$1) -> 201601Scotland | D13: =VLOOKUP(CONCATENATE(D$5,$C13),'trend data'!$A$2:$O$11161,D$6,FALSE) -> 279 | E13: =ROUND(VLOOKUP(CONCATENATE(E$5,$C13),'trend data'!$A$2:$O$11161,E$6,FALSE),3) -> 16.662 | F13: =ROUND(VLOOKUP(CONCATENATE(F$5,$C13),'trend data'!$A$2:$O$11161,F$6,FALSE),3) -> 14.764 | G13: =ROUND(VLOOKUP(CONCATENATE(G$5,$C13),'trend data'!$A$2:$O$11161,G$6,FALSE),3) -> 18.737 | H13: =IFERROR(VLOOKUP(CONCATENATE(H$5,$C13),'trend data'!$A$2:$O$11161,H$6,FALSE),"-") -> 139 | I13: =IFERROR(ROUND(VLOOKUP(CONCATENATE(I$5,$C13),'trend data'!$A$2:$O$11161,I$6,FALSE),3),"-") -> 10.404 | J13: =IFERROR(ROUND(VLOOKUP(CONCATENATE(J$5,$C13),'trend data'!$A$2:$O$11161,J$6,FALSE),3),"-") -> 8.746 | K13: =IFERROR(ROUND(VLOOKUP(CONCATENATE(K$5,$C13),'trend data'!$A$2:$O$11161,K$6,FALSE),3),"-") -> 12.284 | L13: =IFERROR(VLOOKUP(CONCATENATE(L$5,$C13),'trend data'!$A$2:$O$11161,L$6,FALSE),"-") -> - | M13: =IFERROR(VLOOKUP(CONCATENATE(M$5,$C13),'trend data'!$A$2:$O$11161,M$6,FALSE),"-") -> - | N13: =IFERROR(VLOOKUP(CONCATENATE(N$5,$C13),'trend data'!$A$2:$O$11161,N$6,FALSE),"-") -> - | O13: =IFERROR(VLOOKUP(CONCATENATE(O$5,$C13),'trend data'!$A$2:$O$11161,O$6,FALSE),"-") -> - | P13: =IFERROR(VLOOKUP(CONCATENATE(P$5,$C13),'trend data'!$A$2:$O$11161,P$6,FALSE),"-") -> - | T13: 202402 | U13: =CONCATENATE(X$7,T13,'SAB Data and Charts'!B$1) -> SABHCAI202402Scotland | V13: 5 | W13: 2024-06-25 | X13: =ROUND(VLOOKUP($U13,'data for u-p-charts'!$A$2:$F$5000,X$5,FALSE),2) -> 17.33 | Y13: =ROUND(VLOOKUP($U13,'data for u-p-charts'!$A$2:$F$5000,Y$5,FALSE),2) -> 18.63 | Z13: =ROUND(VLOOKUP($U13,'data for u-p-charts'!$A$2:$F$5000,Z$5,FALSE),2) -> 20.81 | AA13: =ROUND(VLOOKUP($U13,'data for u-p-charts'!$A$2:$F$5000,AA$5,FALSE),2) -> 21.91 | AB13: =CONCATENATE(AC$7,$T13,'SAB Data and Charts'!$B$1) -> SABCAUN202402Scotland | AC13: =ROUND(VLOOKUP($AB13,'data for u-p-charts'!$A$2:$F$5000,AC$5,FALSE),2) -> 9.86 | AD13: =ROUND(VLOOKUP($AB13,'data for u-p-charts'!$A$2:$F$5000,AD$5,FALSE),2) -> 10.02 | AE13: =ROUND(VLOOKUP($AB13,'data for u-p-charts'!$A$2:$F$5000,AE$5,FALSE),2) -> 11.72 | AF13: =ROUND(VLOOKUP($AB13,'data for u-p-charts'!$A$2:$F$5000,AF$5,FALSE),2) -> 12.57 | AG13: =CONCATENATE(AH$7,$T13,'SAB Data and Charts'!$B$1) -> SAB 202402Scotland | AH13: =VLOOKUP($AG13,'data for u-p-charts'!$A$2:$F$5000,AH$5,FALSE) ->  | AI13: =VLOOKUP($AG13,'data for u-p-charts'!$A$2:$F$5000,AI$5,FALSE) ->  | AJ13: =VLOOKUP($AG13,'data for u-p-charts'!$A$2:$F$5000,AJ$5,FALSE) ->  | AK13: =VLOOKUP($AG13,'data for u-p-charts'!$A$2:$F$5000,AK$5,FALSE) -> 
A14: 201602 | B14: 2016-06-24 | C14: =CONCATENATE(A14,'SAB Data and Charts'!B$1) -> 201602Scotland | D14: =VLOOKUP(CONCATENATE(D$5,$C14),'trend data'!$A$2:$O$11161,D$6,FALSE) -> 260 | E14: =ROUND(VLOOKUP(CONCATENATE(E$5,$C14),'trend data'!$A$2:$O$11161,E$6,FALSE),3) -> 16.198 | F14: =ROUND(VLOOKUP(CONCATENATE(F$5,$C14),'trend data'!$A$2:$O$11161,F$6,FALSE),3) -> 14.289 | G14: =ROUND(VLOOKUP(CONCATENATE(G$5,$C14),'trend data'!$A$2:$O$11161,G$6,FALSE),3) -> 18.292 | H14: =IFERROR(VLOOKUP(CONCATENATE(H$5,$C14),'trend data'!$A$2:$O$11161,H$6,FALSE),"-") -> 121 | I14: =IFERROR(ROUND(VLOOKUP(CONCATENATE(I$5,$C14),'trend data'!$A$2:$O$11161,I$6,FALSE),3),"-") -> 9.056 | J14: =IFERROR(ROUND(VLOOKUP(CONCATENATE(J$5,$C14),'trend data'!$A$2:$O$11161,J$6,FALSE),3),"-") -> 7.515 | K14: =IFERROR(ROUND(VLOOKUP(CONCATENATE(K$5,$C14),'trend data'!$A$2:$O$11161,K$6,FALSE),3),"-") -> 10.821 | L14: =IFERROR(VLOOKUP(CONCATENATE(L$5,$C14),'trend data'!$A$2:$O$11161,L$6,FALSE),"-") -> - | M14: =IFERROR(VLOOKUP(CONCATENATE(M$5,$C14),'trend data'!$A$2:$O$11161,M$6,FALSE),"-") -> - | N14: =IFERROR(VLOOKUP(CONCATENATE(N$5,$C14),'trend data'!$A$2:$O$11161,N$6,FALSE),"-") -> - | O14: =IFERROR(VLOOKUP(CONCATENATE(O$5,$C14),'trend data'!$A$2:$O$11161,O$6,FALSE),"-") -> - | P14: =IFERROR(VLOOKUP(CONCATENATE(P$5,$C14),'trend data'!$A$2:$O$11161,P$6,FALSE),"-") -> - | T14: 202403 | U14: =CONCATENATE(X$7,T14,'SAB Data and Charts'!B$1) -> SABHCAI202403Scotland | V14: 6 | W14: 2024-09-25 | X14: =ROUND(VLOOKUP($U14,'data for u-p-charts'!$A$2:$F$5000,X$5,FALSE),2) -> 20.16 | Y14: =ROUND(VLOOKUP($U14,'data for u-p-charts'!$A$2:$F$5000,Y$5,FALSE),2) -> 18.63 | Z14: =ROUND(VLOOKUP($U14,'data for u-p-charts'!$A$2:$F$5000,Z$5,FALSE),2) -> 20.82 | AA14: =ROUND(VLOOKUP($U14,'data for u-p-charts'!$A$2:$F$5000,AA$5,FALSE),2) -> 21.91 | AB14: =CONCATENATE(AC$7,$T14,'SAB Data and Charts'!$B$1) -> SABCAUN202403Scotland | AC14: =ROUND(VLOOKUP($AB14,'data for u-p-charts'!$A$2:$F$5000,AC$5,FALSE),2) -> 10.26 | AD14: =ROUND(VLOOKUP($AB14,'data for u-p-charts'!$A$2:$F$5000,AD$5,FALSE),2) -> 10.02 | AE14: =ROUND(VLOOKUP($AB14,'data for u-p-charts'!$A$2:$F$5000,AE$5,FALSE),2) -> 11.71 | AF14: =ROUND(VLOOKUP($AB14,'data for u-p-charts'!$A$2:$F$5000,AF$5,FALSE),2) -> 12.56 | AG14: =CONCATENATE(AH$7,$T14,'SAB Data and Charts'!$B$1) -> SAB 202403Scotland | AH14: =VLOOKUP($AG14,'data for u-p-charts'!$A$2:$F$5000,AH$5,FALSE) ->  | AI14: =VLOOKUP($AG14,'data for u-p-charts'!$A$2:$F$5000,AI$5,FALSE) ->  | AJ14: =VLOOKUP($AG14,'data for u-p-charts'!$A$2:$F$5000,AJ$5,FALSE) ->  | AK14: =VLOOKUP($AG14,'data for u-p-charts'!$A$2:$F$5000,AK$5,FALSE) -> 
A15: 201603 | B15: 2016-09-24 | C15: =CONCATENATE(A15,'SAB Data and Charts'!B$1) -> 201603Scotland | D15: =VLOOKUP(CONCATENATE(D$5,$C15),'trend data'!$A$2:$O$11161,D$6,FALSE) -> 273 | E15: =ROUND(VLOOKUP(CONCATENATE(E$5,$C15),'trend data'!$A$2:$O$11161,E$6,FALSE),3) -> 17.193 | F15: =ROUND(VLOOKUP(CONCATENATE(F$5,$C15),'trend data'!$A$2:$O$11161,F$6,FALSE),3) -> 15.213 | G15: =ROUND(VLOOKUP(CONCATENATE(G$5,$C15),'trend data'!$A$2:$O$11161,G$6,FALSE),3) -> 19.358 | H15: =IFERROR(VLOOKUP(CONCATENATE(H$5,$C15),'trend data'!$A$2:$O$11161,H$6,FALSE),"-") -> 127 | I15: =IFERROR(ROUND(VLOOKUP(CONCATENATE(I$5,$C15),'trend data'!$A$2:$O$11161,I$6,FALSE),3),"-") -> 9.402 | J15: =IFERROR(ROUND(VLOOKUP(CONCATENATE(J$5,$C15),'trend data'!$A$2:$O$11161,J$6,FALSE),3),"-") -> 7.838 | K15: =IFERROR(ROUND(VLOOKUP(CONCATENATE(K$5,$C15),'trend data'!$A$2:$O$11161,K$6,FALSE),3),"-") -> 11.187 | L15: =IFERROR(VLOOKUP(CONCATENATE(L$5,$C15),'trend data'!$A$2:$O$11161,L$6,FALSE),"-") -> - | M15: =IFERROR(VLOOKUP(CONCATENATE(M$5,$C15),'trend data'!$A$2:$O$11161,M$6,FALSE),"-") -> - | N15: =IFERROR(VLOOKUP(CONCATENATE(N$5,$C15),'trend data'!$A$2:$O$11161,N$6,FALSE),"-") -> - | O15: =IFERROR(VLOOKUP(CONCATENATE(O$5,$C15),'trend data'!$A$2:$O$11161,O$6,FALSE),"-") -> - | P15: =IFERROR(VLOOKUP(CONCATENATE(P$5,$C15),'trend data'!$A$2:$O$11161,P$6,FALSE),"-") -> - | T15: 202404 | U15: =CONCATENATE(X$7,T15,'SAB Data and Charts'!B$1) -> SABHCAI202404Scotland | V15: 7 | W15: 2024-12-26 | X15: =ROUND(VLOOKUP($U15,'data for u-p-charts'!$A$2:$F$5000,X$5,FALSE),2) -> 18.39 | Y15: =ROUND(VLOOKUP($U15,'data for u-p-charts'!$A$2:$F$5000,Y$5,FALSE),2) -> 18.63 | Z15: =ROUND(VLOOKUP($U15,'data for u-p-charts'!$A$2:$F$5000,Z$5,FALSE),2) -> 20.81 | AA15: =ROUND(VLOOKUP($U15,'data for u-p-charts'!$A$2:$F$5000,AA$5,FALSE),2) -> 21.9 | AB15: =CONCATENATE(AC$7,$T15,'SAB Data and Charts'!$B$1) -> SABCAUN202404Scotland | AC15: =ROUND(VLOOKUP($AB15,'data for u-p-charts'!$A$2:$F$5000,AC$5,FALSE),2) -> 10.54 | AD15: =ROUND(VLOOKUP($AB15,'data for u-p-charts'!$A$2:$F$5000,AD$5,FALSE),2) -> 10.02 | AE15: =ROUND(VLOOKUP($AB15,'data for u-p-charts'!$A$2:$F$5000,AE$5,FALSE),2) -> 11.71 | AF15: =ROUND(VLOOKUP($AB15,'data for u-p-charts'!$A$2:$F$5000,AF$5,FALSE),2) -> 12.56 | AG15: =CONCATENATE(AH$7,$T15,'SAB Data and Charts'!$B$1) -> SAB 202404Scotland | AH15: =VLOOKUP($AG15,'data for u-p-charts'!$A$2:$F$5000,AH$5,FALSE) ->  | AI15: =VLOOKUP($AG15,'data for u-p-charts'!$A$2:$F$5000,AI$5,FALSE) ->  | AJ15: =VLOOKUP($AG15,'data for u-p-charts'!$A$2:$F$5000,AJ$5,FALSE) ->  | AK15: =VLOOKUP($AG15,'data for u-p-charts'!$A$2:$F$5000,AK$5,FALSE) -> 
A16: 201604 | B16: 2016-12-24 | C16: =CONCATENATE(A16,'SAB Data and Charts'!B$1) -> 201604Scotland | D16: =VLOOKUP(CONCATENATE(D$5,$C16),'trend data'!$A$2:$O$11161,D$6,FALSE) -> 265 | E16: =ROUND(VLOOKUP(CONCATENATE(E$5,$C16),'trend data'!$A$2:$O$11161,E$6,FALSE),3) -> 16.649 | F16: =ROUND(VLOOKUP(CONCATENATE(F$5,$C16),'trend data'!$A$2:$O$11161,F$6,FALSE),3) -> 14.705 | G16: =ROUND(VLOOKUP(CONCATENATE(G$5,$C16),'trend data'!$A$2:$O$11161,G$6,FALSE),3) -> 18.779 | H16: =IFERROR(VLOOKUP(CONCATENATE(H$5,$C16),'trend data'!$A$2:$O$11161,H$6,FALSE),"-") -> 135 | I16: =IFERROR(ROUND(VLOOKUP(CONCATENATE(I$5,$C16),'trend data'!$A$2:$O$11161,I$6,FALSE),3),"-") -> 9.995 | J16: =IFERROR(ROUND(VLOOKUP(CONCATENATE(J$5,$C16),'trend data'!$A$2:$O$11161,J$6,FALSE),3),"-") -> 8.38 | K16: =IFERROR(ROUND(VLOOKUP(CONCATENATE(K$5,$C16),'trend data'!$A$2:$O$11161,K$6,FALSE),3),"-") -> 11.83 | L16: =IFERROR(VLOOKUP(CONCATENATE(L$5,$C16),'trend data'!$A$2:$O$11161,L$6,FALSE),"-") -> - | M16: =IFERROR(VLOOKUP(CONCATENATE(M$5,$C16),'trend data'!$A$2:$O$11161,M$6,FALSE),"-") -> - | N16: =IFERROR(VLOOKUP(CONCATENATE(N$5,$C16),'trend data'!$A$2:$O$11161,N$6,FALSE),"-") -> - | O16: =IFERROR(VLOOKUP(CONCATENATE(O$5,$C16),'trend data'!$A$2:$O$11161,O$6,FALSE),"-") -> - | P16: =IFERROR(VLOOKUP(CONCATENATE(P$5,$C16),'trend data'!$A$2:$O$11161,P$6,FALSE),"-") -> - | T16: 202501 | U16: =CONCATENATE(X$7,T16,'SAB Data and Charts'!B$1) -> SABHCAI202501Scotland | V16: 8 | W16: 2025-03-28 | X16: =ROUND(VLOOKUP($U16,'data for u-p-charts'!$A$2:$F$5000,X$5,FALSE),2) -> 18.23 | Y16: =ROUND(VLOOKUP($U16,'data for u-p-charts'!$A$2:$F$5000,Y$5,FALSE),2) -> 18.63 | Z16: =ROUND(VLOOKUP($U16,'data for u-p-charts'!$A$2:$F$5000,Z$5,FALSE),2) -> 20.82 | AA16: =ROUND(VLOOKUP($U16,'data for u-p-charts'!$A$2:$F$5000,AA$5,FALSE),2) -> 21.91 | AB16: =CONCATENATE(AC$7,$T16,'SAB Data and Charts'!$B$1) -> SABCAUN202501Scotland | AC16: =ROUND(VLOOKUP($AB16,'data for u-p-charts'!$A$2:$F$5000,AC$5,FALSE),2) -> 8.99 | AD16: =ROUND(VLOOKUP($AB16,'data for u-p-charts'!$A$2:$F$5000,AD$5,FALSE),2) -> 10.02 | AE16: =ROUND(VLOOKUP($AB16,'data for u-p-charts'!$A$2:$F$5000,AE$5,FALSE),2) -> 11.73 | AF16: =ROUND(VLOOKUP($AB16,'data for u-p-charts'!$A$2:$F$5000,AF$5,FALSE),2) -> 12.58 | AG16: =CONCATENATE(AH$7,$T16,'SAB Data and Charts'!$B$1) -> SAB 202501Scotland | AH16: =VLOOKUP($AG16,'data for u-p-charts'!$A$2:$F$5000,AH$5,FALSE) ->  | AI16: =VLOOKUP($AG16,'data for u-p-charts'!$A$2:$F$5000,AI$5,FALSE) ->  | AJ16: =VLOOKUP($AG16,'data for u-p-charts'!$A$2:$F$5000,AJ$5,FALSE) ->  | AK16: =VLOOKUP($AG16,'data for u-p-charts'!$A$2:$F$5000,AK$5,FALSE) -> 
A17: 201701 | B17: 2017-03-01 | C17: =CONCATENATE(A17,'SAB Data and Charts'!B$1) -> 201701Scotland | D17: =VLOOKUP(CONCATENATE(D$5,$C17),'trend data'!$A$2:$O$11161,D$6,FALSE) -> 259 | E17: =ROUND(VLOOKUP(CONCATENATE(E$5,$C17),'trend data'!$A$2:$O$11161,E$6,FALSE),3) -> 16.379 | F17: =ROUND(VLOOKUP(CONCATENATE(F$5,$C17),'trend data'!$A$2:$O$11161,F$6,FALSE),3) -> 14.444 | G17: =ROUND(VLOOKUP(CONCATENATE(G$5,$C17),'trend data'!$A$2:$O$11161,G$6,FALSE),3) -> 18.5 | H17: =IFERROR(VLOOKUP(CONCATENATE(H$5,$C17),'trend data'!$A$2:$O$11161,H$6,FALSE),"-") -> 142 | I17: =IFERROR(ROUND(VLOOKUP(CONCATENATE(I$5,$C17),'trend data'!$A$2:$O$11161,I$6,FALSE),3),"-") -> 10.688 | J17: =IFERROR(ROUND(VLOOKUP(CONCATENATE(J$5,$C17),'trend data'!$A$2:$O$11161,J$6,FALSE),3),"-") -> 9.002 | K17: =IFERROR(ROUND(VLOOKUP(CONCATENATE(K$5,$C17),'trend data'!$A$2:$O$11161,K$6,FALSE),3),"-") -> 12.598 | L17: =IFERROR(VLOOKUP(CONCATENATE(L$5,$C17),'trend data'!$A$2:$O$11161,L$6,FALSE),"-") -> - | M17: =IFERROR(VLOOKUP(CONCATENATE(M$5,$C17),'trend data'!$A$2:$O$11161,M$6,FALSE),"-") -> - | N17: =IFERROR(VLOOKUP(CONCATENATE(N$5,$C17),'trend data'!$A$2:$O$11161,N$6,FALSE),"-") -> - | O17: =IFERROR(VLOOKUP(CONCATENATE(O$5,$C17),'trend data'!$A$2:$O$11161,O$6,FALSE),"-") -> - | P17: =IFERROR(VLOOKUP(CONCATENATE(P$5,$C17),'trend data'!$A$2:$O$11161,P$6,FALSE),"-") -> - | T17: 202502 | U17: =CONCATENATE(X$7,T17,'SAB Data and Charts'!B$1) -> SABHCAI202502Scotland | V17: 9 | W17: 2025-06-28 | X17: =ROUND(VLOOKUP($U17,'data for u-p-charts'!$A$2:$F$5000,X$5,FALSE),2) -> 19.86 | Y17: =ROUND(VLOOKUP($U17,'data for u-p-charts'!$A$2:$F$5000,Y$5,FALSE),2) -> 18.63 | Z17: =ROUND(VLOOKUP($U17,'data for u-p-charts'!$A$2:$F$5000,Z$5,FALSE),2) -> 20.84 | AA17: =ROUND(VLOOKUP($U17,'data for u-p-charts'!$A$2:$F$5000,AA$5,FALSE),2) -> 21.94 | AB17: =CONCATENATE(AC$7,$T17,'SAB Data and Charts'!$B$1) -> SABCAUN202502Scotland | AC17: =ROUND(VLOOKUP($AB17,'data for u-p-charts'!$A$2:$F$5000,AC$5,FALSE),2) -> 11.28 | AD17: =ROUND(VLOOKUP($AB17,'data for u-p-charts'!$A$2:$F$5000,AD$5,FALSE),2) -> 10.02 | AE17: =ROUND(VLOOKUP($AB17,'data for u-p-charts'!$A$2:$F$5000,AE$5,FALSE),2) -> 11.72 | AF17: =ROUND(VLOOKUP($AB17,'data for u-p-charts'!$A$2:$F$5000,AF$5,FALSE),2) -> 12.57 | AG17: =CONCATENATE(AH$7,$T17,'SAB Data and Charts'!$B$1) -> SAB 202502Scotland | AH17: =VLOOKUP($AG17,'data for u-p-charts'!$A$2:$F$5000,AH$5,FALSE) ->  | AI17: =VLOOKUP($AG17,'data for u-p-charts'!$A$2:$F$5000,AI$5,FALSE) ->  | AJ17: =VLOOKUP($AG17,'data for u-p-charts'!$A$2:$F$5000,AJ$5,FALSE) ->  | AK17: =VLOOKUP($AG17,'data for u-p-charts'!$A$2:$F$5000,AK$5,FALSE) -> 
A18: 201702 | B18: 2017-06-01 | C18: =CONCATENATE(A18,'SAB Data and Charts'!B$1) -> 201702Scotland | D18: =VLOOKUP(CONCATENATE(D$5,$C18),'trend data'!$A$2:$O$11161,D$6,FALSE) -> 248 | E18: =ROUND(VLOOKUP(CONCATENATE(E$5,$C18),'trend data'!$A$2:$O$11161,E$6,FALSE),3) -> 15.994 | F18: =ROUND(VLOOKUP(CONCATENATE(F$5,$C18),'trend data'!$A$2:$O$11161,F$6,FALSE),3) -> 14.065 | G18: =ROUND(VLOOKUP(CONCATENATE(G$5,$C18),'trend data'!$A$2:$O$11161,G$6,FALSE),3) -> 18.114 | H18: =IFERROR(VLOOKUP(CONCATENATE(H$5,$C18),'trend data'!$A$2:$O$11161,H$6,FALSE),"-") -> 126 | I18: =IFERROR(ROUND(VLOOKUP(CONCATENATE(I$5,$C18),'trend data'!$A$2:$O$11161,I$6,FALSE),3),"-") -> 9.379 | J18: =IFERROR(ROUND(VLOOKUP(CONCATENATE(J$5,$C18),'trend data'!$A$2:$O$11161,J$6,FALSE),3),"-") -> 7.813 | K18: =IFERROR(ROUND(VLOOKUP(CONCATENATE(K$5,$C18),'trend data'!$A$2:$O$11161,K$6,FALSE),3),"-") -> 11.168 | L18: =IFERROR(VLOOKUP(CONCATENATE(L$5,$C18),'trend data'!$A$2:$O$11161,L$6,FALSE),"-") -> - | M18: =IFERROR(VLOOKUP(CONCATENATE(M$5,$C18),'trend data'!$A$2:$O$11161,M$6,FALSE),"-") -> - | N18: =IFERROR(VLOOKUP(CONCATENATE(N$5,$C18),'trend data'!$A$2:$O$11161,N$6,FALSE),"-") -> - | O18: =IFERROR(VLOOKUP(CONCATENATE(O$5,$C18),'trend data'!$A$2:$O$11161,O$6,FALSE),"-") -> - | P18: =IFERROR(VLOOKUP(CONCATENATE(P$5,$C18),'trend data'!$A$2:$O$11161,P$6,FALSE),"-") -> - | T18: 202503 | U18: =CONCATENATE(X$7,T18,'SAB Data and Charts'!B$1) -> SABHCAI202503Scotland | V18: 10 | W18: 2025-09-28 | X18: =ROUND(VLOOKUP($U18,'data for u-p-charts'!$A$2:$F$5000,X$5,FALSE),2) -> 19.43 | Y18: =ROUND(VLOOKUP($U18,'data for u-p-charts'!$A$2:$F$5000,Y$5,FALSE),2) -> 18.63 | Z18: =ROUND(VLOOKUP($U18,'data for u-p-charts'!$A$2:$F$5000,Z$5,FALSE),2) -> 20.84 | AA18: =ROUND(VLOOKUP($U18,'data for u-p-charts'!$A$2:$F$5000,AA$5,FALSE),2) -> 21.94 | AB18: =CONCATENATE(AC$7,$T18,'SAB Data and Charts'!$B$1) -> SABCAUN202503Scotland | AC18: =ROUND(VLOOKUP($AB18,'data for u-p-charts'!$A$2:$F$5000,AC$5,FALSE),2) -> 9.01 | AD18: =ROUND(VLOOKUP($AB18,'data for u-p-charts'!$A$2:$F$5000,AD$5,FALSE),2) -> 10.02 | AE18: =ROUND(VLOOKUP($AB18,'data for u-p-charts'!$A$2:$F$5000,AE$5,FALSE),2) -> 11.71 | AF18: =ROUND(VLOOKUP($AB18,'data for u-p-charts'!$A$2:$F$5000,AF$5,FALSE),2) -> 12.55 | AG18: =CONCATENATE(AH$7,$T18,'SAB Data and Charts'!$B$1) -> SAB 202503Scotland | AH18: =VLOOKUP($AG18,'data for u-p-charts'!$A$2:$F$5000,AH$5,FALSE) ->  | AI18: =VLOOKUP($AG18,'data for u-p-charts'!$A$2:$F$5000,AI$5,FALSE) ->  | AJ18: =VLOOKUP($AG18,'data for u-p-charts'!$A$2:$F$5000,AJ$5,FALSE) ->  | AK18: =VLOOKUP($AG18,'data for u-p-charts'!$A$2:$F$5000,AK$5,FALSE) -> 
A19: 201703 | B19: 2017-09-01 | C19: =CONCATENATE(A19,'SAB Data and Charts'!B$1) -> 201703Scotland | D19: =VLOOKUP(CONCATENATE(D$5,$C19),'trend data'!$A$2:$O$11161,D$6,FALSE) -> 278 | E19: =ROUND(VLOOKUP(CONCATENATE(E$5,$C19),'trend data'!$A$2:$O$11161,E$6,FALSE),3) -> 18.066 | F19: =ROUND(VLOOKUP(CONCATENATE(F$5,$C19),'trend data'!$A$2:$O$11161,F$6,FALSE),3) -> 16.004 | G19: =ROUND(VLOOKUP(CONCATENATE(G$5,$C19),'trend data'!$A$2:$O$11161,G$6,FALSE),3) -> 20.319 | H19: =IFERROR(VLOOKUP(CONCATENATE(H$5,$C19),'trend data'!$A$2:$O$11161,H$6,FALSE),"-") -> 127 | I19: =IFERROR(ROUND(VLOOKUP(CONCATENATE(I$5,$C19),'trend data'!$A$2:$O$11161,I$6,FALSE),3),"-") -> 9.351 | J19: =IFERROR(ROUND(VLOOKUP(CONCATENATE(J$5,$C19),'trend data'!$A$2:$O$11161,J$6,FALSE),3),"-") -> 7.795 | K19: =IFERROR(ROUND(VLOOKUP(CONCATENATE(K$5,$C19),'trend data'!$A$2:$O$11161,K$6,FALSE),3),"-") -> 11.126 | L19: =IFERROR(VLOOKUP(CONCATENATE(L$5,$C19),'trend data'!$A$2:$O$11161,L$6,FALSE),"-") -> - | M19: =IFERROR(VLOOKUP(CONCATENATE(M$5,$C19),'trend data'!$A$2:$O$11161,M$6,FALSE),"-") -> - | N19: =IFERROR(VLOOKUP(CONCATENATE(N$5,$C19),'trend data'!$A$2:$O$11161,N$6,FALSE),"-") -> - | O19: =IFERROR(VLOOKUP(CONCATENATE(O$5,$C19),'trend data'!$A$2:$O$11161,O$6,FALSE),"-") -> - | P19: =IFERROR(VLOOKUP(CONCATENATE(P$5,$C19),'trend data'!$A$2:$O$11161,P$6,FALSE),"-") -> - | T19: 202504 | U19: =CONCATENATE(X$7,T19,'SAB Data and Charts'!B$1) -> SABHCAI202504Scotland | V19: 11 | W19: =W20-92 -> 2025-12-29 | X19: =ROUND(VLOOKUP($U19,'data for u-p-charts'!$A$2:$F$5000,X$5,FALSE),2) -> 18.38 | Y19: =ROUND(VLOOKUP($U19,'data for u-p-charts'!$A$2:$F$5000,Y$5,FALSE),2) -> 18.63 | Z19: =ROUND(VLOOKUP($U19,'data for u-p-charts'!$A$2:$F$5000,Z$5,FALSE),2) -> 20.83 | AA19: =ROUND(VLOOKUP($U19,'data for u-p-charts'!$A$2:$F$5000,AA$5,FALSE),2) -> 21.93 | AB19: =CONCATENATE(AC$7,$T19,'SAB Data and Charts'!$B$1) -> SABCAUN202504Scotland | AC19: =ROUND(VLOOKUP($AB19,'data for u-p-charts'!$A$2:$F$5000,AC$5,FALSE),2) -> 9.44 | AD19: =ROUND(VLOOKUP($AB19,'data for u-p-charts'!$A$2:$F$5000,AD$5,FALSE),2) -> 10.02 | AE19: =ROUND(VLOOKUP($AB19,'data for u-p-charts'!$A$2:$F$5000,AE$5,FALSE),2) -> 11.71 | AF19: =ROUND(VLOOKUP($AB19,'data for u-p-charts'!$A$2:$F$5000,AF$5,FALSE),2) -> 12.55 | AG19: =CONCATENATE(AH$7,$T19,'SAB Data and Charts'!$B$1) -> SAB 202504Scotland | AH19: =VLOOKUP($AG19,'data for u-p-charts'!$A$2:$F$5000,AH$5,FALSE) ->  | AI19: =VLOOKUP($AG19,'data for u-p-charts'!$A$2:$F$5000,AI$5,FALSE) ->  | AJ19: =VLOOKUP($AG19,'data for u-p-charts'!$A$2:$F$5000,AJ$5,FALSE) ->  | AK19: =VLOOKUP($AG19,'data for u-p-charts'!$A$2:$F$5000,AK$5,FALSE) -> 
A20: 201704 | B20: 2017-12-01 | C20: =CONCATENATE(A20,'SAB Data and Charts'!B$1) -> 201704Scotland | D20: =VLOOKUP(CONCATENATE(D$5,$C20),'trend data'!$A$2:$O$11161,D$6,FALSE) -> 262 | E20: =ROUND(VLOOKUP(CONCATENATE(E$5,$C20),'trend data'!$A$2:$O$11161,E$6,FALSE),3) -> 16.635 | F20: =ROUND(VLOOKUP(CONCATENATE(F$5,$C20),'trend data'!$A$2:$O$11161,F$6,FALSE),3) -> 14.682 | G20: =ROUND(VLOOKUP(CONCATENATE(G$5,$C20),'trend data'!$A$2:$O$11161,G$6,FALSE),3) -> 18.776 | H20: =IFERROR(VLOOKUP(CONCATENATE(H$5,$C20),'trend data'!$A$2:$O$11161,H$6,FALSE),"-") -> 132 | I20: =IFERROR(ROUND(VLOOKUP(CONCATENATE(I$5,$C20),'trend data'!$A$2:$O$11161,I$6,FALSE),3),"-") -> 9.719 | J20: =IFERROR(ROUND(VLOOKUP(CONCATENATE(J$5,$C20),'trend data'!$A$2:$O$11161,J$6,FALSE),3),"-") -> 8.132 | K20: =IFERROR(ROUND(VLOOKUP(CONCATENATE(K$5,$C20),'trend data'!$A$2:$O$11161,K$6,FALSE),3),"-") -> 11.526 | L20: =IFERROR(VLOOKUP(CONCATENATE(L$5,$C20),'trend data'!$A$2:$O$11161,L$6,FALSE),"-") -> - | M20: =IFERROR(VLOOKUP(CONCATENATE(M$5,$C20),'trend data'!$A$2:$O$11161,M$6,FALSE),"-") -> - | N20: =IFERROR(VLOOKUP(CONCATENATE(N$5,$C20),'trend data'!$A$2:$O$11161,N$6,FALSE),"-") -> - | O20: =IFERROR(VLOOKUP(CONCATENATE(O$5,$C20),'trend data'!$A$2:$O$11161,O$6,FALSE),"-") -> - | P20: =IFERROR(VLOOKUP(CONCATENATE(P$5,$C20),'trend data'!$A$2:$O$11161,P$6,FALSE),"-") -> - | T20: 202601 | U20: =CONCATENATE(X$7,T20,'SAB Data and Charts'!B$1) -> SABHCAI202601Scotland | V20: 12 | W20: =W5 -> 2026-03-31 | X20: =ROUND(VLOOKUP($U20,'data for u-p-charts'!$A$2:$F$5000,X$5,FALSE),2) -> 18.89 | Y20: =ROUND(VLOOKUP($U20,'data for u-p-charts'!$A$2:$F$5000,Y$5,FALSE),2) -> 18.63 | Z20: =ROUND(VLOOKUP($U20,'data for u-p-charts'!$A$2:$F$5000,Z$5,FALSE),2) -> 20.82 | AA20: =ROUND(VLOOKUP($U20,'data for u-p-charts'!$A$2:$F$5000,AA$5,FALSE),2) -> 21.92 | AB20: =CONCATENATE(AC$7,$T20,'SAB Data and Charts'!$B$1) -> SABCAUN202601Scotland | AC20: =ROUND(VLOOKUP($AB20,'data for u-p-charts'!$A$2:$F$5000,AC$5,FALSE),2) -> 10.02 | AD20: =ROUND(VLOOKUP($AB20,'data for u-p-charts'!$A$2:$F$5000,AD$5,FALSE),2) -> 10.02 | AE20: =ROUND(VLOOKUP($AB20,'data for u-p-charts'!$A$2:$F$5000,AE$5,FALSE),2) -> 11.73 | AF20: =ROUND(VLOOKUP($AB20,'data for u-p-charts'!$A$2:$F$5000,AF$5,FALSE),2) -> 12.58 | AG20: =CONCATENATE(AH$7,$T20,'SAB Data and Charts'!$B$1) -> SAB 202601Scotland | AH20: =VLOOKUP($AG20,'data for u-p-charts'!$A$2:$F$5000,AH$5,FALSE) ->  | AI20: =VLOOKUP($AG20,'data for u-p-charts'!$A$2:$F$5000,AI$5,FALSE) ->  | AJ20: =VLOOKUP($AG20,'data for u-p-charts'!$A$2:$F$5000,AJ$5,FALSE) ->  | AK20: =VLOOKUP($AG20,'data for u-p-charts'!$A$2:$F$5000,AK$5,FALSE) -> 
A21: 201801 | B21: 2018-03-01 | C21: =CONCATENATE(A21,'SAB Data and Charts'!B$1) -> 201801Scotland | D21: =IFERROR(VLOOKUP(CONCATENATE(D$5,$C21),'trend data'!$A$2:$O$11161,D$6,FALSE),"-") -> 296 | E21: =ROUND(VLOOKUP(CONCATENATE(E$5,$C21),'trend data'!$A$2:$O$11161,E$6,FALSE),3) -> 18.672 | F21: =ROUND(VLOOKUP(CONCATENATE(F$5,$C21),'trend data'!$A$2:$O$11161,F$6,FALSE),3) -> 16.605 | G21: =ROUND(VLOOKUP(CONCATENATE(G$5,$C21),'trend data'!$A$2:$O$11161,G$6,FALSE),3) -> 20.925 | H21: =IFERROR(VLOOKUP(CONCATENATE(H$5,$C21),'trend data'!$A$2:$O$11161,H$6,FALSE),"-") -> 135 | I21: =IFERROR(ROUND(VLOOKUP(CONCATENATE(I$5,$C21),'trend data'!$A$2:$O$11161,I$6,FALSE), 4),"-") -> 10.1537 | J21: =IFERROR(ROUND(VLOOKUP(CONCATENATE(J$5,$C21),'trend data'!$A$2:$O$11161,J$6,FALSE),3),"-") -> 8.513 | K21: =IFERROR(ROUND(VLOOKUP(CONCATENATE(K$5,$C21),'trend data'!$A$2:$O$11161,K$6,FALSE),3),"-") -> 12.018 | L21: =IFERROR(VLOOKUP(CONCATENATE(L$5,$C21),'trend data'!$A$2:$O$11161,L$6,FALSE),"-") -> - | M21: =IFERROR(VLOOKUP(CONCATENATE(M$5,$C21),'trend data'!$A$2:$O$11161,M$6,FALSE),"-") -> - | N21: =IFERROR(VLOOKUP(CONCATENATE(N$5,$C21),'trend data'!$A$2:$O$11161,N$6,FALSE),"-") -> - | O21: =IFERROR(VLOOKUP(CONCATENATE(O$5,$C21),'trend data'!$A$2:$O$11161,O$6,FALSE),"-") -> - | P21: =IFERROR(VLOOKUP(CONCATENATE(P$5,$C21),'trend data'!$A$2:$O$11161,P$6,FALSE),"-") -> -
A22: 201802 | B22: 2018-06-01 | C22: =CONCATENATE(A22,'SAB Data and Charts'!B$1) -> 201802Scotland | D22: =IFERROR(VLOOKUP(CONCATENATE(D$5,$C22),'trend data'!$A$2:$O$11161,D$6,FALSE),"-") -> 264 | E22: =ROUND(VLOOKUP(CONCATENATE(E$5,$C22),'trend data'!$A$2:$O$11161,E$6,FALSE),3) -> 17.308 | F22: =ROUND(VLOOKUP(CONCATENATE(F$5,$C22),'trend data'!$A$2:$O$11161,F$6,FALSE),3) -> 15.282 | G22: =ROUND(VLOOKUP(CONCATENATE(G$5,$C22),'trend data'!$A$2:$O$11161,G$6,FALSE),3) -> 19.526 | H22: =IFERROR(VLOOKUP(CONCATENATE(H$5,$C22),'trend data'!$A$2:$O$11161,H$6,FALSE),"-") -> 123 | I22: =IFERROR(ROUND(VLOOKUP(CONCATENATE(I$5,$C22),'trend data'!$A$2:$O$11161,I$6,FALSE),4),"-") -> 9.1495 | J22: =IFERROR(ROUND(VLOOKUP(CONCATENATE(J$5,$C22),'trend data'!$A$2:$O$11161,J$6,FALSE),3),"-") -> 7.604 | K22: =IFERROR(ROUND(VLOOKUP(CONCATENATE(K$5,$C22),'trend data'!$A$2:$O$11161,K$6,FALSE),3),"-") -> 10.917 | L22: =IFERROR(VLOOKUP(CONCATENATE(L$5,$C22),'trend data'!$A$2:$O$11161,L$6,FALSE),"-") -> - | M22: =IFERROR(VLOOKUP(CONCATENATE(M$5,$C22),'trend data'!$A$2:$O$11161,M$6,FALSE),"-") -> - | N22: =IFERROR(VLOOKUP(CONCATENATE(N$5,$C22),'trend data'!$A$2:$O$11161,N$6,FALSE),"-") -> - | O22: =IFERROR(VLOOKUP(CONCATENATE(O$5,$C22),'trend data'!$A$2:$O$11161,O$6,FALSE),"-") -> - | P22: =IFERROR(VLOOKUP(CONCATENATE(P$5,$C22),'trend data'!$A$2:$O$11161,P$6,FALSE),"-") -> -
A23: 201803 | B23: 2018-09-01 | C23: =CONCATENATE(A23,'SAB Data and Charts'!B$1) -> 201803Scotland | D23: =IFERROR(VLOOKUP(CONCATENATE(D$5,$C23),'trend data'!$A$2:$O$11161,D$6,FALSE),"-") -> 253 | E23: =ROUND(VLOOKUP(CONCATENATE(E$5,$C23),'trend data'!$A$2:$O$11161,E$6,FALSE),3) -> 16.737 | F23: =ROUND(VLOOKUP(CONCATENATE(F$5,$C23),'trend data'!$A$2:$O$11161,F$6,FALSE),3) -> 14.738 | G23: =ROUND(VLOOKUP(CONCATENATE(G$5,$C23),'trend data'!$A$2:$O$11161,G$6,FALSE),3) -> 18.932 | H23: =IFERROR(VLOOKUP(CONCATENATE(H$5,$C23),'trend data'!$A$2:$O$11161,H$6,FALSE),"-") -> 132 | I23: =IFERROR(ROUND(VLOOKUP(CONCATENATE(I$5,$C23),'trend data'!$A$2:$O$11161,I$6,FALSE),3),"-") -> 9.712 | J23: =IFERROR(ROUND(VLOOKUP(CONCATENATE(J$5,$C23),'trend data'!$A$2:$O$11161,J$6,FALSE),3),"-") -> 8.126 | K23: =IFERROR(ROUND(VLOOKUP(CONCATENATE(K$5,$C23),'trend data'!$A$2:$O$11161,K$6,FALSE),3),"-") -> 11.518 | L23: =IFERROR(VLOOKUP(CONCATENATE(L$5,$C23),'trend data'!$A$2:$O$11161,L$6,FALSE),"-") -> - | M23: =IFERROR(VLOOKUP(CONCATENATE(M$5,$C23),'trend data'!$A$2:$O$11161,M$6,FALSE),"-") -> - | N23: =IFERROR(VLOOKUP(CONCATENATE(N$5,$C23),'trend data'!$A$2:$O$11161,N$6,FALSE),"-") -> - | O23: =IFERROR(VLOOKUP(CONCATENATE(O$5,$C23),'trend data'!$A$2:$O$11161,O$6,FALSE),"-") -> - | P23: =IFERROR(VLOOKUP(CONCATENATE(P$5,$C23),'trend data'!$A$2:$O$11161,P$6,FALSE),"-") -> -
A24: 201804 | B24: 2018-12-01 | C24: =CONCATENATE(A24,'SAB Data and Charts'!B$1) -> 201804Scotland | D24: =IFERROR(VLOOKUP(CONCATENATE(D$5,$C24),'trend data'!$A$2:$O$11161,D$6,FALSE),"-") -> 269 | E24: =ROUND(VLOOKUP(CONCATENATE(E$5,$C24),'trend data'!$A$2:$O$11161,E$6,FALSE),3) -> 17.672 | F24: =ROUND(VLOOKUP(CONCATENATE(F$5,$C24),'trend data'!$A$2:$O$11161,F$6,FALSE),3) -> 15.623 | G24: =ROUND(VLOOKUP(CONCATENATE(G$5,$C24),'trend data'!$A$2:$O$11161,G$6,FALSE),3) -> 19.915 | H24: =IFERROR(VLOOKUP(CONCATENATE(H$5,$C24),'trend data'!$A$2:$O$11161,H$6,FALSE),"-") -> 113 | I24: =IFERROR(ROUND(VLOOKUP(CONCATENATE(I$5,$C24),'trend data'!$A$2:$O$11161,I$6,FALSE),3),"-") -> 8.314 | J24: =IFERROR(ROUND(VLOOKUP(CONCATENATE(J$5,$C24),'trend data'!$A$2:$O$11161,J$6,FALSE),3),"-") -> 6.852 | K24: =IFERROR(ROUND(VLOOKUP(CONCATENATE(K$5,$C24),'trend data'!$A$2:$O$11161,K$6,FALSE),3),"-") -> 9.996 | L24: =IFERROR(VLOOKUP(CONCATENATE(L$5,$C24),'trend data'!$A$2:$O$11161,L$6,FALSE),"-") -> - | M24: =IFERROR(VLOOKUP(CONCATENATE(M$5,$C24),'trend data'!$A$2:$O$11161,M$6,FALSE),"-") -> - | N24: =IFERROR(VLOOKUP(CONCATENATE(N$5,$C24),'trend data'!$A$2:$O$11161,N$6,FALSE),"-") -> - | O24: =IFERROR(VLOOKUP(CONCATENATE(O$5,$C24),'trend data'!$A$2:$O$11161,O$6,FALSE),"-") -> - | P24: =IFERROR(VLOOKUP(CONCATENATE(P$5,$C24),'trend data'!$A$2:$O$11161,P$6,FALSE),"-") -> -
A25: 201901 | B25: 2019-03-01 | C25: =CONCATENATE(A25,'SAB Data and Charts'!B$1) -> 201901Scotland | D25: =IFERROR(VLOOKUP(CONCATENATE(D$5,$C25),'trend data'!$A$2:$O$11161,D$6,FALSE),"-") -> 240 | E25: =ROUND(VLOOKUP(CONCATENATE(E$5,$C25),'trend data'!$A$2:$O$11161,E$6,FALSE),3) -> 15.6 | F25: =ROUND(VLOOKUP(CONCATENATE(F$5,$C25),'trend data'!$A$2:$O$11161,F$6,FALSE),3) -> 13.688 | G25: =ROUND(VLOOKUP(CONCATENATE(G$5,$C25),'trend data'!$A$2:$O$11161,G$6,FALSE),3) -> 17.703 | H25: =IFERROR(VLOOKUP(CONCATENATE(H$5,$C25),'trend data'!$A$2:$O$11161,H$6,FALSE),"-") -> 144 | I25: =IFERROR(ROUND(VLOOKUP(CONCATENATE(I$5,$C25),'trend data'!$A$2:$O$11161,I$6,FALSE),3),"-") -> 10.792 | J25: =IFERROR(ROUND(VLOOKUP(CONCATENATE(J$5,$C25),'trend data'!$A$2:$O$11161,J$6,FALSE),3),"-") -> 9.102 | K25: =IFERROR(ROUND(VLOOKUP(CONCATENATE(K$5,$C25),'trend data'!$A$2:$O$11161,K$6,FALSE),3),"-") -> 12.706 | L25: =IFERROR(VLOOKUP(CONCATENATE(L$5,$C25),'trend data'!$A$2:$O$11161,L$6,FALSE),"-") -> - | M25: =IFERROR(VLOOKUP(CONCATENATE(M$5,$C25),'trend data'!$A$2:$O$11161,M$6,FALSE),"-") -> - | N25: =IFERROR(VLOOKUP(CONCATENATE(N$5,$C25),'trend data'!$A$2:$O$11161,N$6,FALSE),"-") -> - | O25: =IFERROR(VLOOKUP(CONCATENATE(O$5,$C25),'trend data'!$A$2:$O$11161,O$6,FALSE),"-") -> - | P25: =IFERROR(VLOOKUP(CONCATENATE(P$5,$C25),'trend data'!$A$2:$O$11161,P$6,FALSE),"-") -> -
A26: 201902 | B26: 2019-06-01 | C26: =CONCATENATE(A26,'SAB Data and Charts'!B$1) -> 201902Scotland | D26: =IFERROR(VLOOKUP(CONCATENATE(D$5,$C26),'trend data'!$A$2:$O$11161,D$6,FALSE),"-") -> 251 | E26: =ROUND(VLOOKUP(CONCATENATE(E$5,$C26),'trend data'!$A$2:$O$11161,E$6,FALSE),3) -> 16.664 | F26: =ROUND(VLOOKUP(CONCATENATE(F$5,$C26),'trend data'!$A$2:$O$11161,F$6,FALSE),3) -> 14.666 | G26: =ROUND(VLOOKUP(CONCATENATE(G$5,$C26),'trend data'!$A$2:$O$11161,G$6,FALSE),3) -> 18.858 | H26: =IFERROR(VLOOKUP(CONCATENATE(H$5,$C26),'trend data'!$A$2:$O$11161,H$6,FALSE),"-") -> 133 | I26: =IFERROR(ROUND(VLOOKUP(CONCATENATE(I$5,$C26),'trend data'!$A$2:$O$11161,I$6,FALSE),3),"-") -> 9.858 | J26: =IFERROR(ROUND(VLOOKUP(CONCATENATE(J$5,$C26),'trend data'!$A$2:$O$11161,J$6,FALSE),3),"-") -> 8.254 | K26: =IFERROR(ROUND(VLOOKUP(CONCATENATE(K$5,$C26),'trend data'!$A$2:$O$11161,K$6,FALSE),3),"-") -> 11.684 | L26: =IFERROR(VLOOKUP(CONCATENATE(L$5,$C26),'trend data'!$A$2:$O$11161,L$6,FALSE),"-") -> - | M26: =IFERROR(VLOOKUP(CONCATENATE(M$5,$C26),'trend data'!$A$2:$O$11161,M$6,FALSE),"-") -> - | N26: =IFERROR(VLOOKUP(CONCATENATE(N$5,$C26),'trend data'!$A$2:$O$11161,N$6,FALSE),"-") -> - | O26: =IFERROR(VLOOKUP(CONCATENATE(O$5,$C26),'trend data'!$A$2:$O$11161,O$6,FALSE),"-") -> - | P26: =IFERROR(VLOOKUP(CONCATENATE(P$5,$C26),'trend data'!$A$2:$O$11161,P$6,FALSE),"-") -> -
A27: 201903 | B27: 2019-09-01 | C27: =CONCATENATE(A27,'SAB Data and Charts'!B$1) -> 201903Scotland | D27: =IFERROR(VLOOKUP(CONCATENATE(D$5,$C27),'trend data'!$A$2:$O$11161,D$6,FALSE),"-") -> 264 | E27: =ROUND(VLOOKUP(CONCATENATE(E$5,$C27),'trend data'!$A$2:$O$11161,E$6,FALSE),3) -> 17.519 | F27: =ROUND(VLOOKUP(CONCATENATE(F$5,$C27),'trend data'!$A$2:$O$11161,F$6,FALSE),3) -> 15.469 | G27: =ROUND(VLOOKUP(CONCATENATE(G$5,$C27),'trend data'!$A$2:$O$11161,G$6,FALSE),3) -> 19.764 | H27: =IFERROR(VLOOKUP(CONCATENATE(H$5,$C27),'trend data'!$A$2:$O$11161,H$6,FALSE),"-") -> 102 | I27: =IFERROR(ROUND(VLOOKUP(CONCATENATE(I$5,$C27),'trend data'!$A$2:$O$11161,I$6,FALSE),3),"-") -> 7.478 | J27: =IFERROR(ROUND(VLOOKUP(CONCATENATE(J$5,$C27),'trend data'!$A$2:$O$11161,J$6,FALSE),3),"-") -> 6.098 | K27: =IFERROR(ROUND(VLOOKUP(CONCATENATE(K$5,$C27),'trend data'!$A$2:$O$11161,K$6,FALSE),3),"-") -> 9.078 | L27: =IFERROR(VLOOKUP(CONCATENATE(L$5,$C27),'trend data'!$A$2:$O$11161,L$6,FALSE),"-") -> - | M27: =IFERROR(VLOOKUP(CONCATENATE(M$5,$C27),'trend data'!$A$2:$O$11161,M$6,FALSE),"-") -> - | N27: =IFERROR(VLOOKUP(CONCATENATE(N$5,$C27),'trend data'!$A$2:$O$11161,N$6,FALSE),"-") -> - | O27: =IFERROR(VLOOKUP(CONCATENATE(O$5,$C27),'trend data'!$A$2:$O$11161,O$6,FALSE),"-") -> - | P27: =IFERROR(VLOOKUP(CONCATENATE(P$5,$C27),'trend data'!$A$2:$O$11161,P$6,FALSE),"-") -> -
A28: 201904 | B28: 2019-12-01 | C28: =CONCATENATE(A28,'SAB Data and Charts'!B$1) -> 201904Scotland | D28: =IFERROR(VLOOKUP(CONCATENATE(D$5,$C28),'trend data'!$A$2:$O$11161,D$6,FALSE),"-") -> 233 | E28: =ROUND(VLOOKUP(CONCATENATE(E$5,$C28),'trend data'!$A$2:$O$11161,E$6,FALSE),3) -> 15.214 | F28: =ROUND(VLOOKUP(CONCATENATE(F$5,$C28),'trend data'!$A$2:$O$11161,F$6,FALSE),3) -> 13.323 | G28: =ROUND(VLOOKUP(CONCATENATE(G$5,$C28),'trend data'!$A$2:$O$11161,G$6,FALSE),3) -> 17.298 | H28: =IFERROR(VLOOKUP(CONCATENATE(H$5,$C28),'trend data'!$A$2:$O$11161,H$6,FALSE),"-") -> 132 | I28: =IFERROR(ROUND(VLOOKUP(CONCATENATE(I$5,$C28),'trend data'!$A$2:$O$11161,I$6,FALSE),3),"-") -> 9.678 | J28: =IFERROR(ROUND(VLOOKUP(CONCATENATE(J$5,$C28),'trend data'!$A$2:$O$11161,J$6,FALSE),3),"-") -> 8.097 | K28: =IFERROR(ROUND(VLOOKUP(CONCATENATE(K$5,$C28),'trend data'!$A$2:$O$11161,K$6,FALSE),3),"-") -> 11.477 | L28: =IFERROR(VLOOKUP(CONCATENATE(L$5,$C28),'trend data'!$A$2:$O$11161,L$6,FALSE),"-") -> - | M28: =IFERROR(VLOOKUP(CONCATENATE(M$5,$C28),'trend data'!$A$2:$O$11161,M$6,FALSE),"-") -> - | N28: =IFERROR(VLOOKUP(CONCATENATE(N$5,$C28),'trend data'!$A$2:$O$11161,N$6,FALSE),"-") -> - | O28: =IFERROR(VLOOKUP(CONCATENATE(O$5,$C28),'trend data'!$A$2:$O$11161,O$6,FALSE),"-") -> - | P28: =IFERROR(VLOOKUP(CONCATENATE(P$5,$C28),'trend data'!$A$2:$O$11161,P$6,FALSE),"-") -> -
A29: 202001 | B29: 2020-03-01 | C29: =CONCATENATE(A29,'SAB Data and Charts'!B$1) -> 202001Scotland | D29: =IFERROR(VLOOKUP(CONCATENATE(D$5,$C29),'trend data'!$A$2:$O$11161,D$6,FALSE),"-") -> 241 | E29: =ROUND(VLOOKUP(CONCATENATE(E$5,$C29),'trend data'!$A$2:$O$11161,E$6,FALSE),3) -> 16.328 | F29: =ROUND(VLOOKUP(CONCATENATE(F$5,$C29),'trend data'!$A$2:$O$11161,F$6,FALSE),3) -> 14.332 | G29: =ROUND(VLOOKUP(CONCATENATE(G$5,$C29),'trend data'!$A$2:$O$11161,G$6,FALSE),3) -> 18.526 | H29: =IFERROR(VLOOKUP(CONCATENATE(H$5,$C29),'trend data'!$A$2:$O$11161,H$6,FALSE),"-") -> 149 | I29: =IFERROR(ROUND(VLOOKUP(CONCATENATE(I$5,$C29),'trend data'!$A$2:$O$11161,I$6,FALSE),3),"-") -> 11.079 | J29: =IFERROR(ROUND(VLOOKUP(CONCATENATE(J$5,$C29),'trend data'!$A$2:$O$11161,J$6,FALSE),3),"-") -> 9.372 | K29: =IFERROR(ROUND(VLOOKUP(CONCATENATE(K$5,$C29),'trend data'!$A$2:$O$11161,K$6,FALSE),3),"-") -> 13.008 | L29: =IFERROR(VLOOKUP(CONCATENATE(L$5,$C29),'trend data'!$A$2:$O$11161,L$6,FALSE),"-") -> - | M29: =IFERROR(VLOOKUP(CONCATENATE(M$5,$C29),'trend data'!$A$2:$O$11161,M$6,FALSE),"-") -> - | N29: =IFERROR(VLOOKUP(CONCATENATE(N$5,$C29),'trend data'!$A$2:$O$11161,N$6,FALSE),"-") -> - | O29: =IFERROR(VLOOKUP(CONCATENATE(O$5,$C29),'trend data'!$A$2:$O$11161,O$6,FALSE),"-") -> - | P29: =IFERROR(VLOOKUP(CONCATENATE(P$5,$C29),'trend data'!$A$2:$O$11161,P$6,FALSE),"-") -> -
A30: 202002 | B30: 2020-06-01 | C30: =CONCATENATE(A30,'SAB Data and Charts'!B$1) -> 202002Scotland | D30: =IFERROR(VLOOKUP(CONCATENATE(D$5,$C30),'trend data'!$A$2:$O$11161,D$6,FALSE),"-") -> 219 | E30: =ROUND(VLOOKUP(CONCATENATE(E$5,$C30),'trend data'!$A$2:$O$11161,E$6,FALSE),3) -> 20.26 | F30: =ROUND(VLOOKUP(CONCATENATE(F$5,$C30),'trend data'!$A$2:$O$11161,F$6,FALSE),3) -> 17.665 | G30: =ROUND(VLOOKUP(CONCATENATE(G$5,$C30),'trend data'!$A$2:$O$11161,G$6,FALSE),3) -> 23.129 | H30: =IFERROR(VLOOKUP(CONCATENATE(H$5,$C30),'trend data'!$A$2:$O$11161,H$6,FALSE),"-") -> 132 | I30: =IFERROR(ROUND(VLOOKUP(CONCATENATE(I$5,$C30),'trend data'!$A$2:$O$11161,I$6,FALSE),3),"-") -> 9.815 | J30: =IFERROR(ROUND(VLOOKUP(CONCATENATE(J$5,$C30),'trend data'!$A$2:$O$11161,J$6,FALSE),3),"-") -> 8.212 | K30: =IFERROR(ROUND(VLOOKUP(CONCATENATE(K$5,$C30),'trend data'!$A$2:$O$11161,K$6,FALSE),3),"-") -> 11.64 | L30: =IFERROR(VLOOKUP(CONCATENATE(L$5,$C30),'trend data'!$A$2:$O$11161,L$6,FALSE),"-") -> - | M30: =IFERROR(VLOOKUP(CONCATENATE(M$5,$C30),'trend data'!$A$2:$O$11161,M$6,FALSE),"-") -> - | N30: =IFERROR(VLOOKUP(CONCATENATE(N$5,$C30),'trend data'!$A$2:$O$11161,N$6,FALSE),"-") -> - | O30: =IFERROR(VLOOKUP(CONCATENATE(O$5,$C30),'trend data'!$A$2:$O$11161,O$6,FALSE),"-") -> - | P30: =IFERROR(VLOOKUP(CONCATENATE(P$5,$C30),'trend data'!$A$2:$O$11161,P$6,FALSE),"-") -> -
A31: 202003 | B31: 2020-09-01 | C31: =CONCATENATE(A31,'SAB Data and Charts'!B$1) -> 202003Scotland | D31: =IFERROR(VLOOKUP(CONCATENATE(D$5,$C31),'trend data'!$A$2:$O$11161,D$6,FALSE),"-") -> 224 | E31: =ROUND(VLOOKUP(CONCATENATE(E$5,$C31),'trend data'!$A$2:$O$11161,E$6,FALSE),4) -> 17.1781 | F31: =ROUND(VLOOKUP(CONCATENATE(F$5,$C31),'trend data'!$A$2:$O$11161,F$6,FALSE),4) -> 15.0019 | G31: =ROUND(VLOOKUP(CONCATENATE(G$5,$C31),'trend data'!$A$2:$O$11161,G$6,FALSE),4) -> 19.5813 | H31: =IFERROR(VLOOKUP(CONCATENATE(H$5,$C31),'trend data'!$A$2:$O$11161,H$6,FALSE),"-") -> 149 | I31: =IFERROR(ROUND(VLOOKUP(CONCATENATE(I$5,$C31),'trend data'!$A$2:$O$11161,I$6,FALSE),4),"-") -> 10.959 | J31: =IFERROR(ROUND(VLOOKUP(CONCATENATE(J$5,$C31),'trend data'!$A$2:$O$11161,J$6,FALSE),4),"-") -> 9.2699 | K31: =IFERROR(ROUND(VLOOKUP(CONCATENATE(K$5,$C31),'trend data'!$A$2:$O$11161,K$6,FALSE),4),"-") -> 12.8668 | L31: =IFERROR(VLOOKUP(CONCATENATE(L$5,$C31),'trend data'!$A$2:$O$11161,L$6,FALSE),"-") -> - | M31: =IFERROR(VLOOKUP(CONCATENATE(M$5,$C31),'trend data'!$A$2:$O$11161,M$6,FALSE),"-") -> - | N31: =IFERROR(VLOOKUP(CONCATENATE(N$5,$C31),'trend data'!$A$2:$O$11161,N$6,FALSE),"-") -> - | O31: =IFERROR(VLOOKUP(CONCATENATE(O$5,$C31),'trend data'!$A$2:$O$11161,O$6,FALSE),"-") -> -
A32: 202004 | B32: 2020-12-01 | C32: =CONCATENATE(A32,'SAB Data and Charts'!B$1) -> 202004Scotland | D32: =IFERROR(VLOOKUP(CONCATENATE(D$5,$C32),'trend data'!$A$2:$O$11161,D$6,FALSE),"-") -> 256 | E32: =ROUND(VLOOKUP(CONCATENATE(E$5,$C32),'trend data'!$A$2:$O$11161,E$6,FALSE),4) -> 18.8541 | F32: =ROUND(VLOOKUP(CONCATENATE(F$5,$C32),'trend data'!$A$2:$O$11161,F$6,FALSE),4) -> 16.6149 | G32: =ROUND(VLOOKUP(CONCATENATE(G$5,$C32),'trend data'!$A$2:$O$11161,G$6,FALSE),4) -> 21.3109 | H32: =IFERROR(VLOOKUP(CONCATENATE(H$5,$C32),'trend data'!$A$2:$O$11161,H$6,FALSE),"-") -> 131 | I32: =IFERROR(ROUND(VLOOKUP(CONCATENATE(I$5,$C32),'trend data'!$A$2:$O$11161,I$6,FALSE),4),"-") -> 9.6351 | J32: =IFERROR(ROUND(VLOOKUP(CONCATENATE(J$5,$C32),'trend data'!$A$2:$O$11161,J$6,FALSE),4),"-") -> 8.0557 | K32: =IFERROR(ROUND(VLOOKUP(CONCATENATE(K$5,$C32),'trend data'!$A$2:$O$11161,K$6,FALSE),4),"-") -> 11.4335 | L32: =IFERROR(VLOOKUP(CONCATENATE(L$5,$C32),'trend data'!$A$2:$O$11161,L$6,FALSE),"-") -> - | M32: =IFERROR(VLOOKUP(CONCATENATE(M$5,$C32),'trend data'!$A$2:$O$11161,M$6,FALSE),"-") -> - | N32: =IFERROR(VLOOKUP(CONCATENATE(N$5,$C32),'trend data'!$A$2:$O$11161,N$6,FALSE),"-") -> - | O32: =IFERROR(VLOOKUP(CONCATENATE(O$5,$C32),'trend data'!$A$2:$O$11161,O$6,FALSE),"-") -> -
A33: 202101 | B33: 2021-03-31 | C33: =CONCATENATE(A33,'SAB Data and Charts'!B$1) -> 202101Scotland | D33: =IFERROR(VLOOKUP(CONCATENATE(D$5,$C33),'trend data'!$A$2:$O$11161,D$6,FALSE),"-") -> 248 | E33: =ROUND(VLOOKUP(CONCATENATE(E$5,$C33),'trend data'!$A$2:$O$11161,E$6,FALSE),4) -> 18.3453 | F33: =ROUND(VLOOKUP(CONCATENATE(F$5,$C33),'trend data'!$A$2:$O$11161,F$6,FALSE),4) -> 16.1328 | G33: =ROUND(VLOOKUP(CONCATENATE(G$5,$C33),'trend data'!$A$2:$O$11161,G$6,FALSE),4) -> 20.7764 | H33: =IFERROR(VLOOKUP(CONCATENATE(H$5,$C33),'trend data'!$A$2:$O$11161,H$6,FALSE),"-") -> 140 | I33: =IFERROR(ROUND(VLOOKUP(CONCATENATE(I$5,$C33),'trend data'!$A$2:$O$11161,I$6,FALSE),4),"-") -> 10.4893 | J33: =IFERROR(ROUND(VLOOKUP(CONCATENATE(J$5,$C33),'trend data'!$A$2:$O$11161,J$6,FALSE),4),"-") -> 8.8237 | K33: =IFERROR(ROUND(VLOOKUP(CONCATENATE(K$5,$C33),'trend data'!$A$2:$O$11161,K$6,FALSE),4),"-") -> 12.378 | L33: =IFERROR(VLOOKUP(CONCATENATE(L$5,$C33),'trend data'!$A$2:$O$11161,L$6,FALSE),"-") -> - | M33: =IFERROR(VLOOKUP(CONCATENATE(M$5,$C33),'trend data'!$A$2:$O$11161,M$6,FALSE),"-") -> - | N33: =IFERROR(VLOOKUP(CONCATENATE(N$5,$C33),'trend data'!$A$2:$O$11161,N$6,FALSE),"-") -> - | O33: =IFERROR(VLOOKUP(CONCATENATE(O$5,$C33),'trend data'!$A$2:$O$11161,O$6,FALSE),"-") -> -
A34: 202102 | B34: 2021-06-30 | C34: =CONCATENATE(A34,'SAB Data and Charts'!B$1) -> 202102Scotland | D34: =IFERROR(VLOOKUP(CONCATENATE(D$5,$C34),'trend data'!$A$2:$O$11161,D$6,FALSE),"-") -> 260 | E34: =ROUND(VLOOKUP(CONCATENATE(E$5,$C34),'trend data'!$A$2:$O$11161,E$6,FALSE),4) -> 18.6491 | F34: =ROUND(VLOOKUP(CONCATENATE(F$5,$C34),'trend data'!$A$2:$O$11161,F$6,FALSE),4) -> 16.4508 | G34: =ROUND(VLOOKUP(CONCATENATE(G$5,$C34),'trend data'!$A$2:$O$11161,G$6,FALSE),4) -> 21.0593 | H34: =IFERROR(VLOOKUP(CONCATENATE(H$5,$C34),'trend data'!$A$2:$O$11161,H$6,FALSE),"-") -> 148 | I34: =IFERROR(ROUND(VLOOKUP(CONCATENATE(I$5,$C34),'trend data'!$A$2:$O$11161,I$6,FALSE),4),"-") -> 10.9669 | J34: =IFERROR(ROUND(VLOOKUP(CONCATENATE(J$5,$C34),'trend data'!$A$2:$O$11161,J$6,FALSE),4),"-") -> 9.2711 | K34: =IFERROR(ROUND(VLOOKUP(CONCATENATE(K$5,$C34),'trend data'!$A$2:$O$11161,K$6,FALSE),4),"-") -> 12.883 | L34: =IFERROR(VLOOKUP(CONCATENATE(L$5,$C34),'trend data'!$A$2:$O$11161,L$6,FALSE),"-") -> - | M34: =IFERROR(VLOOKUP(CONCATENATE(M$5,$C34),'trend data'!$A$2:$O$11161,M$6,FALSE),"-") -> - | N34: =IFERROR(VLOOKUP(CONCATENATE(N$5,$C34),'trend data'!$A$2:$O$11161,N$6,FALSE),"-") -> - | O34: =IFERROR(VLOOKUP(CONCATENATE(O$5,$C34),'trend data'!$A$2:$O$11161,O$6,FALSE),"-") -> -
A35: 202103 | B35: 2021-09-30 | C35: =CONCATENATE(A35,'SAB Data and Charts'!B$1) -> 202103Scotland | D35: =IFERROR(VLOOKUP(CONCATENATE(D$5,$C35),'trend data'!$A$2:$O$11161,D$6,FALSE),"-") -> 268 | E35: =ROUND(VLOOKUP(CONCATENATE(E$5,$C35),'trend data'!$A$2:$O$11161,E$6,FALSE),4) -> 18.4023 | F35: =ROUND(VLOOKUP(CONCATENATE(F$5,$C35),'trend data'!$A$2:$O$11161,F$6,FALSE),4) -> 16.2647 | G35: =ROUND(VLOOKUP(CONCATENATE(G$5,$C35),'trend data'!$A$2:$O$11161,G$6,FALSE),4) -> 20.7427 | H35: =IFERROR(VLOOKUP(CONCATENATE(H$5,$C35),'trend data'!$A$2:$O$11161,H$6,FALSE),"-") -> 132 | I35: =IFERROR(ROUND(VLOOKUP(CONCATENATE(I$5,$C35),'trend data'!$A$2:$O$11161,I$6,FALSE),4),"-") -> 9.675 | J35: =IFERROR(ROUND(VLOOKUP(CONCATENATE(J$5,$C35),'trend data'!$A$2:$O$11161,J$6,FALSE),4),"-") -> 8.0948 | K35: =IFERROR(ROUND(VLOOKUP(CONCATENATE(K$5,$C35),'trend data'!$A$2:$O$11161,K$6,FALSE),4),"-") -> 11.4734 | L35: =IFERROR(VLOOKUP(CONCATENATE(L$5,$C35),'trend data'!$A$2:$O$11161,L$6,FALSE),"-") -> - | M35: =IFERROR(VLOOKUP(CONCATENATE(M$5,$C35),'trend data'!$A$2:$O$11161,M$6,FALSE),"-") -> - | N35: =IFERROR(VLOOKUP(CONCATENATE(N$5,$C35),'trend data'!$A$2:$O$11161,N$6,FALSE),"-") -> - | O35: =IFERROR(VLOOKUP(CONCATENATE(O$5,$C35),'trend data'!$A$2:$O$11161,O$6,FALSE),"-") -> -
A36: 202104 | B36: 2021-12-31 | C36: =CONCATENATE(A36,'SAB Data and Charts'!B$1) -> 202104Scotland | D36: =IFERROR(VLOOKUP(CONCATENATE(D$5,$C36),'trend data'!$A$2:$O$11161,D$6,FALSE),"-") -> 259 | E36: =ROUND(VLOOKUP(CONCATENATE(E$5,$C36),'trend data'!$A$2:$O$11161,E$6,FALSE),4) -> 17.3383 | F36: =ROUND(VLOOKUP(CONCATENATE(F$5,$C36),'trend data'!$A$2:$O$11161,F$6,FALSE),4) -> 15.2907 | G36: =ROUND(VLOOKUP(CONCATENATE(G$5,$C36),'trend data'!$A$2:$O$11161,G$6,FALSE),4) -> 19.5836 | H36: =IFERROR(VLOOKUP(CONCATENATE(H$5,$C36),'trend data'!$A$2:$O$11161,H$6,FALSE),"-") -> 136 | I36: =IFERROR(ROUND(VLOOKUP(CONCATENATE(I$5,$C36),'trend data'!$A$2:$O$11161,I$6,FALSE),4),"-") -> 9.9681 | J36: =IFERROR(ROUND(VLOOKUP(CONCATENATE(J$5,$C36),'trend data'!$A$2:$O$11161,J$6,FALSE),4),"-") -> 8.3632 | K36: =IFERROR(ROUND(VLOOKUP(CONCATENATE(K$5,$C36),'trend data'!$A$2:$O$11161,K$6,FALSE),4),"-") -> 11.7913 | L36: =IFERROR(VLOOKUP(CONCATENATE(L$5,$C36),'trend data'!$A$2:$O$11161,L$6,FALSE),"-") -> - | M36: =IFERROR(VLOOKUP(CONCATENATE(M$5,$C36),'trend data'!$A$2:$O$11161,M$6,FALSE),"-") -> - | N36: =IFERROR(VLOOKUP(CONCATENATE(N$5,$C36),'trend data'!$A$2:$O$11161,N$6,FALSE),"-") -> - | O36: =IFERROR(VLOOKUP(CONCATENATE(O$5,$C36),'trend data'!$A$2:$O$11161,O$6,FALSE),"-") -> -
A37: 202201 | B37: 2022-03-31 | C37: =CONCATENATE(A37,'SAB Data and Charts'!B$1) -> 202201Scotland | D37: =IFERROR(VLOOKUP(CONCATENATE(D$5,$C37),'trend data'!$A$2:$O$11161,D$6,FALSE),"-") -> 241 | E37: =ROUND(VLOOKUP(CONCATENATE(E$5,$C37),'trend data'!$A$2:$O$11161,E$6,FALSE),4) -> 16.2722 | F37: =ROUND(VLOOKUP(CONCATENATE(F$5,$C37),'trend data'!$A$2:$O$11161,F$6,FALSE),4) -> 14.2824 | G37: =ROUND(VLOOKUP(CONCATENATE(G$5,$C37),'trend data'!$A$2:$O$11161,G$6,FALSE),4) -> 18.4617 | H37: =IFERROR(VLOOKUP(CONCATENATE(H$5,$C37),'trend data'!$A$2:$O$11161,H$6,FALSE),"-") -> 130 | I37: =IFERROR(ROUND(VLOOKUP(CONCATENATE(I$5,$C37),'trend data'!$A$2:$O$11161,I$6,FALSE),4),"-") -> 9.6791 | J37: =IFERROR(ROUND(VLOOKUP(CONCATENATE(J$5,$C37),'trend data'!$A$2:$O$11161,J$6,FALSE),4),"-") -> 8.0867 | K37: =IFERROR(ROUND(VLOOKUP(CONCATENATE(K$5,$C37),'trend data'!$A$2:$O$11161,K$6,FALSE),4),"-") -> 11.4933 | L37: =IFERROR(VLOOKUP(CONCATENATE(L$5,$C37),'trend data'!$A$2:$O$11161,L$6,FALSE),"-") -> - | M37: =IFERROR(VLOOKUP(CONCATENATE(M$5,$C37),'trend data'!$A$2:$O$11161,M$6,FALSE),"-") -> - | N37: =IFERROR(VLOOKUP(CONCATENATE(N$5,$C37),'trend data'!$A$2:$O$11161,N$6,FALSE),"-") -> - | O37: =IFERROR(VLOOKUP(CONCATENATE(O$5,$C37),'trend data'!$A$2:$O$11161,O$6,FALSE),"-") -> -
A38: 202202 | B38: 2022-06-30 | C38: =CONCATENATE(A38,'SAB Data and Charts'!B$1) -> 202202Scotland | D38: =IFERROR(VLOOKUP(CONCATENATE(D$5,$C38),'trend data'!$A$2:$O$11161,D$6,FALSE),"-") -> 262 | E38: =ROUND(VLOOKUP(CONCATENATE(E$5,$C38),'trend data'!$A$2:$O$11161,E$6,FALSE),4) -> 17.2785 | F38: =ROUND(VLOOKUP(CONCATENATE(F$5,$C38),'trend data'!$A$2:$O$11161,F$6,FALSE),4) -> 15.2494 | G38: =ROUND(VLOOKUP(CONCATENATE(G$5,$C38),'trend data'!$A$2:$O$11161,G$6,FALSE),4) -> 19.5025 | H38: =IFERROR(VLOOKUP(CONCATENATE(H$5,$C38),'trend data'!$A$2:$O$11161,H$6,FALSE),"-") -> 139 | I38: =IFERROR(ROUND(VLOOKUP(CONCATENATE(I$5,$C38),'trend data'!$A$2:$O$11161,I$6,FALSE),4),"-") -> 10.2355 | J38: =IFERROR(ROUND(VLOOKUP(CONCATENATE(J$5,$C38),'trend data'!$A$2:$O$11161,J$6,FALSE),4),"-") -> 8.6046 | K38: =IFERROR(ROUND(VLOOKUP(CONCATENATE(K$5,$C38),'trend data'!$A$2:$O$11161,K$6,FALSE),4),"-") -> 12.0856 | L38: =IFERROR(VLOOKUP(CONCATENATE(L$5,$C38),'trend data'!$A$2:$O$11161,L$6,FALSE),"-") -> - | M38: =IFERROR(VLOOKUP(CONCATENATE(M$5,$C38),'trend data'!$A$2:$O$11161,M$6,FALSE),"-") -> - | N38: =IFERROR(VLOOKUP(CONCATENATE(N$5,$C38),'trend data'!$A$2:$O$11161,N$6,FALSE),"-") -> - | O38: =IFERROR(VLOOKUP(CONCATENATE(O$5,$C38),'trend data'!$A$2:$O$11161,O$6,FALSE),"-") -> -
A39: 202203 | B39: 2022-09-30 | C39: =CONCATENATE(A39,'SAB Data and Charts'!B$1) -> 202203Scotland | D39: =IFERROR(VLOOKUP(CONCATENATE(D$5,$C39),'trend data'!$A$2:$O$11161,D$6,FALSE),"-") -> 264 | E39: =ROUND(VLOOKUP(CONCATENATE(E$5,$C39),'trend data'!$A$2:$O$11161,E$6,FALSE),4) -> 17.0792 | F39: =ROUND(VLOOKUP(CONCATENATE(F$5,$C39),'trend data'!$A$2:$O$11161,F$6,FALSE),4) -> 15.0808 | G39: =ROUND(VLOOKUP(CONCATENATE(G$5,$C39),'trend data'!$A$2:$O$11161,G$6,FALSE),4) -> 19.2687 | H39: =IFERROR(VLOOKUP(CONCATENATE(H$5,$C39),'trend data'!$A$2:$O$11161,H$6,FALSE),"-") -> 121 | I39: =IFERROR(ROUND(VLOOKUP(CONCATENATE(I$5,$C39),'trend data'!$A$2:$O$11161,I$6,FALSE),4),"-") -> 8.8132 | J39: =IFERROR(ROUND(VLOOKUP(CONCATENATE(J$5,$C39),'trend data'!$A$2:$O$11161,J$6,FALSE),4),"-") -> 7.3128 | K39: =IFERROR(ROUND(VLOOKUP(CONCATENATE(K$5,$C39),'trend data'!$A$2:$O$11161,K$6,FALSE),4),"-") -> 10.5307 | L39: =IFERROR(VLOOKUP(CONCATENATE(L$5,$C39),'trend data'!$A$2:$O$11161,L$6,FALSE),"-") -> - | M39: =IFERROR(VLOOKUP(CONCATENATE(M$5,$C39),'trend data'!$A$2:$O$11161,M$6,FALSE),"-") -> - | N39: =IFERROR(VLOOKUP(CONCATENATE(N$5,$C39),'trend data'!$A$2:$O$11161,N$6,FALSE),"-") -> - | O39: =IFERROR(VLOOKUP(CONCATENATE(O$5,$C39),'trend data'!$A$2:$O$11161,O$6,FALSE),"-") -> -
A40: 202204 | B40: 2022-12-31 | C40: =CONCATENATE(A40,'SAB Data and Charts'!B$1) -> 202204Scotland | D40: =IFERROR(VLOOKUP(CONCATENATE(D$5,$C40),'trend data'!$A$2:$O$11161,D$6,FALSE),"-") -> 302 | E40: =ROUND(VLOOKUP(CONCATENATE(E$5,$C40),'trend data'!$A$2:$O$11161,E$6,FALSE),4) -> 19.2473 | F40: =ROUND(VLOOKUP(CONCATENATE(F$5,$C40),'trend data'!$A$2:$O$11161,F$6,FALSE),4) -> 17.1374 | G40: =ROUND(VLOOKUP(CONCATENATE(G$5,$C40),'trend data'!$A$2:$O$11161,G$6,FALSE),4) -> 21.5452 | H40: =IFERROR(VLOOKUP(CONCATENATE(H$5,$C40),'trend data'!$A$2:$O$11161,H$6,FALSE),"-") -> 131 | I40: =IFERROR(ROUND(VLOOKUP(CONCATENATE(I$5,$C40),'trend data'!$A$2:$O$11161,I$6,FALSE),4),"-") -> 9.5416 | J40: =IFERROR(ROUND(VLOOKUP(CONCATENATE(J$5,$C40),'trend data'!$A$2:$O$11161,J$6,FALSE),4),"-") -> 7.9775 | K40: =IFERROR(ROUND(VLOOKUP(CONCATENATE(K$5,$C40),'trend data'!$A$2:$O$11161,K$6,FALSE),4),"-") -> 11.3225 | L40: =IFERROR(VLOOKUP(CONCATENATE(L$5,$C40),'trend data'!$A$2:$O$11161,L$6,FALSE),"-") -> - | M40: =IFERROR(VLOOKUP(CONCATENATE(M$5,$C40),'trend data'!$A$2:$O$11161,M$6,FALSE),"-") -> - | N40: =IFERROR(VLOOKUP(CONCATENATE(N$5,$C40),'trend data'!$A$2:$O$11161,N$6,FALSE),"-") -> - | O40: =IFERROR(VLOOKUP(CONCATENATE(O$5,$C40),'trend data'!$A$2:$O$11161,O$6,FALSE),"-") -> -
A41: 202301 | B41: 2023-03-31 | C41: =CONCATENATE(A41,'SAB Data and Charts'!B$1) -> 202301Scotland | D41: =IFERROR(VLOOKUP(CONCATENATE(D$5,$C41),'trend data'!$A$2:$O$11161,D$6,FALSE),"-") -> 300 | E41: =ROUND(VLOOKUP(CONCATENATE(E$5,$C41),'trend data'!$A$2:$O$11161,E$6,FALSE),4) -> 19.1216 | F41: =ROUND(VLOOKUP(CONCATENATE(F$5,$C41),'trend data'!$A$2:$O$11161,F$6,FALSE),4) -> 17.0187 | G41: =ROUND(VLOOKUP(CONCATENATE(G$5,$C41),'trend data'!$A$2:$O$11161,G$6,FALSE),4) -> 21.4125 | H41: =IFERROR(VLOOKUP(CONCATENATE(H$5,$C41),'trend data'!$A$2:$O$11161,H$6,FALSE),"-") -> 133 | I41: =IFERROR(ROUND(VLOOKUP(CONCATENATE(I$5,$C41),'trend data'!$A$2:$O$11161,I$6,FALSE),4),"-") -> 9.8248 | J41: =IFERROR(ROUND(VLOOKUP(CONCATENATE(J$5,$C41),'trend data'!$A$2:$O$11161,J$6,FALSE),4),"-") -> 8.2259 | K41: =IFERROR(ROUND(VLOOKUP(CONCATENATE(K$5,$C41),'trend data'!$A$2:$O$11161,K$6,FALSE),4),"-") -> 11.6436 | L41: =IFERROR(VLOOKUP(CONCATENATE(L$5,$C41),'trend data'!$A$2:$O$11161,L$6,FALSE),"-") -> - | M41: =IFERROR(VLOOKUP(CONCATENATE(M$5,$C41),'trend data'!$A$2:$O$11161,M$6,FALSE),"-") -> - | N41: =IFERROR(VLOOKUP(CONCATENATE(N$5,$C41),'trend data'!$A$2:$O$11161,N$6,FALSE),"-") -> - | O41: =IFERROR(VLOOKUP(CONCATENATE(O$5,$C41),'trend data'!$A$2:$O$11161,O$6,FALSE),"-") -> -
A42: 202302 | B42: 2023-06-30 | C42: =CONCATENATE(A42,'SAB Data and Charts'!B$1) -> 202302Scotland | D42: =IFERROR(VLOOKUP(CONCATENATE(D$5,$C42),'trend data'!$A$2:$O$11161,D$6,FALSE),"-") -> 283 | E42: =ROUND(VLOOKUP(CONCATENATE(E$5,$C42),'trend data'!$A$2:$O$11161,E$6,FALSE),4) -> 18.3216 | F42: =ROUND(VLOOKUP(CONCATENATE(F$5,$C42),'trend data'!$A$2:$O$11161,F$6,FALSE),4) -> 16.2489 | G42: =ROUND(VLOOKUP(CONCATENATE(G$5,$C42),'trend data'!$A$2:$O$11161,G$6,FALSE),4) -> 20.5855 | H42: =IFERROR(VLOOKUP(CONCATENATE(H$5,$C42),'trend data'!$A$2:$O$11161,H$6,FALSE),"-") -> 140 | I42: =IFERROR(ROUND(VLOOKUP(CONCATENATE(I$5,$C42),'trend data'!$A$2:$O$11161,I$6,FALSE),4),"-") -> 10.2282 | J42: =IFERROR(ROUND(VLOOKUP(CONCATENATE(J$5,$C42),'trend data'!$A$2:$O$11161,J$6,FALSE),4),"-") -> 8.604 | K42: =IFERROR(ROUND(VLOOKUP(CONCATENATE(K$5,$C42),'trend data'!$A$2:$O$11161,K$6,FALSE),4),"-") -> 12.0698 | L42: =IFERROR(VLOOKUP(CONCATENATE(L$5,$C42),'trend data'!$A$2:$O$11161,L$6,FALSE),"-") -> - | M42: =IFERROR(VLOOKUP(CONCATENATE(M$5,$C42),'trend data'!$A$2:$O$11161,M$6,FALSE),"-") -> - | N42: =IFERROR(VLOOKUP(CONCATENATE(N$5,$C42),'trend data'!$A$2:$O$11161,N$6,FALSE),"-") -> - | O42: =IFERROR(VLOOKUP(CONCATENATE(O$5,$C42),'trend data'!$A$2:$O$11161,O$6,FALSE),"-") -> -
A43: 202303 | B43: 2023-09-30 | C43: =CONCATENATE(A43,'SAB Data and Charts'!B$1) -> 202303Scotland | D43: =IFERROR(VLOOKUP(CONCATENATE(D$5,$C43),'trend data'!$A$2:$O$11161,D$6,FALSE),"-") -> 278 | E43: =ROUND(VLOOKUP(CONCATENATE(E$5,$C43),'trend data'!$A$2:$O$11161,E$6,FALSE),4) -> 18.0785 | F43: =ROUND(VLOOKUP(CONCATENATE(F$5,$C43),'trend data'!$A$2:$O$11161,F$6,FALSE),4) -> 16.0155 | G43: =ROUND(VLOOKUP(CONCATENATE(G$5,$C43),'trend data'!$A$2:$O$11161,G$6,FALSE),4) -> 20.3335 | H43: =IFERROR(VLOOKUP(CONCATENATE(H$5,$C43),'trend data'!$A$2:$O$11161,H$6,FALSE),"-") -> 140 | I43: =IFERROR(ROUND(VLOOKUP(CONCATENATE(I$5,$C43),'trend data'!$A$2:$O$11161,I$6,FALSE),4),"-") -> 10.117 | J43: =IFERROR(ROUND(VLOOKUP(CONCATENATE(J$5,$C43),'trend data'!$A$2:$O$11161,J$6,FALSE),4),"-") -> 8.5105 | K43: =IFERROR(ROUND(VLOOKUP(CONCATENATE(K$5,$C43),'trend data'!$A$2:$O$11161,K$6,FALSE),4),"-") -> 11.9386 | L43: =IFERROR(VLOOKUP(CONCATENATE(L$5,$C43),'trend data'!$A$2:$O$11161,L$6,FALSE),"-") -> - | M43: =IFERROR(VLOOKUP(CONCATENATE(M$5,$C43),'trend data'!$A$2:$O$11161,M$6,FALSE),"-") -> - | N43: =IFERROR(VLOOKUP(CONCATENATE(N$5,$C43),'trend data'!$A$2:$O$11161,N$6,FALSE),"-") -> - | O43: =IFERROR(VLOOKUP(CONCATENATE(O$5,$C43),'trend data'!$A$2:$O$11161,O$6,FALSE),"-") -> -
A44: 202304 | B44: 2023-12-31 | C44: =CONCATENATE(A44,'SAB Data and Charts'!B$1) -> 202304Scotland | D44: =IFERROR(VLOOKUP(CONCATENATE(D$5,$C44),'trend data'!$A$2:$O$11161,D$6,FALSE),"-") -> 301 | E44: =ROUND(VLOOKUP(CONCATENATE(E$5,$C44),'trend data'!$A$2:$O$11161,E$6,FALSE),4) -> 19.2198 | F44: =ROUND(VLOOKUP(CONCATENATE(F$5,$C44),'trend data'!$A$2:$O$11161,F$6,FALSE),4) -> 17.1096 | G44: =ROUND(VLOOKUP(CONCATENATE(G$5,$C44),'trend data'!$A$2:$O$11161,G$6,FALSE),4) -> 21.5185 | H44: =IFERROR(VLOOKUP(CONCATENATE(H$5,$C44),'trend data'!$A$2:$O$11161,H$6,FALSE),"-") -> 137 | I44: =IFERROR(ROUND(VLOOKUP(CONCATENATE(I$5,$C44),'trend data'!$A$2:$O$11161,I$6,FALSE),4),"-") -> 9.9002 | J44: =IFERROR(ROUND(VLOOKUP(CONCATENATE(J$5,$C44),'trend data'!$A$2:$O$11161,J$6,FALSE),4),"-") -> 8.3118 | K44: =IFERROR(ROUND(VLOOKUP(CONCATENATE(K$5,$C44),'trend data'!$A$2:$O$11161,K$6,FALSE),4),"-") -> 11.7038 | L44: =IFERROR(VLOOKUP(CONCATENATE(L$5,$C44),'trend data'!$A$2:$O$11161,L$6,FALSE),"-") -> - | M44: =IFERROR(VLOOKUP(CONCATENATE(M$5,$C44),'trend data'!$A$2:$O$11161,M$6,FALSE),"-") -> - | N44: =IFERROR(VLOOKUP(CONCATENATE(N$5,$C44),'trend data'!$A$2:$O$11161,N$6,FALSE),"-") -> - | O44: =IFERROR(VLOOKUP(CONCATENATE(O$5,$C44),'trend data'!$A$2:$O$11161,O$6,FALSE),"-") -> -
A45: 202401 | B45: 2024-03-31 | C45: =CONCATENATE(A45,'SAB Data and Charts'!B$1) -> 202401Scotland | D45: =IFERROR(VLOOKUP(CONCATENATE(D$5,$C45),'trend data'!$A$2:$O$11161,D$6,FALSE),"-") -> 271 | E45: =ROUND(VLOOKUP(CONCATENATE(E$5,$C45),'trend data'!$A$2:$O$11161,E$6,FALSE),4) -> 17.0364 | F45: =ROUND(VLOOKUP(CONCATENATE(F$5,$C45),'trend data'!$A$2:$O$11161,F$6,FALSE),4) -> 15.0681 | G45: =ROUND(VLOOKUP(CONCATENATE(G$5,$C45),'trend data'!$A$2:$O$11161,G$6,FALSE),4) -> 19.1903 | H45: =IFERROR(VLOOKUP(CONCATENATE(H$5,$C45),'trend data'!$A$2:$O$11161,H$6,FALSE),"-") -> 148 | I45: =IFERROR(ROUND(VLOOKUP(CONCATENATE(I$5,$C45),'trend data'!$A$2:$O$11161,I$6,FALSE),4),"-") -> 10.7313 | J45: =IFERROR(ROUND(VLOOKUP(CONCATENATE(J$5,$C45),'trend data'!$A$2:$O$11161,J$6,FALSE),4),"-") -> 9.0719 | K45: =IFERROR(ROUND(VLOOKUP(CONCATENATE(K$5,$C45),'trend data'!$A$2:$O$11161,K$6,FALSE),4),"-") -> 12.6062 | L45: =IFERROR(VLOOKUP(CONCATENATE(L$5,$C45),'trend data'!$A$2:$O$11161,L$6,FALSE),"-") -> - | M45: =IFERROR(VLOOKUP(CONCATENATE(M$5,$C45),'trend data'!$A$2:$O$11161,M$6,FALSE),"-") -> - | N45: =IFERROR(VLOOKUP(CONCATENATE(N$5,$C45),'trend data'!$A$2:$O$11161,N$6,FALSE),"-") -> - | O45: =IFERROR(VLOOKUP(CONCATENATE(O$5,$C45),'trend data'!$A$2:$O$11161,O$6,FALSE),"-") -> -
A46: 202402 | B46: 2024-06-30 | C46: =CONCATENATE(A46,'SAB Data and Charts'!B$1) -> 202402Scotland | D46: =IFERROR(VLOOKUP(CONCATENATE(D$5,$C46),'trend data'!$A$2:$O$11161,D$6,FALSE),"-") -> 270 | E46: =ROUND(VLOOKUP(CONCATENATE(E$5,$C46),'trend data'!$A$2:$O$11161,E$6,FALSE),4) -> 17.3268 | F46: =ROUND(VLOOKUP(CONCATENATE(F$5,$C46),'trend data'!$A$2:$O$11161,F$6,FALSE),4) -> 15.3214 | G46: =ROUND(VLOOKUP(CONCATENATE(G$5,$C46),'trend data'!$A$2:$O$11161,G$6,FALSE),4) -> 19.5218 | H46: =IFERROR(VLOOKUP(CONCATENATE(H$5,$C46),'trend data'!$A$2:$O$11161,H$6,FALSE),"-") -> 136 | I46: =IFERROR(ROUND(VLOOKUP(CONCATENATE(I$5,$C46),'trend data'!$A$2:$O$11161,I$6,FALSE),4),"-") -> 9.8612 | J46: =IFERROR(ROUND(VLOOKUP(CONCATENATE(J$5,$C46),'trend data'!$A$2:$O$11161,J$6,FALSE),4),"-") -> 8.2734 | K46: =IFERROR(ROUND(VLOOKUP(CONCATENATE(K$5,$C46),'trend data'!$A$2:$O$11161,K$6,FALSE),4),"-") -> 11.6648 | L46: =IFERROR(VLOOKUP(CONCATENATE(L$5,$C46),'trend data'!$A$2:$O$11161,L$6,FALSE),"-") -> - | M46: =IFERROR(VLOOKUP(CONCATENATE(M$5,$C46),'trend data'!$A$2:$O$11161,M$6,FALSE),"-") -> - | N46: =IFERROR(VLOOKUP(CONCATENATE(N$5,$C46),'trend data'!$A$2:$O$11161,N$6,FALSE),"-") -> - | O46: =IFERROR(VLOOKUP(CONCATENATE(O$5,$C46),'trend data'!$A$2:$O$11161,O$6,FALSE),"-") -> -
A47: 202403 | B47: 2024-09-30 | C47: =CONCATENATE(A47,'SAB Data and Charts'!B$1) -> 202403Scotland | D47: =IFERROR(VLOOKUP(CONCATENATE(D$5,$C47),'trend data'!$A$2:$O$11161,D$6,FALSE),"-") -> 313 | E47: =ROUND(VLOOKUP(CONCATENATE(E$5,$C47),'trend data'!$A$2:$O$11161,E$6,FALSE),4) -> 20.1616 | F47: =ROUND(VLOOKUP(CONCATENATE(F$5,$C47),'trend data'!$A$2:$O$11161,F$6,FALSE),4) -> 17.9895 | G47: =ROUND(VLOOKUP(CONCATENATE(G$5,$C47),'trend data'!$A$2:$O$11161,G$6,FALSE),4) -> 22.5236 | H47: =IFERROR(VLOOKUP(CONCATENATE(H$5,$C47),'trend data'!$A$2:$O$11161,H$6,FALSE),"-") -> 143 | I47: =IFERROR(ROUND(VLOOKUP(CONCATENATE(I$5,$C47),'trend data'!$A$2:$O$11161,I$6,FALSE),4),"-") -> 10.256 | J47: =IFERROR(ROUND(VLOOKUP(CONCATENATE(J$5,$C47),'trend data'!$A$2:$O$11161,J$6,FALSE),4),"-") -> 8.6438 | K47: =IFERROR(ROUND(VLOOKUP(CONCATENATE(K$5,$C47),'trend data'!$A$2:$O$11161,K$6,FALSE),4),"-") -> 12.0816 | L47: =IFERROR(VLOOKUP(CONCATENATE(L$5,$C47),'trend data'!$A$2:$O$11161,L$6,FALSE),"-") -> - | M47: =IFERROR(VLOOKUP(CONCATENATE(M$5,$C47),'trend data'!$A$2:$O$11161,M$6,FALSE),"-") -> - | N47: =IFERROR(VLOOKUP(CONCATENATE(N$5,$C47),'trend data'!$A$2:$O$11161,N$6,FALSE),"-") -> - | O47: =IFERROR(VLOOKUP(CONCATENATE(O$5,$C47),'trend data'!$A$2:$O$11161,O$6,FALSE),"-") -> -
A48: 202404 | B48: 2024-12-31 | C48: =CONCATENATE(A48,'SAB Data and Charts'!B$1) -> 202404Scotland | D48: =IFERROR(VLOOKUP(CONCATENATE(D$5,$C48),'trend data'!$A$2:$O$11161,D$6,FALSE),"-") -> 287 | E48: =ROUND(VLOOKUP(CONCATENATE(E$5,$C48),'trend data'!$A$2:$O$11161,E$6,FALSE),4) -> 18.3941 | F48: =ROUND(VLOOKUP(CONCATENATE(F$5,$C48),'trend data'!$A$2:$O$11161,F$6,FALSE),4) -> 16.3272 | G48: =ROUND(VLOOKUP(CONCATENATE(G$5,$C48),'trend data'!$A$2:$O$11161,G$6,FALSE),4) -> 20.6501 | H48: =IFERROR(VLOOKUP(CONCATENATE(H$5,$C48),'trend data'!$A$2:$O$11161,H$6,FALSE),"-") -> 147 | I48: =IFERROR(ROUND(VLOOKUP(CONCATENATE(I$5,$C48),'trend data'!$A$2:$O$11161,I$6,FALSE),4),"-") -> 10.5429 | J48: =IFERROR(ROUND(VLOOKUP(CONCATENATE(J$5,$C48),'trend data'!$A$2:$O$11161,J$6,FALSE),4),"-") -> 8.9074 | K48: =IFERROR(ROUND(VLOOKUP(CONCATENATE(K$5,$C48),'trend data'!$A$2:$O$11161,K$6,FALSE),4),"-") -> 12.3917 | L48: =IFERROR(VLOOKUP(CONCATENATE(L$5,$C48),'trend data'!$A$2:$O$11161,L$6,FALSE),"-") -> - | M48: =IFERROR(VLOOKUP(CONCATENATE(M$5,$C48),'trend data'!$A$2:$O$11161,M$6,FALSE),"-") -> - | N48: =IFERROR(VLOOKUP(CONCATENATE(N$5,$C48),'trend data'!$A$2:$O$11161,N$6,FALSE),"-") -> - | O48: =IFERROR(VLOOKUP(CONCATENATE(O$5,$C48),'trend data'!$A$2:$O$11161,O$6,FALSE),"-") -> -
A49: 202501 | B49: 2025-03-31 | C49: =CONCATENATE(A49,'SAB Data and Charts'!B$1) -> 202501Scotland | D49: =IFERROR(VLOOKUP(CONCATENATE(D$5,$C49),'trend data'!$A$2:$O$11161,D$6,FALSE),"-") -> 283 | E49: =ROUND(VLOOKUP(CONCATENATE(E$5,$C49),'trend data'!$A$2:$O$11161,E$6,FALSE),4) -> 18.2322 | F49: =ROUND(VLOOKUP(CONCATENATE(F$5,$C49),'trend data'!$A$2:$O$11161,F$6,FALSE),4) -> 16.1696 | G49: =ROUND(VLOOKUP(CONCATENATE(G$5,$C49),'trend data'!$A$2:$O$11161,G$6,FALSE),4) -> 20.485 | H49: =IFERROR(VLOOKUP(CONCATENATE(H$5,$C49),'trend data'!$A$2:$O$11161,H$6,FALSE),"-") -> 123 | I49: =IFERROR(ROUND(VLOOKUP(CONCATENATE(I$5,$C49),'trend data'!$A$2:$O$11161,I$6,FALSE),4),"-") -> 8.993 | J49: =IFERROR(ROUND(VLOOKUP(CONCATENATE(J$5,$C49),'trend data'!$A$2:$O$11161,J$6,FALSE),4),"-") -> 7.4739 | K49: =IFERROR(ROUND(VLOOKUP(CONCATENATE(K$5,$C49),'trend data'!$A$2:$O$11161,K$6,FALSE),4),"-") -> 10.73 | L49: =IFERROR(VLOOKUP(CONCATENATE(L$5,$C49),'trend data'!$A$2:$O$11161,L$6,FALSE),"-") -> - | M49: =IFERROR(VLOOKUP(CONCATENATE(M$5,$C49),'trend data'!$A$2:$O$11161,M$6,FALSE),"-") -> - | N49: =IFERROR(VLOOKUP(CONCATENATE(N$5,$C49),'trend data'!$A$2:$O$11161,N$6,FALSE),"-") -> - | O49: =IFERROR(VLOOKUP(CONCATENATE(O$5,$C49),'trend data'!$A$2:$O$11161,O$6,FALSE),"-") -> -
A50: 202502 | B50: 2025-06-30 | C50: =CONCATENATE(A50,'SAB Data and Charts'!B$1) -> 202502Scotland | D50: =IFERROR(VLOOKUP(CONCATENATE(D$5,$C50),'trend data'!$A$2:$O$11161,D$6,FALSE),"-") -> 303 | E50: =ROUND(VLOOKUP(CONCATENATE(E$5,$C50),'trend data'!$A$2:$O$11161,E$6,FALSE),4) -> 19.8613 | F50: =ROUND(VLOOKUP(CONCATENATE(F$5,$C50),'trend data'!$A$2:$O$11161,F$6,FALSE),4) -> 17.6876 | G50: =ROUND(VLOOKUP(CONCATENATE(G$5,$C50),'trend data'!$A$2:$O$11161,G$6,FALSE),4) -> 22.2284 | H50: =IFERROR(VLOOKUP(CONCATENATE(H$5,$C50),'trend data'!$A$2:$O$11161,H$6,FALSE),"-") -> 156 | I50: =IFERROR(ROUND(VLOOKUP(CONCATENATE(I$5,$C50),'trend data'!$A$2:$O$11161,I$6,FALSE),4),"-") -> 11.2804 | J50: =IFERROR(ROUND(VLOOKUP(CONCATENATE(J$5,$C50),'trend data'!$A$2:$O$11161,J$6,FALSE),4),"-") -> 9.5796 | K50: =IFERROR(ROUND(VLOOKUP(CONCATENATE(K$5,$C50),'trend data'!$A$2:$O$11161,K$6,FALSE),4),"-") -> 13.1961 | L50: =IFERROR(VLOOKUP(CONCATENATE(L$5,$C50),'trend data'!$A$2:$O$11161,L$6,FALSE),"-") -> - | M50: =IFERROR(VLOOKUP(CONCATENATE(M$5,$C50),'trend data'!$A$2:$O$11161,M$6,FALSE),"-") -> - | N50: =IFERROR(VLOOKUP(CONCATENATE(N$5,$C50),'trend data'!$A$2:$O$11161,N$6,FALSE),"-") -> - | O50: =IFERROR(VLOOKUP(CONCATENATE(O$5,$C50),'trend data'!$A$2:$O$11161,O$6,FALSE),"-") -> -
A51: 202503 | B51: 2025-09-30 | C51: =CONCATENATE(A51,'SAB Data and Charts'!B$1) -> 202503Scotland | D51: =IFERROR(VLOOKUP(CONCATENATE(D$5,$C51),'trend data'!$A$2:$O$11161,D$6,FALSE),"-") -> 296 | E51: =ROUND(VLOOKUP(CONCATENATE(E$5,$C51),'trend data'!$A$2:$O$11161,E$6,FALSE),4) -> 19.4312 | F51: =ROUND(VLOOKUP(CONCATENATE(F$5,$C51),'trend data'!$A$2:$O$11161,F$6,FALSE),4) -> 17.2803 | G51: =ROUND(VLOOKUP(CONCATENATE(G$5,$C51),'trend data'!$A$2:$O$11161,G$6,FALSE),4) -> 21.7758 | H51: =IFERROR(VLOOKUP(CONCATENATE(H$5,$C51),'trend data'!$A$2:$O$11161,H$6,FALSE),"-") -> 126 | I51: =IFERROR(ROUND(VLOOKUP(CONCATENATE(I$5,$C51),'trend data'!$A$2:$O$11161,I$6,FALSE),4),"-") -> 9.0121 | J51: =IFERROR(ROUND(VLOOKUP(CONCATENATE(J$5,$C51),'trend data'!$A$2:$O$11161,J$6,FALSE),4),"-") -> 7.5072 | K51: =IFERROR(ROUND(VLOOKUP(CONCATENATE(K$5,$C51),'trend data'!$A$2:$O$11161,K$6,FALSE),4),"-") -> 10.7301 | L51: =IFERROR(VLOOKUP(CONCATENATE(L$5,$C51),'trend data'!$A$2:$O$11161,L$6,FALSE),"-") -> - | M51: =IFERROR(VLOOKUP(CONCATENATE(M$5,$C51),'trend data'!$A$2:$O$11161,M$6,FALSE),"-") -> - | N51: =IFERROR(VLOOKUP(CONCATENATE(N$5,$C51),'trend data'!$A$2:$O$11161,N$6,FALSE),"-") -> - | O51: =IFERROR(VLOOKUP(CONCATENATE(O$5,$C51),'trend data'!$A$2:$O$11161,O$6,FALSE),"-") -> -
A52: 202504 | B52: 2025-12-31 | C52: =CONCATENATE(A52,'SAB Data and Charts'!B$1) -> 202504Scotland | D52: =IFERROR(VLOOKUP(CONCATENATE(D$5,$C52),'trend data'!$A$2:$O$11161,D$6,FALSE),"-") -> 282 | E52: =ROUND(VLOOKUP(CONCATENATE(E$5,$C52),'trend data'!$A$2:$O$11161,E$6,FALSE),4) -> 18.3793 | F52: =ROUND(VLOOKUP(CONCATENATE(F$5,$C52),'trend data'!$A$2:$O$11161,F$6,FALSE),4) -> 16.2965 | G52: =ROUND(VLOOKUP(CONCATENATE(G$5,$C52),'trend data'!$A$2:$O$11161,G$6,FALSE),4) -> 20.6546 | H52: =IFERROR(VLOOKUP(CONCATENATE(H$5,$C52),'trend data'!$A$2:$O$11161,H$6,FALSE),"-") -> 132 | I52: =IFERROR(ROUND(VLOOKUP(CONCATENATE(I$5,$C52),'trend data'!$A$2:$O$11161,I$6,FALSE),4),"-") -> 9.4412 | J52: =IFERROR(ROUND(VLOOKUP(CONCATENATE(J$5,$C52),'trend data'!$A$2:$O$11161,J$6,FALSE),4),"-") -> 7.8993 | K52: =IFERROR(ROUND(VLOOKUP(CONCATENATE(K$5,$C52),'trend data'!$A$2:$O$11161,K$6,FALSE),4),"-") -> 11.1962 | L52: =IFERROR(VLOOKUP(CONCATENATE(L$5,$C52),'trend data'!$A$2:$O$11161,L$6,FALSE),"-") -> - | M52: =IFERROR(VLOOKUP(CONCATENATE(M$5,$C52),'trend data'!$A$2:$O$11161,M$6,FALSE),"-") -> - | N52: =IFERROR(VLOOKUP(CONCATENATE(N$5,$C52),'trend data'!$A$2:$O$11161,N$6,FALSE),"-") -> - | O52: =IFERROR(VLOOKUP(CONCATENATE(O$5,$C52),'trend data'!$A$2:$O$11161,O$6,FALSE),"-") -> -
A53: 202601 | B53: 2026-03-31 | C53: =CONCATENATE(A53,'SAB Data and Charts'!B$1) -> 202601Scotland | D53: =IFERROR(VLOOKUP(CONCATENATE(D$5,$C53),'trend data'!$A$2:$O$11161,D$6,FALSE),"-") -> 291 | E53: =ROUND(VLOOKUP(CONCATENATE(E$5,$C53),'trend data'!$A$2:$O$11161,E$6,FALSE),4) -> 18.8947 | F53: =ROUND(VLOOKUP(CONCATENATE(F$5,$C53),'trend data'!$A$2:$O$11161,F$6,FALSE),4) -> 16.7858 | G53: =ROUND(VLOOKUP(CONCATENATE(G$5,$C53),'trend data'!$A$2:$O$11161,G$6,FALSE),4) -> 21.1952 | H53: =IFERROR(VLOOKUP(CONCATENATE(H$5,$C53),'trend data'!$A$2:$O$11161,H$6,FALSE),"-") -> 137 | I53: =IFERROR(ROUND(VLOOKUP(CONCATENATE(I$5,$C53),'trend data'!$A$2:$O$11161,I$6,FALSE),4),"-") -> 10.0166 | J53: =IFERROR(ROUND(VLOOKUP(CONCATENATE(J$5,$C53),'trend data'!$A$2:$O$11161,J$6,FALSE),4),"-") -> 8.4095 | K53: =IFERROR(ROUND(VLOOKUP(CONCATENATE(K$5,$C53),'trend data'!$A$2:$O$11161,K$6,FALSE),4),"-") -> 11.8414 | L53: =IFERROR(VLOOKUP(CONCATENATE(L$5,$C53),'trend data'!$A$2:$O$11161,L$6,FALSE),"-") -> - | M53: =IFERROR(VLOOKUP(CONCATENATE(M$5,$C53),'trend data'!$A$2:$O$11161,M$6,FALSE),"-") -> - | N53: =IFERROR(VLOOKUP(CONCATENATE(N$5,$C53),'trend data'!$A$2:$O$11161,N$6,FALSE),"-") -> - | O53: =IFERROR(VLOOKUP(CONCATENATE(O$5,$C53),'trend data'!$A$2:$O$11161,O$6,FALSE),"-") -> -

Sheet CDI data (hidden)
A1: Trend data | O1: u-chart data
A3: always last 3 years
Q4: change this
D5: CDIHCAI | E5: CDIHCAI | F5: CDIHCAI | G5: CDIHCAI | H5: CDICA | I5: CDICA | J5: CDICA | K5: CDICA | P5: current quarter end | Q5: 2026-03-31 | S5: 3 | T5: 4 | U5: 5 | V5: 6 | X5: 3 | Y5: 4 | Z5: 5 | AA5: 6
D6: 2 | E6: 4 | F6: 5 | G6: 6 | H6: 2 | I6: 4 | J6: 5 | K6: 6
C7: ref | D7: Healthcare associated Cases | E7: Healthcare associated rate | F7: Healthcare associated lower CI | G7: Healthcare associated upper CI | H7: Community associated Cases | I7: Community associated rate | J7: Community associated lower CI | K7: Community associated upper CI | S7: CDIHCAI | X7: CDICA
A8: 201404 | B8: 2014-12-19 | C8: =CONCATENATE(A8,'CDI Data and Charts'!B$1) -> 201404Scotland | D8: =VLOOKUP(CONCATENATE(D$5,$C8),'trend data'!$A$2:$O$11161,D$6,FALSE) -> 321 | E8: =ROUND(VLOOKUP(CONCATENATE(E$5,$C8),'trend data'!$A$2:$O$11161,E$6,FALSE),3) -> 18.752 | F8: =ROUND(VLOOKUP(CONCATENATE(F$5,$C8),'trend data'!$A$2:$O$11161,F$6,FALSE),3) -> 16.756 | G8: =ROUND(VLOOKUP(CONCATENATE(G$5,$C8),'trend data'!$A$2:$O$11161,G$6,FALSE),3) -> 20.92 | H8: =IFERROR(VLOOKUP(CONCATENATE(H$5,$C8),'trend data'!$A$2:$O$11161,H$6,FALSE),"-") -> 121 | I8: =IFERROR(ROUND(VLOOKUP(CONCATENATE(I$5,$C8),'trend data'!$A$2:$O$11161,I$6,FALSE),3),"-") -> 9.004 | J8: =IFERROR(ROUND(VLOOKUP(CONCATENATE(J$5,$C8),'trend data'!$A$2:$O$11161,J$6,FALSE),3),"-") -> 7.471 | K8: =IFERROR(ROUND(VLOOKUP(CONCATENATE(K$5,$C8),'trend data'!$A$2:$O$11161,K$6,FALSE),3),"-") -> 10.759 | S8: Healthcare associated rate | T8: Healthcare associated av rate | U8: Healthcare associated UWL 2sd | V8: Healthcare associated UCL 3sd | X8: Community associatedrate | Y8: Community associatedav rate | Z8: Community associatedUWL 2sd | AA8: Community associatedUCL 3 sd
A9: 201501 | B9: 2015-03-24 | C9: =CONCATENATE(A9,'CDI Data and Charts'!B$1) -> 201501Scotland | D9: =VLOOKUP(CONCATENATE(D$5,$C9),'trend data'!$A$2:$O$11161,D$6,FALSE) -> 251 | E9: =ROUND(VLOOKUP(CONCATENATE(E$5,$C9),'trend data'!$A$2:$O$11161,E$6,FALSE),3) -> 14.562 | F9: =ROUND(VLOOKUP(CONCATENATE(F$5,$C9),'trend data'!$A$2:$O$11161,F$6,FALSE),3) -> 12.816 | G9: =ROUND(VLOOKUP(CONCATENATE(G$5,$C9),'trend data'!$A$2:$O$11161,G$6,FALSE),3) -> 16.479 | H9: =IFERROR(VLOOKUP(CONCATENATE(H$5,$C9),'trend data'!$A$2:$O$11161,H$6,FALSE),"-") -> 92 | I9: =IFERROR(ROUND(VLOOKUP(CONCATENATE(I$5,$C9),'trend data'!$A$2:$O$11161,I$6,FALSE),3),"-") -> 6.973 | J9: =IFERROR(ROUND(VLOOKUP(CONCATENATE(J$5,$C9),'trend data'!$A$2:$O$11161,J$6,FALSE),3),"-") -> 5.621 | K9: =IFERROR(ROUND(VLOOKUP(CONCATENATE(K$5,$C9),'trend data'!$A$2:$O$11161,K$6,FALSE),3),"-") -> 8.552 | O9: =YEAR(Q9)&"0"&IF(MONTH(Q9)<4,1,IF(MONTH(Q9)<7,2,IF(MONTH(Q9)<10,3,4))) -> 202302 | P9: 1 | Q9: =Q10-92 -> 2023-06-23 | R9: =CONCATENATE(S$7,$O9,'CDI Data and Charts'!B$1) -> CDIHCAI202302Scotland | S9: =ROUND(VLOOKUP($R9,'data for u-p-charts'!$A$2:$F$5000,S$5,FALSE),2) -> 15.8 | T9: =ROUND(VLOOKUP($R9,'data for u-p-charts'!$A$2:$F$5000,T$5,FALSE),2) -> 15.26 | U9: =ROUND(VLOOKUP($R9,'data for u-p-charts'!$A$2:$F$5000,U$5,FALSE),2) -> 17.24 | V9: =ROUND(VLOOKUP($R9,'data for u-p-charts'!$A$2:$F$5000,V$5,FALSE),2) -> 18.24 | W9: =CONCATENATE(X$7,$O9,'CDI Data and Charts'!B$1) -> CDICA202302Scotland | X9: =ROUND(VLOOKUP($W9,'data for u-p-charts'!$A$2:$F$5000,X$5,FALSE),2) -> 5.11 | Y9: =ROUND(VLOOKUP($W9,'data for u-p-charts'!$A$2:$F$5000,Y$5,FALSE),2) -> 5.79 | Z9: =ROUND(VLOOKUP($W9,'data for u-p-charts'!$A$2:$F$5000,Z$5,FALSE),2) -> 7.09 | AA9: =ROUND(VLOOKUP($W9,'data for u-p-charts'!$A$2:$F$5000,AA$5,FALSE),2) -> 7.74
A10: 201502 | B10: 2015-06-24 | C10: =CONCATENATE(A10,'CDI Data and Charts'!B$1) -> 201502Scotland | D10: =VLOOKUP(CONCATENATE(D$5,$C10),'trend data'!$A$2:$O$11161,D$6,FALSE) -> 308 | E10: =ROUND(VLOOKUP(CONCATENATE(E$5,$C10),'trend data'!$A$2:$O$11161,E$6,FALSE),3) -> 18.538 | F10: =ROUND(VLOOKUP(CONCATENATE(F$5,$C10),'trend data'!$A$2:$O$11161,F$6,FALSE),3) -> 16.526 | G10: =ROUND(VLOOKUP(CONCATENATE(G$5,$C10),'trend data'!$A$2:$O$11161,G$6,FALSE),3) -> 20.729 | H10: =IFERROR(VLOOKUP(CONCATENATE(H$5,$C10),'trend data'!$A$2:$O$11161,H$6,FALSE),"-") -> 98 | I10: =IFERROR(ROUND(VLOOKUP(CONCATENATE(I$5,$C10),'trend data'!$A$2:$O$11161,I$6,FALSE),3),"-") -> 7.346 | J10: =IFERROR(ROUND(VLOOKUP(CONCATENATE(J$5,$C10),'trend data'!$A$2:$O$11161,J$6,FALSE),3),"-") -> 5.964 | K10: =IFERROR(ROUND(VLOOKUP(CONCATENATE(K$5,$C10),'trend data'!$A$2:$O$11161,K$6,FALSE),3),"-") -> 8.953 | O10: =YEAR(Q10)&"0"&IF(MONTH(Q10)<4,1,IF(MONTH(Q10)<7,2,IF(MONTH(Q10)<10,3,4))) -> 202303 | P10: 2 | Q10: 2023-09-23 | R10: =CONCATENATE(S$7,$O10,'CDI Data and Charts'!B$1) -> CDIHCAI202303Scotland | S10: =ROUND(VLOOKUP($R10,'data for u-p-charts'!$A$2:$F$5000,S$5,FALSE),2) -> 15.54 | T10: =ROUND(VLOOKUP($R10,'data for u-p-charts'!$A$2:$F$5000,T$5,FALSE),2) -> 15.26 | U10: =ROUND(VLOOKUP($R10,'data for u-p-charts'!$A$2:$F$5000,U$5,FALSE),2) -> 17.25 | V10: =ROUND(VLOOKUP($R10,'data for u-p-charts'!$A$2:$F$5000,V$5,FALSE),2) -> 18.25 | W10: =CONCATENATE(X$7,$O10,'CDI Data and Charts'!B$1) -> CDICA202303Scotland | X10: =ROUND(VLOOKUP($W10,'data for u-p-charts'!$A$2:$F$5000,X$5,FALSE),2) -> 6.21 | Y10: =ROUND(VLOOKUP($W10,'data for u-p-charts'!$A$2:$F$5000,Y$5,FALSE),2) -> 5.79 | Z10: =ROUND(VLOOKUP($W10,'data for u-p-charts'!$A$2:$F$5000,Z$5,FALSE),2) -> 7.08 | AA10: =ROUND(VLOOKUP($W10,'data for u-p-charts'!$A$2:$F$5000,AA$5,FALSE),2) -> 7.73
A11: 201503 | B11: 2015-09-24 | C11: =CONCATENATE(A11,'CDI Data and Charts'!B$1) -> 201503Scotland | D11: =VLOOKUP(CONCATENATE(D$5,$C11),'trend data'!$A$2:$O$11161,D$6,FALSE) -> 313 | E11: =ROUND(VLOOKUP(CONCATENATE(E$5,$C11),'trend data'!$A$2:$O$11161,E$6,FALSE),3) -> 19.31 | F11: =ROUND(VLOOKUP(CONCATENATE(F$5,$C11),'trend data'!$A$2:$O$11161,F$6,FALSE),3) -> 17.23 | G11: =ROUND(VLOOKUP(CONCATENATE(G$5,$C11),'trend data'!$A$2:$O$11161,G$6,FALSE),3) -> 21.573 | H11: =IFERROR(VLOOKUP(CONCATENATE(H$5,$C11),'trend data'!$A$2:$O$11161,H$6,FALSE),"-") -> 131 | I11: =IFERROR(ROUND(VLOOKUP(CONCATENATE(I$5,$C11),'trend data'!$A$2:$O$11161,I$6,FALSE),3),"-") -> 9.713 | J11: =IFERROR(ROUND(VLOOKUP(CONCATENATE(J$5,$C11),'trend data'!$A$2:$O$11161,J$6,FALSE),3),"-") -> 8.121 | K11: =IFERROR(ROUND(VLOOKUP(CONCATENATE(K$5,$C11),'trend data'!$A$2:$O$11161,K$6,FALSE),3),"-") -> 11.526 | O11: 202304 | P11: 3 | Q11: 2023-12-24 | R11: =CONCATENATE(S$7,$O11,'CDI Data and Charts'!B$1) -> CDIHCAI202304Scotland | S11: =ROUND(VLOOKUP($R11,'data for u-p-charts'!$A$2:$F$5000,S$5,FALSE),2) -> 14.24 | T11: =ROUND(VLOOKUP($R11,'data for u-p-charts'!$A$2:$F$5000,T$5,FALSE),2) -> 15.26 | U11: =ROUND(VLOOKUP($R11,'data for u-p-charts'!$A$2:$F$5000,U$5,FALSE),2) -> 17.23 | V11: =ROUND(VLOOKUP($R11,'data for u-p-charts'!$A$2:$F$5000,V$5,FALSE),2) -> 18.22 | W11: =CONCATENATE(X$7,$O11,'CDI Data and Charts'!B$1) -> CDICA202304Scotland | X11: =ROUND(VLOOKUP($W11,'data for u-p-charts'!$A$2:$F$5000,X$5,FALSE),2) -> 5.71 | Y11: =ROUND(VLOOKUP($W11,'data for u-p-charts'!$A$2:$F$5000,Y$5,FALSE),2) -> 5.79 | Z11: =ROUND(VLOOKUP($W11,'data for u-p-charts'!$A$2:$F$5000,Z$5,FALSE),2) -> 7.08 | AA11: =ROUND(VLOOKUP($W11,'data for u-p-charts'!$A$2:$F$5000,AA$5,FALSE),2) -> 7.73
A12: 201504 | B12: 2015-12-24 | C12: =CONCATENATE(A12,'CDI Data and Charts'!B$1) -> 201504Scotland | D12: =VLOOKUP(CONCATENATE(D$5,$C12),'trend data'!$A$2:$O$11161,D$6,FALSE) -> 367 | E12: =ROUND(VLOOKUP(CONCATENATE(E$5,$C12),'trend data'!$A$2:$O$11161,E$6,FALSE),3) -> 22.349 | F12: =ROUND(VLOOKUP(CONCATENATE(F$5,$C12),'trend data'!$A$2:$O$11161,F$6,FALSE),3) -> 20.12 | G12: =ROUND(VLOOKUP(CONCATENATE(G$5,$C12),'trend data'!$A$2:$O$11161,G$6,FALSE),3) -> 24.756 | H12: =IFERROR(VLOOKUP(CONCATENATE(H$5,$C12),'trend data'!$A$2:$O$11161,H$6,FALSE),"-") -> 116 | I12: =IFERROR(ROUND(VLOOKUP(CONCATENATE(I$5,$C12),'trend data'!$A$2:$O$11161,I$6,FALSE),3),"-") -> 8.601 | J12: =IFERROR(ROUND(VLOOKUP(CONCATENATE(J$5,$C12),'trend data'!$A$2:$O$11161,J$6,FALSE),3),"-") -> 7.107 | K12: =IFERROR(ROUND(VLOOKUP(CONCATENATE(K$5,$C12),'trend data'!$A$2:$O$11161,K$6,FALSE),3),"-") -> 10.316 | O12: 202401 | P12: 4 | Q12: 2024-03-25 | R12: =CONCATENATE(S$7,$O12,'CDI Data and Charts'!B$1) -> CDIHCAI202401Scotland | S12: =ROUND(VLOOKUP($R12,'data for u-p-charts'!$A$2:$F$5000,S$5,FALSE),2) -> 12.7 | T12: =ROUND(VLOOKUP($R12,'data for u-p-charts'!$A$2:$F$5000,T$5,FALSE),2) -> 15.26 | U12: =ROUND(VLOOKUP($R12,'data for u-p-charts'!$A$2:$F$5000,U$5,FALSE),2) -> 17.22 | V12: =ROUND(VLOOKUP($R12,'data for u-p-charts'!$A$2:$F$5000,V$5,FALSE),2) -> 18.19 | W12: =CONCATENATE(X$7,$O12,'CDI Data and Charts'!B$1) -> CDICA202401Scotland | X12: =ROUND(VLOOKUP($W12,'data for u-p-charts'!$A$2:$F$5000,X$5,FALSE),2) -> 6.74 | Y12: =ROUND(VLOOKUP($W12,'data for u-p-charts'!$A$2:$F$5000,Y$5,FALSE),2) -> 5.79 | Z12: =ROUND(VLOOKUP($W12,'data for u-p-charts'!$A$2:$F$5000,Z$5,FALSE),2) -> 7.08 | AA12: =ROUND(VLOOKUP($W12,'data for u-p-charts'!$A$2:$F$5000,AA$5,FALSE),2) -> 7.73
A13: 201601 | B13: 2016-03-24 | C13: =CONCATENATE(A13,'CDI Data and Charts'!B$1) -> 201601Scotland | D13: =VLOOKUP(CONCATENATE(D$5,$C13),'trend data'!$A$2:$O$11161,D$6,FALSE) -> 252 | E13: =ROUND(VLOOKUP(CONCATENATE(E$5,$C13),'trend data'!$A$2:$O$11161,E$6,FALSE),3) -> 15.05 | F13: =ROUND(VLOOKUP(CONCATENATE(F$5,$C13),'trend data'!$A$2:$O$11161,F$6,FALSE),3) -> 13.249 | G13: =ROUND(VLOOKUP(CONCATENATE(G$5,$C13),'trend data'!$A$2:$O$11161,G$6,FALSE),3) -> 17.027 | H13: =IFERROR(VLOOKUP(CONCATENATE(H$5,$C13),'trend data'!$A$2:$O$11161,H$6,FALSE),"-") -> 97 | I13: =IFERROR(ROUND(VLOOKUP(CONCATENATE(I$5,$C13),'trend data'!$A$2:$O$11161,I$6,FALSE),3),"-") -> 7.26 | J13: =IFERROR(ROUND(VLOOKUP(CONCATENATE(J$5,$C13),'trend data'!$A$2:$O$11161,J$6,FALSE),3),"-") -> 5.887 | K13: =IFERROR(ROUND(VLOOKUP(CONCATENATE(K$5,$C13),'trend data'!$A$2:$O$11161,K$6,FALSE),3),"-") -> 8.857 | O13: 202402 | P13: 5 | Q13: 2024-06-25 | R13: =CONCATENATE(S$7,$O13,'CDI Data and Charts'!B$1) -> CDIHCAI202402Scotland | S13: =ROUND(VLOOKUP($R13,'data for u-p-charts'!$A$2:$F$5000,S$5,FALSE),2) -> 17.07 | T13: =ROUND(VLOOKUP($R13,'data for u-p-charts'!$A$2:$F$5000,T$5,FALSE),2) -> 15.26 | U13: =ROUND(VLOOKUP($R13,'data for u-p-charts'!$A$2:$F$5000,U$5,FALSE),2) -> 17.24 | V13: =ROUND(VLOOKUP($R13,'data for u-p-charts'!$A$2:$F$5000,V$5,FALSE),2) -> 18.23 | W13: =CONCATENATE(X$7,$O13,'CDI Data and Charts'!B$1) -> CDICA202402Scotland | X13: =ROUND(VLOOKUP($W13,'data for u-p-charts'!$A$2:$F$5000,X$5,FALSE),2) -> 6.82 | Y13: =ROUND(VLOOKUP($W13,'data for u-p-charts'!$A$2:$F$5000,Y$5,FALSE),2) -> 5.79 | Z13: =ROUND(VLOOKUP($W13,'data for u-p-charts'!$A$2:$F$5000,Z$5,FALSE),2) -> 7.08 | AA13: =ROUND(VLOOKUP($W13,'data for u-p-charts'!$A$2:$F$5000,AA$5,FALSE),2) -> 7.73
A14: 201602 | B14: 2016-06-24 | C14: =CONCATENATE(A14,'CDI Data and Charts'!B$1) -> 201602Scotland | D14: =VLOOKUP(CONCATENATE(D$5,$C14),'trend data'!$A$2:$O$11161,D$6,FALSE) -> 250 | E14: =ROUND(VLOOKUP(CONCATENATE(E$5,$C14),'trend data'!$A$2:$O$11161,E$6,FALSE),3) -> 15.575 | F14: =ROUND(VLOOKUP(CONCATENATE(F$5,$C14),'trend data'!$A$2:$O$11161,F$6,FALSE),3) -> 13.704 | G14: =ROUND(VLOOKUP(CONCATENATE(G$5,$C14),'trend data'!$A$2:$O$11161,G$6,FALSE),3) -> 17.631 | H14: =IFERROR(VLOOKUP(CONCATENATE(H$5,$C14),'trend data'!$A$2:$O$11161,H$6,FALSE),"-") -> 91 | I14: =IFERROR(ROUND(VLOOKUP(CONCATENATE(I$5,$C14),'trend data'!$A$2:$O$11161,I$6,FALSE),3),"-") -> 6.811 | J14: =IFERROR(ROUND(VLOOKUP(CONCATENATE(J$5,$C14),'trend data'!$A$2:$O$11161,J$6,FALSE),3),"-") -> 5.484 | K14: =IFERROR(ROUND(VLOOKUP(CONCATENATE(K$5,$C14),'trend data'!$A$2:$O$11161,K$6,FALSE),3),"-") -> 8.363 | O14: 202403 | P14: 6 | Q14: 2024-09-25 | R14: =CONCATENATE(S$7,$O14,'CDI Data and Charts'!B$1) -> CDIHCAI202403Scotland | S14: =ROUND(VLOOKUP($R14,'data for u-p-charts'!$A$2:$F$5000,S$5,FALSE),2) -> 18.36 | T14: =ROUND(VLOOKUP($R14,'data for u-p-charts'!$A$2:$F$5000,T$5,FALSE),2) -> 15.26 | U14: =ROUND(VLOOKUP($R14,'data for u-p-charts'!$A$2:$F$5000,U$5,FALSE),2) -> 17.24 | V14: =ROUND(VLOOKUP($R14,'data for u-p-charts'!$A$2:$F$5000,V$5,FALSE),2) -> 18.23 | W14: =CONCATENATE(X$7,$O14,'CDI Data and Charts'!B$1) -> CDICA202403Scotland | X14: =ROUND(VLOOKUP($W14,'data for u-p-charts'!$A$2:$F$5000,X$5,FALSE),2) -> 7.53 | Y14: =ROUND(VLOOKUP($W14,'data for u-p-charts'!$A$2:$F$5000,Y$5,FALSE),2) -> 5.79 | Z14: =ROUND(VLOOKUP($W14,'data for u-p-charts'!$A$2:$F$5000,Z$5,FALSE),2) -> 7.08 | AA14: =ROUND(VLOOKUP($W14,'data for u-p-charts'!$A$2:$F$5000,AA$5,FALSE),2) -> 7.72
A15: 201603 | B15: 2016-09-24 | C15: =CONCATENATE(A15,'CDI Data and Charts'!B$1) -> 201603Scotland | D15: =VLOOKUP(CONCATENATE(D$5,$C15),'trend data'!$A$2:$O$11161,D$6,FALSE) -> 263 | E15: =ROUND(VLOOKUP(CONCATENATE(E$5,$C15),'trend data'!$A$2:$O$11161,E$6,FALSE),3) -> 16.563 | F15: =ROUND(VLOOKUP(CONCATENATE(F$5,$C15),'trend data'!$A$2:$O$11161,F$6,FALSE),3) -> 14.621 | G15: =ROUND(VLOOKUP(CONCATENATE(G$5,$C15),'trend data'!$A$2:$O$11161,G$6,FALSE),3) -> 18.69 | H15: =IFERROR(VLOOKUP(CONCATENATE(H$5,$C15),'trend data'!$A$2:$O$11161,H$6,FALSE),"-") -> 119 | I15: =IFERROR(ROUND(VLOOKUP(CONCATENATE(I$5,$C15),'trend data'!$A$2:$O$11161,I$6,FALSE),3),"-") -> 8.81 | J15: =IFERROR(ROUND(VLOOKUP(CONCATENATE(J$5,$C15),'trend data'!$A$2:$O$11161,J$6,FALSE),3),"-") -> 7.298 | K15: =IFERROR(ROUND(VLOOKUP(CONCATENATE(K$5,$C15),'trend data'!$A$2:$O$11161,K$6,FALSE),3),"-") -> 10.543 | O15: 202404 | P15: 7 | Q15: 2024-12-26 | R15: =CONCATENATE(S$7,$O15,'CDI Data and Charts'!B$1) -> CDIHCAI202404Scotland | S15: =ROUND(VLOOKUP($R15,'data for u-p-charts'!$A$2:$F$5000,S$5,FALSE),2) -> 18.07 | T15: =ROUND(VLOOKUP($R15,'data for u-p-charts'!$A$2:$F$5000,T$5,FALSE),2) -> 15.26 | U15: =ROUND(VLOOKUP($R15,'data for u-p-charts'!$A$2:$F$5000,U$5,FALSE),2) -> 17.23 | V15: =ROUND(VLOOKUP($R15,'data for u-p-charts'!$A$2:$F$5000,V$5,FALSE),2) -> 18.22 | W15: =CONCATENATE(X$7,$O15,'CDI Data and Charts'!B$1) -> CDICA202404Scotland | X15: =ROUND(VLOOKUP($W15,'data for u-p-charts'!$A$2:$F$5000,X$5,FALSE),2) -> 6.1 | Y15: =ROUND(VLOOKUP($W15,'data for u-p-charts'!$A$2:$F$5000,Y$5,FALSE),2) -> 5.79 | Z15: =ROUND(VLOOKUP($W15,'data for u-p-charts'!$A$2:$F$5000,Z$5,FALSE),2) -> 7.08 | AA15: =ROUND(VLOOKUP($W15,'data for u-p-charts'!$A$2:$F$5000,AA$5,FALSE),2) -> 7.72
A16: 201604 | B16: 2016-12-24 | C16: =CONCATENATE(A16,'CDI Data and Charts'!B$1) -> 201604Scotland | D16: =VLOOKUP(CONCATENATE(D$5,$C16),'trend data'!$A$2:$O$11161,D$6,FALSE) -> 233 | E16: =ROUND(VLOOKUP(CONCATENATE(E$5,$C16),'trend data'!$A$2:$O$11161,E$6,FALSE),3) -> 14.639 | F16: =ROUND(VLOOKUP(CONCATENATE(F$5,$C16),'trend data'!$A$2:$O$11161,F$6,FALSE),3) -> 12.819 | G16: =ROUND(VLOOKUP(CONCATENATE(G$5,$C16),'trend data'!$A$2:$O$11161,G$6,FALSE),3) -> 16.644 | H16: =IFERROR(VLOOKUP(CONCATENATE(H$5,$C16),'trend data'!$A$2:$O$11161,H$6,FALSE),"-") -> 94 | I16: =IFERROR(ROUND(VLOOKUP(CONCATENATE(I$5,$C16),'trend data'!$A$2:$O$11161,I$6,FALSE),3),"-") -> 6.959 | J16: =IFERROR(ROUND(VLOOKUP(CONCATENATE(J$5,$C16),'trend data'!$A$2:$O$11161,J$6,FALSE),3),"-") -> 5.624 | K16: =IFERROR(ROUND(VLOOKUP(CONCATENATE(K$5,$C16),'trend data'!$A$2:$O$11161,K$6,FALSE),3),"-") -> 8.516 | O16: 202501 | P16: 8 | Q16: 2025-03-28 | R16: =CONCATENATE(S$7,$O16,'CDI Data and Charts'!B$1) -> CDIHCAI202501Scotland | S16: =ROUND(VLOOKUP($R16,'data for u-p-charts'!$A$2:$F$5000,S$5,FALSE),2) -> 13.4 | T16: =ROUND(VLOOKUP($R16,'data for u-p-charts'!$A$2:$F$5000,T$5,FALSE),2) -> 15.26 | U16: =ROUND(VLOOKUP($R16,'data for u-p-charts'!$A$2:$F$5000,U$5,FALSE),2) -> 17.24 | V16: =ROUND(VLOOKUP($R16,'data for u-p-charts'!$A$2:$F$5000,V$5,FALSE),2) -> 18.23 | W16: =CONCATENATE(X$7,$O16,'CDI Data and Charts'!B$1) -> CDICA202501Scotland | X16: =ROUND(VLOOKUP($W16,'data for u-p-charts'!$A$2:$F$5000,X$5,FALSE),2) -> 4.68 | Y16: =ROUND(VLOOKUP($W16,'data for u-p-charts'!$A$2:$F$5000,Y$5,FALSE),2) -> 5.79 | Z16: =ROUND(VLOOKUP($W16,'data for u-p-charts'!$A$2:$F$5000,Z$5,FALSE),2) -> 7.09 | AA16: =ROUND(VLOOKUP($W16,'data for u-p-charts'!$A$2:$F$5000,AA$5,FALSE),2) -> 7.74
A17: 201701 | B17: 2017-03-01 | C17: =CONCATENATE(A17,'CDI Data and Charts'!B$1) -> 201701Scotland | D17: =VLOOKUP(CONCATENATE(D$5,$C17),'trend data'!$A$2:$O$11161,D$6,FALSE) -> 257 | E17: =ROUND(VLOOKUP(CONCATENATE(E$5,$C17),'trend data'!$A$2:$O$11161,E$6,FALSE),3) -> 16.252 | F17: =ROUND(VLOOKUP(CONCATENATE(F$5,$C17),'trend data'!$A$2:$O$11161,F$6,FALSE),3) -> 14.326 | G17: =ROUND(VLOOKUP(CONCATENATE(G$5,$C17),'trend data'!$A$2:$O$11161,G$6,FALSE),3) -> 18.365 | H17: =IFERROR(VLOOKUP(CONCATENATE(H$5,$C17),'trend data'!$A$2:$O$11161,H$6,FALSE),"-") -> 74 | I17: =IFERROR(ROUND(VLOOKUP(CONCATENATE(I$5,$C17),'trend data'!$A$2:$O$11161,I$6,FALSE),3),"-") -> 5.57 | J17: =IFERROR(ROUND(VLOOKUP(CONCATENATE(J$5,$C17),'trend data'!$A$2:$O$11161,J$6,FALSE),3),"-") -> 4.373 | K17: =IFERROR(ROUND(VLOOKUP(CONCATENATE(K$5,$C17),'trend data'!$A$2:$O$11161,K$6,FALSE),3),"-") -> 6.992 | O17: 202502 | P17: 9 | Q17: 2025-06-28 | R17: =CONCATENATE(S$7,$O17,'CDI Data and Charts'!B$1) -> CDIHCAI202502Scotland | S17: =ROUND(VLOOKUP($R17,'data for u-p-charts'!$A$2:$F$5000,S$5,FALSE),2) -> 13.96 | T17: =ROUND(VLOOKUP($R17,'data for u-p-charts'!$A$2:$F$5000,T$5,FALSE),2) -> 15.26 | U17: =ROUND(VLOOKUP($R17,'data for u-p-charts'!$A$2:$F$5000,U$5,FALSE),2) -> 17.26 | V17: =ROUND(VLOOKUP($R17,'data for u-p-charts'!$A$2:$F$5000,V$5,FALSE),2) -> 18.26 | W17: =CONCATENATE(X$7,$O17,'CDI Data and Charts'!B$1) -> CDICA202502Scotland | X17: =ROUND(VLOOKUP($W17,'data for u-p-charts'!$A$2:$F$5000,X$5,FALSE),2) -> 5.28 | Y17: =ROUND(VLOOKUP($W17,'data for u-p-charts'!$A$2:$F$5000,Y$5,FALSE),2) -> 5.79 | Z17: =ROUND(VLOOKUP($W17,'data for u-p-charts'!$A$2:$F$5000,Z$5,FALSE),2) -> 7.08 | AA17: =ROUND(VLOOKUP($W17,'data for u-p-charts'!$A$2:$F$5000,AA$5,FALSE),2) -> 7.73
A18: 201702 | B18: 2017-06-01 | C18: =CONCATENATE(A18,'CDI Data and Charts'!B$1) -> 201702Scotland | D18: =VLOOKUP(CONCATENATE(D$5,$C18),'trend data'!$A$2:$O$11161,D$6,FALSE) -> 237 | E18: =ROUND(VLOOKUP(CONCATENATE(E$5,$C18),'trend data'!$A$2:$O$11161,E$6,FALSE),3) -> 15.285 | F18: =ROUND(VLOOKUP(CONCATENATE(F$5,$C18),'trend data'!$A$2:$O$11161,F$6,FALSE),3) -> 13.4 | G18: =ROUND(VLOOKUP(CONCATENATE(G$5,$C18),'trend data'!$A$2:$O$11161,G$6,FALSE),3) -> 17.36 | H18: =IFERROR(VLOOKUP(CONCATENATE(H$5,$C18),'trend data'!$A$2:$O$11161,H$6,FALSE),"-") -> 101 | I18: =IFERROR(ROUND(VLOOKUP(CONCATENATE(I$5,$C18),'trend data'!$A$2:$O$11161,I$6,FALSE),3),"-") -> 7.518 | J18: =IFERROR(ROUND(VLOOKUP(CONCATENATE(J$5,$C18),'trend data'!$A$2:$O$11161,J$6,FALSE),3),"-") -> 6.124 | K18: =IFERROR(ROUND(VLOOKUP(CONCATENATE(K$5,$C18),'trend data'!$A$2:$O$11161,K$6,FALSE),3),"-") -> 9.136 | O18: 202503 | P18: 10 | Q18: 2025-09-28 | R18: =CONCATENATE(S$7,$O18,'CDI Data and Charts'!B$1) -> CDIHCAI202503Scotland | S18: =ROUND(VLOOKUP($R18,'data for u-p-charts'!$A$2:$F$5000,S$5,FALSE),2) -> 16.15 | T18: =ROUND(VLOOKUP($R18,'data for u-p-charts'!$A$2:$F$5000,T$5,FALSE),2) -> 15.26 | U18: =ROUND(VLOOKUP($R18,'data for u-p-charts'!$A$2:$F$5000,U$5,FALSE),2) -> 17.26 | V18: =ROUND(VLOOKUP($R18,'data for u-p-charts'!$A$2:$F$5000,V$5,FALSE),2) -> 18.26 | W18: =CONCATENATE(X$7,$O18,'CDI Data and Charts'!B$1) -> CDICA202503Scotland | X18: =ROUND(VLOOKUP($W18,'data for u-p-charts'!$A$2:$F$5000,X$5,FALSE),2) -> 6.01 | Y18: =ROUND(VLOOKUP($W18,'data for u-p-charts'!$A$2:$F$5000,Y$5,FALSE),2) -> 5.79 | Z18: =ROUND(VLOOKUP($W18,'data for u-p-charts'!$A$2:$F$5000,Z$5,FALSE),2) -> 7.08 | AA18: =ROUND(VLOOKUP($W18,'data for u-p-charts'!$A$2:$F$5000,AA$5,FALSE),2) -> 7.72
A19: 201703 | B19: 2017-09-01 | C19: =CONCATENATE(A19,'CDI Data and Charts'!B$1) -> 201703Scotland | D19: =VLOOKUP(CONCATENATE(D$5,$C19),'trend data'!$A$2:$O$11161,D$6,FALSE) -> 284 | E19: =ROUND(VLOOKUP(CONCATENATE(E$5,$C19),'trend data'!$A$2:$O$11161,E$6,FALSE),3) -> 18.456 | F19: =ROUND(VLOOKUP(CONCATENATE(F$5,$C19),'trend data'!$A$2:$O$11161,F$6,FALSE),3) -> 16.371 | G19: =ROUND(VLOOKUP(CONCATENATE(G$5,$C19),'trend data'!$A$2:$O$11161,G$6,FALSE),3) -> 20.732 | H19: =IFERROR(VLOOKUP(CONCATENATE(H$5,$C19),'trend data'!$A$2:$O$11161,H$6,FALSE),"-") -> 107 | I19: =IFERROR(ROUND(VLOOKUP(CONCATENATE(I$5,$C19),'trend data'!$A$2:$O$11161,I$6,FALSE),3),"-") -> 7.879 | J19: =IFERROR(ROUND(VLOOKUP(CONCATENATE(J$5,$C19),'trend data'!$A$2:$O$11161,J$6,FALSE),3),"-") -> 6.456 | K19: =IFERROR(ROUND(VLOOKUP(CONCATENATE(K$5,$C19),'trend data'!$A$2:$O$11161,K$6,FALSE),3),"-") -> 9.521 | O19: 202504 | P19: 11 | Q19: =Q20-92 -> 2025-12-29 | R19: =CONCATENATE(S$7,$O19,'CDI Data and Charts'!B$1) -> CDIHCAI202504Scotland | S19: =ROUND(VLOOKUP($R19,'data for u-p-charts'!$A$2:$F$5000,S$5,FALSE),2) -> 14.4 | T19: =ROUND(VLOOKUP($R19,'data for u-p-charts'!$A$2:$F$5000,T$5,FALSE),2) -> 15.26 | U19: =ROUND(VLOOKUP($R19,'data for u-p-charts'!$A$2:$F$5000,U$5,FALSE),2) -> 17.25 | V19: =ROUND(VLOOKUP($R19,'data for u-p-charts'!$A$2:$F$5000,V$5,FALSE),2) -> 18.25 | W19: =CONCATENATE(X$7,$O19,'CDI Data and Charts'!B$1) -> CDICA202504Scotland | X19: =ROUND(VLOOKUP($W19,'data for u-p-charts'!$A$2:$F$5000,X$5,FALSE),2) -> 5.01 | Y19: =ROUND(VLOOKUP($W19,'data for u-p-charts'!$A$2:$F$5000,Y$5,FALSE),2) -> 5.79 | Z19: =ROUND(VLOOKUP($W19,'data for u-p-charts'!$A$2:$F$5000,Z$5,FALSE),2) -> 7.08 | AA19: =ROUND(VLOOKUP($W19,'data for u-p-charts'!$A$2:$F$5000,AA$5,FALSE),2) -> 7.72
A20: 201704 | B20: 2017-12-01 | C20: =CONCATENATE(A20,'CDI Data and Charts'!B$1) -> 201704Scotland | D20: =VLOOKUP(CONCATENATE(D$5,$C20),'trend data'!$A$2:$O$11161,D$6,FALSE) -> 234 | E20: =ROUND(VLOOKUP(CONCATENATE(E$5,$C20),'trend data'!$A$2:$O$11161,E$6,FALSE),3) -> 14.857 | F20: =ROUND(VLOOKUP(CONCATENATE(F$5,$C20),'trend data'!$A$2:$O$11161,F$6,FALSE),3) -> 13.015 | G20: =ROUND(VLOOKUP(CONCATENATE(G$5,$C20),'trend data'!$A$2:$O$11161,G$6,FALSE),3) -> 16.888 | H20: =IFERROR(VLOOKUP(CONCATENATE(H$5,$C20),'trend data'!$A$2:$O$11161,H$6,FALSE),"-") -> 75 | I20: =IFERROR(ROUND(VLOOKUP(CONCATENATE(I$5,$C20),'trend data'!$A$2:$O$11161,I$6,FALSE),3),"-") -> 5.522 | J20: =IFERROR(ROUND(VLOOKUP(CONCATENATE(J$5,$C20),'trend data'!$A$2:$O$11161,J$6,FALSE),3),"-") -> 4.343 | K20: =IFERROR(ROUND(VLOOKUP(CONCATENATE(K$5,$C20),'trend data'!$A$2:$O$11161,K$6,FALSE),3),"-") -> 6.922 | O20: 202601 | P20: 12 | Q20: =Q5 -> 2026-03-31 | R20: =CONCATENATE(S$7,$O20,'CDI Data and Charts'!B$1) -> CDIHCAI202601Scotland | S20: =ROUND(VLOOKUP($R20,'data for u-p-charts'!$A$2:$F$5000,S$5,FALSE),2) -> 13.9 | T20: =ROUND(VLOOKUP($R20,'data for u-p-charts'!$A$2:$F$5000,T$5,FALSE),2) -> 15.26 | U20: =ROUND(VLOOKUP($R20,'data for u-p-charts'!$A$2:$F$5000,U$5,FALSE),2) -> 17.25 | V20: =ROUND(VLOOKUP($R20,'data for u-p-charts'!$A$2:$F$5000,V$5,FALSE),2) -> 18.24 | W20: =CONCATENATE(X$7,$O20,'CDI Data and Charts'!B$1) -> CDICA202601Scotland | X20: =ROUND(VLOOKUP($W20,'data for u-p-charts'!$A$2:$F$5000,X$5,FALSE),2) -> 5.34 | Y20: =ROUND(VLOOKUP($W20,'data for u-p-charts'!$A$2:$F$5000,Y$5,FALSE),2) -> 5.79 | Z20: =ROUND(VLOOKUP($W20,'data for u-p-charts'!$A$2:$F$5000,Z$5,FALSE),2) -> 7.09 | AA20: =ROUND(VLOOKUP($W20,'data for u-p-charts'!$A$2:$F$5000,AA$5,FALSE),2) -> 7.74
A21: 201801 | B21: 2018-03-01 | C21: =CONCATENATE(A21,'CDI Data and Charts'!B$1) -> 201801Scotland | D21: =IFERROR(VLOOKUP(CONCATENATE(D$5,$C21),'trend data'!$A$2:$O$11161,D$6,FALSE),"-") -> 228 | E21: =ROUND(VLOOKUP(CONCATENATE(E$5,$C21),'trend data'!$A$2:$O$11161,E$6,FALSE),3) -> 14.383 | F21: =ROUND(VLOOKUP(CONCATENATE(F$5,$C21),'trend data'!$A$2:$O$11161,F$6,FALSE),3) -> 12.576 | G21: =ROUND(VLOOKUP(CONCATENATE(G$5,$C21),'trend data'!$A$2:$O$11161,G$6,FALSE),3) -> 16.376 | H21: =IFERROR(VLOOKUP(CONCATENATE(H$5,$C21),'trend data'!$A$2:$O$11161,H$6,FALSE),"-") -> 86 | I21: =IFERROR(ROUND(VLOOKUP(CONCATENATE(I$5,$C21),'trend data'!$A$2:$O$11161,I$6,FALSE),3),"-") -> 6.468 | J21: =IFERROR(ROUND(VLOOKUP(CONCATENATE(J$5,$C21),'trend data'!$A$2:$O$11161,J$6,FALSE),3),"-") -> 5.174 | K21: =IFERROR(ROUND(VLOOKUP(CONCATENATE(K$5,$C21),'trend data'!$A$2:$O$11161,K$6,FALSE),3),"-") -> 7.988
